Workbook

Sheet Cover
B3: Attachment 9.03
B4: Stand alone and avoidable cost model
B6: 2025-30 Regulatory Proposal
B8: 2024-11-26

Sheet Checklist
B2: Checklist
B4: Yearly update | H4: Initial set up
B6: Colour codes | D6: Steps | H6: Steps
B8: Key | D8: Step | E8: Tab | F8: Description | H8: Step | I8: Tab | J8: Description
B9: Inputs | D9: 1 | E9: X-factors | F9: From PTRM copy and paste x-factor calculations | H9: 1 | I9: X-factors | J9: From PTRM copy and paste x-factor calculations
B10: Parameter | D10: 2 | E10: Assets | F10: From PTRM, copy paste asset calculations | H10: 2 | I10: Assets | J10: From PTRM, copy paste asset calculations
B11: Calculation | D11: 3 | E11: PTRM inputs | F11: From PTRM inputs, copy paste inputs calculations | H11: 3 | I11: PTRM inputs | J11: From PTRM inputs, copy paste inputs calculations
B12: Outputs | D12: 4 | E12: Allocators | F12: Fill in projected/actual customer numbers for each year and code | H12: 4 | I12: Opex costs | J12: Type in operational cost categories into the red boxes
B13: Text | D13: 5 | E13: Allocators | F13: Fill in projected/actual energy consumed for each year and code | H13: 5 | I13: Opex costs | J13: Assign the percentage of operational costs to each category
H14: 6 | I14: Allocators | J14: Type in customer code, name and voltage level
H15: 7 | I15: Allocators | J15: Fill in projected customer numbers for each year and code
H16: 8 | I16: Allocators | J16: Fill in projected energy consumed for each year and code
H17: 9 | I17: Control panel | J17: For standalone costs, choose the proportion of scalable costs for each customer code
H18: 10 | I18: Control panel | J18: For operational costs, assign the percentage allocated to avoidable costs
H19: 11 | I19: Control panel | J19: For operational costs, assign the percentage allocated to the customer
H20: 12 | I20: Control panel | J20: For operational costs, assign if it is a scalable or non-scalable cost
H21: 13 | I21: Control panel | J21: For return of capex, assign the percentage allocated to avoidable costs
H22: 14 | I22: Control panel | J22: For return of capex, assign the percentage allocated to the customer
H23: 15 | I23: Control panel | J23: For return of capex, assign if it is a scalable or non-scalable cost
H24: 16 | I24: Control panel | J24: For return on capex, assign the percentage allocated to avoidable costs
H25: 17 | I25: Control panel | J25: For return on capex, assign the percentage allocated to the customer
H26: 18 | I26: Control panel | J26: For return on capex, assign if it is a scalable or non-scalable cost
H27: 19 | I27: Control panel | J27: For each operational cost and asset put a 1 or 0. This is to map similar opex to capex categories

Sheet Outputs
B2: Outputs
B4: Final output | P4: Standalone costs | AD4: Avoidable costs
B6: Avoidable costs (per cent of revenue) | I6: Standalone costs (per cent of revenue) | P6: Scalable | W6: Non scalable | AD6: Customer related costs | AK6: Energy related costs
B8: Class | C8: 2025-26 | D8: 2026-27 | E8: 2027-28 | F8: 2028-29 | G8: 2029-30 | I8: Class | J8: 2025-26 | K8: 2026-27 | L8: 2027-28 | M8: 2028-29 | N8: 2029-30 | P8: Type | Q8: 2025-26 | R8: 2026-27 | S8: 2027-28 | T8: 2028-29 | U8: 2029-30 | W8: Type | X8: 2025-26 | Y8: 2026-27 | Z8: 2027-28 | AA8: 2028-29 | AB8: 2029-30 | AD8: Type | AE8: 2025-26 | AF8: 2026-27 | AG8: 2027-28 | AH8: 2028-29 | AI8: 2029-30 | AK8: Type | AL8: 2025-26 | AM8: 2026-27 | AN8: 2027-28 | AO8: 2028-29 | AP8: 2029-30
B9: ICC | C9: =(AE$14*(_xlfn.XLOOKUP($B9,Allocators!$B$7:$B$9,Allocators!F$7:F$9)/Allocators!F$11)+AL$14*(_xlfn.XLOOKUP($B9,Allocators!$B$7:$B$9,Allocators!L$7:L$9)/Allocators!L$11))/'BBM Costs'!C$13 -> 0.03826057842 | D9: =(AF$14*(_xlfn.XLOOKUP($B9,Allocators!$B$7:$B$9,Allocators!G$7:G$9)/Allocators!G$11)+AM$14*(_xlfn.XLOOKUP($B9,Allocators!$B$7:$B$9,Allocators!M$7:M$9)/Allocators!M$11))/'BBM Costs'!D$13 -> 0.03780732677 | E9: =(AG$14*(_xlfn.XLOOKUP($B9,Allocators!$B$7:$B$9,Allocators!H$7:H$9)/Allocators!H$11)+AN$14*(_xlfn.XLOOKUP($B9,Allocators!$B$7:$B$9,Allocators!N$7:N$9)/Allocators!N$11))/'BBM Costs'!E$13 -> 0.03776847305 | F9: =(AH$14*(_xlfn.XLOOKUP($B9,Allocators!$B$7:$B$9,Allocators!I$7:I$9)/Allocators!I$11)+AO$14*(_xlfn.XLOOKUP($B9,Allocators!$B$7:$B$9,Allocators!O$7:O$9)/Allocators!O$11))/'BBM Costs'!F$13 -> 0.03775749008 | G9: =(AI$14*(_xlfn.XLOOKUP($B9,Allocators!$B$7:$B$9,Allocators!J$7:J$9)/Allocators!J$11)+AP$14*(_xlfn.XLOOKUP($B9,Allocators!$B$7:$B$9,Allocators!P$7:P$9)/Allocators!P$11))/'BBM Costs'!G$13 -> 0.03805295444 | I9: ICC | J9: =((X$14+(Q$14*_xlfn.XLOOKUP($I9,'Control panel'!$B$7:$B$9,'Control panel'!$C$7:$C$9)))/'BBM Costs'!C$13)+C9 -> 0.2088348782 | K9: =((Y$14+(R$14*_xlfn.XLOOKUP($I9,'Control panel'!$B$7:$B$9,'Control panel'!$C$7:$C$9)))/'BBM Costs'!D$13)+D9 -> 0.2249809154 | L9: =((Z$14+(S$14*_xlfn.XLOOKUP($I9,'Control panel'!$B$7:$B$9,'Control panel'!$C$7:$C$9)))/'BBM Costs'!E$13)+E9 -> 0.2195178929 | M9: =((AA$14+(T$14*_xlfn.XLOOKUP($I9,'Control panel'!$B$7:$B$9,'Control panel'!$C$7:$C$9)))/'BBM Costs'!F$13)+F9 -> 0.2198364374 | N9: =((AB$14+(U$14*_xlfn.XLOOKUP($I9,'Control panel'!$B$7:$B$9,'Control panel'!$C$7:$C$9)))/'BBM Costs'!G$13)+G9 -> 0.217455 | P9: Opex | Q9: =SUMPRODUCT('BBM Costs'!J$7:J$25,'Control panel'!$G$7:$G$25,--('Control panel'!$J$7:$J$25=Outputs!$P$6)) -> 354.1777547 | R9: =SUMPRODUCT('BBM Costs'!K$7:K$25,'Control panel'!$G$7:$G$25,--('Control panel'!$J$7:$J$25=Outputs!$P$6)) -> 359.9028082 | S9: =SUMPRODUCT('BBM Costs'!L$7:L$25,'Control panel'!$G$7:$G$25,--('Control panel'!$J$7:$J$25=Outputs!$P$6)) -> 366.9902927 | T9: =SUMPRODUCT('BBM Costs'!M$7:M$25,'Control panel'!$G$7:$G$25,--('Control panel'!$J$7:$J$25=Outputs!$P$6)) -> 380.0824273 | U9: =SUMPRODUCT('BBM Costs'!N$7:N$25,'Control panel'!$G$7:$G$25,--('Control panel'!$J$7:$J$25=Outputs!$P$6)) -> 389.578452 | W9: Opex | X9: =SUMPRODUCT('BBM Costs'!J$7:J$25,'Control panel'!$G$7:$G$25,--('Control panel'!$J$7:$J$25=$W$6)) -> -99.82465994 | Y9: =SUMPRODUCT('BBM Costs'!K$7:K$25,'Control panel'!$G$7:$G$25,--('Control panel'!$J$7:$J$25=$W$6)) -> -99.65151678 | Z9: =SUMPRODUCT('BBM Costs'!L$7:L$25,'Control panel'!$G$7:$G$25,--('Control panel'!$J$7:$J$25=$W$6)) -> -99.4372475 | AA9: =SUMPRODUCT('BBM Costs'!M$7:M$25,'Control panel'!$G$7:$G$25,--('Control panel'!$J$7:$J$25=$W$6)) -> -99.04060252 | AB9: =SUMPRODUCT('BBM Costs'!N$7:N$25,'Control panel'!$G$7:$G$25,--('Control panel'!$J$7:$J$25=$W$6)) -> -98.75283779 | AD9: O&M related | AE9: ='Avoidable costs'!J29 -> 59.8300291 | AF9: ='Avoidable costs'!K29 -> 60.7969117 | AG9: ='Avoidable costs'!L29 -> 61.99345473 | AH9: ='Avoidable costs'!M29 -> 64.20843756 | AI9: ='Avoidable costs'!N29 -> 65.81540089 | AK9: Asset related | AL9: =SUMPRODUCT(IF(AL$8='Avoidable costs'!$W$9:$W$161,1,0),'Avoidable costs'!$Y$9:$Y$161,'Avoidable costs'!$AC$9:$AC$161) -> 197.0492779 | AM9: =SUMPRODUCT(IF(AM$8='Avoidable costs'!$W$9:$W$161,1,0),'Avoidable costs'!$Y$9:$Y$161,'Avoidable costs'!$AC$9:$AC$161) -> 207.6470884 | AN9: =SUMPRODUCT(IF(AN$8='Avoidable costs'!$W$9:$W$161,1,0),'Avoidable costs'!$Y$9:$Y$161,'Avoidable costs'!$AC$9:$AC$161) -> 222.1037159 | AO9: =SUMPRODUCT(IF(AO$8='Avoidable costs'!$W$9:$W$161,1,0),'Avoidable costs'!$Y$9:$Y$161,'Avoidable costs'!$AC$9:$AC$161) -> 243.2422964 | AP9: =SUMPRODUCT(IF(AP$8='Avoidable costs'!$W$9:$W$161,1,0),'Avoidable costs'!$Y$9:$Y$161,'Avoidable costs'!$AC$9:$AC$161) -> 261.4561895
B10: CAC | C10: =(AE$14*(_xlfn.XLOOKUP($B10,Allocators!$B$7:$B$9,Allocators!F$7:F$9)/Allocators!F$11)+AL$14*(_xlfn.XLOOKUP($B10,Allocators!$B$7:$B$9,Allocators!L$7:L$9)/Allocators!L$11))/'BBM Costs'!C$13 -> 0.01254888113 | D10: =(AF$14*(_xlfn.XLOOKUP($B10,Allocators!$B$7:$B$9,Allocators!G$7:G$9)/Allocators!G$11)+AM$14*(_xlfn.XLOOKUP($B10,Allocators!$B$7:$B$9,Allocators!M$7:M$9)/Allocators!M$11))/'BBM Costs'!D$13 -> 0.01239933556 | E10: =(AG$14*(_xlfn.XLOOKUP($B10,Allocators!$B$7:$B$9,Allocators!H$7:H$9)/Allocators!H$11)+AN$14*(_xlfn.XLOOKUP($B10,Allocators!$B$7:$B$9,Allocators!N$7:N$9)/Allocators!N$11))/'BBM Costs'!E$13 -> 0.01238558946 | F10: =(AH$14*(_xlfn.XLOOKUP($B10,Allocators!$B$7:$B$9,Allocators!I$7:I$9)/Allocators!I$11)+AO$14*(_xlfn.XLOOKUP($B10,Allocators!$B$7:$B$9,Allocators!O$7:O$9)/Allocators!O$11))/'BBM Costs'!F$13 -> 0.01238089982 | G10: =(AI$14*(_xlfn.XLOOKUP($B10,Allocators!$B$7:$B$9,Allocators!J$7:J$9)/Allocators!J$11)+AP$14*(_xlfn.XLOOKUP($B10,Allocators!$B$7:$B$9,Allocators!P$7:P$9)/Allocators!P$11))/'BBM Costs'!G$13 -> 0.01247688932 | I10: CAC | J10: =((X$14+(Q$14*_xlfn.XLOOKUP($I10,'Control panel'!$B$7:$B$9,'Control panel'!$C$7:$C$9)))/'BBM Costs'!C$13)+C10 -> 0.3808483279 | K10: =((Y$14+(R$14*_xlfn.XLOOKUP($I10,'Control panel'!$B$7:$B$9,'Control panel'!$C$7:$C$9)))/'BBM Costs'!D$13)+D10 -> 0.4074570626 | L10: =((Z$14+(S$14*_xlfn.XLOOKUP($I10,'Control panel'!$B$7:$B$9,'Control panel'!$C$7:$C$9)))/'BBM Costs'!E$13)+E10 -> 0.3939698636 | M10: =((AA$14+(T$14*_xlfn.XLOOKUP($I10,'Control panel'!$B$7:$B$9,'Control panel'!$C$7:$C$9)))/'BBM Costs'!F$13)+F10 -> 0.3901434701 | N10: =((AB$14+(U$14*_xlfn.XLOOKUP($I10,'Control panel'!$B$7:$B$9,'Control panel'!$C$7:$C$9)))/'BBM Costs'!G$13)+G10 -> 0.3824408375 | P10: Return on | Q10: =SUMPRODUCT('BBM Costs'!X$7:X$37,'Control panel'!$U$7:$U$37,--('Control panel'!$X$7:$X$37=Outputs!$P$6)) -> 671.1543057 | R10: =SUMPRODUCT('BBM Costs'!Y$7:Y$37,'Control panel'!$U$7:$U$37,--('Control panel'!$X$7:$X$37=Outputs!$P$6)) -> 718.5519132 | S10: =SUMPRODUCT('BBM Costs'!Z$7:Z$37,'Control panel'!$U$7:$U$37,--('Control panel'!$X$7:$X$37=Outputs!$P$6)) -> 766.5832642 | T10: =SUMPRODUCT('BBM Costs'!AA$7:AA$37,'Control panel'!$U$7:$U$37,--('Control panel'!$X$7:$X$37=Outputs!$P$6)) -> 843.4944172 | U10: =SUMPRODUCT('BBM Costs'!AB$7:AB$37,'Control panel'!$U$7:$U$37,--('Control panel'!$X$7:$X$37=Outputs!$P$6)) -> 907.1897002 | W10: Return on | X10: =SUMPRODUCT('BBM Costs'!X$7:X$37,'Control panel'!$U$7:$U$37,--('Control panel'!$X$7:$X$37=$W$6)) -> 0 | Y10: =SUMPRODUCT('BBM Costs'!Y$7:Y$37,'Control panel'!$U$7:$U$37,--('Control panel'!$X$7:$X$37=$W$6)) -> 0 | Z10: =SUMPRODUCT('BBM Costs'!Z$7:Z$37,'Control panel'!$U$7:$U$37,--('Control panel'!$X$7:$X$37=$W$6)) -> 0 | AA10: =SUMPRODUCT('BBM Costs'!AA$7:AA$37,'Control panel'!$U$7:$U$37,--('Control panel'!$X$7:$X$37=$W$6)) -> 0 | AB10: =SUMPRODUCT('BBM Costs'!AB$7:AB$37,'Control panel'!$U$7:$U$37,--('Control panel'!$X$7:$X$37=$W$6)) -> 0 | AD10: Asset related | AE10: ='Avoidable costs'!Q29 -> 84.8389712 | AF10: ='Avoidable costs'!R29 -> 86.21001056 | AG10: ='Avoidable costs'!S29 -> 87.90670838 | AH10: ='Avoidable costs'!T29 -> 91.04755366 | AI10: ='Avoidable costs'!U29 -> 93.3262274
B11: SAC | C11: =(AE$14*(_xlfn.XLOOKUP($B11,Allocators!$B$7:$B$9,Allocators!F$7:F$9)/Allocators!F$11)+AL$14*(_xlfn.XLOOKUP($B11,Allocators!$B$7:$B$9,Allocators!L$7:L$9)/Allocators!L$11))/'BBM Costs'!C$13 -> 0.1775028646 | D11: =(AF$14*(_xlfn.XLOOKUP($B11,Allocators!$B$7:$B$9,Allocators!G$7:G$9)/Allocators!G$11)+AM$14*(_xlfn.XLOOKUP($B11,Allocators!$B$7:$B$9,Allocators!M$7:M$9)/Allocators!M$11))/'BBM Costs'!D$13 -> 0.1714705275 | E11: =(AG$14*(_xlfn.XLOOKUP($B11,Allocators!$B$7:$B$9,Allocators!H$7:H$9)/Allocators!H$11)+AN$14*(_xlfn.XLOOKUP($B11,Allocators!$B$7:$B$9,Allocators!N$7:N$9)/Allocators!N$11))/'BBM Costs'!E$13 -> 0.1670253195 | F11: =(AH$14*(_xlfn.XLOOKUP($B11,Allocators!$B$7:$B$9,Allocators!I$7:I$9)/Allocators!I$11)+AO$14*(_xlfn.XLOOKUP($B11,Allocators!$B$7:$B$9,Allocators!O$7:O$9)/Allocators!O$11))/'BBM Costs'!F$13 -> 0.1620711196 | G11: =(AI$14*(_xlfn.XLOOKUP($B11,Allocators!$B$7:$B$9,Allocators!J$7:J$9)/Allocators!J$11)+AP$14*(_xlfn.XLOOKUP($B11,Allocators!$B$7:$B$9,Allocators!P$7:P$9)/Allocators!P$11))/'BBM Costs'!G$13 -> 0.1593253469 | I11: SAC | J11: =((X$14+(Q$14*_xlfn.XLOOKUP($I11,'Control panel'!$B$7:$B$9,'Control panel'!$C$7:$C$9)))/'BBM Costs'!C$13)+C11 -> 0.901707576 | K11: =((Y$14+(R$14*_xlfn.XLOOKUP($I11,'Control panel'!$B$7:$B$9,'Control panel'!$C$7:$C$9)))/'BBM Costs'!D$13)+D11 -> 0.9407197036 | L11: =((Z$14+(S$14*_xlfn.XLOOKUP($I11,'Control panel'!$B$7:$B$9,'Control panel'!$C$7:$C$9)))/'BBM Costs'!E$13)+E11 -> 0.9083123314 | M11: =((AA$14+(T$14*_xlfn.XLOOKUP($I11,'Control panel'!$B$7:$B$9,'Control panel'!$C$7:$C$9)))/'BBM Costs'!F$13)+F11 -> 0.8920642112 | N11: =((AB$14+(U$14*_xlfn.XLOOKUP($I11,'Control panel'!$B$7:$B$9,'Control panel'!$C$7:$C$9)))/'BBM Costs'!G$13)+G11 -> 0.8723007198 | P11: Return of | Q11: =SUMPRODUCT('BBM Costs'!Q$7:Q$37,'Control panel'!$N$7:$N$37,--('Control panel'!$Q$7:$Q$37=Outputs!$P$6)) -> 158.4200134 | R11: =SUMPRODUCT('BBM Costs'!R$7:R$37,'Control panel'!$N$7:$N$37,--('Control panel'!$Q$7:$Q$37=Outputs!$P$6)) -> 251.8931325 | S11: =SUMPRODUCT('BBM Costs'!S$7:S$37,'Control panel'!$N$7:$N$37,--('Control panel'!$Q$7:$Q$37=Outputs!$P$6)) -> 235.6050505 | T11: =SUMPRODUCT('BBM Costs'!T$7:T$37,'Control panel'!$N$7:$N$37,--('Control panel'!$Q$7:$Q$37=Outputs!$P$6)) -> 246.2835562 | U11: =SUMPRODUCT('BBM Costs'!U$7:U$37,'Control panel'!$N$7:$N$37,--('Control panel'!$Q$7:$Q$37=Outputs!$P$6)) -> 230.9504644 | W11: Return of | X11: =SUMPRODUCT('BBM Costs'!Q$7:Q$37,'Control panel'!$N$7:$N$37,--('Control panel'!$Q$7:$Q$37=$W$6)) -> 0 | Y11: =SUMPRODUCT('BBM Costs'!R$7:R$37,'Control panel'!$N$7:$N$37,--('Control panel'!$Q$7:$Q$37=$W$6)) -> 0 | Z11: =SUMPRODUCT('BBM Costs'!S$7:S$37,'Control panel'!$N$7:$N$37,--('Control panel'!$Q$7:$Q$37=$W$6)) -> 0 | AA11: =SUMPRODUCT('BBM Costs'!T$7:T$37,'Control panel'!$N$7:$N$37,--('Control panel'!$Q$7:$Q$37=$W$6)) -> 0 | AB11: =SUMPRODUCT('BBM Costs'!U$7:U$37,'Control panel'!$N$7:$N$37,--('Control panel'!$Q$7:$Q$37=$W$6)) -> 0
P14: Total | Q14: =SUM(Q9:Q11) -> 1183.752074 | R14: =SUM(R9:R11) -> 1330.347854 | S14: 1369.178607 | T14: 1469.860401 | U14: 1527.718617 | W14: Total | X14: =SUM(X9:X11) -> -99.82465994 | Y14: =SUM(Y9:Y11) -> -99.65151678 | Z14: -99.4372475 | AA14: -99.04060252 | AB14: -98.75283779 | AD14: Total | AE14: =SUM(AE9:AE11) -> 144.6690003 | AF14: =SUM(AF9:AF11) -> 147.0069223 | AG14: 149.9001631 | AH14: 155.2559912 | AI14: 159.1416283 | AK14: Total | AL14: =SUM(AL9:AL11) -> 197.0492779 | AM14: =SUM(AM9:AM11) -> 207.6470884 | AN14: 222.1037159 | AO14: 243.2422964 | AP14: 261.4561895

Sheet Avoidable costs
B2: Avoidable costs
B4: Customer related costs | W4: Energy related costs
B6: Total costs | I6: Operational expenditure | P6: Asset related costs | W6: Energy related costs | AE6: Matching | AZ6: Asset values
B8: Category | C8: 2025-26 | D8: 2026-27 | E8: 2027-28 | F8: 2028-29 | G8: 2029-30 | I8: Category | J8: 2025-26 | K8: 2026-27 | L8: 2027-28 | M8: 2028-29 | N8: 2029-30 | P8: Category | Q8: 2025-26 | R8: 2026-27 | S8: 2027-28 | T8: 2028-29 | U8: 2029-30 | W8: Year | X8: Category | Y8: Asset related helper column | Z8: Opex | AA8: Return of capex | AB8: Return on capex | AC8: Total | AE8: Category | AF8: =$B$9 -> Preventative Maintenance | AG8: =$B$10 -> Corrective Maintenance | AH8: =$B$11 -> Forced Maintenance | AI8: =$B$12 -> Vegetation Management | AJ8: =$B$13 -> Other Network Maintenance | AK8: =$B$14 -> Network Operating Costs | AL8: =$B$15 -> Meter Reading | AM8: =$B$16 -> Customer Service (incl Call Centre) | AN8: =$B$17 -> Other Operating Costs | AO8: =$B$18 -> Training | AP8: =$B$19 -> Debt raising costs | AQ8: =$B$20 -> Non-network Alternatives | AR8: =$B$21 -> Corporate Restructuring | AS8: =$B$22 -> Corporate Allocations | AT8: EBSS | AU8: CESS | AV8: Control period carryover | AW8: Shared asset decrements | AX8: DMIA | AZ8: Year | BA8: =$B$9 -> Preventative Maintenance | BB8: =$B$10 -> Corrective Maintenance | BC8: =$B$11 -> Forced Maintenance | BD8: =$B$12 -> Vegetation Management | BE8: =$B$13 -> Other Network Maintenance | BF8: =$B$14 -> Network Operating Costs | BG8: =$B$15 -> Meter Reading | BH8: =$B$16 -> Customer Service (incl Call Centre) | BI8: =$B$17 -> Other Operating Costs | BJ8: =$B$18 -> Training | BK8: =$B$19 -> Debt raising costs | BL8: =$B$20 -> Non-network Alternatives | BM8: =$B$21 -> Corporate Restructuring | BN8: =$B$22 -> Corporate Allocations | BO8: EBSS | BP8: CESS | BQ8: Control period carryover | BR8: Shared asset decrements | BS8: DMIA
B9: ='Opex costs'!B7 -> Preventative Maintenance | C9: =_xlfn.XLOOKUP($B9,'BBM Costs'!$I$7:$I$25,'BBM Costs'!J$7:J$25)*_xlfn.XLOOKUP($B9,'Control panel'!$E$7:$E$25,'Control panel'!$F$7:$F$25) -> 51.08266004 | D9: =_xlfn.XLOOKUP($B9,'BBM Costs'!$I$7:$I$25,'BBM Costs'!K$7:K$25)*_xlfn.XLOOKUP($B9,'Control panel'!$E$7:$E$25,'Control panel'!$F$7:$F$25) -> 51.90818087 | E9: =_xlfn.XLOOKUP($B9,'BBM Costs'!$I$7:$I$25,'BBM Costs'!L$7:L$25)*_xlfn.XLOOKUP($B9,'Control panel'!$E$7:$E$25,'Control panel'!$F$7:$F$25) -> 52.92978493 | F9: =_xlfn.XLOOKUP($B9,'BBM Costs'!$I$7:$I$25,'BBM Costs'!M$7:M$25)*_xlfn.XLOOKUP($B9,'Control panel'!$E$7:$E$25,'Control panel'!$F$7:$F$25) -> 54.82092917 | G9: =_xlfn.XLOOKUP($B9,'BBM Costs'!$I$7:$I$25,'BBM Costs'!N$7:N$25)*_xlfn.XLOOKUP($B9,'Control panel'!$E$7:$E$25,'Control panel'!$F$7:$F$25) -> 56.19294859 | I9: =B9 -> Preventative Maintenance | J9: =C9*_xlfn.XLOOKUP($I9,'Control panel'!$E$7:$E$25,'Control panel'!$H$7:$H$25) -> 21.96554382 | K9: =D9*_xlfn.XLOOKUP($I9,'Control panel'!$E$7:$E$25,'Control panel'!$H$7:$H$25) -> 22.32051777 | L9: =E9*_xlfn.XLOOKUP($I9,'Control panel'!$E$7:$E$25,'Control panel'!$H$7:$H$25) -> 22.75980752 | M9: =F9*_xlfn.XLOOKUP($I9,'Control panel'!$E$7:$E$25,'Control panel'!$H$7:$H$25) -> 23.57299954 | N9: =G9*_xlfn.XLOOKUP($I9,'Control panel'!$E$7:$E$25,'Control panel'!$H$7:$H$25) -> 24.16296789 | P9: =B9 -> Preventative Maintenance | Q9: =C9*_xlfn.XLOOKUP($P9,'Control panel'!$E$7:$E$25,'Control panel'!$I$7:$I$25) -> 29.11711622 | R9: =D9*_xlfn.XLOOKUP($P9,'Control panel'!$E$7:$E$25,'Control panel'!$I$7:$I$25) -> 29.58766309 | S9: =E9*_xlfn.XLOOKUP($P9,'Control panel'!$E$7:$E$25,'Control panel'!$I$7:$I$25) -> 30.16997741 | T9: =F9*_xlfn.XLOOKUP($P9,'Control panel'!$E$7:$E$25,'Control panel'!$I$7:$I$25) -> 31.24792963 | U9: =G9*_xlfn.XLOOKUP($P9,'Control panel'!$E$7:$E$25,'Control panel'!$I$7:$I$25) -> 32.02998069 | W9: 2025-26 | X9: ='PTRM Data'!B7 -> Overhead Sub-Transmission Lines | Y9: =_xlfn.XLOOKUP(X9,'Control panel'!$L$7:$L$37,'Control panel'!$P$7:$P$37) -> 1 | Z9: =SUMPRODUCT(_xlfn.XLOOKUP(W9,$AZ$9:$AZ$13,$BA$9:$BS$13),_xlfn.XLOOKUP(X9,$AE$9:$AE$39,$AF$9:$AX$39)) -> 9.359452454 | AA9: =_xlfn.XLOOKUP(W9,'BBM Costs'!$Q$6:$U$6,_xlfn.XLOOKUP(X9,'BBM Costs'!$P$7:$P$37,'BBM Costs'!$Q$7:$U$37))*_xlfn.XLOOKUP(X9,'Control panel'!$L$7:$L$37,'Control panel'!$M$7:$M$37) -> 0 | AB9: =_xlfn.XLOOKUP(W9,'BBM Costs'!$X$6:$AB$6,_xlfn.XLOOKUP(X9,'BBM Costs'!$W$7:$W$37,'BBM Costs'!$X$7:$AB$37))*_xlfn.XLOOKUP(X9,'Control panel'!$S$7:$S$37,'Control panel'!$T$7:$T$37) -> 0 | AC9: =SUM(Z9:AB9) -> 9.359452454 | AE9: ='PTRM Data'!B7 -> Overhead Sub-Transmission Lines | AF9: ='Control panel'!$AA7/SUMPRODUCT('Control panel'!$AA$7:$AA$37,'Control panel'!AB$7:AB$37)*'Control panel'!AB7 -> 0.1111052336 | AG9: ='Control panel'!$AA7/SUMPRODUCT('Control panel'!$AA$7:$AA$37,'Control panel'!AC$7:AC$37)*'Control panel'!AC7 -> 0.1122260373 | AH9: ='Control panel'!$AA7/SUMPRODUCT('Control panel'!$AA$7:$AA$37,'Control panel'!AD$7:AD$37)*'Control panel'!AD7 -> 0.112215689 | AI9: ='Control panel'!$AA7/SUMPRODUCT('Control panel'!$AA$7:$AA$37,'Control panel'!AE$7:AE$37)*'Control panel'!AE7 -> 0.1950947367 | AJ9: ='Control panel'!$AA7/SUMPRODUCT('Control panel'!$AA$7:$AA$37,'Control panel'!AF$7:AF$37)*'Control panel'!AF7 -> 0 | AK9: ='Control panel'!$AA7/SUMPRODUCT('Control panel'!$AA$7:$AA$37,'Control panel'!AG$7:AG$37)*'Control panel'!AG7 -> 0.1123285126 | AL9: ='Control panel'!$AA7/SUMPRODUCT('Control panel'!$AA$7:$AA$37,'Control panel'!AH$7:AH$37)*'Control panel'!AH7 -> 0 | AM9: ='Control panel'!$AA7/SUMPRODUCT('Control panel'!$AA$7:$AA$37,'Control panel'!AI$7:AI$37)*'Control panel'!AI7 -> 0.100746222 | AN9: ='Control panel'!$AA7/SUMPRODUCT('Control panel'!$AA$7:$AA$37,'Control panel'!AJ$7:AJ$37)*'Control panel'!AJ7 -> 0.1119356657 | AO9: ='Control panel'!$AA7/SUMPRODUCT('Control panel'!$AA$7:$AA$37,'Control panel'!AK$7:AK$37)*'Control panel'!AK7 -> 0.111004977 | AP9: ='Control panel'!$AA7/SUMPRODUCT('Control panel'!$AA$7:$AA$37,'Control panel'!AL$7:AL$37)*'Control panel'!AL7 -> 0.100746222 | AQ9: ='Control panel'!$AA7/SUMPRODUCT('Control panel'!$AA$7:$AA$37,'Control panel'!AM$7:AM$37)*'Control panel'!AM7 -> 0 | AR9: ='Control panel'!$AA7/SUMPRODUCT('Control panel'!$AA$7:$AA$37,'Control panel'!AN$7:AN$37)*'Control panel'!AN7 -> 0.1119356657 | AS9: ='Control panel'!$AA7/SUMPRODUCT('Control panel'!$AA$7:$AA$37,'Control panel'!AO$7:AO$37)*'Control panel'!AO7 -> 0.1119356657 | AT9: ='Control panel'!$AA7/SUMPRODUCT('Control panel'!$AA$7:$AA$37,'Control panel'!AP$7:AP$37)*'Control panel'!AP7 -> 0.100746222 | AU9: ='Control panel'!$AA7/SUMPRODUCT('Control panel'!$AA$7:$AA$37,'Control panel'!AQ$7:AQ$37)*'Control panel'!AQ7 -> 0.100746222 | AV9: ='Control panel'!$AA7/SUMPRODUCT('Control panel'!$AA$7:$AA$37,'Control panel'!AR$7:AR$37)*'Control panel'!AR7 -> 0.100746222 | AW9: ='Control panel'!$AA7/SUMPRODUCT('Control panel'!$AA$7:$AA$37,'Control panel'!AS$7:AS$37)*'Control panel'!AS7 -> 0.100746222 | AX9: ='Control panel'!$AA7/SUMPRODUCT('Control panel'!$AA$7:$AA$37,'Control panel'!AT$7:AT$37)*'Control panel'!AT7 -> 0.100746222 | AZ9: 2025-26 | BA9: =_xlfn.XLOOKUP($AZ9,$Q$8:$U$8,_xlfn.XLOOKUP(BA$8,$P$9:$P$27,$Q$9:$U$27)) -> 29.11711622 | BB9: =_xlfn.XLOOKUP($AZ9,$Q$8:$U$8,_xlfn.XLOOKUP(BB$8,$P$9:$P$27,$Q$9:$U$27)) -> 15.73148124 | BC9: =_xlfn.XLOOKUP($AZ9,$Q$8:$U$8,_xlfn.XLOOKUP(BC$8,$P$9:$P$27,$Q$9:$U$27)) -> 0 | BD9: =_xlfn.XLOOKUP($AZ9,$Q$8:$U$8,_xlfn.XLOOKUP(BD$8,$P$9:$P$27,$Q$9:$U$27)) -> 0 | BE9: =_xlfn.XLOOKUP($AZ9,$Q$8:$U$8,_xlfn.XLOOKUP(BE$8,$P$9:$P$27,$Q$9:$U$27)) -> 0 | BF9: =_xlfn.XLOOKUP($AZ9,$Q$8:$U$8,_xlfn.XLOOKUP(BF$8,$P$9:$P$27,$Q$9:$U$27)) -> 0 | BG9: =_xlfn.XLOOKUP($AZ9,$Q$8:$U$8,_xlfn.XLOOKUP(BG$8,$P$9:$P$27,$Q$9:$U$27)) -> 0 | BH9: =_xlfn.XLOOKUP($AZ9,$Q$8:$U$8,_xlfn.XLOOKUP(BH$8,$P$9:$P$27,$Q$9:$U$27)) -> 0 | BI9: =_xlfn.XLOOKUP($AZ9,$Q$8:$U$8,_xlfn.XLOOKUP(BI$8,$P$9:$P$27,$Q$9:$U$27)) -> 29.11615685 | BJ9: =_xlfn.XLOOKUP($AZ9,$Q$8:$U$8,_xlfn.XLOOKUP(BJ$8,$P$9:$P$27,$Q$9:$U$27)) -> 9.907395913 | BK9: =_xlfn.XLOOKUP($AZ9,$Q$8:$U$8,_xlfn.XLOOKUP(BK$8,$P$9:$P$27,$Q$9:$U$27)) -> 0 | BL9: =_xlfn.XLOOKUP($AZ9,$Q$8:$U$8,_xlfn.XLOOKUP(BL$8,$P$9:$P$27,$Q$9:$U$27)) -> 0.9668209781 | BM9: =_xlfn.XLOOKUP($AZ9,$Q$8:$U$8,_xlfn.XLOOKUP(BM$8,$P$9:$P$27,$Q$9:$U$27)) -> 0 | BN9: =_xlfn.XLOOKUP($AZ9,$Q$8:$U$8,_xlfn.XLOOKUP(BN$8,$P$9:$P$27,$Q$9:$U$27)) -> 0 | BO9: =_xlfn.XLOOKUP($AZ9,$Q$8:$U$8,_xlfn.XLOOKUP(BO$8,$P$9:$P$27,$Q$9:$U$27)) -> 0 | BP9: =_xlfn.XLOOKUP($AZ9,$Q$8:$U$8,_xlfn.XLOOKUP(BP$8,$P$9:$P$27,$Q$9:$U$27)) -> 0 | BQ9: =_xlfn.XLOOKUP($AZ9,$Q$8:$U$8,_xlfn.XLOOKUP(BQ$8,$P$9:$P$27,$Q$9:$U$27)) -> 0 | BR9: =_xlfn.XLOOKUP($AZ9,$Q$8:$U$8,_xlfn.XLOOKUP(BR$8,$P$9:$P$27,$Q$9:$U$27)) -> 0 | BS9: =_xlfn.XLOOKUP($AZ9,$Q$8:$U$8,_xlfn.XLOOKUP(BS$8,$P$9:$P$27,$Q$9:$U$27)) -> 0
B10: ='Opex costs'!B8 -> Corrective Maintenance | C10: =_xlfn.XLOOKUP($B10,'BBM Costs'!$I$7:$I$25,'BBM Costs'!J$7:J$25)*_xlfn.XLOOKUP($B10,'Control panel'!$E$7:$E$25,'Control panel'!$F$7:$F$25) -> 27.59908989 | D10: =_xlfn.XLOOKUP($B10,'BBM Costs'!$I$7:$I$25,'BBM Costs'!K$7:K$25)*_xlfn.XLOOKUP($B10,'Control panel'!$E$7:$E$25,'Control panel'!$F$7:$F$25) -> 28.04510471 | E10: =_xlfn.XLOOKUP($B10,'BBM Costs'!$I$7:$I$25,'BBM Costs'!L$7:L$25)*_xlfn.XLOOKUP($B10,'Control panel'!$E$7:$E$25,'Control panel'!$F$7:$F$25) -> 28.59705996 | F10: =_xlfn.XLOOKUP($B10,'BBM Costs'!$I$7:$I$25,'BBM Costs'!M$7:M$25)*_xlfn.XLOOKUP($B10,'Control panel'!$E$7:$E$25,'Control panel'!$F$7:$F$25) -> 29.61881294 | G10: =_xlfn.XLOOKUP($B10,'BBM Costs'!$I$7:$I$25,'BBM Costs'!N$7:N$25)*_xlfn.XLOOKUP($B10,'Control panel'!$E$7:$E$25,'Control panel'!$F$7:$F$25) -> 30.36009163 | I10: =B10 -> Corrective Maintenance | J10: =C10*_xlfn.XLOOKUP($I10,'Control panel'!$E$7:$E$25,'Control panel'!$H$7:$H$25) -> 11.86760865 | K10: =D10*_xlfn.XLOOKUP($I10,'Control panel'!$E$7:$E$25,'Control panel'!$H$7:$H$25) -> 12.05939503 | L10: =E10*_xlfn.XLOOKUP($I10,'Control panel'!$E$7:$E$25,'Control panel'!$H$7:$H$25) -> 12.29673578 | M10: =F10*_xlfn.XLOOKUP($I10,'Control panel'!$E$7:$E$25,'Control panel'!$H$7:$H$25) -> 12.73608956 | N10: =G10*_xlfn.XLOOKUP($I10,'Control panel'!$E$7:$E$25,'Control panel'!$H$7:$H$25) -> 13.0548394 | P10: =B10 -> Corrective Maintenance | Q10: =C10*_xlfn.XLOOKUP($P10,'Control panel'!$E$7:$E$25,'Control panel'!$I$7:$I$25) -> 15.73148124 | R10: =D10*_xlfn.XLOOKUP($P10,'Control panel'!$E$7:$E$25,'Control panel'!$I$7:$I$25) -> 15.98570969 | S10: =E10*_xlfn.XLOOKUP($P10,'Control panel'!$E$7:$E$25,'Control panel'!$I$7:$I$25) -> 16.30032418 | T10: =F10*_xlfn.XLOOKUP($P10,'Control panel'!$E$7:$E$25,'Control panel'!$I$7:$I$25) -> 16.88272338 | U10: =G10*_xlfn.XLOOKUP($P10,'Control panel'!$E$7:$E$25,'Control panel'!$I$7:$I$25) -> 17.30525223 | W10: 2025-26 | X10: ='PTRM Data'!B8 -> Underground Sub-Transmission Cables | Y10: =_xlfn.XLOOKUP(X10,'Control panel'!$L$7:$L$37,'Control panel'!$P$7:$P$37) -> 1 | Z10: =SUMPRODUCT(_xlfn.XLOOKUP(W10,$AZ$9:$AZ$13,$BA$9:$BS$13),_xlfn.XLOOKUP(X10,$AE$9:$AE$39,$AF$9:$AX$39)) -> 0.3617530071 | AA10: =_xlfn.XLOOKUP(W10,'BBM Costs'!$Q$6:$U$6,_xlfn.XLOOKUP(X10,'BBM Costs'!$P$7:$P$37,'BBM Costs'!$Q$7:$U$37))*_xlfn.XLOOKUP(X10,'Control panel'!$L$7:$L$37,'Control panel'!$M$7:$M$37) -> 0 | AB10: =_xlfn.XLOOKUP(W10,'BBM Costs'!$X$6:$AB$6,_xlfn.XLOOKUP(X10,'BBM Costs'!$W$7:$W$37,'BBM Costs'!$X$7:$AB$37))*_xlfn.XLOOKUP(X10,'Control panel'!$S$7:$S$37,'Control panel'!$T$7:$T$37) -> 0 | AC10: =SUM(Z10:AB10) -> 0.3617530071 | AE10: ='PTRM Data'!B8 -> Underground Sub-Transmission Cables | AF10: ='Control panel'!$AA8/SUMPRODUCT('Control panel'!$AA$7:$AA$37,'Control panel'!AB$7:AB$37)*'Control panel'!AB8 -> 0.004294338002 | AG10: ='Control panel'!$AA8/SUMPRODUCT('Control panel'!$AA$7:$AA$37,'Control panel'!AC$7:AC$37)*'Control panel'!AC8 -> 0.004337658282 | AH10: ='Control panel'!$AA8/SUMPRODUCT('Control panel'!$AA$7:$AA$37,'Control panel'!AD$7:AD$37)*'Control panel'!AD8 -> 0.004337258312 | AI10: ='Control panel'!$AA8/SUMPRODUCT('Control panel'!$AA$7:$AA$37,'Control panel'!AE$7:AE$37)*'Control panel'!AE8 -> 0 | AJ10: ='Control panel'!$AA8/SUMPRODUCT('Control panel'!$AA$7:$AA$37,'Control panel'!AF$7:AF$37)*'Control panel'!AF8 -> 0 | AK10: ='Control panel'!$AA8/SUMPRODUCT('Control panel'!$AA$7:$AA$37,'Control panel'!AG$7:AG$37)*'Control panel'!AG8 -> 0.004341619066 | AL10: ='Control panel'!$AA8/SUMPRODUCT('Control panel'!$AA$7:$AA$37,'Control panel'!AH$7:AH$37)*'Control panel'!AH8 -> 0 | AM10: ='Control panel'!$AA8/SUMPRODUCT('Control panel'!$AA$7:$AA$37,'Control panel'!AI$7:AI$37)*'Control panel'!AI8 -> 0.003893950947 | AN10: ='Control panel'!$AA8/SUMPRODUCT('Control panel'!$AA$7:$AA$37,'Control panel'!AJ$7:AJ$37)*'Control panel'!AJ8 -> 0.004326435106 | AO10: ='Control panel'!$AA8/SUMPRODUCT('Control panel'!$AA$7:$AA$37,'Control panel'!AK$7:AK$37)*'Control panel'!AK8 -> 0.004290462977 | AP10: ='Control panel'!$AA8/SUMPRODUCT('Control panel'!$AA$7:$AA$37,'Control panel'!AL$7:AL$37)*'Control panel'!AL8 -> 0.003893950947 | AQ10: ='Control panel'!$AA8/SUMPRODUCT('Control panel'!$AA$7:$AA$37,'Control panel'!AM$7:AM$37)*'Control panel'!AM8 -> 0 | AR10: ='Control panel'!$AA8/SUMPRODUCT('Control panel'!$AA$7:$AA$37,'Control panel'!AN$7:AN$37)*'Control panel'!AN8 -> 0.004326435106 | AS10: ='Control panel'!$AA8/SUMPRODUCT('Control panel'!$AA$7:$AA$37,'Control panel'!AO$7:AO$37)*'Control panel'!AO8 -> 0.004326435106 | AT10: ='Control panel'!$AA8/SUMPRODUCT('Control panel'!$AA$7:$AA$37,'Control panel'!AP$7:AP$37)*'Control panel'!AP8 -> 0.003893950947 | AU10: ='Control panel'!$AA8/SUMPRODUCT('Control panel'!$AA$7:$AA$37,'Control panel'!AQ$7:AQ$37)*'Control panel'!AQ8 -> 0.003893950947 | AV10: ='Control panel'!$AA8/SUMPRODUCT('Control panel'!$AA$7:$AA$37,'Control panel'!AR$7:AR$37)*'Control panel'!AR8 -> 0.003893950947 | AW10: ='Control panel'!$AA8/SUMPRODUCT('Control panel'!$AA$7:$AA$37,'Control panel'!AS$7:AS$37)*'Control panel'!AS8 -> 0.003893950947 | AX10: ='Control panel'!$AA8/SUMPRODUCT('Control panel'!$AA$7:$AA$37,'Control panel'!AT$7:AT$37)*'Control panel'!AT8 -> 0.003893950947 | AZ10: 2026-27 | BA10: =_xlfn.XLOOKUP($AZ10,$Q$8:$U$8,_xlfn.XLOOKUP(BA$8,$P$9:$P$27,$Q$9:$U$27)) -> 29.58766309 | BB10: =_xlfn.XLOOKUP($AZ10,$Q$8:$U$8,_xlfn.XLOOKUP(BB$8,$P$9:$P$27,$Q$9:$U$27)) -> 15.98570969 | BC10: =_xlfn.XLOOKUP($AZ10,$Q$8:$U$8,_xlfn.XLOOKUP(BC$8,$P$9:$P$27,$Q$9:$U$27)) -> 0 | BD10: =_xlfn.XLOOKUP($AZ10,$Q$8:$U$8,_xlfn.XLOOKUP(BD$8,$P$9:$P$27,$Q$9:$U$27)) -> 0 | BE10: =_xlfn.XLOOKUP($AZ10,$Q$8:$U$8,_xlfn.XLOOKUP(BE$8,$P$9:$P$27,$Q$9:$U$27)) -> 0 | BF10: =_xlfn.XLOOKUP($AZ10,$Q$8:$U$8,_xlfn.XLOOKUP(BF$8,$P$9:$P$27,$Q$9:$U$27)) -> 0 | BG10: =_xlfn.XLOOKUP($AZ10,$Q$8:$U$8,_xlfn.XLOOKUP(BG$8,$P$9:$P$27,$Q$9:$U$27)) -> 0 | BH10: =_xlfn.XLOOKUP($AZ10,$Q$8:$U$8,_xlfn.XLOOKUP(BH$8,$P$9:$P$27,$Q$9:$U$27)) -> 0 | BI10: =_xlfn.XLOOKUP($AZ10,$Q$8:$U$8,_xlfn.XLOOKUP(BI$8,$P$9:$P$27,$Q$9:$U$27)) -> 29.58668822 | BJ10: =_xlfn.XLOOKUP($AZ10,$Q$8:$U$8,_xlfn.XLOOKUP(BJ$8,$P$9:$P$27,$Q$9:$U$27)) -> 10.06750429 | BK10: =_xlfn.XLOOKUP($AZ10,$Q$8:$U$8,_xlfn.XLOOKUP(BK$8,$P$9:$P$27,$Q$9:$U$27)) -> 0 | BL10: =_xlfn.XLOOKUP($AZ10,$Q$8:$U$8,_xlfn.XLOOKUP(BL$8,$P$9:$P$27,$Q$9:$U$27)) -> 0.982445279 | BM10: =_xlfn.XLOOKUP($AZ10,$Q$8:$U$8,_xlfn.XLOOKUP(BM$8,$P$9:$P$27,$Q$9:$U$27)) -> 0 | BN10: =_xlfn.XLOOKUP($AZ10,$Q$8:$U$8,_xlfn.XLOOKUP(BN$8,$P$9:$P$27,$Q$9:$U$27)) -> 0 | BO10: =_xlfn.XLOOKUP($AZ10,$Q$8:$U$8,_xlfn.XLOOKUP(BO$8,$P$9:$P$27,$Q$9:$U$27)) -> 0 | BP10: =_xlfn.XLOOKUP($AZ10,$Q$8:$U$8,_xlfn.XLOOKUP(BP$8,$P$9:$P$27,$Q$9:$U$27)) -> 0 | BQ10: =_xlfn.XLOOKUP($AZ10,$Q$8:$U$8,_xlfn.XLOOKUP(BQ$8,$P$9:$P$27,$Q$9:$U$27)) -> 0 | BR10: =_xlfn.XLOOKUP($AZ10,$Q$8:$U$8,_xlfn.XLOOKUP(BR$8,$P$9:$P$27,$Q$9:$U$27)) -> 0 | BS10: =_xlfn.XLOOKUP($AZ10,$Q$8:$U$8,_xlfn.XLOOKUP(BS$8,$P$9:$P$27,$Q$9:$U$27)) -> 0
B11: ='Opex costs'!B9 -> Forced Maintenance | C11: =_xlfn.XLOOKUP($B11,'BBM Costs'!$I$7:$I$25,'BBM Costs'!J$7:J$25)*_xlfn.XLOOKUP($B11,'Control panel'!$E$7:$E$25,'Control panel'!$F$7:$F$25) -> 0 | D11: =_xlfn.XLOOKUP($B11,'BBM Costs'!$I$7:$I$25,'BBM Costs'!K$7:K$25)*_xlfn.XLOOKUP($B11,'Control panel'!$E$7:$E$25,'Control panel'!$F$7:$F$25) -> 0 | E11: =_xlfn.XLOOKUP($B11,'BBM Costs'!$I$7:$I$25,'BBM Costs'!L$7:L$25)*_xlfn.XLOOKUP($B11,'Control panel'!$E$7:$E$25,'Control panel'!$F$7:$F$25) -> 0 | F11: =_xlfn.XLOOKUP($B11,'BBM Costs'!$I$7:$I$25,'BBM Costs'!M$7:M$25)*_xlfn.XLOOKUP($B11,'Control panel'!$E$7:$E$25,'Control panel'!$F$7:$F$25) -> 0 | G11: =_xlfn.XLOOKUP($B11,'BBM Costs'!$I$7:$I$25,'BBM Costs'!N$7:N$25)*_xlfn.XLOOKUP($B11,'Control panel'!$E$7:$E$25,'Control panel'!$F$7:$F$25) -> 0 | I11: Forced Maintenance | J11: =C11*_xlfn.XLOOKUP($I11,'Control panel'!$E$7:$E$25,'Control panel'!$H$7:$H$25) -> 0 | K11: =D11*_xlfn.XLOOKUP($I11,'Control panel'!$E$7:$E$25,'Control panel'!$H$7:$H$25) -> 0 | L11: =E11*_xlfn.XLOOKUP($I11,'Control panel'!$E$7:$E$25,'Control panel'!$H$7:$H$25) -> 0 | M11: =F11*_xlfn.XLOOKUP($I11,'Control panel'!$E$7:$E$25,'Control panel'!$H$7:$H$25) -> 0 | N11: =G11*_xlfn.XLOOKUP($I11,'Control panel'!$E$7:$E$25,'Control panel'!$H$7:$H$25) -> 0 | P11: Forced Maintenance | Q11: =C11*_xlfn.XLOOKUP($P11,'Control panel'!$E$7:$E$25,'Control panel'!$I$7:$I$25) -> 0 | R11: =D11*_xlfn.XLOOKUP($P11,'Control panel'!$E$7:$E$25,'Control panel'!$I$7:$I$25) -> 0 | S11: =E11*_xlfn.XLOOKUP($P11,'Control panel'!$E$7:$E$25,'Control panel'!$I$7:$I$25) -> 0 | T11: =F11*_xlfn.XLOOKUP($P11,'Control panel'!$E$7:$E$25,'Control panel'!$I$7:$I$25) -> 0 | U11: =G11*_xlfn.XLOOKUP($P11,'Control panel'!$E$7:$E$25,'Control panel'!$I$7:$I$25) -> 0 | W11: 2025-26 | X11: ='PTRM Data'!B9 -> Overhead Distribution Lines | Y11: =_xlfn.XLOOKUP(X11,'Control panel'!$L$7:$L$37,'Control panel'!$P$7:$P$37) -> 0.57 | Z11: 35.7595872 | AA11: =_xlfn.XLOOKUP(W11,'BBM Costs'!$Q$6:$U$6,_xlfn.XLOOKUP(X11,'BBM Costs'!$P$7:$P$37,'BBM Costs'!$Q$7:$U$37))*_xlfn.XLOOKUP(X11,'Control panel'!$L$7:$L$37,'Control panel'!$M$7:$M$37) -> 4.974327891 | AB11: =_xlfn.XLOOKUP(W11,'BBM Costs'!$X$6:$AB$6,_xlfn.XLOOKUP(X11,'BBM Costs'!$W$7:$W$37,'BBM Costs'!$X$7:$AB$37))*_xlfn.XLOOKUP(X11,'Control panel'!$S$7:$S$37,'Control panel'!$T$7:$T$37) -> 149.4438343 | AC11: 190.1777494 | AE11: ='PTRM Data'!B9 -> Overhead Distribution Lines | AF11: ='Control panel'!$AA9/SUMPRODUCT('Control panel'!$AA$7:$AA$37,'Control panel'!AB$7:AB$37)*'Control panel'!AB9 -> 0.4244989018 | AG11: ='Control panel'!$AA9/SUMPRODUCT('Control panel'!$AA$7:$AA$37,'Control panel'!AC$7:AC$37)*'Control panel'!AC9 -> 0.4287811477 | AH11: ='Control panel'!$AA9/SUMPRODUCT('Control panel'!$AA$7:$AA$37,'Control panel'!AD$7:AD$37)*'Control panel'!AD9 -> 0.4287416103 | AI11: ='Control panel'!$AA9/SUMPRODUCT('Control panel'!$AA$7:$AA$37,'Control panel'!AE$7:AE$37)*'Control panel'!AE9 -> 0.7453969431 | AJ11: ='Control panel'!$AA9/SUMPRODUCT('Control panel'!$AA$7:$AA$37,'Control panel'!AF$7:AF$37)*'Control panel'!AF9 -> 0 | AK11: ='Control panel'!$AA9/SUMPRODUCT('Control panel'!$AA$7:$AA$37,'Control panel'!AG$7:AG$37)*'Control panel'!AG9 -> 0.4291726745 | AL11: ='Control panel'!$AA9/SUMPRODUCT('Control panel'!$AA$7:$AA$37,'Control panel'!AH$7:AH$37)*'Control panel'!AH9 -> 0 | AM11: ='Control panel'!$AA9/SUMPRODUCT('Control panel'!$AA$7:$AA$37,'Control panel'!AI$7:AI$37)*'Control panel'!AI9 -> 0.3849203066 | AN11: ='Control panel'!$AA9/SUMPRODUCT('Control panel'!$AA$7:$AA$37,'Control panel'!AJ$7:AJ$37)*'Control panel'!AJ9 -> 0.4276717273 | AO11: ='Control panel'!$AA9/SUMPRODUCT('Control panel'!$AA$7:$AA$37,'Control panel'!AK$7:AK$37)*'Control panel'!AK9 -> 0.4241158524 | AP11: ='Control panel'!$AA9/SUMPRODUCT('Control panel'!$AA$7:$AA$37,'Control panel'!AL$7:AL$37)*'Control panel'!AL9 -> 0.3849203066 | AQ11: ='Control panel'!$AA9/SUMPRODUCT('Control panel'!$AA$7:$AA$37,'Control panel'!AM$7:AM$37)*'Control panel'!AM9 -> 0 | AR11: ='Control panel'!$AA9/SUMPRODUCT('Control panel'!$AA$7:$AA$37,'Control panel'!AN$7:AN$37)*'Control panel'!AN9 -> 0.4276717273 | AS11: ='Control panel'!$AA9/SUMPRODUCT('Control panel'!$AA$7:$AA$37,'Control panel'!AO$7:AO$37)*'Control panel'!AO9 -> 0.4276717273 | AT11: ='Control panel'!$AA9/SUMPRODUCT('Control panel'!$AA$7:$AA$37,'Control panel'!AP$7:AP$37)*'Control panel'!AP9 -> 0.3849203066 | AU11: ='Control panel'!$AA9/SUMPRODUCT('Control panel'!$AA$7:$AA$37,'Control panel'!AQ$7:AQ$37)*'Control panel'!AQ9 -> 0.3849203066 | AV11: ='Control panel'!$AA9/SUMPRODUCT('Control panel'!$AA$7:$AA$37,'Control panel'!AR$7:AR$37)*'Control panel'!AR9 -> 0.3849203066 | AW11: ='Control panel'!$AA9/SUMPRODUCT('Control panel'!$AA$7:$AA$37,'Control panel'!AS$7:AS$37)*'Control panel'!AS9 -> 0.3849203066 | AX11: ='Control panel'!$AA9/SUMPRODUCT('Control panel'!$AA$7:$AA$37,'Control panel'!AT$7:AT$37)*'Control panel'!AT9 -> 0.3849203066 | AZ11: 2027-28 | BA11: =_xlfn.XLOOKUP($AZ11,$Q$8:$U$8,_xlfn.XLOOKUP(BA$8,$P$9:$P$27,$Q$9:$U$27)) -> 30.16997741 | BB11: =_xlfn.XLOOKUP($AZ11,$Q$8:$U$8,_xlfn.XLOOKUP(BB$8,$P$9:$P$27,$Q$9:$U$27)) -> 16.30032418 | BC11: =_xlfn.XLOOKUP($AZ11,$Q$8:$U$8,_xlfn.XLOOKUP(BC$8,$P$9:$P$27,$Q$9:$U$27)) -> 0 | BD11: =_xlfn.XLOOKUP($AZ11,$Q$8:$U$8,_xlfn.XLOOKUP(BD$8,$P$9:$P$27,$Q$9:$U$27)) -> 0 | BE11: =_xlfn.XLOOKUP($AZ11,$Q$8:$U$8,_xlfn.XLOOKUP(BE$8,$P$9:$P$27,$Q$9:$U$27)) -> 0 | BF11: =_xlfn.XLOOKUP($AZ11,$Q$8:$U$8,_xlfn.XLOOKUP(BF$8,$P$9:$P$27,$Q$9:$U$27)) -> 0 | BG11: =_xlfn.XLOOKUP($AZ11,$Q$8:$U$8,_xlfn.XLOOKUP(BG$8,$P$9:$P$27,$Q$9:$U$27)) -> 0 | BH11: =_xlfn.XLOOKUP($AZ11,$Q$8:$U$8,_xlfn.XLOOKUP(BH$8,$P$9:$P$27,$Q$9:$U$27)) -> 0 | BI11: =_xlfn.XLOOKUP($AZ11,$Q$8:$U$8,_xlfn.XLOOKUP(BI$8,$P$9:$P$27,$Q$9:$U$27)) -> 30.16898334 | BJ11: =_xlfn.XLOOKUP($AZ11,$Q$8:$U$8,_xlfn.XLOOKUP(BJ$8,$P$9:$P$27,$Q$9:$U$27)) -> 10.26564268 | BK11: =_xlfn.XLOOKUP($AZ11,$Q$8:$U$8,_xlfn.XLOOKUP(BK$8,$P$9:$P$27,$Q$9:$U$27)) -> 0 | BL11: =_xlfn.XLOOKUP($AZ11,$Q$8:$U$8,_xlfn.XLOOKUP(BL$8,$P$9:$P$27,$Q$9:$U$27)) -> 1.001780769 | BM11: =_xlfn.XLOOKUP($AZ11,$Q$8:$U$8,_xlfn.XLOOKUP(BM$8,$P$9:$P$27,$Q$9:$U$27)) -> 0 | BN11: =_xlfn.XLOOKUP($AZ11,$Q$8:$U$8,_xlfn.XLOOKUP(BN$8,$P$9:$P$27,$Q$9:$U$27)) -> 0 | BO11: =_xlfn.XLOOKUP($AZ11,$Q$8:$U$8,_xlfn.XLOOKUP(BO$8,$P$9:$P$27,$Q$9:$U$27)) -> 0 | BP11: =_xlfn.XLOOKUP($AZ11,$Q$8:$U$8,_xlfn.XLOOKUP(BP$8,$P$9:$P$27,$Q$9:$U$27)) -> 0 | BQ11: =_xlfn.XLOOKUP($AZ11,$Q$8:$U$8,_xlfn.XLOOKUP(BQ$8,$P$9:$P$27,$Q$9:$U$27)) -> 0 | BR11: =_xlfn.XLOOKUP($AZ11,$Q$8:$U$8,_xlfn.XLOOKUP(BR$8,$P$9:$P$27,$Q$9:$U$27)) -> 0 | BS11: =_xlfn.XLOOKUP($AZ11,$Q$8:$U$8,_xlfn.XLOOKUP(BS$8,$P$9:$P$27,$Q$9:$U$27)) -> 0
B12: ='Opex costs'!B10 -> Vegetation Management | C12: =_xlfn.XLOOKUP($B12,'BBM Costs'!$I$7:$I$25,'BBM Costs'!J$7:J$25)*_xlfn.XLOOKUP($B12,'Control panel'!$E$7:$E$25,'Control panel'!$F$7:$F$25) -> 0 | D12: =_xlfn.XLOOKUP($B12,'BBM Costs'!$I$7:$I$25,'BBM Costs'!K$7:K$25)*_xlfn.XLOOKUP($B12,'Control panel'!$E$7:$E$25,'Control panel'!$F$7:$F$25) -> 0 | E12: =_xlfn.XLOOKUP($B12,'BBM Costs'!$I$7:$I$25,'BBM Costs'!L$7:L$25)*_xlfn.XLOOKUP($B12,'Control panel'!$E$7:$E$25,'Control panel'!$F$7:$F$25) -> 0 | F12: =_xlfn.XLOOKUP($B12,'BBM Costs'!$I$7:$I$25,'BBM Costs'!M$7:M$25)*_xlfn.XLOOKUP($B12,'Control panel'!$E$7:$E$25,'Control panel'!$F$7:$F$25) -> 0 | G12: =_xlfn.XLOOKUP($B12,'BBM Costs'!$I$7:$I$25,'BBM Costs'!N$7:N$25)*_xlfn.XLOOKUP($B12,'Control panel'!$E$7:$E$25,'Control panel'!$F$7:$F$25) -> 0 | I12: Vegetation Management | J12: =C12*_xlfn.XLOOKUP($I12,'Control panel'!$E$7:$E$25,'Control panel'!$H$7:$H$25) -> 0 | K12: =D12*_xlfn.XLOOKUP($I12,'Control panel'!$E$7:$E$25,'Control panel'!$H$7:$H$25) -> 0 | L12: =E12*_xlfn.XLOOKUP($I12,'Control panel'!$E$7:$E$25,'Control panel'!$H$7:$H$25) -> 0 | M12: =F12*_xlfn.XLOOKUP($I12,'Control panel'!$E$7:$E$25,'Control panel'!$H$7:$H$25) -> 0 | N12: =G12*_xlfn.XLOOKUP($I12,'Control panel'!$E$7:$E$25,'Control panel'!$H$7:$H$25) -> 0 | P12: Vegetation Management | Q12: =C12*_xlfn.XLOOKUP($P12,'Control panel'!$E$7:$E$25,'Control panel'!$I$7:$I$25) -> 0 | R12: =D12*_xlfn.XLOOKUP($P12,'Control panel'!$E$7:$E$25,'Control panel'!$I$7:$I$25) -> 0 | S12: =E12*_xlfn.XLOOKUP($P12,'Control panel'!$E$7:$E$25,'Control panel'!$I$7:$I$25) -> 0 | T12: =F12*_xlfn.XLOOKUP($P12,'Control panel'!$E$7:$E$25,'Control panel'!$I$7:$I$25) -> 0 | U12: =G12*_xlfn.XLOOKUP($P12,'Control panel'!$E$7:$E$25,'Control panel'!$I$7:$I$25) -> 0 | W12: 2025-26 | X12: ='PTRM Data'!B10 -> Underground Distribution Cables | Y12: =_xlfn.XLOOKUP(X12,'Control panel'!$L$7:$L$37,'Control panel'!$P$7:$P$37) -> 0.57 | Z12: 6.598197179 | AA12: =_xlfn.XLOOKUP(W12,'BBM Costs'!$Q$6:$U$6,_xlfn.XLOOKUP(X12,'BBM Costs'!$P$7:$P$37,'BBM Costs'!$Q$7:$U$37))*_xlfn.XLOOKUP(X12,'Control panel'!$L$7:$L$37,'Control panel'!$M$7:$M$37) -> -1.339494287 | AB12: =_xlfn.XLOOKUP(W12,'BBM Costs'!$X$6:$AB$6,_xlfn.XLOOKUP(X12,'BBM Costs'!$W$7:$W$37,'BBM Costs'!$X$7:$AB$37))*_xlfn.XLOOKUP(X12,'Control panel'!$S$7:$S$37,'Control panel'!$T$7:$T$37) -> 27.57469992 | AC12: 32.83340281 | AE12: ='PTRM Data'!B10 -> Underground Distribution Cables | AF12: ='Control panel'!$AA10/SUMPRODUCT('Control panel'!$AA$7:$AA$37,'Control panel'!AB$7:AB$37)*'Control panel'!AB10 -> 0.07832661606 | AG12: ='Control panel'!$AA10/SUMPRODUCT('Control panel'!$AA$7:$AA$37,'Control panel'!AC$7:AC$37)*'Control panel'!AC10 -> 0.07911675669 | AH12: ='Control panel'!$AA10/SUMPRODUCT('Control panel'!$AA$7:$AA$37,'Control panel'!AD$7:AD$37)*'Control panel'!AD10 -> 0.07910946142 | AI12: ='Control panel'!$AA10/SUMPRODUCT('Control panel'!$AA$7:$AA$37,'Control panel'!AE$7:AE$37)*'Control panel'!AE10 -> 0 | AJ12: ='Control panel'!$AA10/SUMPRODUCT('Control panel'!$AA$7:$AA$37,'Control panel'!AF$7:AF$37)*'Control panel'!AF10 -> 0 | AK12: ='Control panel'!$AA10/SUMPRODUCT('Control panel'!$AA$7:$AA$37,'Control panel'!AG$7:AG$37)*'Control panel'!AG10 -> 0.07918899944 | AL12: ='Control panel'!$AA10/SUMPRODUCT('Control panel'!$AA$7:$AA$37,'Control panel'!AH$7:AH$37)*'Control panel'!AH10 -> 0 | AM12: ='Control panel'!$AA10/SUMPRODUCT('Control panel'!$AA$7:$AA$37,'Control panel'!AI$7:AI$37)*'Control panel'!AI10 -> 0.07102375281 | AN12: ='Control panel'!$AA10/SUMPRODUCT('Control panel'!$AA$7:$AA$37,'Control panel'!AJ$7:AJ$37)*'Control panel'!AJ10 -> 0.07891205146 | AO12: ='Control panel'!$AA10/SUMPRODUCT('Control panel'!$AA$7:$AA$37,'Control panel'!AK$7:AK$37)*'Control panel'!AK10 -> 0.07825593751 | AP12: ='Control panel'!$AA10/SUMPRODUCT('Control panel'!$AA$7:$AA$37,'Control panel'!AL$7:AL$37)*'Control panel'!AL10 -> 0.07102375281 | AQ12: ='Control panel'!$AA10/SUMPRODUCT('Control panel'!$AA$7:$AA$37,'Control panel'!AM$7:AM$37)*'Control panel'!AM10 -> 0 | AR12: ='Control panel'!$AA10/SUMPRODUCT('Control panel'!$AA$7:$AA$37,'Control panel'!AN$7:AN$37)*'Control panel'!AN10 -> 0.07891205146 | AS12: ='Control panel'!$AA10/SUMPRODUCT('Control panel'!$AA$7:$AA$37,'Control panel'!AO$7:AO$37)*'Control panel'!AO10 -> 0.07891205146 | AT12: ='Control panel'!$AA10/SUMPRODUCT('Control panel'!$AA$7:$AA$37,'Control panel'!AP$7:AP$37)*'Control panel'!AP10 -> 0.07102375281 | AU12: ='Control panel'!$AA10/SUMPRODUCT('Control panel'!$AA$7:$AA$37,'Control panel'!AQ$7:AQ$37)*'Control panel'!AQ10 -> 0.07102375281 | AV12: ='Control panel'!$AA10/SUMPRODUCT('Control panel'!$AA$7:$AA$37,'Control panel'!AR$7:AR$37)*'Control panel'!AR10 -> 0.07102375281 | AW12: ='Control panel'!$AA10/SUMPRODUCT('Control panel'!$AA$7:$AA$37,'Control panel'!AS$7:AS$37)*'Control panel'!AS10 -> 0.07102375281 | AX12: ='Control panel'!$AA10/SUMPRODUCT('Control panel'!$AA$7:$AA$37,'Control panel'!AT$7:AT$37)*'Control panel'!AT10 -> 0.07102375281 | AZ12: 2028-29 | BA12: =_xlfn.XLOOKUP($AZ12,$Q$8:$U$8,_xlfn.XLOOKUP(BA$8,$P$9:$P$27,$Q$9:$U$27)) -> 31.24792963 | BB12: =_xlfn.XLOOKUP($AZ12,$Q$8:$U$8,_xlfn.XLOOKUP(BB$8,$P$9:$P$27,$Q$9:$U$27)) -> 16.88272338 | BC12: =_xlfn.XLOOKUP($AZ12,$Q$8:$U$8,_xlfn.XLOOKUP(BC$8,$P$9:$P$27,$Q$9:$U$27)) -> 0 | BD12: =_xlfn.XLOOKUP($AZ12,$Q$8:$U$8,_xlfn.XLOOKUP(BD$8,$P$9:$P$27,$Q$9:$U$27)) -> 0 | BE12: =_xlfn.XLOOKUP($AZ12,$Q$8:$U$8,_xlfn.XLOOKUP(BE$8,$P$9:$P$27,$Q$9:$U$27)) -> 0 | BF12: =_xlfn.XLOOKUP($AZ12,$Q$8:$U$8,_xlfn.XLOOKUP(BF$8,$P$9:$P$27,$Q$9:$U$27)) -> 0 | BG12: =_xlfn.XLOOKUP($AZ12,$Q$8:$U$8,_xlfn.XLOOKUP(BG$8,$P$9:$P$27,$Q$9:$U$27)) -> 0 | BH12: =_xlfn.XLOOKUP($AZ12,$Q$8:$U$8,_xlfn.XLOOKUP(BH$8,$P$9:$P$27,$Q$9:$U$27)) -> 0 | BI12: =_xlfn.XLOOKUP($AZ12,$Q$8:$U$8,_xlfn.XLOOKUP(BI$8,$P$9:$P$27,$Q$9:$U$27)) -> 31.24690004 | BJ12: =_xlfn.XLOOKUP($AZ12,$Q$8:$U$8,_xlfn.XLOOKUP(BJ$8,$P$9:$P$27,$Q$9:$U$27)) -> 10.63242692 | BK12: =_xlfn.XLOOKUP($AZ12,$Q$8:$U$8,_xlfn.XLOOKUP(BK$8,$P$9:$P$27,$Q$9:$U$27)) -> 0 | BL12: =_xlfn.XLOOKUP($AZ12,$Q$8:$U$8,_xlfn.XLOOKUP(BL$8,$P$9:$P$27,$Q$9:$U$27)) -> 1.037573696 | BM12: =_xlfn.XLOOKUP($AZ12,$Q$8:$U$8,_xlfn.XLOOKUP(BM$8,$P$9:$P$27,$Q$9:$U$27)) -> 0 | BN12: =_xlfn.XLOOKUP($AZ12,$Q$8:$U$8,_xlfn.XLOOKUP(BN$8,$P$9:$P$27,$Q$9:$U$27)) -> 0 | BO12: =_xlfn.XLOOKUP($AZ12,$Q$8:$U$8,_xlfn.XLOOKUP(BO$8,$P$9:$P$27,$Q$9:$U$27)) -> 0 | BP12: =_xlfn.XLOOKUP($AZ12,$Q$8:$U$8,_xlfn.XLOOKUP(BP$8,$P$9:$P$27,$Q$9:$U$27)) -> 0 | BQ12: =_xlfn.XLOOKUP($AZ12,$Q$8:$U$8,_xlfn.XLOOKUP(BQ$8,$P$9:$P$27,$Q$9:$U$27)) -> 0 | BR12: =_xlfn.XLOOKUP($AZ12,$Q$8:$U$8,_xlfn.XLOOKUP(BR$8,$P$9:$P$27,$Q$9:$U$27)) -> 0 | BS12: =_xlfn.XLOOKUP($AZ12,$Q$8:$U$8,_xlfn.XLOOKUP(BS$8,$P$9:$P$27,$Q$9:$U$27)) -> 0
B13: ='Opex costs'!B11 -> Other Network Maintenance | C13: =_xlfn.XLOOKUP($B13,'BBM Costs'!$I$7:$I$25,'BBM Costs'!J$7:J$25)*_xlfn.XLOOKUP($B13,'Control panel'!$E$7:$E$25,'Control panel'!$F$7:$F$25) -> 0 | D13: =_xlfn.XLOOKUP($B13,'BBM Costs'!$I$7:$I$25,'BBM Costs'!K$7:K$25)*_xlfn.XLOOKUP($B13,'Control panel'!$E$7:$E$25,'Control panel'!$F$7:$F$25) -> 0 | E13: =_xlfn.XLOOKUP($B13,'BBM Costs'!$I$7:$I$25,'BBM Costs'!L$7:L$25)*_xlfn.XLOOKUP($B13,'Control panel'!$E$7:$E$25,'Control panel'!$F$7:$F$25) -> 0 | F13: =_xlfn.XLOOKUP($B13,'BBM Costs'!$I$7:$I$25,'BBM Costs'!M$7:M$25)*_xlfn.XLOOKUP($B13,'Control panel'!$E$7:$E$25,'Control panel'!$F$7:$F$25) -> 0 | G13: =_xlfn.XLOOKUP($B13,'BBM Costs'!$I$7:$I$25,'BBM Costs'!N$7:N$25)*_xlfn.XLOOKUP($B13,'Control panel'!$E$7:$E$25,'Control panel'!$F$7:$F$25) -> 0 | I13: Other Network Maintenance | J13: =C13*_xlfn.XLOOKUP($I13,'Control panel'!$E$7:$E$25,'Control panel'!$H$7:$H$25) -> 0 | K13: =D13*_xlfn.XLOOKUP($I13,'Control panel'!$E$7:$E$25,'Control panel'!$H$7:$H$25) -> 0 | L13: =E13*_xlfn.XLOOKUP($I13,'Control panel'!$E$7:$E$25,'Control panel'!$H$7:$H$25) -> 0 | M13: =F13*_xlfn.XLOOKUP($I13,'Control panel'!$E$7:$E$25,'Control panel'!$H$7:$H$25) -> 0 | N13: =G13*_xlfn.XLOOKUP($I13,'Control panel'!$E$7:$E$25,'Control panel'!$H$7:$H$25) -> 0 | P13: Other Network Maintenance | Q13: =C13*_xlfn.XLOOKUP($P13,'Control panel'!$E$7:$E$25,'Control panel'!$I$7:$I$25) -> 0 | R13: =D13*_xlfn.XLOOKUP($P13,'Control panel'!$E$7:$E$25,'Control panel'!$I$7:$I$25) -> 0 | S13: =E13*_xlfn.XLOOKUP($P13,'Control panel'!$E$7:$E$25,'Control panel'!$I$7:$I$25) -> 0 | T13: =F13*_xlfn.XLOOKUP($P13,'Control panel'!$E$7:$E$25,'Control panel'!$I$7:$I$25) -> 0 | U13: =G13*_xlfn.XLOOKUP($P13,'Control panel'!$E$7:$E$25,'Control panel'!$I$7:$I$25) -> 0 | W13: 2025-26 | X13: ='PTRM Data'!B11 -> Distribution Equipment | Y13: =_xlfn.XLOOKUP(X13,'Control panel'!$L$7:$L$37,'Control panel'!$P$7:$P$37) -> 0.57 | Z13: 0.1057360793 | AA13: =_xlfn.XLOOKUP(W13,'BBM Costs'!$Q$6:$U$6,_xlfn.XLOOKUP(X13,'BBM Costs'!$P$7:$P$37,'BBM Costs'!$Q$7:$U$37))*_xlfn.XLOOKUP(X13,'Control panel'!$L$7:$L$37,'Control panel'!$M$7:$M$37) -> 0.4501292259 | AB13: =_xlfn.XLOOKUP(W13,'BBM Costs'!$X$6:$AB$6,_xlfn.XLOOKUP(X13,'BBM Costs'!$W$7:$W$37,'BBM Costs'!$X$7:$AB$37))*_xlfn.XLOOKUP(X13,'Control panel'!$S$7:$S$37,'Control panel'!$T$7:$T$37) -> 0.4418844387 | AC13: 0.997749744 | AE13: ='PTRM Data'!B11 -> Distribution Equipment | AF13: ='Control panel'!$AA11/SUMPRODUCT('Control panel'!$AA$7:$AA$37,'Control panel'!AB$7:AB$37)*'Control panel'!AB11 -> 0.00125518366 | AG13: ='Control panel'!$AA11/SUMPRODUCT('Control panel'!$AA$7:$AA$37,'Control panel'!AC$7:AC$37)*'Control panel'!AC11 -> 0.00126784566 | AH13: ='Control panel'!$AA11/SUMPRODUCT('Control panel'!$AA$7:$AA$37,'Control panel'!AD$7:AD$37)*'Control panel'!AD11 -> 0.001267728754 | AI13: ='Control panel'!$AA11/SUMPRODUCT('Control panel'!$AA$7:$AA$37,'Control panel'!AE$7:AE$37)*'Control panel'!AE11 -> 0 | AJ13: ='Control panel'!$AA11/SUMPRODUCT('Control panel'!$AA$7:$AA$37,'Control panel'!AF$7:AF$37)*'Control panel'!AF11 -> 0 | AK13: ='Control panel'!$AA11/SUMPRODUCT('Control panel'!$AA$7:$AA$37,'Control panel'!AG$7:AG$37)*'Control panel'!AG11 -> 0.00126900335 | AL13: ='Control panel'!$AA11/SUMPRODUCT('Control panel'!$AA$7:$AA$37,'Control panel'!AH$7:AH$37)*'Control panel'!AH11 -> 0 | AM13: ='Control panel'!$AA11/SUMPRODUCT('Control panel'!$AA$7:$AA$37,'Control panel'!AI$7:AI$37)*'Control panel'!AI11 -> 0.00113815531 | AN13: ='Control panel'!$AA11/SUMPRODUCT('Control panel'!$AA$7:$AA$37,'Control panel'!AJ$7:AJ$37)*'Control panel'!AJ11 -> 0.00126456526 | AO13: ='Control panel'!$AA11/SUMPRODUCT('Control panel'!$AA$7:$AA$37,'Control panel'!AK$7:AK$37)*'Control panel'!AK11 -> 0.001254051037 | AP13: ='Control panel'!$AA11/SUMPRODUCT('Control panel'!$AA$7:$AA$37,'Control panel'!AL$7:AL$37)*'Control panel'!AL11 -> 0.00113815531 | AQ13: ='Control panel'!$AA11/SUMPRODUCT('Control panel'!$AA$7:$AA$37,'Control panel'!AM$7:AM$37)*'Control panel'!AM11 -> 0 | AR13: ='Control panel'!$AA11/SUMPRODUCT('Control panel'!$AA$7:$AA$37,'Control panel'!AN$7:AN$37)*'Control panel'!AN11 -> 0.00126456526 | AS13: ='Control panel'!$AA11/SUMPRODUCT('Control panel'!$AA$7:$AA$37,'Control panel'!AO$7:AO$37)*'Control panel'!AO11 -> 0.00126456526 | AT13: ='Control panel'!$AA11/SUMPRODUCT('Control panel'!$AA$7:$AA$37,'Control panel'!AP$7:AP$37)*'Control panel'!AP11 -> 0.00113815531 | AU13: ='Control panel'!$AA11/SUMPRODUCT('Control panel'!$AA$7:$AA$37,'Control panel'!AQ$7:AQ$37)*'Control panel'!AQ11 -> 0.00113815531 | AV13: ='Control panel'!$AA11/SUMPRODUCT('Control panel'!$AA$7:$AA$37,'Control panel'!AR$7:AR$37)*'Control panel'!AR11 -> 0.00113815531 | AW13: ='Control panel'!$AA11/SUMPRODUCT('Control panel'!$AA$7:$AA$37,'Control panel'!AS$7:AS$37)*'Control panel'!AS11 -> 0.00113815531 | AX13: ='Control panel'!$AA11/SUMPRODUCT('Control panel'!$AA$7:$AA$37,'Control panel'!AT$7:AT$37)*'Control panel'!AT11 -> 0.00113815531 | AZ13: 2029-30 | BA13: =_xlfn.XLOOKUP($AZ13,$Q$8:$U$8,_xlfn.XLOOKUP(BA$8,$P$9:$P$27,$Q$9:$U$27)) -> 32.02998069 | BB13: =_xlfn.XLOOKUP($AZ13,$Q$8:$U$8,_xlfn.XLOOKUP(BB$8,$P$9:$P$27,$Q$9:$U$27)) -> 17.30525223 | BC13: =_xlfn.XLOOKUP($AZ13,$Q$8:$U$8,_xlfn.XLOOKUP(BC$8,$P$9:$P$27,$Q$9:$U$27)) -> 0 | BD13: =_xlfn.XLOOKUP($AZ13,$Q$8:$U$8,_xlfn.XLOOKUP(BD$8,$P$9:$P$27,$Q$9:$U$27)) -> 0 | BE13: =_xlfn.XLOOKUP($AZ13,$Q$8:$U$8,_xlfn.XLOOKUP(BE$8,$P$9:$P$27,$Q$9:$U$27)) -> 0 | BF13: =_xlfn.XLOOKUP($AZ13,$Q$8:$U$8,_xlfn.XLOOKUP(BF$8,$P$9:$P$27,$Q$9:$U$27)) -> 0 | BG13: =_xlfn.XLOOKUP($AZ13,$Q$8:$U$8,_xlfn.XLOOKUP(BG$8,$P$9:$P$27,$Q$9:$U$27)) -> 0 | BH13: =_xlfn.XLOOKUP($AZ13,$Q$8:$U$8,_xlfn.XLOOKUP(BH$8,$P$9:$P$27,$Q$9:$U$27)) -> 0 | BI13: =_xlfn.XLOOKUP($AZ13,$Q$8:$U$8,_xlfn.XLOOKUP(BI$8,$P$9:$P$27,$Q$9:$U$27)) -> 32.02892535 | BJ13: =_xlfn.XLOOKUP($AZ13,$Q$8:$U$8,_xlfn.XLOOKUP(BJ$8,$P$9:$P$27,$Q$9:$U$27)) -> 10.89852777 | BK13: =_xlfn.XLOOKUP($AZ13,$Q$8:$U$8,_xlfn.XLOOKUP(BK$8,$P$9:$P$27,$Q$9:$U$27)) -> 0 | BL13: =_xlfn.XLOOKUP($AZ13,$Q$8:$U$8,_xlfn.XLOOKUP(BL$8,$P$9:$P$27,$Q$9:$U$27)) -> 1.063541356 | BM13: =_xlfn.XLOOKUP($AZ13,$Q$8:$U$8,_xlfn.XLOOKUP(BM$8,$P$9:$P$27,$Q$9:$U$27)) -> 0 | BN13: =_xlfn.XLOOKUP($AZ13,$Q$8:$U$8,_xlfn.XLOOKUP(BN$8,$P$9:$P$27,$Q$9:$U$27)) -> 0 | BO13: =_xlfn.XLOOKUP($AZ13,$Q$8:$U$8,_xlfn.XLOOKUP(BO$8,$P$9:$P$27,$Q$9:$U$27)) -> 0 | BP13: =_xlfn.XLOOKUP($AZ13,$Q$8:$U$8,_xlfn.XLOOKUP(BP$8,$P$9:$P$27,$Q$9:$U$27)) -> 0 | BQ13: =_xlfn.XLOOKUP($AZ13,$Q$8:$U$8,_xlfn.XLOOKUP(BQ$8,$P$9:$P$27,$Q$9:$U$27)) -> 0 | BR13: =_xlfn.XLOOKUP($AZ13,$Q$8:$U$8,_xlfn.XLOOKUP(BR$8,$P$9:$P$27,$Q$9:$U$27)) -> 0 | BS13: =_xlfn.XLOOKUP($AZ13,$Q$8:$U$8,_xlfn.XLOOKUP(BS$8,$P$9:$P$27,$Q$9:$U$27)) -> 0
B14: ='Opex costs'!B12 -> Network Operating Costs | C14: =_xlfn.XLOOKUP($B14,'BBM Costs'!$I$7:$I$25,'BBM Costs'!J$7:J$25)*_xlfn.XLOOKUP($B14,'Control panel'!$E$7:$E$25,'Control panel'!$F$7:$F$25) -> 0 | D14: =_xlfn.XLOOKUP($B14,'BBM Costs'!$I$7:$I$25,'BBM Costs'!K$7:K$25)*_xlfn.XLOOKUP($B14,'Control panel'!$E$7:$E$25,'Control panel'!$F$7:$F$25) -> 0 | E14: =_xlfn.XLOOKUP($B14,'BBM Costs'!$I$7:$I$25,'BBM Costs'!L$7:L$25)*_xlfn.XLOOKUP($B14,'Control panel'!$E$7:$E$25,'Control panel'!$F$7:$F$25) -> 0 | F14: =_xlfn.XLOOKUP($B14,'BBM Costs'!$I$7:$I$25,'BBM Costs'!M$7:M$25)*_xlfn.XLOOKUP($B14,'Control panel'!$E$7:$E$25,'Control panel'!$F$7:$F$25) -> 0 | G14: =_xlfn.XLOOKUP($B14,'BBM Costs'!$I$7:$I$25,'BBM Costs'!N$7:N$25)*_xlfn.XLOOKUP($B14,'Control panel'!$E$7:$E$25,'Control panel'!$F$7:$F$25) -> 0 | I14: Network Operating Costs | J14: =C14*_xlfn.XLOOKUP($I14,'Control panel'!$E$7:$E$25,'Control panel'!$H$7:$H$25) -> 0 | K14: =D14*_xlfn.XLOOKUP($I14,'Control panel'!$E$7:$E$25,'Control panel'!$H$7:$H$25) -> 0 | L14: =E14*_xlfn.XLOOKUP($I14,'Control panel'!$E$7:$E$25,'Control panel'!$H$7:$H$25) -> 0 | M14: =F14*_xlfn.XLOOKUP($I14,'Control panel'!$E$7:$E$25,'Control panel'!$H$7:$H$25) -> 0 | N14: =G14*_xlfn.XLOOKUP($I14,'Control panel'!$E$7:$E$25,'Control panel'!$H$7:$H$25) -> 0 | P14: Network Operating Costs | Q14: =C14*_xlfn.XLOOKUP($P14,'Control panel'!$E$7:$E$25,'Control panel'!$I$7:$I$25) -> 0 | R14: =D14*_xlfn.XLOOKUP($P14,'Control panel'!$E$7:$E$25,'Control panel'!$I$7:$I$25) -> 0 | S14: =E14*_xlfn.XLOOKUP($P14,'Control panel'!$E$7:$E$25,'Control panel'!$I$7:$I$25) -> 0 | T14: =F14*_xlfn.XLOOKUP($P14,'Control panel'!$E$7:$E$25,'Control panel'!$I$7:$I$25) -> 0 | U14: =G14*_xlfn.XLOOKUP($P14,'Control panel'!$E$7:$E$25,'Control panel'!$I$7:$I$25) -> 0 | W14: 2025-26 | X14: ='PTRM Data'!B12 -> Substation Bays | Y14: =_xlfn.XLOOKUP(X14,'Control panel'!$L$7:$L$37,'Control panel'!$P$7:$P$37) -> 1 | Z14: 10.19070952 | AA14: =_xlfn.XLOOKUP(W14,'BBM Costs'!$Q$6:$U$6,_xlfn.XLOOKUP(X14,'BBM Costs'!$P$7:$P$37,'BBM Costs'!$Q$7:$U$37))*_xlfn.XLOOKUP(X14,'Control panel'!$L$7:$L$37,'Control panel'!$M$7:$M$37) -> 0 | AB14: =_xlfn.XLOOKUP(W14,'BBM Costs'!$X$6:$AB$6,_xlfn.XLOOKUP(X14,'BBM Costs'!$W$7:$W$37,'BBM Costs'!$X$7:$AB$37))*_xlfn.XLOOKUP(X14,'Control panel'!$S$7:$S$37,'Control panel'!$T$7:$T$37) -> 0 | AC14: 10.19070952 | AE14: ='PTRM Data'!B12 -> Substation Bays | AF14: ='Control panel'!$AA12/SUMPRODUCT('Control panel'!$AA$7:$AA$37,'Control panel'!AB$7:AB$37)*'Control panel'!AB12 -> 0.1209730128 | AG14: ='Control panel'!$AA12/SUMPRODUCT('Control panel'!$AA$7:$AA$37,'Control panel'!AC$7:AC$37)*'Control panel'!AC12 -> 0.1221933604 | AH14: ='Control panel'!$AA12/SUMPRODUCT('Control panel'!$AA$7:$AA$37,'Control panel'!AD$7:AD$37)*'Control panel'!AD12 -> 0.1221820931 | AI14: ='Control panel'!$AA12/SUMPRODUCT('Control panel'!$AA$7:$AA$37,'Control panel'!AE$7:AE$37)*'Control panel'!AE12 -> 0 | AJ14: ='Control panel'!$AA12/SUMPRODUCT('Control panel'!$AA$7:$AA$37,'Control panel'!AF$7:AF$37)*'Control panel'!AF12 -> 0 | AK14: ='Control panel'!$AA12/SUMPRODUCT('Control panel'!$AA$7:$AA$37,'Control panel'!AG$7:AG$37)*'Control panel'!AG12 -> 0.1223049371 | AL14: ='Control panel'!$AA12/SUMPRODUCT('Control panel'!$AA$7:$AA$37,'Control panel'!AH$7:AH$37)*'Control panel'!AH12 -> 0.7029266576 | AM14: ='Control panel'!$AA12/SUMPRODUCT('Control panel'!$AA$7:$AA$37,'Control panel'!AI$7:AI$37)*'Control panel'!AI12 -> 0.1096939686 | AN14: ='Control panel'!$AA12/SUMPRODUCT('Control panel'!$AA$7:$AA$37,'Control panel'!AJ$7:AJ$37)*'Control panel'!AJ12 -> 0.1218771995 | AO14: ='Control panel'!$AA12/SUMPRODUCT('Control panel'!$AA$7:$AA$37,'Control panel'!AK$7:AK$37)*'Control panel'!AK12 -> 0.120863852 | AP14: ='Control panel'!$AA12/SUMPRODUCT('Control panel'!$AA$7:$AA$37,'Control panel'!AL$7:AL$37)*'Control panel'!AL12 -> 0.1096939686 | AQ14: ='Control panel'!$AA12/SUMPRODUCT('Control panel'!$AA$7:$AA$37,'Control panel'!AM$7:AM$37)*'Control panel'!AM12 -> 0 | AR14: ='Control panel'!$AA12/SUMPRODUCT('Control panel'!$AA$7:$AA$37,'Control panel'!AN$7:AN$37)*'Control panel'!AN12 -> 0.1218771995 | AS14: ='Control panel'!$AA12/SUMPRODUCT('Control panel'!$AA$7:$AA$37,'Control panel'!AO$7:AO$37)*'Control panel'!AO12 -> 0.1218771995 | AT14: ='Control panel'!$AA12/SUMPRODUCT('Control panel'!$AA$7:$AA$37,'Control panel'!AP$7:AP$37)*'Control panel'!AP12 -> 0.1096939686 | AU14: ='Control panel'!$AA12/SUMPRODUCT('Control panel'!$AA$7:$AA$37,'Control panel'!AQ$7:AQ$37)*'Control panel'!AQ12 -> 0.1096939686 | AV14: ='Control panel'!$AA12/SUMPRODUCT('Control panel'!$AA$7:$AA$37,'Control panel'!AR$7:AR$37)*'Control panel'!AR12 -> 0.1096939686 | AW14: ='Control panel'!$AA12/SUMPRODUCT('Control panel'!$AA$7:$AA$37,'Control panel'!AS$7:AS$37)*'Control panel'!AS12 -> 0.1096939686 | AX14: ='Control panel'!$AA12/SUMPRODUCT('Control panel'!$AA$7:$AA$37,'Control panel'!AT$7:AT$37)*'Control panel'!AT12 -> 0.1096939686
B15: ='Opex costs'!B13 -> Meter Reading | C15: =_xlfn.XLOOKUP($B15,'BBM Costs'!$I$7:$I$25,'BBM Costs'!J$7:J$25)*_xlfn.XLOOKUP($B15,'Control panel'!$E$7:$E$25,'Control panel'!$F$7:$F$25) -> 0 | D15: =_xlfn.XLOOKUP($B15,'BBM Costs'!$I$7:$I$25,'BBM Costs'!K$7:K$25)*_xlfn.XLOOKUP($B15,'Control panel'!$E$7:$E$25,'Control panel'!$F$7:$F$25) -> 0 | E15: =_xlfn.XLOOKUP($B15,'BBM Costs'!$I$7:$I$25,'BBM Costs'!L$7:L$25)*_xlfn.XLOOKUP($B15,'Control panel'!$E$7:$E$25,'Control panel'!$F$7:$F$25) -> 0 | F15: =_xlfn.XLOOKUP($B15,'BBM Costs'!$I$7:$I$25,'BBM Costs'!M$7:M$25)*_xlfn.XLOOKUP($B15,'Control panel'!$E$7:$E$25,'Control panel'!$F$7:$F$25) -> 0 | G15: =_xlfn.XLOOKUP($B15,'BBM Costs'!$I$7:$I$25,'BBM Costs'!N$7:N$25)*_xlfn.XLOOKUP($B15,'Control panel'!$E$7:$E$25,'Control panel'!$F$7:$F$25) -> 0 | I15: Meter Reading | J15: =C15*_xlfn.XLOOKUP($I15,'Control panel'!$E$7:$E$25,'Control panel'!$H$7:$H$25) -> 0 | K15: =D15*_xlfn.XLOOKUP($I15,'Control panel'!$E$7:$E$25,'Control panel'!$H$7:$H$25) -> 0 | L15: =E15*_xlfn.XLOOKUP($I15,'Control panel'!$E$7:$E$25,'Control panel'!$H$7:$H$25) -> 0 | M15: =F15*_xlfn.XLOOKUP($I15,'Control panel'!$E$7:$E$25,'Control panel'!$H$7:$H$25) -> 0 | N15: =G15*_xlfn.XLOOKUP($I15,'Control panel'!$E$7:$E$25,'Control panel'!$H$7:$H$25) -> 0 | P15: Meter Reading | Q15: =C15*_xlfn.XLOOKUP($P15,'Control panel'!$E$7:$E$25,'Control panel'!$I$7:$I$25) -> 0 | R15: =D15*_xlfn.XLOOKUP($P15,'Control panel'!$E$7:$E$25,'Control panel'!$I$7:$I$25) -> 0 | S15: =E15*_xlfn.XLOOKUP($P15,'Control panel'!$E$7:$E$25,'Control panel'!$I$7:$I$25) -> 0 | T15: =F15*_xlfn.XLOOKUP($P15,'Control panel'!$E$7:$E$25,'Control panel'!$I$7:$I$25) -> 0 | U15: =G15*_xlfn.XLOOKUP($P15,'Control panel'!$E$7:$E$25,'Control panel'!$I$7:$I$25) -> 0 | W15: 2025-26 | X15: ='PTRM Data'!B13 -> Substation Establishment | Y15: =_xlfn.XLOOKUP(X15,'Control panel'!$L$7:$L$37,'Control panel'!$P$7:$P$37) -> 1 | Z15: 2.153803476 | AA15: =_xlfn.XLOOKUP(W15,'BBM Costs'!$Q$6:$U$6,_xlfn.XLOOKUP(X15,'BBM Costs'!$P$7:$P$37,'BBM Costs'!$Q$7:$U$37))*_xlfn.XLOOKUP(X15,'Control panel'!$L$7:$L$37,'Control panel'!$M$7:$M$37) -> 0 | AB15: =_xlfn.XLOOKUP(W15,'BBM Costs'!$X$6:$AB$6,_xlfn.XLOOKUP(X15,'BBM Costs'!$W$7:$W$37,'BBM Costs'!$X$7:$AB$37))*_xlfn.XLOOKUP(X15,'Control panel'!$S$7:$S$37,'Control panel'!$T$7:$T$37) -> 0 | AC15: 2.153803476 | AE15: ='PTRM Data'!B13 -> Substation Establishment | AF15: ='Control panel'!$AA13/SUMPRODUCT('Control panel'!$AA$7:$AA$37,'Control panel'!AB$7:AB$37)*'Control panel'!AB13 -> 0.02556761087 | AG15: ='Control panel'!$AA13/SUMPRODUCT('Control panel'!$AA$7:$AA$37,'Control panel'!AC$7:AC$37)*'Control panel'!AC13 -> 0.02582553096 | AH15: ='Control panel'!$AA13/SUMPRODUCT('Control panel'!$AA$7:$AA$37,'Control panel'!AD$7:AD$37)*'Control panel'!AD13 -> 0.02582314962 | AI15: ='Control panel'!$AA13/SUMPRODUCT('Control panel'!$AA$7:$AA$37,'Control panel'!AE$7:AE$37)*'Control panel'!AE13 -> 0.04489533165 | AJ15: ='Control panel'!$AA13/SUMPRODUCT('Control panel'!$AA$7:$AA$37,'Control panel'!AF$7:AF$37)*'Control panel'!AF13 -> 0 | AK15: ='Control panel'!$AA13/SUMPRODUCT('Control panel'!$AA$7:$AA$37,'Control panel'!AG$7:AG$37)*'Control panel'!AG13 -> 0.02584911266 | AL15: ='Control panel'!$AA13/SUMPRODUCT('Control panel'!$AA$7:$AA$37,'Control panel'!AH$7:AH$37)*'Control panel'!AH13 -> 0 | AM15: ='Control panel'!$AA13/SUMPRODUCT('Control panel'!$AA$7:$AA$37,'Control panel'!AI$7:AI$37)*'Control panel'!AI13 -> 0.02318378816 | AN15: ='Control panel'!$AA13/SUMPRODUCT('Control panel'!$AA$7:$AA$37,'Control panel'!AJ$7:AJ$37)*'Control panel'!AJ13 -> 0.02575871046 | AO15: ='Control panel'!$AA13/SUMPRODUCT('Control panel'!$AA$7:$AA$37,'Control panel'!AK$7:AK$37)*'Control panel'!AK13 -> 0.02554453976 | AP15: ='Control panel'!$AA13/SUMPRODUCT('Control panel'!$AA$7:$AA$37,'Control panel'!AL$7:AL$37)*'Control panel'!AL13 -> 0.02318378816 | AQ15: ='Control panel'!$AA13/SUMPRODUCT('Control panel'!$AA$7:$AA$37,'Control panel'!AM$7:AM$37)*'Control panel'!AM13 -> 0 | AR15: ='Control panel'!$AA13/SUMPRODUCT('Control panel'!$AA$7:$AA$37,'Control panel'!AN$7:AN$37)*'Control panel'!AN13 -> 0.02575871046 | AS15: ='Control panel'!$AA13/SUMPRODUCT('Control panel'!$AA$7:$AA$37,'Control panel'!AO$7:AO$37)*'Control panel'!AO13 -> 0.02575871046 | AT15: ='Control panel'!$AA13/SUMPRODUCT('Control panel'!$AA$7:$AA$37,'Control panel'!AP$7:AP$37)*'Control panel'!AP13 -> 0.02318378816 | AU15: ='Control panel'!$AA13/SUMPRODUCT('Control panel'!$AA$7:$AA$37,'Control panel'!AQ$7:AQ$37)*'Control panel'!AQ13 -> 0.02318378816 | AV15: ='Control panel'!$AA13/SUMPRODUCT('Control panel'!$AA$7:$AA$37,'Control panel'!AR$7:AR$37)*'Control panel'!AR13 -> 0.02318378816 | AW15: ='Control panel'!$AA13/SUMPRODUCT('Control panel'!$AA$7:$AA$37,'Control panel'!AS$7:AS$37)*'Control panel'!AS13 -> 0.02318378816 | AX15: ='Control panel'!$AA13/SUMPRODUCT('Control panel'!$AA$7:$AA$37,'Control panel'!AT$7:AT$37)*'Control panel'!AT13 -> 0.02318378816
B16: ='Opex costs'!B14 -> Customer Service (incl Call Centre) | C16: =_xlfn.XLOOKUP($B16,'BBM Costs'!$I$7:$I$25,'BBM Costs'!J$7:J$25)*_xlfn.XLOOKUP($B16,'Control panel'!$E$7:$E$25,'Control panel'!$F$7:$F$25) -> 14.65559229 | D16: =_xlfn.XLOOKUP($B16,'BBM Costs'!$I$7:$I$25,'BBM Costs'!K$7:K$25)*_xlfn.XLOOKUP($B16,'Control panel'!$E$7:$E$25,'Control panel'!$F$7:$F$25) -> 14.89243385 | E16: =_xlfn.XLOOKUP($B16,'BBM Costs'!$I$7:$I$25,'BBM Costs'!L$7:L$25)*_xlfn.XLOOKUP($B16,'Control panel'!$E$7:$E$25,'Control panel'!$F$7:$F$25) -> 15.1855316 | F16: =_xlfn.XLOOKUP($B16,'BBM Costs'!$I$7:$I$25,'BBM Costs'!M$7:M$25)*_xlfn.XLOOKUP($B16,'Control panel'!$E$7:$E$25,'Control panel'!$F$7:$F$25) -> 15.72810003 | G16: =_xlfn.XLOOKUP($B16,'BBM Costs'!$I$7:$I$25,'BBM Costs'!N$7:N$25)*_xlfn.XLOOKUP($B16,'Control panel'!$E$7:$E$25,'Control panel'!$F$7:$F$25) -> 16.12173179 | I16: Customer Service (incl Call Centre) | J16: =C16*_xlfn.XLOOKUP($I16,'Control panel'!$E$7:$E$25,'Control panel'!$H$7:$H$25) -> 14.65559229 | K16: =D16*_xlfn.XLOOKUP($I16,'Control panel'!$E$7:$E$25,'Control panel'!$H$7:$H$25) -> 14.89243385 | L16: =E16*_xlfn.XLOOKUP($I16,'Control panel'!$E$7:$E$25,'Control panel'!$H$7:$H$25) -> 15.1855316 | M16: =F16*_xlfn.XLOOKUP($I16,'Control panel'!$E$7:$E$25,'Control panel'!$H$7:$H$25) -> 15.72810003 | N16: =G16*_xlfn.XLOOKUP($I16,'Control panel'!$E$7:$E$25,'Control panel'!$H$7:$H$25) -> 16.12173179 | P16: Customer Service (incl Call Centre) | Q16: =C16*_xlfn.XLOOKUP($P16,'Control panel'!$E$7:$E$25,'Control panel'!$I$7:$I$25) -> 0 | R16: =D16*_xlfn.XLOOKUP($P16,'Control panel'!$E$7:$E$25,'Control panel'!$I$7:$I$25) -> 0 | S16: =E16*_xlfn.XLOOKUP($P16,'Control panel'!$E$7:$E$25,'Control panel'!$I$7:$I$25) -> 0 | T16: =F16*_xlfn.XLOOKUP($P16,'Control panel'!$E$7:$E$25,'Control panel'!$I$7:$I$25) -> 0 | U16: =G16*_xlfn.XLOOKUP($P16,'Control panel'!$E$7:$E$25,'Control panel'!$I$7:$I$25) -> 0 | W16: 2025-26 | X16: ='PTRM Data'!B14 -> Distribution Substation Switchgear | Y16: =_xlfn.XLOOKUP(X16,'Control panel'!$L$7:$L$37,'Control panel'!$P$7:$P$37) -> 0.57 | Z16: 3.725516762 | AA16: =_xlfn.XLOOKUP(W16,'BBM Costs'!$Q$6:$U$6,_xlfn.XLOOKUP(X16,'BBM Costs'!$P$7:$P$37,'BBM Costs'!$Q$7:$U$37))*_xlfn.XLOOKUP(X16,'Control panel'!$L$7:$L$37,'Control panel'!$M$7:$M$37) -> 0.7097031699 | AB16: =_xlfn.XLOOKUP(W16,'BBM Costs'!$X$6:$AB$6,_xlfn.XLOOKUP(X16,'BBM Costs'!$W$7:$W$37,'BBM Costs'!$X$7:$AB$37))*_xlfn.XLOOKUP(X16,'Control panel'!$S$7:$S$37,'Control panel'!$T$7:$T$37) -> 15.56940539 | AC16: 20.00462532 | AE16: ='PTRM Data'!B14 -> Distribution Substation Switchgear | AF16: ='Control panel'!$AA14/SUMPRODUCT('Control panel'!$AA$7:$AA$37,'Control panel'!AB$7:AB$37)*'Control panel'!AB14 -> 0.04422528049 | AG16: ='Control panel'!$AA14/SUMPRODUCT('Control panel'!$AA$7:$AA$37,'Control panel'!AC$7:AC$37)*'Control panel'!AC14 -> 0.0446714148 | AH16: ='Control panel'!$AA14/SUMPRODUCT('Control panel'!$AA$7:$AA$37,'Control panel'!AD$7:AD$37)*'Control panel'!AD14 -> 0.04466729571 | AI16: ='Control panel'!$AA14/SUMPRODUCT('Control panel'!$AA$7:$AA$37,'Control panel'!AE$7:AE$37)*'Control panel'!AE14 -> 0 | AJ16: ='Control panel'!$AA14/SUMPRODUCT('Control panel'!$AA$7:$AA$37,'Control panel'!AF$7:AF$37)*'Control panel'!AF14 -> 0 | AK16: ='Control panel'!$AA14/SUMPRODUCT('Control panel'!$AA$7:$AA$37,'Control panel'!AG$7:AG$37)*'Control panel'!AG14 -> 0.04471220498 | AL16: ='Control panel'!$AA14/SUMPRODUCT('Control panel'!$AA$7:$AA$37,'Control panel'!AH$7:AH$37)*'Control panel'!AH14 -> 0 | AM16: ='Control panel'!$AA14/SUMPRODUCT('Control panel'!$AA$7:$AA$37,'Control panel'!AI$7:AI$37)*'Control panel'!AI14 -> 0.04010189062 | AN16: ='Control panel'!$AA14/SUMPRODUCT('Control panel'!$AA$7:$AA$37,'Control panel'!AJ$7:AJ$37)*'Control panel'!AJ14 -> 0.04455583282 | AO16: ='Control panel'!$AA14/SUMPRODUCT('Control panel'!$AA$7:$AA$37,'Control panel'!AK$7:AK$37)*'Control panel'!AK14 -> 0.04418537351 | AP16: ='Control panel'!$AA14/SUMPRODUCT('Control panel'!$AA$7:$AA$37,'Control panel'!AL$7:AL$37)*'Control panel'!AL14 -> 0.04010189062 | AQ16: ='Control panel'!$AA14/SUMPRODUCT('Control panel'!$AA$7:$AA$37,'Control panel'!AM$7:AM$37)*'Control panel'!AM14 -> 0 | AR16: ='Control panel'!$AA14/SUMPRODUCT('Control panel'!$AA$7:$AA$37,'Control panel'!AN$7:AN$37)*'Control panel'!AN14 -> 0.04455583282 | AS16: ='Control panel'!$AA14/SUMPRODUCT('Control panel'!$AA$7:$AA$37,'Control panel'!AO$7:AO$37)*'Control panel'!AO14 -> 0.04455583282 | AT16: ='Control panel'!$AA14/SUMPRODUCT('Control panel'!$AA$7:$AA$37,'Control panel'!AP$7:AP$37)*'Control panel'!AP14 -> 0.04010189062 | AU16: ='Control panel'!$AA14/SUMPRODUCT('Control panel'!$AA$7:$AA$37,'Control panel'!AQ$7:AQ$37)*'Control panel'!AQ14 -> 0.04010189062 | AV16: ='Control panel'!$AA14/SUMPRODUCT('Control panel'!$AA$7:$AA$37,'Control panel'!AR$7:AR$37)*'Control panel'!AR14 -> 0.04010189062 | AW16: ='Control panel'!$AA14/SUMPRODUCT('Control panel'!$AA$7:$AA$37,'Control panel'!AS$7:AS$37)*'Control panel'!AS14 -> 0.04010189062 | AX16: ='Control panel'!$AA14/SUMPRODUCT('Control panel'!$AA$7:$AA$37,'Control panel'!AT$7:AT$37)*'Control panel'!AT14 -> 0.04010189062
B17: ='Opex costs'!B15 -> Other Operating Costs | C17: =_xlfn.XLOOKUP($B17,'BBM Costs'!$I$7:$I$25,'BBM Costs'!J$7:J$25)*_xlfn.XLOOKUP($B17,'Control panel'!$E$7:$E$25,'Control panel'!$F$7:$F$25) -> 29.11615685 | D17: =_xlfn.XLOOKUP($B17,'BBM Costs'!$I$7:$I$25,'BBM Costs'!K$7:K$25)*_xlfn.XLOOKUP($B17,'Control panel'!$E$7:$E$25,'Control panel'!$F$7:$F$25) -> 29.58668822 | E17: =_xlfn.XLOOKUP($B17,'BBM Costs'!$I$7:$I$25,'BBM Costs'!L$7:L$25)*_xlfn.XLOOKUP($B17,'Control panel'!$E$7:$E$25,'Control panel'!$F$7:$F$25) -> 30.16898334 | F17: =_xlfn.XLOOKUP($B17,'BBM Costs'!$I$7:$I$25,'BBM Costs'!M$7:M$25)*_xlfn.XLOOKUP($B17,'Control panel'!$E$7:$E$25,'Control panel'!$F$7:$F$25) -> 31.24690004 | G17: =_xlfn.XLOOKUP($B17,'BBM Costs'!$I$7:$I$25,'BBM Costs'!N$7:N$25)*_xlfn.XLOOKUP($B17,'Control panel'!$E$7:$E$25,'Control panel'!$F$7:$F$25) -> 32.02892535 | I17: Other Operating Costs | J17: =C17*_xlfn.XLOOKUP($I17,'Control panel'!$E$7:$E$25,'Control panel'!$H$7:$H$25) -> 0 | K17: =D17*_xlfn.XLOOKUP($I17,'Control panel'!$E$7:$E$25,'Control panel'!$H$7:$H$25) -> 0 | L17: =E17*_xlfn.XLOOKUP($I17,'Control panel'!$E$7:$E$25,'Control panel'!$H$7:$H$25) -> 0 | M17: =F17*_xlfn.XLOOKUP($I17,'Control panel'!$E$7:$E$25,'Control panel'!$H$7:$H$25) -> 0 | N17: =G17*_xlfn.XLOOKUP($I17,'Control panel'!$E$7:$E$25,'Control panel'!$H$7:$H$25) -> 0 | P17: Other Operating Costs | Q17: =C17*_xlfn.XLOOKUP($P17,'Control panel'!$E$7:$E$25,'Control panel'!$I$7:$I$25) -> 29.11615685 | R17: =D17*_xlfn.XLOOKUP($P17,'Control panel'!$E$7:$E$25,'Control panel'!$I$7:$I$25) -> 29.58668822 | S17: =E17*_xlfn.XLOOKUP($P17,'Control panel'!$E$7:$E$25,'Control panel'!$I$7:$I$25) -> 30.16898334 | T17: =F17*_xlfn.XLOOKUP($P17,'Control panel'!$E$7:$E$25,'Control panel'!$I$7:$I$25) -> 31.24690004 | U17: =G17*_xlfn.XLOOKUP($P17,'Control panel'!$E$7:$E$25,'Control panel'!$I$7:$I$25) -> 32.02892535 | W17: 2025-26 | X17: ='PTRM Data'!B15 -> Zone Transformers | Y17: =_xlfn.XLOOKUP(X17,'Control panel'!$L$7:$L$37,'Control panel'!$P$7:$P$37) -> 1 | Z17: 1.965128084 | AA17: =_xlfn.XLOOKUP(W17,'BBM Costs'!$Q$6:$U$6,_xlfn.XLOOKUP(X17,'BBM Costs'!$P$7:$P$37,'BBM Costs'!$Q$7:$U$37))*_xlfn.XLOOKUP(X17,'Control panel'!$L$7:$L$37,'Control panel'!$M$7:$M$37) -> 0 | AB17: =_xlfn.XLOOKUP(W17,'BBM Costs'!$X$6:$AB$6,_xlfn.XLOOKUP(X17,'BBM Costs'!$W$7:$W$37,'BBM Costs'!$X$7:$AB$37))*_xlfn.XLOOKUP(X17,'Control panel'!$S$7:$S$37,'Control panel'!$T$7:$T$37) -> 0 | AC17: 1.965128084 | AE17: ='PTRM Data'!B15 -> Zone Transformers | AF17: ='Control panel'!$AA15/SUMPRODUCT('Control panel'!$AA$7:$AA$37,'Control panel'!AB$7:AB$37)*'Control panel'!AB15 -> 0.02332786195 | AG17: ='Control panel'!$AA15/SUMPRODUCT('Control panel'!$AA$7:$AA$37,'Control panel'!AC$7:AC$37)*'Control panel'!AC15 -> 0.02356318798 | AH17: ='Control panel'!$AA15/SUMPRODUCT('Control panel'!$AA$7:$AA$37,'Control panel'!AD$7:AD$37)*'Control panel'!AD15 -> 0.02356101525 | AI17: ='Control panel'!$AA15/SUMPRODUCT('Control panel'!$AA$7:$AA$37,'Control panel'!AE$7:AE$37)*'Control panel'!AE15 -> 0 | AJ17: ='Control panel'!$AA15/SUMPRODUCT('Control panel'!$AA$7:$AA$37,'Control panel'!AF$7:AF$37)*'Control panel'!AF15 -> 0 | AK17: ='Control panel'!$AA15/SUMPRODUCT('Control panel'!$AA$7:$AA$37,'Control panel'!AG$7:AG$37)*'Control panel'!AG15 -> 0.0235847039 | AL17: ='Control panel'!$AA15/SUMPRODUCT('Control panel'!$AA$7:$AA$37,'Control panel'!AH$7:AH$37)*'Control panel'!AH15 -> 0 | AM17: ='Control panel'!$AA15/SUMPRODUCT('Control panel'!$AA$7:$AA$37,'Control panel'!AI$7:AI$37)*'Control panel'!AI15 -> 0.02115286456 | AN17: ='Control panel'!$AA15/SUMPRODUCT('Control panel'!$AA$7:$AA$37,'Control panel'!AJ$7:AJ$37)*'Control panel'!AJ15 -> 0.02350222103 | AO17: ='Control panel'!$AA15/SUMPRODUCT('Control panel'!$AA$7:$AA$37,'Control panel'!AK$7:AK$37)*'Control panel'!AK15 -> 0.0233068119 | AP17: ='Control panel'!$AA15/SUMPRODUCT('Control panel'!$AA$7:$AA$37,'Control panel'!AL$7:AL$37)*'Control panel'!AL15 -> 0.02115286456 | AQ17: ='Control panel'!$AA15/SUMPRODUCT('Control panel'!$AA$7:$AA$37,'Control panel'!AM$7:AM$37)*'Control panel'!AM15 -> 0 | AR17: ='Control panel'!$AA15/SUMPRODUCT('Control panel'!$AA$7:$AA$37,'Control panel'!AN$7:AN$37)*'Control panel'!AN15 -> 0.02350222103 | AS17: ='Control panel'!$AA15/SUMPRODUCT('Control panel'!$AA$7:$AA$37,'Control panel'!AO$7:AO$37)*'Control panel'!AO15 -> 0.02350222103 | AT17: ='Control panel'!$AA15/SUMPRODUCT('Control panel'!$AA$7:$AA$37,'Control panel'!AP$7:AP$37)*'Control panel'!AP15 -> 0.02115286456 | AU17: ='Control panel'!$AA15/SUMPRODUCT('Control panel'!$AA$7:$AA$37,'Control panel'!AQ$7:AQ$37)*'Control panel'!AQ15 -> 0.02115286456 | AV17: ='Control panel'!$AA15/SUMPRODUCT('Control panel'!$AA$7:$AA$37,'Control panel'!AR$7:AR$37)*'Control panel'!AR15 -> 0.02115286456 | AW17: ='Control panel'!$AA15/SUMPRODUCT('Control panel'!$AA$7:$AA$37,'Control panel'!AS$7:AS$37)*'Control panel'!AS15 -> 0.02115286456 | AX17: ='Control panel'!$AA15/SUMPRODUCT('Control panel'!$AA$7:$AA$37,'Control panel'!AT$7:AT$37)*'Control panel'!AT15 -> 0.02115286456
B18: ='Opex costs'!B16 -> Training | C18: =_xlfn.XLOOKUP($B18,'BBM Costs'!$I$7:$I$25,'BBM Costs'!J$7:J$25)*_xlfn.XLOOKUP($B18,'Control panel'!$E$7:$E$25,'Control panel'!$F$7:$F$25) -> 17.38139634 | D18: =_xlfn.XLOOKUP($B18,'BBM Costs'!$I$7:$I$25,'BBM Costs'!K$7:K$25)*_xlfn.XLOOKUP($B18,'Control panel'!$E$7:$E$25,'Control panel'!$F$7:$F$25) -> 17.66228822 | E18: =_xlfn.XLOOKUP($B18,'BBM Costs'!$I$7:$I$25,'BBM Costs'!L$7:L$25)*_xlfn.XLOOKUP($B18,'Control panel'!$E$7:$E$25,'Control panel'!$F$7:$F$25) -> 18.00989943 | F18: =_xlfn.XLOOKUP($B18,'BBM Costs'!$I$7:$I$25,'BBM Costs'!M$7:M$25)*_xlfn.XLOOKUP($B18,'Control panel'!$E$7:$E$25,'Control panel'!$F$7:$F$25) -> 18.65338056 | G18: =_xlfn.XLOOKUP($B18,'BBM Costs'!$I$7:$I$25,'BBM Costs'!N$7:N$25)*_xlfn.XLOOKUP($B18,'Control panel'!$E$7:$E$25,'Control panel'!$F$7:$F$25) -> 19.12022416 | I18: Training | J18: =C18*_xlfn.XLOOKUP($I18,'Control panel'!$E$7:$E$25,'Control panel'!$H$7:$H$25) -> 7.474000425 | K18: =D18*_xlfn.XLOOKUP($I18,'Control panel'!$E$7:$E$25,'Control panel'!$H$7:$H$25) -> 7.594783936 | L18: =E18*_xlfn.XLOOKUP($I18,'Control panel'!$E$7:$E$25,'Control panel'!$H$7:$H$25) -> 7.744256755 | M18: =F18*_xlfn.XLOOKUP($I18,'Control panel'!$E$7:$E$25,'Control panel'!$H$7:$H$25) -> 8.020953639 | N18: =G18*_xlfn.XLOOKUP($I18,'Control panel'!$E$7:$E$25,'Control panel'!$H$7:$H$25) -> 8.22169639 | P18: Training | Q18: =C18*_xlfn.XLOOKUP($P18,'Control panel'!$E$7:$E$25,'Control panel'!$I$7:$I$25) -> 9.907395913 | R18: =D18*_xlfn.XLOOKUP($P18,'Control panel'!$E$7:$E$25,'Control panel'!$I$7:$I$25) -> 10.06750429 | S18: =E18*_xlfn.XLOOKUP($P18,'Control panel'!$E$7:$E$25,'Control panel'!$I$7:$I$25) -> 10.26564268 | T18: =F18*_xlfn.XLOOKUP($P18,'Control panel'!$E$7:$E$25,'Control panel'!$I$7:$I$25) -> 10.63242692 | U18: =G18*_xlfn.XLOOKUP($P18,'Control panel'!$E$7:$E$25,'Control panel'!$I$7:$I$25) -> 10.89852777 | W18: 2025-26 | X18: ='PTRM Data'!B16 -> Distribution Transformers | Y18: =_xlfn.XLOOKUP(X18,'Control panel'!$L$7:$L$37,'Control panel'!$P$7:$P$37) -> 0.57 | Z18: 9.263643542 | AA18: =_xlfn.XLOOKUP(W18,'BBM Costs'!$Q$6:$U$6,_xlfn.XLOOKUP(X18,'BBM Costs'!$P$7:$P$37,'BBM Costs'!$Q$7:$U$37))*_xlfn.XLOOKUP(X18,'Control panel'!$L$7:$L$37,'Control panel'!$M$7:$M$37) -> 10.51376709 | AB18: =_xlfn.XLOOKUP(W18,'BBM Costs'!$X$6:$AB$6,_xlfn.XLOOKUP(X18,'BBM Costs'!$W$7:$W$37,'BBM Costs'!$X$7:$AB$37))*_xlfn.XLOOKUP(X18,'Control panel'!$S$7:$S$37,'Control panel'!$T$7:$T$37) -> 38.71393714 | AC18: 58.49134777 | AE18: ='PTRM Data'!B16 -> Distribution Transformers | AF18: ='Control panel'!$AA16/SUMPRODUCT('Control panel'!$AA$7:$AA$37,'Control panel'!AB$7:AB$37)*'Control panel'!AB16 -> 0.1099678944 | AG18: ='Control panel'!$AA16/SUMPRODUCT('Control panel'!$AA$7:$AA$37,'Control panel'!AC$7:AC$37)*'Control panel'!AC16 -> 0.1110772249 | AH18: ='Control panel'!$AA16/SUMPRODUCT('Control panel'!$AA$7:$AA$37,'Control panel'!AD$7:AD$37)*'Control panel'!AD16 -> 0.1110669826 | AI18: ='Control panel'!$AA16/SUMPRODUCT('Control panel'!$AA$7:$AA$37,'Control panel'!AE$7:AE$37)*'Control panel'!AE16 -> 0 | AJ18: ='Control panel'!$AA16/SUMPRODUCT('Control panel'!$AA$7:$AA$37,'Control panel'!AF$7:AF$37)*'Control panel'!AF16 -> 0 | AK18: ='Control panel'!$AA16/SUMPRODUCT('Control panel'!$AA$7:$AA$37,'Control panel'!AG$7:AG$37)*'Control panel'!AG16 -> 0.1111786513 | AL18: ='Control panel'!$AA16/SUMPRODUCT('Control panel'!$AA$7:$AA$37,'Control panel'!AH$7:AH$37)*'Control panel'!AH16 -> 0 | AM18: ='Control panel'!$AA16/SUMPRODUCT('Control panel'!$AA$7:$AA$37,'Control panel'!AI$7:AI$37)*'Control panel'!AI16 -> 0.09971492381 | AN18: ='Control panel'!$AA16/SUMPRODUCT('Control panel'!$AA$7:$AA$37,'Control panel'!AJ$7:AJ$37)*'Control panel'!AJ16 -> 0.1107898258 | AO18: ='Control panel'!$AA16/SUMPRODUCT('Control panel'!$AA$7:$AA$37,'Control panel'!AK$7:AK$37)*'Control panel'!AK16 -> 0.1098686642 | AP18: ='Control panel'!$AA16/SUMPRODUCT('Control panel'!$AA$7:$AA$37,'Control panel'!AL$7:AL$37)*'Control panel'!AL16 -> 0.09971492381 | AQ18: ='Control panel'!$AA16/SUMPRODUCT('Control panel'!$AA$7:$AA$37,'Control panel'!AM$7:AM$37)*'Control panel'!AM16 -> 0 | AR18: ='Control panel'!$AA16/SUMPRODUCT('Control panel'!$AA$7:$AA$37,'Control panel'!AN$7:AN$37)*'Control panel'!AN16 -> 0.1107898258 | AS18: ='Control panel'!$AA16/SUMPRODUCT('Control panel'!$AA$7:$AA$37,'Control panel'!AO$7:AO$37)*'Control panel'!AO16 -> 0.1107898258 | AT18: ='Control panel'!$AA16/SUMPRODUCT('Control panel'!$AA$7:$AA$37,'Control panel'!AP$7:AP$37)*'Control panel'!AP16 -> 0.09971492381 | AU18: ='Control panel'!$AA16/SUMPRODUCT('Control panel'!$AA$7:$AA$37,'Control panel'!AQ$7:AQ$37)*'Control panel'!AQ16 -> 0.09971492381 | AV18: ='Control panel'!$AA16/SUMPRODUCT('Control panel'!$AA$7:$AA$37,'Control panel'!AR$7:AR$37)*'Control panel'!AR16 -> 0.09971492381 | AW18: ='Control panel'!$AA16/SUMPRODUCT('Control panel'!$AA$7:$AA$37,'Control panel'!AS$7:AS$37)*'Control panel'!AS16 -> 0.09971492381 | AX18: ='Control panel'!$AA16/SUMPRODUCT('Control panel'!$AA$7:$AA$37,'Control panel'!AT$7:AT$37)*'Control panel'!AT16 -> 0.09971492381
B19: ='Opex costs'!B17 -> Debt raising costs | C19: =_xlfn.XLOOKUP($B19,'BBM Costs'!$I$7:$I$25,'BBM Costs'!J$7:J$25)*_xlfn.XLOOKUP($B19,'Control panel'!$E$7:$E$25,'Control panel'!$F$7:$F$25) -> 0 | D19: =_xlfn.XLOOKUP($B19,'BBM Costs'!$I$7:$I$25,'BBM Costs'!K$7:K$25)*_xlfn.XLOOKUP($B19,'Control panel'!$E$7:$E$25,'Control panel'!$F$7:$F$25) -> 0 | E19: =_xlfn.XLOOKUP($B19,'BBM Costs'!$I$7:$I$25,'BBM Costs'!L$7:L$25)*_xlfn.XLOOKUP($B19,'Control panel'!$E$7:$E$25,'Control panel'!$F$7:$F$25) -> 0 | F19: =_xlfn.XLOOKUP($B19,'BBM Costs'!$I$7:$I$25,'BBM Costs'!M$7:M$25)*_xlfn.XLOOKUP($B19,'Control panel'!$E$7:$E$25,'Control panel'!$F$7:$F$25) -> 0 | G19: =_xlfn.XLOOKUP($B19,'BBM Costs'!$I$7:$I$25,'BBM Costs'!N$7:N$25)*_xlfn.XLOOKUP($B19,'Control panel'!$E$7:$E$25,'Control panel'!$F$7:$F$25) -> 0 | I19: Debt raising costs | J19: =C19*_xlfn.XLOOKUP($I19,'Control panel'!$E$7:$E$25,'Control panel'!$H$7:$H$25) -> 0 | K19: =D19*_xlfn.XLOOKUP($I19,'Control panel'!$E$7:$E$25,'Control panel'!$H$7:$H$25) -> 0 | L19: =E19*_xlfn.XLOOKUP($I19,'Control panel'!$E$7:$E$25,'Control panel'!$H$7:$H$25) -> 0 | M19: =F19*_xlfn.XLOOKUP($I19,'Control panel'!$E$7:$E$25,'Control panel'!$H$7:$H$25) -> 0 | N19: =G19*_xlfn.XLOOKUP($I19,'Control panel'!$E$7:$E$25,'Control panel'!$H$7:$H$25) -> 0 | P19: Debt raising costs | Q19: =C19*_xlfn.XLOOKUP($P19,'Control panel'!$E$7:$E$25,'Control panel'!$I$7:$I$25) -> 0 | R19: =D19*_xlfn.XLOOKUP($P19,'Control panel'!$E$7:$E$25,'Control panel'!$I$7:$I$25) -> 0 | S19: =E19*_xlfn.XLOOKUP($P19,'Control panel'!$E$7:$E$25,'Control panel'!$I$7:$I$25) -> 0 | T19: =F19*_xlfn.XLOOKUP($P19,'Control panel'!$E$7:$E$25,'Control panel'!$I$7:$I$25) -> 0 | U19: =G19*_xlfn.XLOOKUP($P19,'Control panel'!$E$7:$E$25,'Control panel'!$I$7:$I$25) -> 0 | W19: 2025-26 | X19: ='PTRM Data'!B17 -> Low Voltage Services | Y19: =_xlfn.XLOOKUP(X19,'Control panel'!$L$7:$L$37,'Control panel'!$P$7:$P$37) -> 0 | Z19: 3.550933303 | AA19: =_xlfn.XLOOKUP(W19,'BBM Costs'!$Q$6:$U$6,_xlfn.XLOOKUP(X19,'BBM Costs'!$P$7:$P$37,'BBM Costs'!$Q$7:$U$37))*_xlfn.XLOOKUP(X19,'Control panel'!$L$7:$L$37,'Control panel'!$M$7:$M$37) -> 0 | AB19: =_xlfn.XLOOKUP(W19,'BBM Costs'!$X$6:$AB$6,_xlfn.XLOOKUP(X19,'BBM Costs'!$W$7:$W$37,'BBM Costs'!$X$7:$AB$37))*_xlfn.XLOOKUP(X19,'Control panel'!$S$7:$S$37,'Control panel'!$T$7:$T$37) -> 0 | AC19: 3.550933303 | AE19: ='PTRM Data'!B17 -> Low Voltage Services | AF19: ='Control panel'!$AA17/SUMPRODUCT('Control panel'!$AA$7:$AA$37,'Control panel'!AB$7:AB$37)*'Control panel'!AB17 -> 0.03106429462 | AG19: ='Control panel'!$AA17/SUMPRODUCT('Control panel'!$AA$7:$AA$37,'Control panel'!AC$7:AC$37)*'Control panel'!AC17 -> 0.03137766398 | AH19: ='Control panel'!$AA17/SUMPRODUCT('Control panel'!$AA$7:$AA$37,'Control panel'!AD$7:AD$37)*'Control panel'!AD17 -> 0.03137477068 | AI19: ='Control panel'!$AA17/SUMPRODUCT('Control panel'!$AA$7:$AA$37,'Control panel'!AE$7:AE$37)*'Control panel'!AE17 -> 0 | AJ19: ='Control panel'!$AA17/SUMPRODUCT('Control panel'!$AA$7:$AA$37,'Control panel'!AF$7:AF$37)*'Control panel'!AF17 -> 0 | AK19: ='Control panel'!$AA17/SUMPRODUCT('Control panel'!$AA$7:$AA$37,'Control panel'!AG$7:AG$37)*'Control panel'!AG17 -> 0.03140631542 | AL19: ='Control panel'!$AA17/SUMPRODUCT('Control panel'!$AA$7:$AA$37,'Control panel'!AH$7:AH$37)*'Control panel'!AH17 -> 0.1805024135 | AM19: ='Control panel'!$AA17/SUMPRODUCT('Control panel'!$AA$7:$AA$37,'Control panel'!AI$7:AI$37)*'Control panel'!AI17 -> 0.02816798291 | AN19: ='Control panel'!$AA17/SUMPRODUCT('Control panel'!$AA$7:$AA$37,'Control panel'!AJ$7:AJ$37)*'Control panel'!AJ17 -> 0.03129647799 | AO19: ='Control panel'!$AA17/SUMPRODUCT('Control panel'!$AA$7:$AA$37,'Control panel'!AK$7:AK$37)*'Control panel'!AK17 -> 0.03103626354 | AP19: ='Control panel'!$AA17/SUMPRODUCT('Control panel'!$AA$7:$AA$37,'Control panel'!AL$7:AL$37)*'Control panel'!AL17 -> 0.02816798291 | AQ19: ='Control panel'!$AA17/SUMPRODUCT('Control panel'!$AA$7:$AA$37,'Control panel'!AM$7:AM$37)*'Control panel'!AM17 -> 0.9661476139 | AR19: ='Control panel'!$AA17/SUMPRODUCT('Control panel'!$AA$7:$AA$37,'Control panel'!AN$7:AN$37)*'Control panel'!AN17 -> 0.03129647799 | AS19: ='Control panel'!$AA17/SUMPRODUCT('Control panel'!$AA$7:$AA$37,'Control panel'!AO$7:AO$37)*'Control panel'!AO17 -> 0.03129647799 | AT19: ='Control panel'!$AA17/SUMPRODUCT('Control panel'!$AA$7:$AA$37,'Control panel'!AP$7:AP$37)*'Control panel'!AP17 -> 0.02816798291 | AU19: ='Control panel'!$AA17/SUMPRODUCT('Control panel'!$AA$7:$AA$37,'Control panel'!AQ$7:AQ$37)*'Control panel'!AQ17 -> 0.02816798291 | AV19: ='Control panel'!$AA17/SUMPRODUCT('Control panel'!$AA$7:$AA$37,'Control panel'!AR$7:AR$37)*'Control panel'!AR17 -> 0.02816798291 | AW19: ='Control panel'!$AA17/SUMPRODUCT('Control panel'!$AA$7:$AA$37,'Control panel'!AS$7:AS$37)*'Control panel'!AS17 -> 0.02816798291 | AX19: ='Control panel'!$AA17/SUMPRODUCT('Control panel'!$AA$7:$AA$37,'Control panel'!AT$7:AT$37)*'Control panel'!AT17 -> 0.02816798291
B20: ='Opex costs'!B18 -> Non-network Alternatives | C20: =_xlfn.XLOOKUP($B20,'BBM Costs'!$I$7:$I$25,'BBM Costs'!J$7:J$25)*_xlfn.XLOOKUP($B20,'Control panel'!$E$7:$E$25,'Control panel'!$F$7:$F$25) -> 4.83410489 | D20: =_xlfn.XLOOKUP($B20,'BBM Costs'!$I$7:$I$25,'BBM Costs'!K$7:K$25)*_xlfn.XLOOKUP($B20,'Control panel'!$E$7:$E$25,'Control panel'!$F$7:$F$25) -> 4.912226395 | E20: =_xlfn.XLOOKUP($B20,'BBM Costs'!$I$7:$I$25,'BBM Costs'!L$7:L$25)*_xlfn.XLOOKUP($B20,'Control panel'!$E$7:$E$25,'Control panel'!$F$7:$F$25) -> 5.008903843 | F20: =_xlfn.XLOOKUP($B20,'BBM Costs'!$I$7:$I$25,'BBM Costs'!M$7:M$25)*_xlfn.XLOOKUP($B20,'Control panel'!$E$7:$E$25,'Control panel'!$F$7:$F$25) -> 5.187868478 | G20: =_xlfn.XLOOKUP($B20,'BBM Costs'!$I$7:$I$25,'BBM Costs'!N$7:N$25)*_xlfn.XLOOKUP($B20,'Control panel'!$E$7:$E$25,'Control panel'!$F$7:$F$25) -> 5.317706779 | I20: Non-network Alternatives | J20: =C20*_xlfn.XLOOKUP($I20,'Control panel'!$E$7:$E$25,'Control panel'!$H$7:$H$25) -> 3.867283912 | K20: =D20*_xlfn.XLOOKUP($I20,'Control panel'!$E$7:$E$25,'Control panel'!$H$7:$H$25) -> 3.929781116 | L20: =E20*_xlfn.XLOOKUP($I20,'Control panel'!$E$7:$E$25,'Control panel'!$H$7:$H$25) -> 4.007123074 | M20: =F20*_xlfn.XLOOKUP($I20,'Control panel'!$E$7:$E$25,'Control panel'!$H$7:$H$25) -> 4.150294782 | N20: =G20*_xlfn.XLOOKUP($I20,'Control panel'!$E$7:$E$25,'Control panel'!$H$7:$H$25) -> 4.254165423 | P20: Non-network Alternatives | Q20: =C20*_xlfn.XLOOKUP($P20,'Control panel'!$E$7:$E$25,'Control panel'!$I$7:$I$25) -> 0.9668209781 | R20: =D20*_xlfn.XLOOKUP($P20,'Control panel'!$E$7:$E$25,'Control panel'!$I$7:$I$25) -> 0.982445279 | S20: =E20*_xlfn.XLOOKUP($P20,'Control panel'!$E$7:$E$25,'Control panel'!$I$7:$I$25) -> 1.001780769 | T20: =F20*_xlfn.XLOOKUP($P20,'Control panel'!$E$7:$E$25,'Control panel'!$I$7:$I$25) -> 1.037573696 | U20: =G20*_xlfn.XLOOKUP($P20,'Control panel'!$E$7:$E$25,'Control panel'!$I$7:$I$25) -> 1.063541356 | W20: 2025-26 | X20: ='PTRM Data'!B18 -> Metering | Y20: =_xlfn.XLOOKUP(X20,'Control panel'!$L$7:$L$37,'Control panel'!$P$7:$P$37) -> 1 | Z20: 0 | AA20: =_xlfn.XLOOKUP(W20,'BBM Costs'!$Q$6:$U$6,_xlfn.XLOOKUP(X20,'BBM Costs'!$P$7:$P$37,'BBM Costs'!$Q$7:$U$37))*_xlfn.XLOOKUP(X20,'Control panel'!$L$7:$L$37,'Control panel'!$M$7:$M$37) -> 0 | AB20: =_xlfn.XLOOKUP(W20,'BBM Costs'!$X$6:$AB$6,_xlfn.XLOOKUP(X20,'BBM Costs'!$W$7:$W$37,'BBM Costs'!$X$7:$AB$37))*_xlfn.XLOOKUP(X20,'Control panel'!$S$7:$S$37,'Control panel'!$T$7:$T$37) -> 0 | AC20: 0 | AE20: ='PTRM Data'!B18 -> Metering | AF20: ='Control panel'!$AA18/SUMPRODUCT('Control panel'!$AA$7:$AA$37,'Control panel'!AB$7:AB$37)*'Control panel'!AB18 -> 0 | AG20: ='Control panel'!$AA18/SUMPRODUCT('Control panel'!$AA$7:$AA$37,'Control panel'!AC$7:AC$37)*'Control panel'!AC18 -> 0 | AH20: ='Control panel'!$AA18/SUMPRODUCT('Control panel'!$AA$7:$AA$37,'Control panel'!AD$7:AD$37)*'Control panel'!AD18 -> 0 | AI20: ='Control panel'!$AA18/SUMPRODUCT('Control panel'!$AA$7:$AA$37,'Control panel'!AE$7:AE$37)*'Control panel'!AE18 -> 0 | AJ20: ='Control panel'!$AA18/SUMPRODUCT('Control panel'!$AA$7:$AA$37,'Control panel'!AF$7:AF$37)*'Control panel'!AF18 -> 1 | AK20: ='Control panel'!$AA18/SUMPRODUCT('Control panel'!$AA$7:$AA$37,'Control panel'!AG$7:AG$37)*'Control panel'!AG18 -> 0 | AL20: ='Control panel'!$AA18/SUMPRODUCT('Control panel'!$AA$7:$AA$37,'Control panel'!AH$7:AH$37)*'Control panel'!AH18 -> 0.02704834686 | AM20: ='Control panel'!$AA18/SUMPRODUCT('Control panel'!$AA$7:$AA$37,'Control panel'!AI$7:AI$37)*'Control panel'!AI18 -> 0.004220981633 | AN20: ='Control panel'!$AA18/SUMPRODUCT('Control panel'!$AA$7:$AA$37,'Control panel'!AJ$7:AJ$37)*'Control panel'!AJ18 -> 0 | AO20: ='Control panel'!$AA18/SUMPRODUCT('Control panel'!$AA$7:$AA$37,'Control panel'!AK$7:AK$37)*'Control panel'!AK18 -> 0 | AP20: ='Control panel'!$AA18/SUMPRODUCT('Control panel'!$AA$7:$AA$37,'Control panel'!AL$7:AL$37)*'Control panel'!AL18 -> 0.004220981633 | AQ20: ='Control panel'!$AA18/SUMPRODUCT('Control panel'!$AA$7:$AA$37,'Control panel'!AM$7:AM$37)*'Control panel'!AM18 -> 0 | AR20: ='Control panel'!$AA18/SUMPRODUCT('Control panel'!$AA$7:$AA$37,'Control panel'!AN$7:AN$37)*'Control panel'!AN18 -> 0 | AS20: ='Control panel'!$AA18/SUMPRODUCT('Control panel'!$AA$7:$AA$37,'Control panel'!AO$7:AO$37)*'Control panel'!AO18 -> 0 | AT20: ='Control panel'!$AA18/SUMPRODUCT('Control panel'!$AA$7:$AA$37,'Control panel'!AP$7:AP$37)*'Control panel'!AP18 -> 0.004220981633 | AU20: ='Control panel'!$AA18/SUMPRODUCT('Control panel'!$AA$7:$AA$37,'Control panel'!AQ$7:AQ$37)*'Control panel'!AQ18 -> 0.004220981633 | AV20: ='Control panel'!$AA18/SUMPRODUCT('Control panel'!$AA$7:$AA$37,'Control panel'!AR$7:AR$37)*'Control panel'!AR18 -> 0.004220981633 | AW20: ='Control panel'!$AA18/SUMPRODUCT('Control panel'!$AA$7:$AA$37,'Control panel'!AS$7:AS$37)*'Control panel'!AS18 -> 0.004220981633 | AX20: ='Control panel'!$AA18/SUMPRODUCT('Control panel'!$AA$7:$AA$37,'Control panel'!AT$7:AT$37)*'Control panel'!AT18 -> 0.004220981633
B21: ='Opex costs'!B19 -> Corporate Restructuring | C21: =_xlfn.XLOOKUP($B21,'BBM Costs'!$I$7:$I$25,'BBM Costs'!J$7:J$25)*_xlfn.XLOOKUP($B21,'Control panel'!$E$7:$E$25,'Control panel'!$F$7:$F$25) -> 0 | D21: =_xlfn.XLOOKUP($B21,'BBM Costs'!$I$7:$I$25,'BBM Costs'!K$7:K$25)*_xlfn.XLOOKUP($B21,'Control panel'!$E$7:$E$25,'Control panel'!$F$7:$F$25) -> 0 | E21: =_xlfn.XLOOKUP($B21,'BBM Costs'!$I$7:$I$25,'BBM Costs'!L$7:L$25)*_xlfn.XLOOKUP($B21,'Control panel'!$E$7:$E$25,'Control panel'!$F$7:$F$25) -> 0 | F21: =_xlfn.XLOOKUP($B21,'BBM Costs'!$I$7:$I$25,'BBM Costs'!M$7:M$25)*_xlfn.XLOOKUP($B21,'Control panel'!$E$7:$E$25,'Control panel'!$F$7:$F$25) -> 0 | G21: =_xlfn.XLOOKUP($B21,'BBM Costs'!$I$7:$I$25,'BBM Costs'!N$7:N$25)*_xlfn.XLOOKUP($B21,'Control panel'!$E$7:$E$25,'Control panel'!$F$7:$F$25) -> 0 | I21: Corporate Restructuring | J21: =C21*_xlfn.XLOOKUP($I21,'Control panel'!$E$7:$E$25,'Control panel'!$H$7:$H$25) -> 0 | K21: =D21*_xlfn.XLOOKUP($I21,'Control panel'!$E$7:$E$25,'Control panel'!$H$7:$H$25) -> 0 | L21: =E21*_xlfn.XLOOKUP($I21,'Control panel'!$E$7:$E$25,'Control panel'!$H$7:$H$25) -> 0 | M21: =F21*_xlfn.XLOOKUP($I21,'Control panel'!$E$7:$E$25,'Control panel'!$H$7:$H$25) -> 0 | N21: =G21*_xlfn.XLOOKUP($I21,'Control panel'!$E$7:$E$25,'Control panel'!$H$7:$H$25) -> 0 | P21: Corporate Restructuring | Q21: =C21*_xlfn.XLOOKUP($P21,'Control panel'!$E$7:$E$25,'Control panel'!$I$7:$I$25) -> 0 | R21: =D21*_xlfn.XLOOKUP($P21,'Control panel'!$E$7:$E$25,'Control panel'!$I$7:$I$25) -> 0 | S21: =E21*_xlfn.XLOOKUP($P21,'Control panel'!$E$7:$E$25,'Control panel'!$I$7:$I$25) -> 0 | T21: =F21*_xlfn.XLOOKUP($P21,'Control panel'!$E$7:$E$25,'Control panel'!$I$7:$I$25) -> 0 | U21: =G21*_xlfn.XLOOKUP($P21,'Control panel'!$E$7:$E$25,'Control panel'!$I$7:$I$25) -> 0 | W21: 2025-26 | X21: ='PTRM Data'!B19 -> Communications – Pilot Wires | Y21: =_xlfn.XLOOKUP(X21,'Control panel'!$L$7:$L$37,'Control panel'!$P$7:$P$37) -> 0 | Z21: 1.21385799 | AA21: =_xlfn.XLOOKUP(W21,'BBM Costs'!$Q$6:$U$6,_xlfn.XLOOKUP(X21,'BBM Costs'!$P$7:$P$37,'BBM Costs'!$Q$7:$U$37))*_xlfn.XLOOKUP(X21,'Control panel'!$L$7:$L$37,'Control panel'!$M$7:$M$37) -> 0 | AB21: =_xlfn.XLOOKUP(W21,'BBM Costs'!$X$6:$AB$6,_xlfn.XLOOKUP(X21,'BBM Costs'!$W$7:$W$37,'BBM Costs'!$X$7:$AB$37))*_xlfn.XLOOKUP(X21,'Control panel'!$S$7:$S$37,'Control panel'!$T$7:$T$37) -> 0 | AC21: 1.21385799 | AE21: ='PTRM Data'!B19 -> Communications – Pilot Wires | AF21: ='Control panel'!$AA19/SUMPRODUCT('Control panel'!$AA$7:$AA$37,'Control panel'!AB$7:AB$37)*'Control panel'!AB19 -> 0.01440960101 | AG21: ='Control panel'!$AA19/SUMPRODUCT('Control panel'!$AA$7:$AA$37,'Control panel'!AC$7:AC$37)*'Control panel'!AC19 -> 0.0145549617 | AH21: ='Control panel'!$AA19/SUMPRODUCT('Control panel'!$AA$7:$AA$37,'Control panel'!AD$7:AD$37)*'Control panel'!AD19 -> 0.01455361961 | AI21: ='Control panel'!$AA19/SUMPRODUCT('Control panel'!$AA$7:$AA$37,'Control panel'!AE$7:AE$37)*'Control panel'!AE19 -> 0 | AJ21: ='Control panel'!$AA19/SUMPRODUCT('Control panel'!$AA$7:$AA$37,'Control panel'!AF$7:AF$37)*'Control panel'!AF19 -> 0 | AK21: ='Control panel'!$AA19/SUMPRODUCT('Control panel'!$AA$7:$AA$37,'Control panel'!AG$7:AG$37)*'Control panel'!AG19 -> 0.01456825207 | AL21: ='Control panel'!$AA19/SUMPRODUCT('Control panel'!$AA$7:$AA$37,'Control panel'!AH$7:AH$37)*'Control panel'!AH19 -> 0.08372853117 | AM21: ='Control panel'!$AA19/SUMPRODUCT('Control panel'!$AA$7:$AA$37,'Control panel'!AI$7:AI$37)*'Control panel'!AI19 -> 0.01306610692 | AN21: ='Control panel'!$AA19/SUMPRODUCT('Control panel'!$AA$7:$AA$37,'Control panel'!AJ$7:AJ$37)*'Control panel'!AJ19 -> 0.01451730247 | AO21: ='Control panel'!$AA19/SUMPRODUCT('Control panel'!$AA$7:$AA$37,'Control panel'!AK$7:AK$37)*'Control panel'!AK19 -> 0.01439659841 | AP21: ='Control panel'!$AA19/SUMPRODUCT('Control panel'!$AA$7:$AA$37,'Control panel'!AL$7:AL$37)*'Control panel'!AL19 -> 0.01306610692 | AQ21: ='Control panel'!$AA19/SUMPRODUCT('Control panel'!$AA$7:$AA$37,'Control panel'!AM$7:AM$37)*'Control panel'!AM19 -> 0 | AR21: ='Control panel'!$AA19/SUMPRODUCT('Control panel'!$AA$7:$AA$37,'Control panel'!AN$7:AN$37)*'Control panel'!AN19 -> 0.01451730247 | AS21: ='Control panel'!$AA19/SUMPRODUCT('Control panel'!$AA$7:$AA$37,'Control panel'!AO$7:AO$37)*'Control panel'!AO19 -> 0.01451730247 | AT21: ='Control panel'!$AA19/SUMPRODUCT('Control panel'!$AA$7:$AA$37,'Control panel'!AP$7:AP$37)*'Control panel'!AP19 -> 0.01306610692 | AU21: ='Control panel'!$AA19/SUMPRODUCT('Control panel'!$AA$7:$AA$37,'Control panel'!AQ$7:AQ$37)*'Control panel'!AQ19 -> 0.01306610692 | AV21: ='Control panel'!$AA19/SUMPRODUCT('Control panel'!$AA$7:$AA$37,'Control panel'!AR$7:AR$37)*'Control panel'!AR19 -> 0.01306610692 | AW21: ='Control panel'!$AA19/SUMPRODUCT('Control panel'!$AA$7:$AA$37,'Control panel'!AS$7:AS$37)*'Control panel'!AS19 -> 0.01306610692 | AX21: ='Control panel'!$AA19/SUMPRODUCT('Control panel'!$AA$7:$AA$37,'Control panel'!AT$7:AT$37)*'Control panel'!AT19 -> 0.01306610692
B22: ='Opex costs'!B20 -> Corporate Allocations | C22: =_xlfn.XLOOKUP($B22,'BBM Costs'!$I$7:$I$25,'BBM Costs'!J$7:J$25)*_xlfn.XLOOKUP($B22,'Control panel'!$E$7:$E$25,'Control panel'!$F$7:$F$25) -> 0 | D22: =_xlfn.XLOOKUP($B22,'BBM Costs'!$I$7:$I$25,'BBM Costs'!K$7:K$25)*_xlfn.XLOOKUP($B22,'Control panel'!$E$7:$E$25,'Control panel'!$F$7:$F$25) -> 0 | E22: =_xlfn.XLOOKUP($B22,'BBM Costs'!$I$7:$I$25,'BBM Costs'!L$7:L$25)*_xlfn.XLOOKUP($B22,'Control panel'!$E$7:$E$25,'Control panel'!$F$7:$F$25) -> 0 | F22: =_xlfn.XLOOKUP($B22,'BBM Costs'!$I$7:$I$25,'BBM Costs'!M$7:M$25)*_xlfn.XLOOKUP($B22,'Control panel'!$E$7:$E$25,'Control panel'!$F$7:$F$25) -> 0 | G22: =_xlfn.XLOOKUP($B22,'BBM Costs'!$I$7:$I$25,'BBM Costs'!N$7:N$25)*_xlfn.XLOOKUP($B22,'Control panel'!$E$7:$E$25,'Control panel'!$F$7:$F$25) -> 0 | I22: Corporate Allocations | J22: =C22*_xlfn.XLOOKUP($I22,'Control panel'!$E$7:$E$25,'Control panel'!$H$7:$H$25) -> 0 | K22: =D22*_xlfn.XLOOKUP($I22,'Control panel'!$E$7:$E$25,'Control panel'!$H$7:$H$25) -> 0 | L22: =E22*_xlfn.XLOOKUP($I22,'Control panel'!$E$7:$E$25,'Control panel'!$H$7:$H$25) -> 0 | M22: =F22*_xlfn.XLOOKUP($I22,'Control panel'!$E$7:$E$25,'Control panel'!$H$7:$H$25) -> 0 | N22: =G22*_xlfn.XLOOKUP($I22,'Control panel'!$E$7:$E$25,'Control panel'!$H$7:$H$25) -> 0 | P22: Corporate Allocations | Q22: =C22*_xlfn.XLOOKUP($P22,'Control panel'!$E$7:$E$25,'Control panel'!$I$7:$I$25) -> 0 | R22: =D22*_xlfn.XLOOKUP($P22,'Control panel'!$E$7:$E$25,'Control panel'!$I$7:$I$25) -> 0 | S22: =E22*_xlfn.XLOOKUP($P22,'Control panel'!$E$7:$E$25,'Control panel'!$I$7:$I$25) -> 0 | T22: =F22*_xlfn.XLOOKUP($P22,'Control panel'!$E$7:$E$25,'Control panel'!$I$7:$I$25) -> 0 | U22: =G22*_xlfn.XLOOKUP($P22,'Control panel'!$E$7:$E$25,'Control panel'!$I$7:$I$25) -> 0
B23: EBSS | C23: =_xlfn.XLOOKUP($B23,'BBM Costs'!$I$7:$I$25,'BBM Costs'!J$7:J$25)*_xlfn.XLOOKUP($B23,'Control panel'!$E$7:$E$25,'Control panel'!$F$7:$F$25) -> 0 | D23: =_xlfn.XLOOKUP($B23,'BBM Costs'!$I$7:$I$25,'BBM Costs'!K$7:K$25)*_xlfn.XLOOKUP($B23,'Control panel'!$E$7:$E$25,'Control panel'!$F$7:$F$25) -> 0 | E23: =_xlfn.XLOOKUP($B23,'BBM Costs'!$I$7:$I$25,'BBM Costs'!L$7:L$25)*_xlfn.XLOOKUP($B23,'Control panel'!$E$7:$E$25,'Control panel'!$F$7:$F$25) -> 0 | F23: =_xlfn.XLOOKUP($B23,'BBM Costs'!$I$7:$I$25,'BBM Costs'!M$7:M$25)*_xlfn.XLOOKUP($B23,'Control panel'!$E$7:$E$25,'Control panel'!$F$7:$F$25) -> 0 | G23: =_xlfn.XLOOKUP($B23,'BBM Costs'!$I$7:$I$25,'BBM Costs'!N$7:N$25)*_xlfn.XLOOKUP($B23,'Control panel'!$E$7:$E$25,'Control panel'!$F$7:$F$25) -> 0 | I23: EBSS | J23: =C23*_xlfn.XLOOKUP($I23,'Control panel'!$E$7:$E$25,'Control panel'!$H$7:$H$25) -> 0 | K23: =D23*_xlfn.XLOOKUP($I23,'Control panel'!$E$7:$E$25,'Control panel'!$H$7:$H$25) -> 0 | L23: =E23*_xlfn.XLOOKUP($I23,'Control panel'!$E$7:$E$25,'Control panel'!$H$7:$H$25) -> 0 | M23: =F23*_xlfn.XLOOKUP($I23,'Control panel'!$E$7:$E$25,'Control panel'!$H$7:$H$25) -> 0 | N23: =G23*_xlfn.XLOOKUP($I23,'Control panel'!$E$7:$E$25,'Control panel'!$H$7:$H$25) -> 0 | P23: EBSS | Q23: =C23*_xlfn.XLOOKUP($P23,'Control panel'!$E$7:$E$25,'Control panel'!$I$7:$I$25) -> 0 | R23: =D23*_xlfn.XLOOKUP($P23,'Control panel'!$E$7:$E$25,'Control panel'!$I$7:$I$25) -> 0 | S23: =E23*_xlfn.XLOOKUP($P23,'Control panel'!$E$7:$E$25,'Control panel'!$I$7:$I$25) -> 0 | T23: =F23*_xlfn.XLOOKUP($P23,'Control panel'!$E$7:$E$25,'Control panel'!$I$7:$I$25) -> 0 | U23: =G23*_xlfn.XLOOKUP($P23,'Control panel'!$E$7:$E$25,'Control panel'!$I$7:$I$25) -> 0 | W23: 2025-26 | X23: ='PTRM Data'!B21 -> Land & Easements (System) - combined | Y23: =_xlfn.XLOOKUP(X23,'Control panel'!$L$7:$L$37,'Control panel'!$P$7:$P$37) -> 1 | Z23: 0.3246878117 | AA23: =_xlfn.XLOOKUP(W23,'BBM Costs'!$Q$6:$U$6,_xlfn.XLOOKUP(X23,'BBM Costs'!$P$7:$P$37,'BBM Costs'!$Q$7:$U$37))*_xlfn.XLOOKUP(X23,'Control panel'!$L$7:$L$37,'Control panel'!$M$7:$M$37) -> 0 | AB23: =_xlfn.XLOOKUP(W23,'BBM Costs'!$X$6:$AB$6,_xlfn.XLOOKUP(X23,'BBM Costs'!$W$7:$W$37,'BBM Costs'!$X$7:$AB$37))*_xlfn.XLOOKUP(X23,'Control panel'!$S$7:$S$37,'Control panel'!$T$7:$T$37) -> 0 | AC23: 0.3246878117 | AE23: ='PTRM Data'!B21 -> Land & Easements (System) - combined | AF23: ='Control panel'!$AA21/SUMPRODUCT('Control panel'!$AA$7:$AA$37,'Control panel'!AB$7:AB$37)*'Control panel'!AB21 -> 0.008322005649 | AG23: ='Control panel'!$AA21/SUMPRODUCT('Control panel'!$AA$7:$AA$37,'Control panel'!AC$7:AC$37)*'Control panel'!AC21 -> 0 | AH23: ='Control panel'!$AA21/SUMPRODUCT('Control panel'!$AA$7:$AA$37,'Control panel'!AD$7:AD$37)*'Control panel'!AD21 -> 0 | AI23: ='Control panel'!$AA21/SUMPRODUCT('Control panel'!$AA$7:$AA$37,'Control panel'!AE$7:AE$37)*'Control panel'!AE21 -> 0.0146129885 | AJ23: ='Control panel'!$AA21/SUMPRODUCT('Control panel'!$AA$7:$AA$37,'Control panel'!AF$7:AF$37)*'Control panel'!AF21 -> 0 | AK23: ='Control panel'!$AA21/SUMPRODUCT('Control panel'!$AA$7:$AA$37,'Control panel'!AG$7:AG$37)*'Control panel'!AG21 -> 0 | AL23: ='Control panel'!$AA21/SUMPRODUCT('Control panel'!$AA$7:$AA$37,'Control panel'!AH$7:AH$37)*'Control panel'!AH21 -> 0 | AM23: ='Control panel'!$AA21/SUMPRODUCT('Control panel'!$AA$7:$AA$37,'Control panel'!AI$7:AI$37)*'Control panel'!AI21 -> 0.007546094825 | AN23: ='Control panel'!$AA21/SUMPRODUCT('Control panel'!$AA$7:$AA$37,'Control panel'!AJ$7:AJ$37)*'Control panel'!AJ21 -> 0 | AO23: ='Control panel'!$AA21/SUMPRODUCT('Control panel'!$AA$7:$AA$37,'Control panel'!AK$7:AK$37)*'Control panel'!AK21 -> 0.008314496231 | AP23: ='Control panel'!$AA21/SUMPRODUCT('Control panel'!$AA$7:$AA$37,'Control panel'!AL$7:AL$37)*'Control panel'!AL21 -> 0.007546094825 | AQ23: ='Control panel'!$AA21/SUMPRODUCT('Control panel'!$AA$7:$AA$37,'Control panel'!AM$7:AM$37)*'Control panel'!AM21 -> 0 | AR23: ='Control panel'!$AA21/SUMPRODUCT('Control panel'!$AA$7:$AA$37,'Control panel'!AN$7:AN$37)*'Control panel'!AN21 -> 0 | AS23: ='Control panel'!$AA21/SUMPRODUCT('Control panel'!$AA$7:$AA$37,'Control panel'!AO$7:AO$37)*'Control panel'!AO21 -> 0 | AT23: ='Control panel'!$AA21/SUMPRODUCT('Control panel'!$AA$7:$AA$37,'Control panel'!AP$7:AP$37)*'Control panel'!AP21 -> 0.007546094825 | AU23: ='Control panel'!$AA21/SUMPRODUCT('Control panel'!$AA$7:$AA$37,'Control panel'!AQ$7:AQ$37)*'Control panel'!AQ21 -> 0.007546094825 | AV23: ='Control panel'!$AA21/SUMPRODUCT('Control panel'!$AA$7:$AA$37,'Control panel'!AR$7:AR$37)*'Control panel'!AR21 -> 0.007546094825 | AW23: ='Control panel'!$AA21/SUMPRODUCT('Control panel'!$AA$7:$AA$37,'Control panel'!AS$7:AS$37)*'Control panel'!AS21 -> 0.007546094825 | AX23: ='Control panel'!$AA21/SUMPRODUCT('Control panel'!$AA$7:$AA$37,'Control panel'!AT$7:AT$37)*'Control panel'!AT21 -> 0.007546094825
B24: CESS | C24: =_xlfn.XLOOKUP($B24,'BBM Costs'!$I$7:$I$25,'BBM Costs'!J$7:J$25)*_xlfn.XLOOKUP($B24,'Control panel'!$E$7:$E$25,'Control panel'!$F$7:$F$25) -> 0 | D24: =_xlfn.XLOOKUP($B24,'BBM Costs'!$I$7:$I$25,'BBM Costs'!K$7:K$25)*_xlfn.XLOOKUP($B24,'Control panel'!$E$7:$E$25,'Control panel'!$F$7:$F$25) -> 0 | E24: =_xlfn.XLOOKUP($B24,'BBM Costs'!$I$7:$I$25,'BBM Costs'!L$7:L$25)*_xlfn.XLOOKUP($B24,'Control panel'!$E$7:$E$25,'Control panel'!$F$7:$F$25) -> 0 | F24: =_xlfn.XLOOKUP($B24,'BBM Costs'!$I$7:$I$25,'BBM Costs'!M$7:M$25)*_xlfn.XLOOKUP($B24,'Control panel'!$E$7:$E$25,'Control panel'!$F$7:$F$25) -> 0 | G24: =_xlfn.XLOOKUP($B24,'BBM Costs'!$I$7:$I$25,'BBM Costs'!N$7:N$25)*_xlfn.XLOOKUP($B24,'Control panel'!$E$7:$E$25,'Control panel'!$F$7:$F$25) -> 0 | I24: CESS | J24: =C24*_xlfn.XLOOKUP($I24,'Control panel'!$E$7:$E$25,'Control panel'!$H$7:$H$25) -> 0 | K24: =D24*_xlfn.XLOOKUP($I24,'Control panel'!$E$7:$E$25,'Control panel'!$H$7:$H$25) -> 0 | L24: =E24*_xlfn.XLOOKUP($I24,'Control panel'!$E$7:$E$25,'Control panel'!$H$7:$H$25) -> 0 | M24: =F24*_xlfn.XLOOKUP($I24,'Control panel'!$E$7:$E$25,'Control panel'!$H$7:$H$25) -> 0 | N24: =G24*_xlfn.XLOOKUP($I24,'Control panel'!$E$7:$E$25,'Control panel'!$H$7:$H$25) -> 0 | P24: CESS | Q24: =C24*_xlfn.XLOOKUP($P24,'Control panel'!$E$7:$E$25,'Control panel'!$I$7:$I$25) -> 0 | R24: =D24*_xlfn.XLOOKUP($P24,'Control panel'!$E$7:$E$25,'Control panel'!$I$7:$I$25) -> 0 | S24: =E24*_xlfn.XLOOKUP($P24,'Control panel'!$E$7:$E$25,'Control panel'!$I$7:$I$25) -> 0 | T24: =F24*_xlfn.XLOOKUP($P24,'Control panel'!$E$7:$E$25,'Control panel'!$I$7:$I$25) -> 0 | U24: =G24*_xlfn.XLOOKUP($P24,'Control panel'!$E$7:$E$25,'Control panel'!$I$7:$I$25) -> 0 | W24: 2025-26 | X24: ='PTRM Data'!B22 -> Land Improvements | Y24: =_xlfn.XLOOKUP(X24,'Control panel'!$L$7:$L$37,'Control panel'!$P$7:$P$37) -> 1 | Z24: 0 | AA24: =_xlfn.XLOOKUP(W24,'BBM Costs'!$Q$6:$U$6,_xlfn.XLOOKUP(X24,'BBM Costs'!$P$7:$P$37,'BBM Costs'!$Q$7:$U$37))*_xlfn.XLOOKUP(X24,'Control panel'!$L$7:$L$37,'Control panel'!$M$7:$M$37) -> 0 | AB24: =_xlfn.XLOOKUP(W24,'BBM Costs'!$X$6:$AB$6,_xlfn.XLOOKUP(X24,'BBM Costs'!$W$7:$W$37,'BBM Costs'!$X$7:$AB$37))*_xlfn.XLOOKUP(X24,'Control panel'!$S$7:$S$37,'Control panel'!$T$7:$T$37) -> 0 | AC24: 0 | AE24: ='PTRM Data'!B22 -> Land Improvements | AF24: ='Control panel'!$AA22/SUMPRODUCT('Control panel'!$AA$7:$AA$37,'Control panel'!AB$7:AB$37)*'Control panel'!AB22 -> 0 | AG24: ='Control panel'!$AA22/SUMPRODUCT('Control panel'!$AA$7:$AA$37,'Control panel'!AC$7:AC$37)*'Control panel'!AC22 -> 0 | AH24: ='Control panel'!$AA22/SUMPRODUCT('Control panel'!$AA$7:$AA$37,'Control panel'!AD$7:AD$37)*'Control panel'!AD22 -> 0 | AI24: ='Control panel'!$AA22/SUMPRODUCT('Control panel'!$AA$7:$AA$37,'Control panel'!AE$7:AE$37)*'Control panel'!AE22 -> 0 | AJ24: ='Control panel'!$AA22/SUMPRODUCT('Control panel'!$AA$7:$AA$37,'Control panel'!AF$7:AF$37)*'Control panel'!AF22 -> 0 | AK24: ='Control panel'!$AA22/SUMPRODUCT('Control panel'!$AA$7:$AA$37,'Control panel'!AG$7:AG$37)*'Control panel'!AG22 -> 0 | AL24: ='Control panel'!$AA22/SUMPRODUCT('Control panel'!$AA$7:$AA$37,'Control panel'!AH$7:AH$37)*'Control panel'!AH22 -> 0 | AM24: ='Control panel'!$AA22/SUMPRODUCT('Control panel'!$AA$7:$AA$37,'Control panel'!AI$7:AI$37)*'Control panel'!AI22 -> 0.008872444187 | AN24: ='Control panel'!$AA22/SUMPRODUCT('Control panel'!$AA$7:$AA$37,'Control panel'!AJ$7:AJ$37)*'Control panel'!AJ22 -> 0 | AO24: ='Control panel'!$AA22/SUMPRODUCT('Control panel'!$AA$7:$AA$37,'Control panel'!AK$7:AK$37)*'Control panel'!AK22 -> 0 | AP24: ='Control panel'!$AA22/SUMPRODUCT('Control panel'!$AA$7:$AA$37,'Control panel'!AL$7:AL$37)*'Control panel'!AL22 -> 0.008872444187 | AQ24: ='Control panel'!$AA22/SUMPRODUCT('Control panel'!$AA$7:$AA$37,'Control panel'!AM$7:AM$37)*'Control panel'!AM22 -> 0 | AR24: ='Control panel'!$AA22/SUMPRODUCT('Control panel'!$AA$7:$AA$37,'Control panel'!AN$7:AN$37)*'Control panel'!AN22 -> 0 | AS24: ='Control panel'!$AA22/SUMPRODUCT('Control panel'!$AA$7:$AA$37,'Control panel'!AO$7:AO$37)*'Control panel'!AO22 -> 0 | AT24: ='Control panel'!$AA22/SUMPRODUCT('Control panel'!$AA$7:$AA$37,'Control panel'!AP$7:AP$37)*'Control panel'!AP22 -> 0.008872444187 | AU24: ='Control panel'!$AA22/SUMPRODUCT('Control panel'!$AA$7:$AA$37,'Control panel'!AQ$7:AQ$37)*'Control panel'!AQ22 -> 0.008872444187 | AV24: ='Control panel'!$AA22/SUMPRODUCT('Control panel'!$AA$7:$AA$37,'Control panel'!AR$7:AR$37)*'Control panel'!AR22 -> 0.008872444187 | AW24: ='Control panel'!$AA22/SUMPRODUCT('Control panel'!$AA$7:$AA$37,'Control panel'!AS$7:AS$37)*'Control panel'!AS22 -> 0.008872444187 | AX24: ='Control panel'!$AA22/SUMPRODUCT('Control panel'!$AA$7:$AA$37,'Control panel'!AT$7:AT$37)*'Control panel'!AT22 -> 0.008872444187
B25: Control period carryover | C25: =_xlfn.XLOOKUP($B25,'BBM Costs'!$I$7:$I$25,'BBM Costs'!J$7:J$25)*_xlfn.XLOOKUP($B25,'Control panel'!$E$7:$E$25,'Control panel'!$F$7:$F$25) -> 0 | D25: =_xlfn.XLOOKUP($B25,'BBM Costs'!$I$7:$I$25,'BBM Costs'!K$7:K$25)*_xlfn.XLOOKUP($B25,'Control panel'!$E$7:$E$25,'Control panel'!$F$7:$F$25) -> 0 | E25: =_xlfn.XLOOKUP($B25,'BBM Costs'!$I$7:$I$25,'BBM Costs'!L$7:L$25)*_xlfn.XLOOKUP($B25,'Control panel'!$E$7:$E$25,'Control panel'!$F$7:$F$25) -> 0 | F25: =_xlfn.XLOOKUP($B25,'BBM Costs'!$I$7:$I$25,'BBM Costs'!M$7:M$25)*_xlfn.XLOOKUP($B25,'Control panel'!$E$7:$E$25,'Control panel'!$F$7:$F$25) -> 0 | G25: =_xlfn.XLOOKUP($B25,'BBM Costs'!$I$7:$I$25,'BBM Costs'!N$7:N$25)*_xlfn.XLOOKUP($B25,'Control panel'!$E$7:$E$25,'Control panel'!$F$7:$F$25) -> 0 | I25: Control period carryover | J25: =C25*_xlfn.XLOOKUP($I25,'Control panel'!$E$7:$E$25,'Control panel'!$H$7:$H$25) -> 0 | K25: =D25*_xlfn.XLOOKUP($I25,'Control panel'!$E$7:$E$25,'Control panel'!$H$7:$H$25) -> 0 | L25: =E25*_xlfn.XLOOKUP($I25,'Control panel'!$E$7:$E$25,'Control panel'!$H$7:$H$25) -> 0 | M25: =F25*_xlfn.XLOOKUP($I25,'Control panel'!$E$7:$E$25,'Control panel'!$H$7:$H$25) -> 0 | N25: =G25*_xlfn.XLOOKUP($I25,'Control panel'!$E$7:$E$25,'Control panel'!$H$7:$H$25) -> 0 | P25: Control period carryover | Q25: =C25*_xlfn.XLOOKUP($P25,'Control panel'!$E$7:$E$25,'Control panel'!$I$7:$I$25) -> 0 | R25: =D25*_xlfn.XLOOKUP($P25,'Control panel'!$E$7:$E$25,'Control panel'!$I$7:$I$25) -> 0 | S25: =E25*_xlfn.XLOOKUP($P25,'Control panel'!$E$7:$E$25,'Control panel'!$I$7:$I$25) -> 0 | T25: =F25*_xlfn.XLOOKUP($P25,'Control panel'!$E$7:$E$25,'Control panel'!$I$7:$I$25) -> 0 | U25: =G25*_xlfn.XLOOKUP($P25,'Control panel'!$E$7:$E$25,'Control panel'!$I$7:$I$25) -> 0 | W25: 2025-26 | X25: ='PTRM Data'!B23 -> Control Centre - SCADA | Y25: =_xlfn.XLOOKUP(X25,'Control panel'!$L$7:$L$37,'Control panel'!$P$7:$P$37) -> 1 | Z25: 0.169293803 | AA25: =_xlfn.XLOOKUP(W25,'BBM Costs'!$Q$6:$U$6,_xlfn.XLOOKUP(X25,'BBM Costs'!$P$7:$P$37,'BBM Costs'!$Q$7:$U$37))*_xlfn.XLOOKUP(X25,'Control panel'!$L$7:$L$37,'Control panel'!$M$7:$M$37) -> 0 | AB25: =_xlfn.XLOOKUP(W25,'BBM Costs'!$X$6:$AB$6,_xlfn.XLOOKUP(X25,'BBM Costs'!$W$7:$W$37,'BBM Costs'!$X$7:$AB$37))*_xlfn.XLOOKUP(X25,'Control panel'!$S$7:$S$37,'Control panel'!$T$7:$T$37) -> 0 | AC25: 0.169293803 | AE25: ='PTRM Data'!B23 -> Control Centre - SCADA | AF25: ='Control panel'!$AA23/SUMPRODUCT('Control panel'!$AA$7:$AA$37,'Control panel'!AB$7:AB$37)*'Control panel'!AB23 -> 0.002476889678 | AG25: ='Control panel'!$AA23/SUMPRODUCT('Control panel'!$AA$7:$AA$37,'Control panel'!AC$7:AC$37)*'Control panel'!AC23 -> 0 | AH25: ='Control panel'!$AA23/SUMPRODUCT('Control panel'!$AA$7:$AA$37,'Control panel'!AD$7:AD$37)*'Control panel'!AD23 -> 0 | AI25: ='Control panel'!$AA23/SUMPRODUCT('Control panel'!$AA$7:$AA$37,'Control panel'!AE$7:AE$37)*'Control panel'!AE23 -> 0 | AJ25: ='Control panel'!$AA23/SUMPRODUCT('Control panel'!$AA$7:$AA$37,'Control panel'!AF$7:AF$37)*'Control panel'!AF23 -> 0 | AK25: ='Control panel'!$AA23/SUMPRODUCT('Control panel'!$AA$7:$AA$37,'Control panel'!AG$7:AG$37)*'Control panel'!AG23 -> 0 | AL25: ='Control panel'!$AA23/SUMPRODUCT('Control panel'!$AA$7:$AA$37,'Control panel'!AH$7:AH$37)*'Control panel'!AH23 -> 0 | AM25: ='Control panel'!$AA23/SUMPRODUCT('Control panel'!$AA$7:$AA$37,'Control panel'!AI$7:AI$37)*'Control panel'!AI23 -> 0.002245954302 | AN25: ='Control panel'!$AA23/SUMPRODUCT('Control panel'!$AA$7:$AA$37,'Control panel'!AJ$7:AJ$37)*'Control panel'!AJ23 -> 0.002495402656 | AO25: ='Control panel'!$AA23/SUMPRODUCT('Control panel'!$AA$7:$AA$37,'Control panel'!AK$7:AK$37)*'Control panel'!AK23 -> 0.00247465464 | AP25: ='Control panel'!$AA23/SUMPRODUCT('Control panel'!$AA$7:$AA$37,'Control panel'!AL$7:AL$37)*'Control panel'!AL23 -> 0.002245954302 | AQ25: ='Control panel'!$AA23/SUMPRODUCT('Control panel'!$AA$7:$AA$37,'Control panel'!AM$7:AM$37)*'Control panel'!AM23 -> 0 | AR25: ='Control panel'!$AA23/SUMPRODUCT('Control panel'!$AA$7:$AA$37,'Control panel'!AN$7:AN$37)*'Control panel'!AN23 -> 0.002495402656 | AS25: ='Control panel'!$AA23/SUMPRODUCT('Control panel'!$AA$7:$AA$37,'Control panel'!AO$7:AO$37)*'Control panel'!AO23 -> 0.002495402656 | AT25: ='Control panel'!$AA23/SUMPRODUCT('Control panel'!$AA$7:$AA$37,'Control panel'!AP$7:AP$37)*'Control panel'!AP23 -> 0.002245954302 | AU25: ='Control panel'!$AA23/SUMPRODUCT('Control panel'!$AA$7:$AA$37,'Control panel'!AQ$7:AQ$37)*'Control panel'!AQ23 -> 0.002245954302 | AV25: ='Control panel'!$AA23/SUMPRODUCT('Control panel'!$AA$7:$AA$37,'Control panel'!AR$7:AR$37)*'Control panel'!AR23 -> 0.002245954302 | AW25: ='Control panel'!$AA23/SUMPRODUCT('Control panel'!$AA$7:$AA$37,'Control panel'!AS$7:AS$37)*'Control panel'!AS23 -> 0.002245954302 | AX25: ='Control panel'!$AA23/SUMPRODUCT('Control panel'!$AA$7:$AA$37,'Control panel'!AT$7:AT$37)*'Control panel'!AT23 -> 0.002245954302
B26: Shared asset decrements | C26: =_xlfn.XLOOKUP($B26,'BBM Costs'!$I$7:$I$25,'BBM Costs'!J$7:J$25)*_xlfn.XLOOKUP($B26,'Control panel'!$E$7:$E$25,'Control panel'!$F$7:$F$25) -> 0 | D26: =_xlfn.XLOOKUP($B26,'BBM Costs'!$I$7:$I$25,'BBM Costs'!K$7:K$25)*_xlfn.XLOOKUP($B26,'Control panel'!$E$7:$E$25,'Control panel'!$F$7:$F$25) -> 0 | E26: =_xlfn.XLOOKUP($B26,'BBM Costs'!$I$7:$I$25,'BBM Costs'!L$7:L$25)*_xlfn.XLOOKUP($B26,'Control panel'!$E$7:$E$25,'Control panel'!$F$7:$F$25) -> 0 | F26: =_xlfn.XLOOKUP($B26,'BBM Costs'!$I$7:$I$25,'BBM Costs'!M$7:M$25)*_xlfn.XLOOKUP($B26,'Control panel'!$E$7:$E$25,'Control panel'!$F$7:$F$25) -> 0 | G26: =_xlfn.XLOOKUP($B26,'BBM Costs'!$I$7:$I$25,'BBM Costs'!N$7:N$25)*_xlfn.XLOOKUP($B26,'Control panel'!$E$7:$E$25,'Control panel'!$F$7:$F$25) -> 0 | I26: Shared asset decrements | J26: =C26*_xlfn.XLOOKUP($I26,'Control panel'!$E$7:$E$25,'Control panel'!$H$7:$H$25) -> 0 | K26: =D26*_xlfn.XLOOKUP($I26,'Control panel'!$E$7:$E$25,'Control panel'!$H$7:$H$25) -> 0 | L26: =E26*_xlfn.XLOOKUP($I26,'Control panel'!$E$7:$E$25,'Control panel'!$H$7:$H$25) -> 0 | M26: =F26*_xlfn.XLOOKUP($I26,'Control panel'!$E$7:$E$25,'Control panel'!$H$7:$H$25) -> 0 | N26: =G26*_xlfn.XLOOKUP($I26,'Control panel'!$E$7:$E$25,'Control panel'!$H$7:$H$25) -> 0 | P26: Shared asset decrements | Q26: =C26*_xlfn.XLOOKUP($P26,'Control panel'!$E$7:$E$25,'Control panel'!$I$7:$I$25) -> 0 | R26: =D26*_xlfn.XLOOKUP($P26,'Control panel'!$E$7:$E$25,'Control panel'!$I$7:$I$25) -> 0 | S26: =E26*_xlfn.XLOOKUP($P26,'Control panel'!$E$7:$E$25,'Control panel'!$I$7:$I$25) -> 0 | T26: =F26*_xlfn.XLOOKUP($P26,'Control panel'!$E$7:$E$25,'Control panel'!$I$7:$I$25) -> 0 | U26: =G26*_xlfn.XLOOKUP($P26,'Control panel'!$E$7:$E$25,'Control panel'!$I$7:$I$25) -> 0 | W26: 2025-26 | X26: ='PTRM Data'!B24 -> Other Equipment | Y26: =_xlfn.XLOOKUP(X26,'Control panel'!$L$7:$L$37,'Control panel'!$P$7:$P$37) -> 1 | Z26: 0.008985293804 | AA26: =_xlfn.XLOOKUP(W26,'BBM Costs'!$Q$6:$U$6,_xlfn.XLOOKUP(X26,'BBM Costs'!$P$7:$P$37,'BBM Costs'!$Q$7:$U$37))*_xlfn.XLOOKUP(X26,'Control panel'!$L$7:$L$37,'Control panel'!$M$7:$M$37) -> 0 | AB26: =_xlfn.XLOOKUP(W26,'BBM Costs'!$X$6:$AB$6,_xlfn.XLOOKUP(X26,'BBM Costs'!$W$7:$W$37,'BBM Costs'!$X$7:$AB$37))*_xlfn.XLOOKUP(X26,'Control panel'!$S$7:$S$37,'Control panel'!$T$7:$T$37) -> 0 | AC26: 0.008985293804 | AE26: ='PTRM Data'!B24 -> Other Equipment | AF26: ='Control panel'!$AA24/SUMPRODUCT('Control panel'!$AA$7:$AA$37,'Control panel'!AB$7:AB$37)*'Control panel'!AB24 -> 9.129635223e-05 | AG26: ='Control panel'!$AA24/SUMPRODUCT('Control panel'!$AA$7:$AA$37,'Control panel'!AC$7:AC$37)*'Control panel'!AC24 -> 0 | AH26: ='Control panel'!$AA24/SUMPRODUCT('Control panel'!$AA$7:$AA$37,'Control panel'!AD$7:AD$37)*'Control panel'!AD24 -> 9.220882528e-05 | AI26: ='Control panel'!$AA24/SUMPRODUCT('Control panel'!$AA$7:$AA$37,'Control panel'!AE$7:AE$37)*'Control panel'!AE24 -> 0 | AJ26: ='Control panel'!$AA24/SUMPRODUCT('Control panel'!$AA$7:$AA$37,'Control panel'!AF$7:AF$37)*'Control panel'!AF24 -> 0 | AK26: ='Control panel'!$AA24/SUMPRODUCT('Control panel'!$AA$7:$AA$37,'Control panel'!AG$7:AG$37)*'Control panel'!AG24 -> 0 | AL26: ='Control panel'!$AA24/SUMPRODUCT('Control panel'!$AA$7:$AA$37,'Control panel'!AH$7:AH$37)*'Control panel'!AH24 -> 0 | AM26: ='Control panel'!$AA24/SUMPRODUCT('Control panel'!$AA$7:$AA$37,'Control panel'!AI$7:AI$37)*'Control panel'!AI24 -> 8.278424219e-05 | AN26: ='Control panel'!$AA24/SUMPRODUCT('Control panel'!$AA$7:$AA$37,'Control panel'!AJ$7:AJ$37)*'Control panel'!AJ24 -> 9.197872713e-05 | AO26: ='Control panel'!$AA24/SUMPRODUCT('Control panel'!$AA$7:$AA$37,'Control panel'!AK$7:AK$37)*'Control panel'!AK24 -> 9.121397035e-05 | AP26: ='Control panel'!$AA24/SUMPRODUCT('Control panel'!$AA$7:$AA$37,'Control panel'!AL$7:AL$37)*'Control panel'!AL24 -> 8.278424219e-05 | AQ26: ='Control panel'!$AA24/SUMPRODUCT('Control panel'!$AA$7:$AA$37,'Control panel'!AM$7:AM$37)*'Control panel'!AM24 -> 0.002839457774 | AR26: ='Control panel'!$AA24/SUMPRODUCT('Control panel'!$AA$7:$AA$37,'Control panel'!AN$7:AN$37)*'Control panel'!AN24 -> 9.197872713e-05 | AS26: ='Control panel'!$AA24/SUMPRODUCT('Control panel'!$AA$7:$AA$37,'Control panel'!AO$7:AO$37)*'Control panel'!AO24 -> 9.197872713e-05 | AT26: ='Control panel'!$AA24/SUMPRODUCT('Control panel'!$AA$7:$AA$37,'Control panel'!AP$7:AP$37)*'Control panel'!AP24 -> 8.278424219e-05 | AU26: ='Control panel'!$AA24/SUMPRODUCT('Control panel'!$AA$7:$AA$37,'Control panel'!AQ$7:AQ$37)*'Control panel'!AQ24 -> 8.278424219e-05 | AV26: ='Control panel'!$AA24/SUMPRODUCT('Control panel'!$AA$7:$AA$37,'Control panel'!AR$7:AR$37)*'Control panel'!AR24 -> 8.278424219e-05 | AW26: ='Control panel'!$AA24/SUMPRODUCT('Control panel'!$AA$7:$AA$37,'Control panel'!AS$7:AS$37)*'Control panel'!AS24 -> 8.278424219e-05 | AX26: ='Control panel'!$AA24/SUMPRODUCT('Control panel'!$AA$7:$AA$37,'Control panel'!AT$7:AT$37)*'Control panel'!AT24 -> 8.278424219e-05
B27: DMIA | C27: =_xlfn.XLOOKUP($B27,'BBM Costs'!$I$7:$I$25,'BBM Costs'!J$7:J$25)*_xlfn.XLOOKUP($B27,'Control panel'!$E$7:$E$25,'Control panel'!$F$7:$F$25) -> 0 | D27: =_xlfn.XLOOKUP($B27,'BBM Costs'!$I$7:$I$25,'BBM Costs'!K$7:K$25)*_xlfn.XLOOKUP($B27,'Control panel'!$E$7:$E$25,'Control panel'!$F$7:$F$25) -> 0 | E27: =_xlfn.XLOOKUP($B27,'BBM Costs'!$I$7:$I$25,'BBM Costs'!L$7:L$25)*_xlfn.XLOOKUP($B27,'Control panel'!$E$7:$E$25,'Control panel'!$F$7:$F$25) -> 0 | F27: =_xlfn.XLOOKUP($B27,'BBM Costs'!$I$7:$I$25,'BBM Costs'!M$7:M$25)*_xlfn.XLOOKUP($B27,'Control panel'!$E$7:$E$25,'Control panel'!$F$7:$F$25) -> 0 | G27: =_xlfn.XLOOKUP($B27,'BBM Costs'!$I$7:$I$25,'BBM Costs'!N$7:N$25)*_xlfn.XLOOKUP($B27,'Control panel'!$E$7:$E$25,'Control panel'!$F$7:$F$25) -> 0 | I27: DMIA | J27: =C27*_xlfn.XLOOKUP($I27,'Control panel'!$E$7:$E$25,'Control panel'!$H$7:$H$25) -> 0 | K27: =D27*_xlfn.XLOOKUP($I27,'Control panel'!$E$7:$E$25,'Control panel'!$H$7:$H$25) -> 0 | L27: =E27*_xlfn.XLOOKUP($I27,'Control panel'!$E$7:$E$25,'Control panel'!$H$7:$H$25) -> 0 | M27: =F27*_xlfn.XLOOKUP($I27,'Control panel'!$E$7:$E$25,'Control panel'!$H$7:$H$25) -> 0 | N27: =G27*_xlfn.XLOOKUP($I27,'Control panel'!$E$7:$E$25,'Control panel'!$H$7:$H$25) -> 0 | P27: DMIA | Q27: =C27*_xlfn.XLOOKUP($P27,'Control panel'!$E$7:$E$25,'Control panel'!$I$7:$I$25) -> 0 | R27: =D27*_xlfn.XLOOKUP($P27,'Control panel'!$E$7:$E$25,'Control panel'!$I$7:$I$25) -> 0 | S27: =E27*_xlfn.XLOOKUP($P27,'Control panel'!$E$7:$E$25,'Control panel'!$I$7:$I$25) -> 0 | T27: =F27*_xlfn.XLOOKUP($P27,'Control panel'!$E$7:$E$25,'Control panel'!$I$7:$I$25) -> 0 | U27: =G27*_xlfn.XLOOKUP($P27,'Control panel'!$E$7:$E$25,'Control panel'!$I$7:$I$25) -> 0 | W27: 2025-26 | X27: ='PTRM Data'!B25 -> Generation Assets | Y27: =_xlfn.XLOOKUP(X27,'Control panel'!$L$7:$L$37,'Control panel'!$P$7:$P$37) -> 1 | Z27: 0.1139834518 | AA27: =_xlfn.XLOOKUP(W27,'BBM Costs'!$Q$6:$U$6,_xlfn.XLOOKUP(X27,'BBM Costs'!$P$7:$P$37,'BBM Costs'!$Q$7:$U$37))*_xlfn.XLOOKUP(X27,'Control panel'!$L$7:$L$37,'Control panel'!$M$7:$M$37) -> 0 | AB27: =_xlfn.XLOOKUP(W27,'BBM Costs'!$X$6:$AB$6,_xlfn.XLOOKUP(X27,'BBM Costs'!$W$7:$W$37,'BBM Costs'!$X$7:$AB$37))*_xlfn.XLOOKUP(X27,'Control panel'!$S$7:$S$37,'Control panel'!$T$7:$T$37) -> 0 | AC27: 0.1139834518 | AE27: ='PTRM Data'!B25 -> Generation Assets | AF27: ='Control panel'!$AA25/SUMPRODUCT('Control panel'!$AA$7:$AA$37,'Control panel'!AB$7:AB$37)*'Control panel'!AB25 -> 0.0009971506718 | AG27: ='Control panel'!$AA25/SUMPRODUCT('Control panel'!$AA$7:$AA$37,'Control panel'!AC$7:AC$37)*'Control panel'!AC25 -> 0.001007209695 | AH27: ='Control panel'!$AA25/SUMPRODUCT('Control panel'!$AA$7:$AA$37,'Control panel'!AD$7:AD$37)*'Control panel'!AD25 -> 0.001007116822 | AI27: ='Control panel'!$AA25/SUMPRODUCT('Control panel'!$AA$7:$AA$37,'Control panel'!AE$7:AE$37)*'Control panel'!AE25 -> 0 | AJ27: ='Control panel'!$AA25/SUMPRODUCT('Control panel'!$AA$7:$AA$37,'Control panel'!AF$7:AF$37)*'Control panel'!AF25 -> 0 | AK27: ='Control panel'!$AA25/SUMPRODUCT('Control panel'!$AA$7:$AA$37,'Control panel'!AG$7:AG$37)*'Control panel'!AG25 -> 0.001008129394 | AL27: ='Control panel'!$AA25/SUMPRODUCT('Control panel'!$AA$7:$AA$37,'Control panel'!AH$7:AH$37)*'Control panel'!AH25 -> 0.005794050858 | AM27: ='Control panel'!$AA25/SUMPRODUCT('Control panel'!$AA$7:$AA$37,'Control panel'!AI$7:AI$37)*'Control panel'!AI25 -> 0.0009041802952 | AN27: ='Control panel'!$AA25/SUMPRODUCT('Control panel'!$AA$7:$AA$37,'Control panel'!AJ$7:AJ$37)*'Control panel'!AJ25 -> 0.00100460366 | AO27: ='Control panel'!$AA25/SUMPRODUCT('Control panel'!$AA$7:$AA$37,'Control panel'!AK$7:AK$37)*'Control panel'!AK25 -> 0.0009962508862 | AP27: ='Control panel'!$AA25/SUMPRODUCT('Control panel'!$AA$7:$AA$37,'Control panel'!AL$7:AL$37)*'Control panel'!AL25 -> 0.0009041802952 | AQ27: ='Control panel'!$AA25/SUMPRODUCT('Control panel'!$AA$7:$AA$37,'Control panel'!AM$7:AM$37)*'Control panel'!AM25 -> 0.03101292832 | AR27: ='Control panel'!$AA25/SUMPRODUCT('Control panel'!$AA$7:$AA$37,'Control panel'!AN$7:AN$37)*'Control panel'!AN25 -> 0.00100460366 | AS27: ='Control panel'!$AA25/SUMPRODUCT('Control panel'!$AA$7:$AA$37,'Control panel'!AO$7:AO$37)*'Control panel'!AO25 -> 0.00100460366 | AT27: ='Control panel'!$AA25/SUMPRODUCT('Control panel'!$AA$7:$AA$37,'Control panel'!AP$7:AP$37)*'Control panel'!AP25 -> 0.0009041802952 | AU27: ='Control panel'!$AA25/SUMPRODUCT('Control panel'!$AA$7:$AA$37,'Control panel'!AQ$7:AQ$37)*'Control panel'!AQ25 -> 0.0009041802952 | AV27: ='Control panel'!$AA25/SUMPRODUCT('Control panel'!$AA$7:$AA$37,'Control panel'!AR$7:AR$37)*'Control panel'!AR25 -> 0.0009041802952 | AW27: ='Control panel'!$AA25/SUMPRODUCT('Control panel'!$AA$7:$AA$37,'Control panel'!AS$7:AS$37)*'Control panel'!AS25 -> 0.0009041802952 | AX27: ='Control panel'!$AA25/SUMPRODUCT('Control panel'!$AA$7:$AA$37,'Control panel'!AT$7:AT$37)*'Control panel'!AT25 -> 0.0009041802952
W28: 2025-26 | X28: ='PTRM Data'!B26 -> Motor Vehicles | Y28: =_xlfn.XLOOKUP(X28,'Control panel'!$L$7:$L$37,'Control panel'!$P$7:$P$37) -> 1 | Z28: 0 | AA28: =_xlfn.XLOOKUP(W28,'BBM Costs'!$Q$6:$U$6,_xlfn.XLOOKUP(X28,'BBM Costs'!$P$7:$P$37,'BBM Costs'!$Q$7:$U$37))*_xlfn.XLOOKUP(X28,'Control panel'!$L$7:$L$37,'Control panel'!$M$7:$M$37) -> 0 | AB28: =_xlfn.XLOOKUP(W28,'BBM Costs'!$X$6:$AB$6,_xlfn.XLOOKUP(X28,'BBM Costs'!$W$7:$W$37,'BBM Costs'!$X$7:$AB$37))*_xlfn.XLOOKUP(X28,'Control panel'!$S$7:$S$37,'Control panel'!$T$7:$T$37) -> 0 | AC28: 0 | AE28: ='PTRM Data'!B26 -> Motor Vehicles | AF28: ='Control panel'!$AA26/SUMPRODUCT('Control panel'!$AA$7:$AA$37,'Control panel'!AB$7:AB$37)*'Control panel'!AB26 -> 0 | AG28: ='Control panel'!$AA26/SUMPRODUCT('Control panel'!$AA$7:$AA$37,'Control panel'!AC$7:AC$37)*'Control panel'!AC26 -> 0 | AH28: ='Control panel'!$AA26/SUMPRODUCT('Control panel'!$AA$7:$AA$37,'Control panel'!AD$7:AD$37)*'Control panel'!AD26 -> 0 | AI28: ='Control panel'!$AA26/SUMPRODUCT('Control panel'!$AA$7:$AA$37,'Control panel'!AE$7:AE$37)*'Control panel'!AE26 -> 0 | AJ28: ='Control panel'!$AA26/SUMPRODUCT('Control panel'!$AA$7:$AA$37,'Control panel'!AF$7:AF$37)*'Control panel'!AF26 -> 0 | AK28: ='Control panel'!$AA26/SUMPRODUCT('Control panel'!$AA$7:$AA$37,'Control panel'!AG$7:AG$37)*'Control panel'!AG26 -> 0 | AL28: ='Control panel'!$AA26/SUMPRODUCT('Control panel'!$AA$7:$AA$37,'Control panel'!AH$7:AH$37)*'Control panel'!AH26 -> 0 | AM28: ='Control panel'!$AA26/SUMPRODUCT('Control panel'!$AA$7:$AA$37,'Control panel'!AI$7:AI$37)*'Control panel'!AI26 -> 0.01072155756 | AN28: ='Control panel'!$AA26/SUMPRODUCT('Control panel'!$AA$7:$AA$37,'Control panel'!AJ$7:AJ$37)*'Control panel'!AJ26 -> 0 | AO28: ='Control panel'!$AA26/SUMPRODUCT('Control panel'!$AA$7:$AA$37,'Control panel'!AK$7:AK$37)*'Control panel'!AK26 -> 0 | AP28: ='Control panel'!$AA26/SUMPRODUCT('Control panel'!$AA$7:$AA$37,'Control panel'!AL$7:AL$37)*'Control panel'!AL26 -> 0.01072155756 | AQ28: ='Control panel'!$AA26/SUMPRODUCT('Control panel'!$AA$7:$AA$37,'Control panel'!AM$7:AM$37)*'Control panel'!AM26 -> 0 | AR28: ='Control panel'!$AA26/SUMPRODUCT('Control panel'!$AA$7:$AA$37,'Control panel'!AN$7:AN$37)*'Control panel'!AN26 -> 0 | AS28: ='Control panel'!$AA26/SUMPRODUCT('Control panel'!$AA$7:$AA$37,'Control panel'!AO$7:AO$37)*'Control panel'!AO26 -> 0 | AT28: ='Control panel'!$AA26/SUMPRODUCT('Control panel'!$AA$7:$AA$37,'Control panel'!AP$7:AP$37)*'Control panel'!AP26 -> 0.01072155756 | AU28: ='Control panel'!$AA26/SUMPRODUCT('Control panel'!$AA$7:$AA$37,'Control panel'!AQ$7:AQ$37)*'Control panel'!AQ26 -> 0.01072155756 | AV28: ='Control panel'!$AA26/SUMPRODUCT('Control panel'!$AA$7:$AA$37,'Control panel'!AR$7:AR$37)*'Control panel'!AR26 -> 0.01072155756 | AW28: ='Control panel'!$AA26/SUMPRODUCT('Control panel'!$AA$7:$AA$37,'Control panel'!AS$7:AS$37)*'Control panel'!AS26 -> 0.01072155756 | AX28: ='Control panel'!$AA26/SUMPRODUCT('Control panel'!$AA$7:$AA$37,'Control panel'!AT$7:AT$37)*'Control panel'!AT26 -> 0.01072155756
B29: Total | C29: =SUM(C9:C27) -> 144.6690003 | D29: =SUM(D9:D27) -> 147.0069223 | E29: 149.9001631 | F29: 155.2559912 | G29: 159.1416283 | I29: Total | J29: =SUM(J9:J27) -> 59.8300291 | K29: =SUM(K9:K27) -> 60.7969117 | L29: 61.99345473 | M29: 64.20843756 | N29: 65.81540089 | P29: Total | Q29: =SUM(Q9:Q27) -> 84.8389712 | R29: =SUM(R9:R27) -> 86.21001056 | S29: 87.90670838 | T29: 91.04755366 | U29: 93.3262274 | W29: 2025-26 | X29: ='PTRM Data'!B27 -> Plant & Equipment | Y29: =_xlfn.XLOOKUP(X29,'Control panel'!$L$7:$L$37,'Control panel'!$P$7:$P$37) -> 1 | Z29: 0 | AA29: =_xlfn.XLOOKUP(W29,'BBM Costs'!$Q$6:$U$6,_xlfn.XLOOKUP(X29,'BBM Costs'!$P$7:$P$37,'BBM Costs'!$Q$7:$U$37))*_xlfn.XLOOKUP(X29,'Control panel'!$L$7:$L$37,'Control panel'!$M$7:$M$37) -> 0 | AB29: =_xlfn.XLOOKUP(W29,'BBM Costs'!$X$6:$AB$6,_xlfn.XLOOKUP(X29,'BBM Costs'!$W$7:$W$37,'BBM Costs'!$X$7:$AB$37))*_xlfn.XLOOKUP(X29,'Control panel'!$S$7:$S$37,'Control panel'!$T$7:$T$37) -> 0 | AC29: 0 | AE29: ='PTRM Data'!B27 -> Plant & Equipment | AF29: ='Control panel'!$AA27/SUMPRODUCT('Control panel'!$AA$7:$AA$37,'Control panel'!AB$7:AB$37)*'Control panel'!AB27 -> 0 | AG29: ='Control panel'!$AA27/SUMPRODUCT('Control panel'!$AA$7:$AA$37,'Control panel'!AC$7:AC$37)*'Control panel'!AC27 -> 0 | AH29: ='Control panel'!$AA27/SUMPRODUCT('Control panel'!$AA$7:$AA$37,'Control panel'!AD$7:AD$37)*'Control panel'!AD27 -> 0 | AI29: ='Control panel'!$AA27/SUMPRODUCT('Control panel'!$AA$7:$AA$37,'Control panel'!AE$7:AE$37)*'Control panel'!AE27 -> 0 | AJ29: ='Control panel'!$AA27/SUMPRODUCT('Control panel'!$AA$7:$AA$37,'Control panel'!AF$7:AF$37)*'Control panel'!AF27 -> 0 | AK29: ='Control panel'!$AA27/SUMPRODUCT('Control panel'!$AA$7:$AA$37,'Control panel'!AG$7:AG$37)*'Control panel'!AG27 -> 0 | AL29: ='Control panel'!$AA27/SUMPRODUCT('Control panel'!$AA$7:$AA$37,'Control panel'!AH$7:AH$37)*'Control panel'!AH27 -> 0 | AM29: ='Control panel'!$AA27/SUMPRODUCT('Control panel'!$AA$7:$AA$37,'Control panel'!AI$7:AI$37)*'Control panel'!AI27 -> 0.002745953121 | AN29: ='Control panel'!$AA27/SUMPRODUCT('Control panel'!$AA$7:$AA$37,'Control panel'!AJ$7:AJ$37)*'Control panel'!AJ27 -> 0 | AO29: ='Control panel'!$AA27/SUMPRODUCT('Control panel'!$AA$7:$AA$37,'Control panel'!AK$7:AK$37)*'Control panel'!AK27 -> 0 | AP29: ='Control panel'!$AA27/SUMPRODUCT('Control panel'!$AA$7:$AA$37,'Control panel'!AL$7:AL$37)*'Control panel'!AL27 -> 0.002745953121 | AQ29: ='Control panel'!$AA27/SUMPRODUCT('Control panel'!$AA$7:$AA$37,'Control panel'!AM$7:AM$37)*'Control panel'!AM27 -> 0 | AR29: ='Control panel'!$AA27/SUMPRODUCT('Control panel'!$AA$7:$AA$37,'Control panel'!AN$7:AN$37)*'Control panel'!AN27 -> 0 | AS29: ='Control panel'!$AA27/SUMPRODUCT('Control panel'!$AA$7:$AA$37,'Control panel'!AO$7:AO$37)*'Control panel'!AO27 -> 0 | AT29: ='Control panel'!$AA27/SUMPRODUCT('Control panel'!$AA$7:$AA$37,'Control panel'!AP$7:AP$37)*'Control panel'!AP27 -> 0.002745953121 | AU29: ='Control panel'!$AA27/SUMPRODUCT('Control panel'!$AA$7:$AA$37,'Control panel'!AQ$7:AQ$37)*'Control panel'!AQ27 -> 0.002745953121 | AV29: ='Control panel'!$AA27/SUMPRODUCT('Control panel'!$AA$7:$AA$37,'Control panel'!AR$7:AR$37)*'Control panel'!AR27 -> 0.002745953121 | AW29: ='Control panel'!$AA27/SUMPRODUCT('Control panel'!$AA$7:$AA$37,'Control panel'!AS$7:AS$37)*'Control panel'!AS27 -> 0.002745953121 | AX29: ='Control panel'!$AA27/SUMPRODUCT('Control panel'!$AA$7:$AA$37,'Control panel'!AT$7:AT$37)*'Control panel'!AT27 -> 0.002745953121
W30: 2025-26 | X30: ='PTRM Data'!B28 -> Buildings | Y30: =_xlfn.XLOOKUP(X30,'Control panel'!$L$7:$L$37,'Control panel'!$P$7:$P$37) -> 1 | Z30: 0 | AA30: =_xlfn.XLOOKUP(W30,'BBM Costs'!$Q$6:$U$6,_xlfn.XLOOKUP(X30,'BBM Costs'!$P$7:$P$37,'BBM Costs'!$Q$7:$U$37))*_xlfn.XLOOKUP(X30,'Control panel'!$L$7:$L$37,'Control panel'!$M$7:$M$37) -> 0 | AB30: =_xlfn.XLOOKUP(W30,'BBM Costs'!$X$6:$AB$6,_xlfn.XLOOKUP(X30,'BBM Costs'!$W$7:$W$37,'BBM Costs'!$X$7:$AB$37))*_xlfn.XLOOKUP(X30,'Control panel'!$S$7:$S$37,'Control panel'!$T$7:$T$37) -> 0 | AC30: 0 | AE30: ='PTRM Data'!B28 -> Buildings | AF30: ='Control panel'!$AA28/SUMPRODUCT('Control panel'!$AA$7:$AA$37,'Control panel'!AB$7:AB$37)*'Control panel'!AB28 -> 0 | AG30: ='Control panel'!$AA28/SUMPRODUCT('Control panel'!$AA$7:$AA$37,'Control panel'!AC$7:AC$37)*'Control panel'!AC28 -> 0 | AH30: ='Control panel'!$AA28/SUMPRODUCT('Control panel'!$AA$7:$AA$37,'Control panel'!AD$7:AD$37)*'Control panel'!AD28 -> 0 | AI30: ='Control panel'!$AA28/SUMPRODUCT('Control panel'!$AA$7:$AA$37,'Control panel'!AE$7:AE$37)*'Control panel'!AE28 -> 0 | AJ30: ='Control panel'!$AA28/SUMPRODUCT('Control panel'!$AA$7:$AA$37,'Control panel'!AF$7:AF$37)*'Control panel'!AF28 -> 0 | AK30: ='Control panel'!$AA28/SUMPRODUCT('Control panel'!$AA$7:$AA$37,'Control panel'!AG$7:AG$37)*'Control panel'!AG28 -> 0 | AL30: ='Control panel'!$AA28/SUMPRODUCT('Control panel'!$AA$7:$AA$37,'Control panel'!AH$7:AH$37)*'Control panel'!AH28 -> 0 | AM30: ='Control panel'!$AA28/SUMPRODUCT('Control panel'!$AA$7:$AA$37,'Control panel'!AI$7:AI$37)*'Control panel'!AI28 -> 0.02257408956 | AN30: ='Control panel'!$AA28/SUMPRODUCT('Control panel'!$AA$7:$AA$37,'Control panel'!AJ$7:AJ$37)*'Control panel'!AJ28 -> 0 | AO30: ='Control panel'!$AA28/SUMPRODUCT('Control panel'!$AA$7:$AA$37,'Control panel'!AK$7:AK$37)*'Control panel'!AK28 -> 0 | AP30: ='Control panel'!$AA28/SUMPRODUCT('Control panel'!$AA$7:$AA$37,'Control panel'!AL$7:AL$37)*'Control panel'!AL28 -> 0.02257408956 | AQ30: ='Control panel'!$AA28/SUMPRODUCT('Control panel'!$AA$7:$AA$37,'Control panel'!AM$7:AM$37)*'Control panel'!AM28 -> 0 | AR30: ='Control panel'!$AA28/SUMPRODUCT('Control panel'!$AA$7:$AA$37,'Control panel'!AN$7:AN$37)*'Control panel'!AN28 -> 0 | AS30: ='Control panel'!$AA28/SUMPRODUCT('Control panel'!$AA$7:$AA$37,'Control panel'!AO$7:AO$37)*'Control panel'!AO28 -> 0 | AT30: ='Control panel'!$AA28/SUMPRODUCT('Control panel'!$AA$7:$AA$37,'Control panel'!AP$7:AP$37)*'Control panel'!AP28 -> 0.02257408956 | AU30: ='Control panel'!$AA28/SUMPRODUCT('Control panel'!$AA$7:$AA$37,'Control panel'!AQ$7:AQ$37)*'Control panel'!AQ28 -> 0.02257408956 | AV30: ='Control panel'!$AA28/SUMPRODUCT('Control panel'!$AA$7:$AA$37,'Control panel'!AR$7:AR$37)*'Control panel'!AR28 -> 0.02257408956 | AW30: ='Control panel'!$AA28/SUMPRODUCT('Control panel'!$AA$7:$AA$37,'Control panel'!AS$7:AS$37)*'Control panel'!AS28 -> 0.02257408956 | AX30: ='Control panel'!$AA28/SUMPRODUCT('Control panel'!$AA$7:$AA$37,'Control panel'!AT$7:AT$37)*'Control panel'!AT28 -> 0.02257408956
W31: 2025-26 | X31: ='PTRM Data'!B29 -> Office Equipment & Furniture | Y31: =_xlfn.XLOOKUP(X31,'Control panel'!$L$7:$L$37,'Control panel'!$P$7:$P$37) -> 1 | Z31: -0.0262977558 | AA31: =_xlfn.XLOOKUP(W31,'BBM Costs'!$Q$6:$U$6,_xlfn.XLOOKUP(X31,'BBM Costs'!$P$7:$P$37,'BBM Costs'!$Q$7:$U$37))*_xlfn.XLOOKUP(X31,'Control panel'!$L$7:$L$37,'Control panel'!$M$7:$M$37) -> 0 | AB31: =_xlfn.XLOOKUP(W31,'BBM Costs'!$X$6:$AB$6,_xlfn.XLOOKUP(X31,'BBM Costs'!$W$7:$W$37,'BBM Costs'!$X$7:$AB$37))*_xlfn.XLOOKUP(X31,'Control panel'!$S$7:$S$37,'Control panel'!$T$7:$T$37) -> 0 | AC31: -0.0262977558 | AE31: ='PTRM Data'!B29 -> Office Equipment & Furniture | AF31: ='Control panel'!$AA29/SUMPRODUCT('Control panel'!$AA$7:$AA$37,'Control panel'!AB$7:AB$37)*'Control panel'!AB29 -> -0.0009031717151 | AG31: ='Control panel'!$AA29/SUMPRODUCT('Control panel'!$AA$7:$AA$37,'Control panel'!AC$7:AC$37)*'Control panel'!AC29 -> 0 | AH31: ='Control panel'!$AA29/SUMPRODUCT('Control panel'!$AA$7:$AA$37,'Control panel'!AD$7:AD$37)*'Control panel'!AD29 -> 0 | AI31: ='Control panel'!$AA29/SUMPRODUCT('Control panel'!$AA$7:$AA$37,'Control panel'!AE$7:AE$37)*'Control panel'!AE29 -> 0 | AJ31: ='Control panel'!$AA29/SUMPRODUCT('Control panel'!$AA$7:$AA$37,'Control panel'!AF$7:AF$37)*'Control panel'!AF29 -> 0 | AK31: ='Control panel'!$AA29/SUMPRODUCT('Control panel'!$AA$7:$AA$37,'Control panel'!AG$7:AG$37)*'Control panel'!AG29 -> -0.0009131157203 | AL31: ='Control panel'!$AA29/SUMPRODUCT('Control panel'!$AA$7:$AA$37,'Control panel'!AH$7:AH$37)*'Control panel'!AH29 -> 0 | AM31: ='Control panel'!$AA29/SUMPRODUCT('Control panel'!$AA$7:$AA$37,'Control panel'!AI$7:AI$37)*'Control panel'!AI29 -> -0.0008189635639 | AN31: ='Control panel'!$AA29/SUMPRODUCT('Control panel'!$AA$7:$AA$37,'Control panel'!AJ$7:AJ$37)*'Control panel'!AJ29 -> 0 | AO31: ='Control panel'!$AA29/SUMPRODUCT('Control panel'!$AA$7:$AA$37,'Control panel'!AK$7:AK$37)*'Control panel'!AK29 -> 0 | AP31: ='Control panel'!$AA29/SUMPRODUCT('Control panel'!$AA$7:$AA$37,'Control panel'!AL$7:AL$37)*'Control panel'!AL29 -> -0.0008189635639 | AQ31: ='Control panel'!$AA29/SUMPRODUCT('Control panel'!$AA$7:$AA$37,'Control panel'!AM$7:AM$37)*'Control panel'!AM29 -> 0 | AR31: ='Control panel'!$AA29/SUMPRODUCT('Control panel'!$AA$7:$AA$37,'Control panel'!AN$7:AN$37)*'Control panel'!AN29 -> 0 | AS31: ='Control panel'!$AA29/SUMPRODUCT('Control panel'!$AA$7:$AA$37,'Control panel'!AO$7:AO$37)*'Control panel'!AO29 -> 0 | AT31: ='Control panel'!$AA29/SUMPRODUCT('Control panel'!$AA$7:$AA$37,'Control panel'!AP$7:AP$37)*'Control panel'!AP29 -> -0.0008189635639 | AU31: ='Control panel'!$AA29/SUMPRODUCT('Control panel'!$AA$7:$AA$37,'Control panel'!AQ$7:AQ$37)*'Control panel'!AQ29 -> -0.0008189635639 | AV31: ='Control panel'!$AA29/SUMPRODUCT('Control panel'!$AA$7:$AA$37,'Control panel'!AR$7:AR$37)*'Control panel'!AR29 -> -0.0008189635639 | AW31: ='Control panel'!$AA29/SUMPRODUCT('Control panel'!$AA$7:$AA$37,'Control panel'!AS$7:AS$37)*'Control panel'!AS29 -> -0.0008189635639 | AX31: ='Control panel'!$AA29/SUMPRODUCT('Control panel'!$AA$7:$AA$37,'Control panel'!AT$7:AT$37)*'Control panel'!AT29 -> -0.0008189635639
W32: 2025-26 | X32: ='PTRM Data'!B30 -> Initial Leases (10 yr life) | Y32: =_xlfn.XLOOKUP(X32,'Control panel'!$L$7:$L$37,'Control panel'!$P$7:$P$37) -> 1 | Z32: 0 | AA32: =_xlfn.XLOOKUP(W32,'BBM Costs'!$Q$6:$U$6,_xlfn.XLOOKUP(X32,'BBM Costs'!$P$7:$P$37,'BBM Costs'!$Q$7:$U$37))*_xlfn.XLOOKUP(X32,'Control panel'!$L$7:$L$37,'Control panel'!$M$7:$M$37) -> 0 | AB32: =_xlfn.XLOOKUP(W32,'BBM Costs'!$X$6:$AB$6,_xlfn.XLOOKUP(X32,'BBM Costs'!$W$7:$W$37,'BBM Costs'!$X$7:$AB$37))*_xlfn.XLOOKUP(X32,'Control panel'!$S$7:$S$37,'Control panel'!$T$7:$T$37) -> 0 | AC32: 0 | AE32: ='PTRM Data'!B30 -> Initial Leases (10 yr life) | AF32: ='Control panel'!$AA30/SUMPRODUCT('Control panel'!$AA$7:$AA$37,'Control panel'!AB$7:AB$37)*'Control panel'!AB30 -> 0 | AG32: ='Control panel'!$AA30/SUMPRODUCT('Control panel'!$AA$7:$AA$37,'Control panel'!AC$7:AC$37)*'Control panel'!AC30 -> 0 | AH32: ='Control panel'!$AA30/SUMPRODUCT('Control panel'!$AA$7:$AA$37,'Control panel'!AD$7:AD$37)*'Control panel'!AD30 -> 0 | AI32: ='Control panel'!$AA30/SUMPRODUCT('Control panel'!$AA$7:$AA$37,'Control panel'!AE$7:AE$37)*'Control panel'!AE30 -> 0 | AJ32: ='Control panel'!$AA30/SUMPRODUCT('Control panel'!$AA$7:$AA$37,'Control panel'!AF$7:AF$37)*'Control panel'!AF30 -> 0 | AK32: ='Control panel'!$AA30/SUMPRODUCT('Control panel'!$AA$7:$AA$37,'Control panel'!AG$7:AG$37)*'Control panel'!AG30 -> 0 | AL32: ='Control panel'!$AA30/SUMPRODUCT('Control panel'!$AA$7:$AA$37,'Control panel'!AH$7:AH$37)*'Control panel'!AH30 -> 0 | AM32: ='Control panel'!$AA30/SUMPRODUCT('Control panel'!$AA$7:$AA$37,'Control panel'!AI$7:AI$37)*'Control panel'!AI30 -> 0.003386657036 | AN32: ='Control panel'!$AA30/SUMPRODUCT('Control panel'!$AA$7:$AA$37,'Control panel'!AJ$7:AJ$37)*'Control panel'!AJ30 -> 0 | AO32: ='Control panel'!$AA30/SUMPRODUCT('Control panel'!$AA$7:$AA$37,'Control panel'!AK$7:AK$37)*'Control panel'!AK30 -> 0 | AP32: ='Control panel'!$AA30/SUMPRODUCT('Control panel'!$AA$7:$AA$37,'Control panel'!AL$7:AL$37)*'Control panel'!AL30 -> 0.003386657036 | AQ32: ='Control panel'!$AA30/SUMPRODUCT('Control panel'!$AA$7:$AA$37,'Control panel'!AM$7:AM$37)*'Control panel'!AM30 -> 0 | AR32: ='Control panel'!$AA30/SUMPRODUCT('Control panel'!$AA$7:$AA$37,'Control panel'!AN$7:AN$37)*'Control panel'!AN30 -> 0 | AS32: ='Control panel'!$AA30/SUMPRODUCT('Control panel'!$AA$7:$AA$37,'Control panel'!AO$7:AO$37)*'Control panel'!AO30 -> 0 | AT32: ='Control panel'!$AA30/SUMPRODUCT('Control panel'!$AA$7:$AA$37,'Control panel'!AP$7:AP$37)*'Control panel'!AP30 -> 0.003386657036 | AU32: ='Control panel'!$AA30/SUMPRODUCT('Control panel'!$AA$7:$AA$37,'Control panel'!AQ$7:AQ$37)*'Control panel'!AQ30 -> 0.003386657036 | AV32: ='Control panel'!$AA30/SUMPRODUCT('Control panel'!$AA$7:$AA$37,'Control panel'!AR$7:AR$37)*'Control panel'!AR30 -> 0.003386657036 | AW32: ='Control panel'!$AA30/SUMPRODUCT('Control panel'!$AA$7:$AA$37,'Control panel'!AS$7:AS$37)*'Control panel'!AS30 -> 0.003386657036 | AX32: ='Control panel'!$AA30/SUMPRODUCT('Control panel'!$AA$7:$AA$37,'Control panel'!AT$7:AT$37)*'Control panel'!AT30 -> 0.003386657036
W33: 2025-26 | X33: ='PTRM Data'!B31 -> Lease Extensions (5yr Life) | Y33: =_xlfn.XLOOKUP(X33,'Control panel'!$L$7:$L$37,'Control panel'!$P$7:$P$37) -> 1 | Z33: 0 | AA33: =_xlfn.XLOOKUP(W33,'BBM Costs'!$Q$6:$U$6,_xlfn.XLOOKUP(X33,'BBM Costs'!$P$7:$P$37,'BBM Costs'!$Q$7:$U$37))*_xlfn.XLOOKUP(X33,'Control panel'!$L$7:$L$37,'Control panel'!$M$7:$M$37) -> 0 | AB33: =_xlfn.XLOOKUP(W33,'BBM Costs'!$X$6:$AB$6,_xlfn.XLOOKUP(X33,'BBM Costs'!$W$7:$W$37,'BBM Costs'!$X$7:$AB$37))*_xlfn.XLOOKUP(X33,'Control panel'!$S$7:$S$37,'Control panel'!$T$7:$T$37) -> 0 | AC33: 0 | AE33: ='PTRM Data'!B31 -> Lease Extensions (5yr Life) | AF33: ='Control panel'!$AA31/SUMPRODUCT('Control panel'!$AA$7:$AA$37,'Control panel'!AB$7:AB$37)*'Control panel'!AB31 -> 0 | AG33: ='Control panel'!$AA31/SUMPRODUCT('Control panel'!$AA$7:$AA$37,'Control panel'!AC$7:AC$37)*'Control panel'!AC31 -> 0 | AH33: ='Control panel'!$AA31/SUMPRODUCT('Control panel'!$AA$7:$AA$37,'Control panel'!AD$7:AD$37)*'Control panel'!AD31 -> 0 | AI33: ='Control panel'!$AA31/SUMPRODUCT('Control panel'!$AA$7:$AA$37,'Control panel'!AE$7:AE$37)*'Control panel'!AE31 -> 0 | AJ33: ='Control panel'!$AA31/SUMPRODUCT('Control panel'!$AA$7:$AA$37,'Control panel'!AF$7:AF$37)*'Control panel'!AF31 -> 0 | AK33: ='Control panel'!$AA31/SUMPRODUCT('Control panel'!$AA$7:$AA$37,'Control panel'!AG$7:AG$37)*'Control panel'!AG31 -> 0 | AL33: ='Control panel'!$AA31/SUMPRODUCT('Control panel'!$AA$7:$AA$37,'Control panel'!AH$7:AH$37)*'Control panel'!AH31 -> 0 | AM33: ='Control panel'!$AA31/SUMPRODUCT('Control panel'!$AA$7:$AA$37,'Control panel'!AI$7:AI$37)*'Control panel'!AI31 -> 0 | AN33: ='Control panel'!$AA31/SUMPRODUCT('Control panel'!$AA$7:$AA$37,'Control panel'!AJ$7:AJ$37)*'Control panel'!AJ31 -> 0 | AO33: ='Control panel'!$AA31/SUMPRODUCT('Control panel'!$AA$7:$AA$37,'Control panel'!AK$7:AK$37)*'Control panel'!AK31 -> 0 | AP33: ='Control panel'!$AA31/SUMPRODUCT('Control panel'!$AA$7:$AA$37,'Control panel'!AL$7:AL$37)*'Control panel'!AL31 -> 0 | AQ33: ='Control panel'!$AA31/SUMPRODUCT('Control panel'!$AA$7:$AA$37,'Control panel'!AM$7:AM$37)*'Control panel'!AM31 -> 0 | AR33: ='Control panel'!$AA31/SUMPRODUCT('Control panel'!$AA$7:$AA$37,'Control panel'!AN$7:AN$37)*'Control panel'!AN31 -> 0 | AS33: ='Control panel'!$AA31/SUMPRODUCT('Control panel'!$AA$7:$AA$37,'Control panel'!AO$7:AO$37)*'Control panel'!AO31 -> 0 | AT33: ='Control panel'!$AA31/SUMPRODUCT('Control panel'!$AA$7:$AA$37,'Control panel'!AP$7:AP$37)*'Control panel'!AP31 -> 0 | AU33: ='Control panel'!$AA31/SUMPRODUCT('Control panel'!$AA$7:$AA$37,'Control panel'!AQ$7:AQ$37)*'Control panel'!AQ31 -> 0 | AV33: ='Control panel'!$AA31/SUMPRODUCT('Control panel'!$AA$7:$AA$37,'Control panel'!AR$7:AR$37)*'Control panel'!AR31 -> 0 | AW33: ='Control panel'!$AA31/SUMPRODUCT('Control panel'!$AA$7:$AA$37,'Control panel'!AS$7:AS$37)*'Control panel'!AS31 -> 0 | AX33: ='Control panel'!$AA31/SUMPRODUCT('Control panel'!$AA$7:$AA$37,'Control panel'!AT$7:AT$37)*'Control panel'!AT31 -> 0
W34: 2025-26 | X34: ='PTRM Data'!B32 -> Land & Easements - combined | Y34: =_xlfn.XLOOKUP(X34,'Control panel'!$L$7:$L$37,'Control panel'!$P$7:$P$37) -> 1 | Z34: 0 | AA34: =_xlfn.XLOOKUP(W34,'BBM Costs'!$Q$6:$U$6,_xlfn.XLOOKUP(X34,'BBM Costs'!$P$7:$P$37,'BBM Costs'!$Q$7:$U$37))*_xlfn.XLOOKUP(X34,'Control panel'!$L$7:$L$37,'Control panel'!$M$7:$M$37) -> 0 | AB34: =_xlfn.XLOOKUP(W34,'BBM Costs'!$X$6:$AB$6,_xlfn.XLOOKUP(X34,'BBM Costs'!$W$7:$W$37,'BBM Costs'!$X$7:$AB$37))*_xlfn.XLOOKUP(X34,'Control panel'!$S$7:$S$37,'Control panel'!$T$7:$T$37) -> 0 | AC34: 0 | AE34: ='PTRM Data'!B32 -> Land & Easements - combined | AF34: ='Control panel'!$AA32/SUMPRODUCT('Control panel'!$AA$7:$AA$37,'Control panel'!AB$7:AB$37)*'Control panel'!AB32 -> 0 | AG34: ='Control panel'!$AA32/SUMPRODUCT('Control panel'!$AA$7:$AA$37,'Control panel'!AC$7:AC$37)*'Control panel'!AC32 -> 0 | AH34: ='Control panel'!$AA32/SUMPRODUCT('Control panel'!$AA$7:$AA$37,'Control panel'!AD$7:AD$37)*'Control panel'!AD32 -> 0 | AI34: ='Control panel'!$AA32/SUMPRODUCT('Control panel'!$AA$7:$AA$37,'Control panel'!AE$7:AE$37)*'Control panel'!AE32 -> 0 | AJ34: ='Control panel'!$AA32/SUMPRODUCT('Control panel'!$AA$7:$AA$37,'Control panel'!AF$7:AF$37)*'Control panel'!AF32 -> 0 | AK34: ='Control panel'!$AA32/SUMPRODUCT('Control panel'!$AA$7:$AA$37,'Control panel'!AG$7:AG$37)*'Control panel'!AG32 -> 0 | AL34: ='Control panel'!$AA32/SUMPRODUCT('Control panel'!$AA$7:$AA$37,'Control panel'!AH$7:AH$37)*'Control panel'!AH32 -> 0 | AM34: ='Control panel'!$AA32/SUMPRODUCT('Control panel'!$AA$7:$AA$37,'Control panel'!AI$7:AI$37)*'Control panel'!AI32 -> 0.002229654936 | AN34: ='Control panel'!$AA32/SUMPRODUCT('Control panel'!$AA$7:$AA$37,'Control panel'!AJ$7:AJ$37)*'Control panel'!AJ32 -> 0 | AO34: ='Control panel'!$AA32/SUMPRODUCT('Control panel'!$AA$7:$AA$37,'Control panel'!AK$7:AK$37)*'Control panel'!AK32 -> 0 | AP34: ='Control panel'!$AA32/SUMPRODUCT('Control panel'!$AA$7:$AA$37,'Control panel'!AL$7:AL$37)*'Control panel'!AL32 -> 0.002229654936 | AQ34: ='Control panel'!$AA32/SUMPRODUCT('Control panel'!$AA$7:$AA$37,'Control panel'!AM$7:AM$37)*'Control panel'!AM32 -> 0 | AR34: ='Control panel'!$AA32/SUMPRODUCT('Control panel'!$AA$7:$AA$37,'Control panel'!AN$7:AN$37)*'Control panel'!AN32 -> 0 | AS34: ='Control panel'!$AA32/SUMPRODUCT('Control panel'!$AA$7:$AA$37,'Control panel'!AO$7:AO$37)*'Control panel'!AO32 -> 0 | AT34: ='Control panel'!$AA32/SUMPRODUCT('Control panel'!$AA$7:$AA$37,'Control panel'!AP$7:AP$37)*'Control panel'!AP32 -> 0.002229654936 | AU34: ='Control panel'!$AA32/SUMPRODUCT('Control panel'!$AA$7:$AA$37,'Control panel'!AQ$7:AQ$37)*'Control panel'!AQ32 -> 0.002229654936 | AV34: ='Control panel'!$AA32/SUMPRODUCT('Control panel'!$AA$7:$AA$37,'Control panel'!AR$7:AR$37)*'Control panel'!AR32 -> 0.002229654936 | AW34: ='Control panel'!$AA32/SUMPRODUCT('Control panel'!$AA$7:$AA$37,'Control panel'!AS$7:AS$37)*'Control panel'!AS32 -> 0.002229654936 | AX34: ='Control panel'!$AA32/SUMPRODUCT('Control panel'!$AA$7:$AA$37,'Control panel'!AT$7:AT$37)*'Control panel'!AT32 -> 0.002229654936
W35: 2025-26 | X35: ='PTRM Data'!B33 -> Communications | Y35: =_xlfn.XLOOKUP(X35,'Control panel'!$L$7:$L$37,'Control panel'!$P$7:$P$37) -> 1 | Z35: 0 | AA35: =_xlfn.XLOOKUP(W35,'BBM Costs'!$Q$6:$U$6,_xlfn.XLOOKUP(X35,'BBM Costs'!$P$7:$P$37,'BBM Costs'!$Q$7:$U$37))*_xlfn.XLOOKUP(X35,'Control panel'!$L$7:$L$37,'Control panel'!$M$7:$M$37) -> 0 | AB35: =_xlfn.XLOOKUP(W35,'BBM Costs'!$X$6:$AB$6,_xlfn.XLOOKUP(X35,'BBM Costs'!$W$7:$W$37,'BBM Costs'!$X$7:$AB$37))*_xlfn.XLOOKUP(X35,'Control panel'!$S$7:$S$37,'Control panel'!$T$7:$T$37) -> 0 | AC35: 0 | AE35: ='PTRM Data'!B33 -> Communications | AF35: ='Control panel'!$AA33/SUMPRODUCT('Control panel'!$AA$7:$AA$37,'Control panel'!AB$7:AB$37)*'Control panel'!AB33 -> 0 | AG35: ='Control panel'!$AA33/SUMPRODUCT('Control panel'!$AA$7:$AA$37,'Control panel'!AC$7:AC$37)*'Control panel'!AC33 -> 0 | AH35: ='Control panel'!$AA33/SUMPRODUCT('Control panel'!$AA$7:$AA$37,'Control panel'!AD$7:AD$37)*'Control panel'!AD33 -> 0 | AI35: ='Control panel'!$AA33/SUMPRODUCT('Control panel'!$AA$7:$AA$37,'Control panel'!AE$7:AE$37)*'Control panel'!AE33 -> 0 | AJ35: ='Control panel'!$AA33/SUMPRODUCT('Control panel'!$AA$7:$AA$37,'Control panel'!AF$7:AF$37)*'Control panel'!AF33 -> 0 | AK35: ='Control panel'!$AA33/SUMPRODUCT('Control panel'!$AA$7:$AA$37,'Control panel'!AG$7:AG$37)*'Control panel'!AG33 -> 0 | AL35: ='Control panel'!$AA33/SUMPRODUCT('Control panel'!$AA$7:$AA$37,'Control panel'!AH$7:AH$37)*'Control panel'!AH33 -> 0 | AM35: ='Control panel'!$AA33/SUMPRODUCT('Control panel'!$AA$7:$AA$37,'Control panel'!AI$7:AI$37)*'Control panel'!AI33 -> 0.01061638549 | AN35: ='Control panel'!$AA33/SUMPRODUCT('Control panel'!$AA$7:$AA$37,'Control panel'!AJ$7:AJ$37)*'Control panel'!AJ33 -> 0 | AO35: ='Control panel'!$AA33/SUMPRODUCT('Control panel'!$AA$7:$AA$37,'Control panel'!AK$7:AK$37)*'Control panel'!AK33 -> 0 | AP35: ='Control panel'!$AA33/SUMPRODUCT('Control panel'!$AA$7:$AA$37,'Control panel'!AL$7:AL$37)*'Control panel'!AL33 -> 0.01061638549 | AQ35: ='Control panel'!$AA33/SUMPRODUCT('Control panel'!$AA$7:$AA$37,'Control panel'!AM$7:AM$37)*'Control panel'!AM33 -> 0 | AR35: ='Control panel'!$AA33/SUMPRODUCT('Control panel'!$AA$7:$AA$37,'Control panel'!AN$7:AN$37)*'Control panel'!AN33 -> 0 | AS35: ='Control panel'!$AA33/SUMPRODUCT('Control panel'!$AA$7:$AA$37,'Control panel'!AO$7:AO$37)*'Control panel'!AO33 -> 0 | AT35: ='Control panel'!$AA33/SUMPRODUCT('Control panel'!$AA$7:$AA$37,'Control panel'!AP$7:AP$37)*'Control panel'!AP33 -> 0.01061638549 | AU35: ='Control panel'!$AA33/SUMPRODUCT('Control panel'!$AA$7:$AA$37,'Control panel'!AQ$7:AQ$37)*'Control panel'!AQ33 -> 0.01061638549 | AV35: ='Control panel'!$AA33/SUMPRODUCT('Control panel'!$AA$7:$AA$37,'Control panel'!AR$7:AR$37)*'Control panel'!AR33 -> 0.01061638549 | AW35: ='Control panel'!$AA33/SUMPRODUCT('Control panel'!$AA$7:$AA$37,'Control panel'!AS$7:AS$37)*'Control panel'!AS33 -> 0.01061638549 | AX35: ='Control panel'!$AA33/SUMPRODUCT('Control panel'!$AA$7:$AA$37,'Control panel'!AT$7:AT$37)*'Control panel'!AT33 -> 0.01061638549
W36: 2025-26 | X36: ='PTRM Data'!B34 -> In-house software | Y36: =_xlfn.XLOOKUP(X36,'Control panel'!$L$7:$L$37,'Control panel'!$P$7:$P$37) -> 1 | Z36: 0 | AA36: =_xlfn.XLOOKUP(W36,'BBM Costs'!$Q$6:$U$6,_xlfn.XLOOKUP(X36,'BBM Costs'!$P$7:$P$37,'BBM Costs'!$Q$7:$U$37))*_xlfn.XLOOKUP(X36,'Control panel'!$L$7:$L$37,'Control panel'!$M$7:$M$37) -> 0 | AB36: =_xlfn.XLOOKUP(W36,'BBM Costs'!$X$6:$AB$6,_xlfn.XLOOKUP(X36,'BBM Costs'!$W$7:$W$37,'BBM Costs'!$X$7:$AB$37))*_xlfn.XLOOKUP(X36,'Control panel'!$S$7:$S$37,'Control panel'!$T$7:$T$37) -> 0 | AC36: 0 | AE36: ='PTRM Data'!B34 -> In-house software | AF36: ='Control panel'!$AA34/SUMPRODUCT('Control panel'!$AA$7:$AA$37,'Control panel'!AB$7:AB$37)*'Control panel'!AB34 -> 0 | AG36: ='Control panel'!$AA34/SUMPRODUCT('Control panel'!$AA$7:$AA$37,'Control panel'!AC$7:AC$37)*'Control panel'!AC34 -> 0 | AH36: ='Control panel'!$AA34/SUMPRODUCT('Control panel'!$AA$7:$AA$37,'Control panel'!AD$7:AD$37)*'Control panel'!AD34 -> 0 | AI36: ='Control panel'!$AA34/SUMPRODUCT('Control panel'!$AA$7:$AA$37,'Control panel'!AE$7:AE$37)*'Control panel'!AE34 -> 0 | AJ36: ='Control panel'!$AA34/SUMPRODUCT('Control panel'!$AA$7:$AA$37,'Control panel'!AF$7:AF$37)*'Control panel'!AF34 -> 0 | AK36: ='Control panel'!$AA34/SUMPRODUCT('Control panel'!$AA$7:$AA$37,'Control panel'!AG$7:AG$37)*'Control panel'!AG34 -> 0 | AL36: ='Control panel'!$AA34/SUMPRODUCT('Control panel'!$AA$7:$AA$37,'Control panel'!AH$7:AH$37)*'Control panel'!AH34 -> 0 | AM36: ='Control panel'!$AA34/SUMPRODUCT('Control panel'!$AA$7:$AA$37,'Control panel'!AI$7:AI$37)*'Control panel'!AI34 -> 0.009675636439 | AN36: ='Control panel'!$AA34/SUMPRODUCT('Control panel'!$AA$7:$AA$37,'Control panel'!AJ$7:AJ$37)*'Control panel'!AJ34 -> 0 | AO36: ='Control panel'!$AA34/SUMPRODUCT('Control panel'!$AA$7:$AA$37,'Control panel'!AK$7:AK$37)*'Control panel'!AK34 -> 0 | AP36: ='Control panel'!$AA34/SUMPRODUCT('Control panel'!$AA$7:$AA$37,'Control panel'!AL$7:AL$37)*'Control panel'!AL34 -> 0.009675636439 | AQ36: ='Control panel'!$AA34/SUMPRODUCT('Control panel'!$AA$7:$AA$37,'Control panel'!AM$7:AM$37)*'Control panel'!AM34 -> 0 | AR36: ='Control panel'!$AA34/SUMPRODUCT('Control panel'!$AA$7:$AA$37,'Control panel'!AN$7:AN$37)*'Control panel'!AN34 -> 0 | AS36: ='Control panel'!$AA34/SUMPRODUCT('Control panel'!$AA$7:$AA$37,'Control panel'!AO$7:AO$37)*'Control panel'!AO34 -> 0 | AT36: ='Control panel'!$AA34/SUMPRODUCT('Control panel'!$AA$7:$AA$37,'Control panel'!AP$7:AP$37)*'Control panel'!AP34 -> 0.009675636439 | AU36: ='Control panel'!$AA34/SUMPRODUCT('Control panel'!$AA$7:$AA$37,'Control panel'!AQ$7:AQ$37)*'Control panel'!AQ34 -> 0.009675636439 | AV36: ='Control panel'!$AA34/SUMPRODUCT('Control panel'!$AA$7:$AA$37,'Control panel'!AR$7:AR$37)*'Control panel'!AR34 -> 0.009675636439 | AW36: ='Control panel'!$AA34/SUMPRODUCT('Control panel'!$AA$7:$AA$37,'Control panel'!AS$7:AS$37)*'Control panel'!AS34 -> 0.009675636439 | AX36: ='Control panel'!$AA34/SUMPRODUCT('Control panel'!$AA$7:$AA$37,'Control panel'!AT$7:AT$37)*'Control panel'!AT34 -> 0.009675636439
W37: 2025-26 | X37: ='PTRM Data'!B35 -> IT Systems | Y37: =_xlfn.XLOOKUP(X37,'Control panel'!$L$7:$L$37,'Control panel'!$P$7:$P$37) -> 1 | Z37: 0 | AA37: =_xlfn.XLOOKUP(W37,'BBM Costs'!$Q$6:$U$6,_xlfn.XLOOKUP(X37,'BBM Costs'!$P$7:$P$37,'BBM Costs'!$Q$7:$U$37))*_xlfn.XLOOKUP(X37,'Control panel'!$L$7:$L$37,'Control panel'!$M$7:$M$37) -> 0 | AB37: =_xlfn.XLOOKUP(W37,'BBM Costs'!$X$6:$AB$6,_xlfn.XLOOKUP(X37,'BBM Costs'!$W$7:$W$37,'BBM Costs'!$X$7:$AB$37))*_xlfn.XLOOKUP(X37,'Control panel'!$S$7:$S$37,'Control panel'!$T$7:$T$37) -> 0 | AC37: 0 | AE37: ='PTRM Data'!B35 -> IT Systems | AF37: ='Control panel'!$AA35/SUMPRODUCT('Control panel'!$AA$7:$AA$37,'Control panel'!AB$7:AB$37)*'Control panel'!AB35 -> 0 | AG37: ='Control panel'!$AA35/SUMPRODUCT('Control panel'!$AA$7:$AA$37,'Control panel'!AC$7:AC$37)*'Control panel'!AC35 -> 0 | AH37: ='Control panel'!$AA35/SUMPRODUCT('Control panel'!$AA$7:$AA$37,'Control panel'!AD$7:AD$37)*'Control panel'!AD35 -> 0 | AI37: ='Control panel'!$AA35/SUMPRODUCT('Control panel'!$AA$7:$AA$37,'Control panel'!AE$7:AE$37)*'Control panel'!AE35 -> 0 | AJ37: ='Control panel'!$AA35/SUMPRODUCT('Control panel'!$AA$7:$AA$37,'Control panel'!AF$7:AF$37)*'Control panel'!AF35 -> 0 | AK37: ='Control panel'!$AA35/SUMPRODUCT('Control panel'!$AA$7:$AA$37,'Control panel'!AG$7:AG$37)*'Control panel'!AG35 -> 0 | AL37: ='Control panel'!$AA35/SUMPRODUCT('Control panel'!$AA$7:$AA$37,'Control panel'!AH$7:AH$37)*'Control panel'!AH35 -> 0 | AM37: ='Control panel'!$AA35/SUMPRODUCT('Control panel'!$AA$7:$AA$37,'Control panel'!AI$7:AI$37)*'Control panel'!AI35 -> 0.0005293827339 | AN37: ='Control panel'!$AA35/SUMPRODUCT('Control panel'!$AA$7:$AA$37,'Control panel'!AJ$7:AJ$37)*'Control panel'!AJ35 -> 0 | AO37: ='Control panel'!$AA35/SUMPRODUCT('Control panel'!$AA$7:$AA$37,'Control panel'!AK$7:AK$37)*'Control panel'!AK35 -> 0 | AP37: ='Control panel'!$AA35/SUMPRODUCT('Control panel'!$AA$7:$AA$37,'Control panel'!AL$7:AL$37)*'Control panel'!AL35 -> 0.0005293827339 | AQ37: ='Control panel'!$AA35/SUMPRODUCT('Control panel'!$AA$7:$AA$37,'Control panel'!AM$7:AM$37)*'Control panel'!AM35 -> 0 | AR37: ='Control panel'!$AA35/SUMPRODUCT('Control panel'!$AA$7:$AA$37,'Control panel'!AN$7:AN$37)*'Control panel'!AN35 -> 0 | AS37: ='Control panel'!$AA35/SUMPRODUCT('Control panel'!$AA$7:$AA$37,'Control panel'!AO$7:AO$37)*'Control panel'!AO35 -> 0 | AT37: ='Control panel'!$AA35/SUMPRODUCT('Control panel'!$AA$7:$AA$37,'Control panel'!AP$7:AP$37)*'Control panel'!AP35 -> 0.0005293827339 | AU37: ='Control panel'!$AA35/SUMPRODUCT('Control panel'!$AA$7:$AA$37,'Control panel'!AQ$7:AQ$37)*'Control panel'!AQ35 -> 0.0005293827339 | AV37: ='Control panel'!$AA35/SUMPRODUCT('Control panel'!$AA$7:$AA$37,'Control panel'!AR$7:AR$37)*'Control panel'!AR35 -> 0.0005293827339 | AW37: ='Control panel'!$AA35/SUMPRODUCT('Control panel'!$AA$7:$AA$37,'Control panel'!AS$7:AS$37)*'Control panel'!AS35 -> 0.0005293827339 | AX37: ='Control panel'!$AA35/SUMPRODUCT('Control panel'!$AA$7:$AA$37,'Control panel'!AT$7:AT$37)*'Control panel'!AT35 -> 0.0005293827339
W38: 2025-26 | X38: ='PTRM Data'!B36 -> ICT Legacy Assets | Y38: =_xlfn.XLOOKUP(X38,'Control panel'!$L$7:$L$37,'Control panel'!$P$7:$P$37) -> 1 | Z38: 0 | AA38: =_xlfn.XLOOKUP(W38,'BBM Costs'!$Q$6:$U$6,_xlfn.XLOOKUP(X38,'BBM Costs'!$P$7:$P$37,'BBM Costs'!$Q$7:$U$37))*_xlfn.XLOOKUP(X38,'Control panel'!$L$7:$L$37,'Control panel'!$M$7:$M$37) -> 0 | AB38: =_xlfn.XLOOKUP(W38,'BBM Costs'!$X$6:$AB$6,_xlfn.XLOOKUP(X38,'BBM Costs'!$W$7:$W$37,'BBM Costs'!$X$7:$AB$37))*_xlfn.XLOOKUP(X38,'Control panel'!$S$7:$S$37,'Control panel'!$T$7:$T$37) -> 0 | AC38: 0 | AE38: ='PTRM Data'!B36 -> ICT Legacy Assets | AF38: ='Control panel'!$AA36/SUMPRODUCT('Control panel'!$AA$7:$AA$37,'Control panel'!AB$7:AB$37)*'Control panel'!AB36 -> 0 | AG38: ='Control panel'!$AA36/SUMPRODUCT('Control panel'!$AA$7:$AA$37,'Control panel'!AC$7:AC$37)*'Control panel'!AC36 -> 0 | AH38: ='Control panel'!$AA36/SUMPRODUCT('Control panel'!$AA$7:$AA$37,'Control panel'!AD$7:AD$37)*'Control panel'!AD36 -> 0 | AI38: ='Control panel'!$AA36/SUMPRODUCT('Control panel'!$AA$7:$AA$37,'Control panel'!AE$7:AE$37)*'Control panel'!AE36 -> 0 | AJ38: ='Control panel'!$AA36/SUMPRODUCT('Control panel'!$AA$7:$AA$37,'Control panel'!AF$7:AF$37)*'Control panel'!AF36 -> 0 | AK38: ='Control panel'!$AA36/SUMPRODUCT('Control panel'!$AA$7:$AA$37,'Control panel'!AG$7:AG$37)*'Control panel'!AG36 -> 0 | AL38: ='Control panel'!$AA36/SUMPRODUCT('Control panel'!$AA$7:$AA$37,'Control panel'!AH$7:AH$37)*'Control panel'!AH36 -> 0 | AM38: ='Control panel'!$AA36/SUMPRODUCT('Control panel'!$AA$7:$AA$37,'Control panel'!AI$7:AI$37)*'Control panel'!AI36 -> 0.005048238956 | AN38: ='Control panel'!$AA36/SUMPRODUCT('Control panel'!$AA$7:$AA$37,'Control panel'!AJ$7:AJ$37)*'Control panel'!AJ36 -> 0 | AO38: ='Control panel'!$AA36/SUMPRODUCT('Control panel'!$AA$7:$AA$37,'Control panel'!AK$7:AK$37)*'Control panel'!AK36 -> 0 | AP38: ='Control panel'!$AA36/SUMPRODUCT('Control panel'!$AA$7:$AA$37,'Control panel'!AL$7:AL$37)*'Control panel'!AL36 -> 0.005048238956 | AQ38: ='Control panel'!$AA36/SUMPRODUCT('Control panel'!$AA$7:$AA$37,'Control panel'!AM$7:AM$37)*'Control panel'!AM36 -> 0 | AR38: ='Control panel'!$AA36/SUMPRODUCT('Control panel'!$AA$7:$AA$37,'Control panel'!AN$7:AN$37)*'Control panel'!AN36 -> 0 | AS38: ='Control panel'!$AA36/SUMPRODUCT('Control panel'!$AA$7:$AA$37,'Control panel'!AO$7:AO$37)*'Control panel'!AO36 -> 0 | AT38: ='Control panel'!$AA36/SUMPRODUCT('Control panel'!$AA$7:$AA$37,'Control panel'!AP$7:AP$37)*'Control panel'!AP36 -> 0.005048238956 | AU38: ='Control panel'!$AA36/SUMPRODUCT('Control panel'!$AA$7:$AA$37,'Control panel'!AQ$7:AQ$37)*'Control panel'!AQ36 -> 0.005048238956 | AV38: ='Control panel'!$AA36/SUMPRODUCT('Control panel'!$AA$7:$AA$37,'Control panel'!AR$7:AR$37)*'Control panel'!AR36 -> 0.005048238956 | AW38: ='Control panel'!$AA36/SUMPRODUCT('Control panel'!$AA$7:$AA$37,'Control panel'!AS$7:AS$37)*'Control panel'!AS36 -> 0.005048238956 | AX38: ='Control panel'!$AA36/SUMPRODUCT('Control panel'!$AA$7:$AA$37,'Control panel'!AT$7:AT$37)*'Control panel'!AT36 -> 0.005048238956
W39: 2025-26 | X39: ='PTRM Data'!B37 -> Buildings - capital works | Y39: =_xlfn.XLOOKUP(X39,'Control panel'!$L$7:$L$37,'Control panel'!$P$7:$P$37) -> 1 | Z39: 0 | AA39: =_xlfn.XLOOKUP(W39,'BBM Costs'!$Q$6:$U$6,_xlfn.XLOOKUP(X39,'BBM Costs'!$P$7:$P$37,'BBM Costs'!$Q$7:$U$37))*_xlfn.XLOOKUP(X39,'Control panel'!$L$7:$L$37,'Control panel'!$M$7:$M$37) -> 0 | AB39: =_xlfn.XLOOKUP(W39,'BBM Costs'!$X$6:$AB$6,_xlfn.XLOOKUP(X39,'BBM Costs'!$W$7:$W$37,'BBM Costs'!$X$7:$AB$37))*_xlfn.XLOOKUP(X39,'Control panel'!$S$7:$S$37,'Control panel'!$T$7:$T$37) -> 0 | AC39: =SUM(Z39:AB39) -> 0 | AE39: ='PTRM Data'!B37 -> Buildings - capital works | AF39: ='Control panel'!$AA37/SUMPRODUCT('Control panel'!$AA$7:$AA$37,'Control panel'!AB$7:AB$37)*'Control panel'!AB37 -> 0 | AG39: ='Control panel'!$AA37/SUMPRODUCT('Control panel'!$AA$7:$AA$37,'Control panel'!AC$7:AC$37)*'Control panel'!AC37 -> 0 | AH39: ='Control panel'!$AA37/SUMPRODUCT('Control panel'!$AA$7:$AA$37,'Control panel'!AD$7:AD$37)*'Control panel'!AD37 -> 0 | AI39: ='Control panel'!$AA37/SUMPRODUCT('Control panel'!$AA$7:$AA$37,'Control panel'!AE$7:AE$37)*'Control panel'!AE37 -> 0 | AJ39: ='Control panel'!$AA37/SUMPRODUCT('Control panel'!$AA$7:$AA$37,'Control panel'!AF$7:AF$37)*'Control panel'!AF37 -> 0 | AK39: ='Control panel'!$AA37/SUMPRODUCT('Control panel'!$AA$7:$AA$37,'Control panel'!AG$7:AG$37)*'Control panel'!AG37 -> 0 | AL39: ='Control panel'!$AA37/SUMPRODUCT('Control panel'!$AA$7:$AA$37,'Control panel'!AH$7:AH$37)*'Control panel'!AH37 -> 0 | AM39: ='Control panel'!$AA37/SUMPRODUCT('Control panel'!$AA$7:$AA$37,'Control panel'!AI$7:AI$37)*'Control panel'!AI37 -> 0.01261505502 | AN39: ='Control panel'!$AA37/SUMPRODUCT('Control panel'!$AA$7:$AA$37,'Control panel'!AJ$7:AJ$37)*'Control panel'!AJ37 -> 0 | AO39: ='Control panel'!$AA37/SUMPRODUCT('Control panel'!$AA$7:$AA$37,'Control panel'!AK$7:AK$37)*'Control panel'!AK37 -> 0 | AP39: ='Control panel'!$AA37/SUMPRODUCT('Control panel'!$AA$7:$AA$37,'Control panel'!AL$7:AL$37)*'Control panel'!AL37 -> 0.01261505502 | AQ39: ='Control panel'!$AA37/SUMPRODUCT('Control panel'!$AA$7:$AA$37,'Control panel'!AM$7:AM$37)*'Control panel'!AM37 -> 0 | AR39: ='Control panel'!$AA37/SUMPRODUCT('Control panel'!$AA$7:$AA$37,'Control panel'!AN$7:AN$37)*'Control panel'!AN37 -> 0 | AS39: ='Control panel'!$AA37/SUMPRODUCT('Control panel'!$AA$7:$AA$37,'Control panel'!AO$7:AO$37)*'Control panel'!AO37 -> 0 | AT39: ='Control panel'!$AA37/SUMPRODUCT('Control panel'!$AA$7:$AA$37,'Control panel'!AP$7:AP$37)*'Control panel'!AP37 -> 0.01261505502 | AU39: ='Control panel'!$AA37/SUMPRODUCT('Control panel'!$AA$7:$AA$37,'Control panel'!AQ$7:AQ$37)*'Control panel'!AQ37 -> 0.01261505502 | AV39: ='Control panel'!$AA37/SUMPRODUCT('Control panel'!$AA$7:$AA$37,'Control panel'!AR$7:AR$37)*'Control panel'!AR37 -> 0.01261505502 | AW39: ='Control panel'!$AA37/SUMPRODUCT('Control panel'!$AA$7:$AA$37,'Control panel'!AS$7:AS$37)*'Control panel'!AS37 -> 0.01261505502 | AX39: ='Control panel'!$AA37/SUMPRODUCT('Control panel'!$AA$7:$AA$37,'Control panel'!AT$7:AT$37)*'Control panel'!AT37 -> 0.01261505502
W40: 2026-27 | X40: ='PTRM Data'!B7 -> Overhead Sub-Transmission Lines | Y40: =_xlfn.XLOOKUP(X40,'Control panel'!$L$7:$L$37,'Control panel'!$P$7:$P$37) -> 1 | Z40: 9.510705794 | AA40: =_xlfn.XLOOKUP(W40,'BBM Costs'!$Q$6:$U$6,_xlfn.XLOOKUP(X40,'BBM Costs'!$P$7:$P$37,'BBM Costs'!$Q$7:$U$37))*_xlfn.XLOOKUP(X40,'Control panel'!$L$7:$L$37,'Control panel'!$M$7:$M$37) -> 0 | AB40: =_xlfn.XLOOKUP(W40,'BBM Costs'!$X$6:$AB$6,_xlfn.XLOOKUP(X40,'BBM Costs'!$W$7:$W$37,'BBM Costs'!$X$7:$AB$37))*_xlfn.XLOOKUP(X40,'Control panel'!$S$7:$S$37,'Control panel'!$T$7:$T$37) -> 0 | AC40: 9.510705794
W41: 2026-27 | X41: ='PTRM Data'!B8 -> Underground Sub-Transmission Cables | Y41: =_xlfn.XLOOKUP(X41,'Control panel'!$L$7:$L$37,'Control panel'!$P$7:$P$37) -> 1 | Z41: 0.367599113 | AA41: =_xlfn.XLOOKUP(W41,'BBM Costs'!$Q$6:$U$6,_xlfn.XLOOKUP(X41,'BBM Costs'!$P$7:$P$37,'BBM Costs'!$Q$7:$U$37))*_xlfn.XLOOKUP(X41,'Control panel'!$L$7:$L$37,'Control panel'!$M$7:$M$37) -> 0 | AB41: =_xlfn.XLOOKUP(W41,'BBM Costs'!$X$6:$AB$6,_xlfn.XLOOKUP(X41,'BBM Costs'!$W$7:$W$37,'BBM Costs'!$X$7:$AB$37))*_xlfn.XLOOKUP(X41,'Control panel'!$S$7:$S$37,'Control panel'!$T$7:$T$37) -> 0 | AC41: 0.367599113
W42: 2026-27 | X42: ='PTRM Data'!B9 -> Overhead Distribution Lines | Y42: =_xlfn.XLOOKUP(X42,'Control panel'!$L$7:$L$37,'Control panel'!$P$7:$P$37) -> 0.57 | Z42: 36.33747965 | AA42: =_xlfn.XLOOKUP(W42,'BBM Costs'!$Q$6:$U$6,_xlfn.XLOOKUP(X42,'BBM Costs'!$P$7:$P$37,'BBM Costs'!$Q$7:$U$37))*_xlfn.XLOOKUP(X42,'Control panel'!$L$7:$L$37,'Control panel'!$M$7:$M$37) -> 3.595619609 | AB42: =_xlfn.XLOOKUP(W42,'BBM Costs'!$X$6:$AB$6,_xlfn.XLOOKUP(X42,'BBM Costs'!$W$7:$W$37,'BBM Costs'!$X$7:$AB$37))*_xlfn.XLOOKUP(X42,'Control panel'!$S$7:$S$37,'Control panel'!$T$7:$T$37) -> 162.5012629 | AC42: 202.4343621
W43: 2026-27 | X43: ='PTRM Data'!B10 -> Underground Distribution Cables | Y43: =_xlfn.XLOOKUP(X43,'Control panel'!$L$7:$L$37,'Control panel'!$P$7:$P$37) -> 0.57 | Z43: 6.70482728 | AA43: =_xlfn.XLOOKUP(W43,'BBM Costs'!$Q$6:$U$6,_xlfn.XLOOKUP(X43,'BBM Costs'!$P$7:$P$37,'BBM Costs'!$Q$7:$U$37))*_xlfn.XLOOKUP(X43,'Control panel'!$L$7:$L$37,'Control panel'!$M$7:$M$37) -> -1.478485214 | AB43: =_xlfn.XLOOKUP(W43,'BBM Costs'!$X$6:$AB$6,_xlfn.XLOOKUP(X43,'BBM Costs'!$W$7:$W$37,'BBM Costs'!$X$7:$AB$37))*_xlfn.XLOOKUP(X43,'Control panel'!$S$7:$S$37,'Control panel'!$T$7:$T$37) -> 28.6918906 | AC43: 33.91823267
W44: 2026-27 | X44: ='PTRM Data'!B11 -> Distribution Equipment | Y44: =_xlfn.XLOOKUP(X44,'Control panel'!$L$7:$L$37,'Control panel'!$P$7:$P$37) -> 0.57 | Z44: 0.1074448262 | AA44: =_xlfn.XLOOKUP(W44,'BBM Costs'!$Q$6:$U$6,_xlfn.XLOOKUP(X44,'BBM Costs'!$P$7:$P$37,'BBM Costs'!$Q$7:$U$37))*_xlfn.XLOOKUP(X44,'Control panel'!$L$7:$L$37,'Control panel'!$M$7:$M$37) -> 0.4635655754 | AB44: =_xlfn.XLOOKUP(W44,'BBM Costs'!$X$6:$AB$6,_xlfn.XLOOKUP(X44,'BBM Costs'!$W$7:$W$37,'BBM Costs'!$X$7:$AB$37))*_xlfn.XLOOKUP(X44,'Control panel'!$S$7:$S$37,'Control panel'!$T$7:$T$37) -> 0.9000248636 | AC44: 1.471035265
W45: 2026-27 | X45: ='PTRM Data'!B12 -> Substation Bays | Y45: =_xlfn.XLOOKUP(X45,'Control panel'!$L$7:$L$37,'Control panel'!$P$7:$P$37) -> 1 | Z45: 10.35539638 | AA45: =_xlfn.XLOOKUP(W45,'BBM Costs'!$Q$6:$U$6,_xlfn.XLOOKUP(X45,'BBM Costs'!$P$7:$P$37,'BBM Costs'!$Q$7:$U$37))*_xlfn.XLOOKUP(X45,'Control panel'!$L$7:$L$37,'Control panel'!$M$7:$M$37) -> 0 | AB45: =_xlfn.XLOOKUP(W45,'BBM Costs'!$X$6:$AB$6,_xlfn.XLOOKUP(X45,'BBM Costs'!$W$7:$W$37,'BBM Costs'!$X$7:$AB$37))*_xlfn.XLOOKUP(X45,'Control panel'!$S$7:$S$37,'Control panel'!$T$7:$T$37) -> 0 | AC45: 10.35539638
W46: 2026-27 | X46: ='PTRM Data'!B13 -> Substation Establishment | Y46: =_xlfn.XLOOKUP(X46,'Control panel'!$L$7:$L$37,'Control panel'!$P$7:$P$37) -> 1 | Z46: 2.188609996 | AA46: =_xlfn.XLOOKUP(W46,'BBM Costs'!$Q$6:$U$6,_xlfn.XLOOKUP(X46,'BBM Costs'!$P$7:$P$37,'BBM Costs'!$Q$7:$U$37))*_xlfn.XLOOKUP(X46,'Control panel'!$L$7:$L$37,'Control panel'!$M$7:$M$37) -> 0 | AB46: =_xlfn.XLOOKUP(W46,'BBM Costs'!$X$6:$AB$6,_xlfn.XLOOKUP(X46,'BBM Costs'!$W$7:$W$37,'BBM Costs'!$X$7:$AB$37))*_xlfn.XLOOKUP(X46,'Control panel'!$S$7:$S$37,'Control panel'!$T$7:$T$37) -> 0 | AC46: 2.188609996
W47: 2026-27 | X47: ='PTRM Data'!B14 -> Distribution Substation Switchgear | Y47: =_xlfn.XLOOKUP(X47,'Control panel'!$L$7:$L$37,'Control panel'!$P$7:$P$37) -> 0.57 | Z47: 3.785722939 | AA47: =_xlfn.XLOOKUP(W47,'BBM Costs'!$Q$6:$U$6,_xlfn.XLOOKUP(X47,'BBM Costs'!$P$7:$P$37,'BBM Costs'!$Q$7:$U$37))*_xlfn.XLOOKUP(X47,'Control panel'!$L$7:$L$37,'Control panel'!$M$7:$M$37) -> 0.552529131 | AB47: =_xlfn.XLOOKUP(W47,'BBM Costs'!$X$6:$AB$6,_xlfn.XLOOKUP(X47,'BBM Costs'!$W$7:$W$37,'BBM Costs'!$X$7:$AB$37))*_xlfn.XLOOKUP(X47,'Control panel'!$S$7:$S$37,'Control panel'!$T$7:$T$37) -> 17.47812354 | AC47: 21.81637561
W48: 2026-27 | X48: ='PTRM Data'!B15 -> Zone Transformers | Y48: =_xlfn.XLOOKUP(X48,'Control panel'!$L$7:$L$37,'Control panel'!$P$7:$P$37) -> 1 | Z48: 1.996885517 | AA48: =_xlfn.XLOOKUP(W48,'BBM Costs'!$Q$6:$U$6,_xlfn.XLOOKUP(X48,'BBM Costs'!$P$7:$P$37,'BBM Costs'!$Q$7:$U$37))*_xlfn.XLOOKUP(X48,'Control panel'!$L$7:$L$37,'Control panel'!$M$7:$M$37) -> 0 | AB48: =_xlfn.XLOOKUP(W48,'BBM Costs'!$X$6:$AB$6,_xlfn.XLOOKUP(X48,'BBM Costs'!$W$7:$W$37,'BBM Costs'!$X$7:$AB$37))*_xlfn.XLOOKUP(X48,'Control panel'!$S$7:$S$37,'Control panel'!$T$7:$T$37) -> 0 | AC48: 1.996885517
W49: 2026-27 | X49: ='PTRM Data'!B16 -> Distribution Transformers | Y49: =_xlfn.XLOOKUP(X49,'Control panel'!$L$7:$L$37,'Control panel'!$P$7:$P$37) -> 0.57 | Z49: 9.413348562 | AA49: =_xlfn.XLOOKUP(W49,'BBM Costs'!$Q$6:$U$6,_xlfn.XLOOKUP(X49,'BBM Costs'!$P$7:$P$37,'BBM Costs'!$Q$7:$U$37))*_xlfn.XLOOKUP(X49,'Control panel'!$L$7:$L$37,'Control panel'!$M$7:$M$37) -> 10.6117222 | AB49: =_xlfn.XLOOKUP(W49,'BBM Costs'!$X$6:$AB$6,_xlfn.XLOOKUP(X49,'BBM Costs'!$W$7:$W$37,'BBM Costs'!$X$7:$AB$37))*_xlfn.XLOOKUP(X49,'Control panel'!$S$7:$S$37,'Control panel'!$T$7:$T$37) -> 40.7343863 | AC49: 60.75945706
W50: 2026-27 | X50: ='PTRM Data'!B17 -> Low Voltage Services | Y50: =_xlfn.XLOOKUP(X50,'Control panel'!$L$7:$L$37,'Control panel'!$P$7:$P$37) -> 0 | Z50: 3.608318125 | AA50: =_xlfn.XLOOKUP(W50,'BBM Costs'!$Q$6:$U$6,_xlfn.XLOOKUP(X50,'BBM Costs'!$P$7:$P$37,'BBM Costs'!$Q$7:$U$37))*_xlfn.XLOOKUP(X50,'Control panel'!$L$7:$L$37,'Control panel'!$M$7:$M$37) -> 0 | AB50: =_xlfn.XLOOKUP(W50,'BBM Costs'!$X$6:$AB$6,_xlfn.XLOOKUP(X50,'BBM Costs'!$W$7:$W$37,'BBM Costs'!$X$7:$AB$37))*_xlfn.XLOOKUP(X50,'Control panel'!$S$7:$S$37,'Control panel'!$T$7:$T$37) -> 0 | AC50: 3.608318125
W51: 2026-27 | X51: ='PTRM Data'!B18 -> Metering | Y51: =_xlfn.XLOOKUP(X51,'Control panel'!$L$7:$L$37,'Control panel'!$P$7:$P$37) -> 1 | Z51: 0 | AA51: =_xlfn.XLOOKUP(W51,'BBM Costs'!$Q$6:$U$6,_xlfn.XLOOKUP(X51,'BBM Costs'!$P$7:$P$37,'BBM Costs'!$Q$7:$U$37))*_xlfn.XLOOKUP(X51,'Control panel'!$L$7:$L$37,'Control panel'!$M$7:$M$37) -> 0 | AB51: =_xlfn.XLOOKUP(W51,'BBM Costs'!$X$6:$AB$6,_xlfn.XLOOKUP(X51,'BBM Costs'!$W$7:$W$37,'BBM Costs'!$X$7:$AB$37))*_xlfn.XLOOKUP(X51,'Control panel'!$S$7:$S$37,'Control panel'!$T$7:$T$37) -> 0 | AC51: 0
W52: 2026-27 | X52: ='PTRM Data'!B19 -> Communications – Pilot Wires | Y52: =_xlfn.XLOOKUP(X52,'Control panel'!$L$7:$L$37,'Control panel'!$P$7:$P$37) -> 0 | Z52: 1.23347453 | AA52: =_xlfn.XLOOKUP(W52,'BBM Costs'!$Q$6:$U$6,_xlfn.XLOOKUP(X52,'BBM Costs'!$P$7:$P$37,'BBM Costs'!$Q$7:$U$37))*_xlfn.XLOOKUP(X52,'Control panel'!$L$7:$L$37,'Control panel'!$M$7:$M$37) -> 0 | AB52: =_xlfn.XLOOKUP(W52,'BBM Costs'!$X$6:$AB$6,_xlfn.XLOOKUP(X52,'BBM Costs'!$W$7:$W$37,'BBM Costs'!$X$7:$AB$37))*_xlfn.XLOOKUP(X52,'Control panel'!$S$7:$S$37,'Control panel'!$T$7:$T$37) -> 0 | AC52: 1.23347453
W54: 2026-27 | X54: ='PTRM Data'!B21 -> Land & Easements (System) - combined | Y54: =_xlfn.XLOOKUP(X54,'Control panel'!$L$7:$L$37,'Control panel'!$P$7:$P$37) -> 1 | Z54: 0.3299349259 | AA54: =_xlfn.XLOOKUP(W54,'BBM Costs'!$Q$6:$U$6,_xlfn.XLOOKUP(X54,'BBM Costs'!$P$7:$P$37,'BBM Costs'!$Q$7:$U$37))*_xlfn.XLOOKUP(X54,'Control panel'!$L$7:$L$37,'Control panel'!$M$7:$M$37) -> 0 | AB54: =_xlfn.XLOOKUP(W54,'BBM Costs'!$X$6:$AB$6,_xlfn.XLOOKUP(X54,'BBM Costs'!$W$7:$W$37,'BBM Costs'!$X$7:$AB$37))*_xlfn.XLOOKUP(X54,'Control panel'!$S$7:$S$37,'Control panel'!$T$7:$T$37) -> 0 | AC54: 0.3299349259
W55: 2026-27 | X55: ='PTRM Data'!B22 -> Land Improvements | Y55: =_xlfn.XLOOKUP(X55,'Control panel'!$L$7:$L$37,'Control panel'!$P$7:$P$37) -> 1 | Z55: 0 | AA55: =_xlfn.XLOOKUP(W55,'BBM Costs'!$Q$6:$U$6,_xlfn.XLOOKUP(X55,'BBM Costs'!$P$7:$P$37,'BBM Costs'!$Q$7:$U$37))*_xlfn.XLOOKUP(X55,'Control panel'!$L$7:$L$37,'Control panel'!$M$7:$M$37) -> 0 | AB55: =_xlfn.XLOOKUP(W55,'BBM Costs'!$X$6:$AB$6,_xlfn.XLOOKUP(X55,'BBM Costs'!$W$7:$W$37,'BBM Costs'!$X$7:$AB$37))*_xlfn.XLOOKUP(X55,'Control panel'!$S$7:$S$37,'Control panel'!$T$7:$T$37) -> 0 | AC55: 0
W56: 2026-27 | X56: ='PTRM Data'!B23 -> Control Centre - SCADA | Y56: =_xlfn.XLOOKUP(X56,'Control panel'!$L$7:$L$37,'Control panel'!$P$7:$P$37) -> 1 | Z56: 0.1720296739 | AA56: =_xlfn.XLOOKUP(W56,'BBM Costs'!$Q$6:$U$6,_xlfn.XLOOKUP(X56,'BBM Costs'!$P$7:$P$37,'BBM Costs'!$Q$7:$U$37))*_xlfn.XLOOKUP(X56,'Control panel'!$L$7:$L$37,'Control panel'!$M$7:$M$37) -> 0 | AB56: =_xlfn.XLOOKUP(W56,'BBM Costs'!$X$6:$AB$6,_xlfn.XLOOKUP(X56,'BBM Costs'!$W$7:$W$37,'BBM Costs'!$X$7:$AB$37))*_xlfn.XLOOKUP(X56,'Control panel'!$S$7:$S$37,'Control panel'!$T$7:$T$37) -> 0 | AC56: 0.1720296739
W57: 2026-27 | X57: ='PTRM Data'!B24 -> Other Equipment | Y57: =_xlfn.XLOOKUP(X57,'Control panel'!$L$7:$L$37,'Control panel'!$P$7:$P$37) -> 1 | Z57: 0.009130500557 | AA57: =_xlfn.XLOOKUP(W57,'BBM Costs'!$Q$6:$U$6,_xlfn.XLOOKUP(X57,'BBM Costs'!$P$7:$P$37,'BBM Costs'!$Q$7:$U$37))*_xlfn.XLOOKUP(X57,'Control panel'!$L$7:$L$37,'Control panel'!$M$7:$M$37) -> 0 | AB57: =_xlfn.XLOOKUP(W57,'BBM Costs'!$X$6:$AB$6,_xlfn.XLOOKUP(X57,'BBM Costs'!$W$7:$W$37,'BBM Costs'!$X$7:$AB$37))*_xlfn.XLOOKUP(X57,'Control panel'!$S$7:$S$37,'Control panel'!$T$7:$T$37) -> 0 | AC57: 0.009130500557
W58: 2026-27 | X58: ='PTRM Data'!B25 -> Generation Assets | Y58: =_xlfn.XLOOKUP(X58,'Control panel'!$L$7:$L$37,'Control panel'!$P$7:$P$37) -> 1 | Z58: 0.1158254803 | AA58: =_xlfn.XLOOKUP(W58,'BBM Costs'!$Q$6:$U$6,_xlfn.XLOOKUP(X58,'BBM Costs'!$P$7:$P$37,'BBM Costs'!$Q$7:$U$37))*_xlfn.XLOOKUP(X58,'Control panel'!$L$7:$L$37,'Control panel'!$M$7:$M$37) -> 0 | AB58: =_xlfn.XLOOKUP(W58,'BBM Costs'!$X$6:$AB$6,_xlfn.XLOOKUP(X58,'BBM Costs'!$W$7:$W$37,'BBM Costs'!$X$7:$AB$37))*_xlfn.XLOOKUP(X58,'Control panel'!$S$7:$S$37,'Control panel'!$T$7:$T$37) -> 0 | AC58: 0.1158254803
W59: 2026-27 | X59: ='PTRM Data'!B26 -> Motor Vehicles | Y59: =_xlfn.XLOOKUP(X59,'Control panel'!$L$7:$L$37,'Control panel'!$P$7:$P$37) -> 1 | Z59: 0 | AA59: =_xlfn.XLOOKUP(W59,'BBM Costs'!$Q$6:$U$6,_xlfn.XLOOKUP(X59,'BBM Costs'!$P$7:$P$37,'BBM Costs'!$Q$7:$U$37))*_xlfn.XLOOKUP(X59,'Control panel'!$L$7:$L$37,'Control panel'!$M$7:$M$37) -> 0 | AB59: =_xlfn.XLOOKUP(W59,'BBM Costs'!$X$6:$AB$6,_xlfn.XLOOKUP(X59,'BBM Costs'!$W$7:$W$37,'BBM Costs'!$X$7:$AB$37))*_xlfn.XLOOKUP(X59,'Control panel'!$S$7:$S$37,'Control panel'!$T$7:$T$37) -> 0 | AC59: 0
W60: 2026-27 | X60: ='PTRM Data'!B27 -> Plant & Equipment | Y60: =_xlfn.XLOOKUP(X60,'Control panel'!$L$7:$L$37,'Control panel'!$P$7:$P$37) -> 1 | Z60: 0 | AA60: =_xlfn.XLOOKUP(W60,'BBM Costs'!$Q$6:$U$6,_xlfn.XLOOKUP(X60,'BBM Costs'!$P$7:$P$37,'BBM Costs'!$Q$7:$U$37))*_xlfn.XLOOKUP(X60,'Control panel'!$L$7:$L$37,'Control panel'!$M$7:$M$37) -> 0 | AB60: =_xlfn.XLOOKUP(W60,'BBM Costs'!$X$6:$AB$6,_xlfn.XLOOKUP(X60,'BBM Costs'!$W$7:$W$37,'BBM Costs'!$X$7:$AB$37))*_xlfn.XLOOKUP(X60,'Control panel'!$S$7:$S$37,'Control panel'!$T$7:$T$37) -> 0 | AC60: 0
W61: 2026-27 | X61: ='PTRM Data'!B28 -> Buildings | Y61: =_xlfn.XLOOKUP(X61,'Control panel'!$L$7:$L$37,'Control panel'!$P$7:$P$37) -> 1 | Z61: 0 | AA61: =_xlfn.XLOOKUP(W61,'BBM Costs'!$Q$6:$U$6,_xlfn.XLOOKUP(X61,'BBM Costs'!$P$7:$P$37,'BBM Costs'!$Q$7:$U$37))*_xlfn.XLOOKUP(X61,'Control panel'!$L$7:$L$37,'Control panel'!$M$7:$M$37) -> 0 | AB61: =_xlfn.XLOOKUP(W61,'BBM Costs'!$X$6:$AB$6,_xlfn.XLOOKUP(X61,'BBM Costs'!$W$7:$W$37,'BBM Costs'!$X$7:$AB$37))*_xlfn.XLOOKUP(X61,'Control panel'!$S$7:$S$37,'Control panel'!$T$7:$T$37) -> 0 | AC61: 0
W62: 2026-27 | X62: ='PTRM Data'!B29 -> Office Equipment & Furniture | Y62: =_xlfn.XLOOKUP(X62,'Control panel'!$L$7:$L$37,'Control panel'!$P$7:$P$37) -> 1 | Z62: -0.02672274042 | AA62: =_xlfn.XLOOKUP(W62,'BBM Costs'!$Q$6:$U$6,_xlfn.XLOOKUP(X62,'BBM Costs'!$P$7:$P$37,'BBM Costs'!$Q$7:$U$37))*_xlfn.XLOOKUP(X62,'Control panel'!$L$7:$L$37,'Control panel'!$M$7:$M$37) -> 0 | AB62: =_xlfn.XLOOKUP(W62,'BBM Costs'!$X$6:$AB$6,_xlfn.XLOOKUP(X62,'BBM Costs'!$W$7:$W$37,'BBM Costs'!$X$7:$AB$37))*_xlfn.XLOOKUP(X62,'Control panel'!$S$7:$S$37,'Control panel'!$T$7:$T$37) -> 0 | AC62: -0.02672274042
W63: 2026-27 | X63: ='PTRM Data'!B30 -> Initial Leases (10 yr life) | Y63: =_xlfn.XLOOKUP(X63,'Control panel'!$L$7:$L$37,'Control panel'!$P$7:$P$37) -> 1 | Z63: 0 | AA63: =_xlfn.XLOOKUP(W63,'BBM Costs'!$Q$6:$U$6,_xlfn.XLOOKUP(X63,'BBM Costs'!$P$7:$P$37,'BBM Costs'!$Q$7:$U$37))*_xlfn.XLOOKUP(X63,'Control panel'!$L$7:$L$37,'Control panel'!$M$7:$M$37) -> 0 | AB63: =_xlfn.XLOOKUP(W63,'BBM Costs'!$X$6:$AB$6,_xlfn.XLOOKUP(X63,'BBM Costs'!$W$7:$W$37,'BBM Costs'!$X$7:$AB$37))*_xlfn.XLOOKUP(X63,'Control panel'!$S$7:$S$37,'Control panel'!$T$7:$T$37) -> 0 | AC63: 0
W64: 2026-27 | X64: ='PTRM Data'!B31 -> Lease Extensions (5yr Life) | Y64: =_xlfn.XLOOKUP(X64,'Control panel'!$L$7:$L$37,'Control panel'!$P$7:$P$37) -> 1 | Z64: 0 | AA64: =_xlfn.XLOOKUP(W64,'BBM Costs'!$Q$6:$U$6,_xlfn.XLOOKUP(X64,'BBM Costs'!$P$7:$P$37,'BBM Costs'!$Q$7:$U$37))*_xlfn.XLOOKUP(X64,'Control panel'!$L$7:$L$37,'Control panel'!$M$7:$M$37) -> 0 | AB64: =_xlfn.XLOOKUP(W64,'BBM Costs'!$X$6:$AB$6,_xlfn.XLOOKUP(X64,'BBM Costs'!$W$7:$W$37,'BBM Costs'!$X$7:$AB$37))*_xlfn.XLOOKUP(X64,'Control panel'!$S$7:$S$37,'Control panel'!$T$7:$T$37) -> 0 | AC64: 0
W65: 2026-27 | X65: ='PTRM Data'!B32 -> Land & Easements - combined | Y65: =_xlfn.XLOOKUP(X65,'Control panel'!$L$7:$L$37,'Control panel'!$P$7:$P$37) -> 1 | Z65: 0 | AA65: =_xlfn.XLOOKUP(W65,'BBM Costs'!$Q$6:$U$6,_xlfn.XLOOKUP(X65,'BBM Costs'!$P$7:$P$37,'BBM Costs'!$Q$7:$U$37))*_xlfn.XLOOKUP(X65,'Control panel'!$L$7:$L$37,'Control panel'!$M$7:$M$37) -> 0 | AB65: =_xlfn.XLOOKUP(W65,'BBM Costs'!$X$6:$AB$6,_xlfn.XLOOKUP(X65,'BBM Costs'!$W$7:$W$37,'BBM Costs'!$X$7:$AB$37))*_xlfn.XLOOKUP(X65,'Control panel'!$S$7:$S$37,'Control panel'!$T$7:$T$37) -> 0 | AC65: 0
W66: 2026-27 | X66: ='PTRM Data'!B33 -> Communications | Y66: =_xlfn.XLOOKUP(X66,'Control panel'!$L$7:$L$37,'Control panel'!$P$7:$P$37) -> 1 | Z66: 0 | AA66: =_xlfn.XLOOKUP(W66,'BBM Costs'!$Q$6:$U$6,_xlfn.XLOOKUP(X66,'BBM Costs'!$P$7:$P$37,'BBM Costs'!$Q$7:$U$37))*_xlfn.XLOOKUP(X66,'Control panel'!$L$7:$L$37,'Control panel'!$M$7:$M$37) -> 0 | AB66: =_xlfn.XLOOKUP(W66,'BBM Costs'!$X$6:$AB$6,_xlfn.XLOOKUP(X66,'BBM Costs'!$W$7:$W$37,'BBM Costs'!$X$7:$AB$37))*_xlfn.XLOOKUP(X66,'Control panel'!$S$7:$S$37,'Control panel'!$T$7:$T$37) -> 0 | AC66: 0
W67: 2026-27 | X67: ='PTRM Data'!B34 -> In-house software | Y67: =_xlfn.XLOOKUP(X67,'Control panel'!$L$7:$L$37,'Control panel'!$P$7:$P$37) -> 1 | Z67: 0 | AA67: =_xlfn.XLOOKUP(W67,'BBM Costs'!$Q$6:$U$6,_xlfn.XLOOKUP(X67,'BBM Costs'!$P$7:$P$37,'BBM Costs'!$Q$7:$U$37))*_xlfn.XLOOKUP(X67,'Control panel'!$L$7:$L$37,'Control panel'!$M$7:$M$37) -> 0 | AB67: =_xlfn.XLOOKUP(W67,'BBM Costs'!$X$6:$AB$6,_xlfn.XLOOKUP(X67,'BBM Costs'!$W$7:$W$37,'BBM Costs'!$X$7:$AB$37))*_xlfn.XLOOKUP(X67,'Control panel'!$S$7:$S$37,'Control panel'!$T$7:$T$37) -> 0 | AC67: 0
W68: 2026-27 | X68: ='PTRM Data'!B35 -> IT Systems | Y68: =_xlfn.XLOOKUP(X68,'Control panel'!$L$7:$L$37,'Control panel'!$P$7:$P$37) -> 1 | Z68: 0 | AA68: =_xlfn.XLOOKUP(W68,'BBM Costs'!$Q$6:$U$6,_xlfn.XLOOKUP(X68,'BBM Costs'!$P$7:$P$37,'BBM Costs'!$Q$7:$U$37))*_xlfn.XLOOKUP(X68,'Control panel'!$L$7:$L$37,'Control panel'!$M$7:$M$37) -> 0 | AB68: =_xlfn.XLOOKUP(W68,'BBM Costs'!$X$6:$AB$6,_xlfn.XLOOKUP(X68,'BBM Costs'!$W$7:$W$37,'BBM Costs'!$X$7:$AB$37))*_xlfn.XLOOKUP(X68,'Control panel'!$S$7:$S$37,'Control panel'!$T$7:$T$37) -> 0 | AC68: 0
W69: 2026-27 | X69: ='PTRM Data'!B36 -> ICT Legacy Assets | Y69: =_xlfn.XLOOKUP(X69,'Control panel'!$L$7:$L$37,'Control panel'!$P$7:$P$37) -> 1 | Z69: 0 | AA69: =_xlfn.XLOOKUP(W69,'BBM Costs'!$Q$6:$U$6,_xlfn.XLOOKUP(X69,'BBM Costs'!$P$7:$P$37,'BBM Costs'!$Q$7:$U$37))*_xlfn.XLOOKUP(X69,'Control panel'!$L$7:$L$37,'Control panel'!$M$7:$M$37) -> 0 | AB69: =_xlfn.XLOOKUP(W69,'BBM Costs'!$X$6:$AB$6,_xlfn.XLOOKUP(X69,'BBM Costs'!$W$7:$W$37,'BBM Costs'!$X$7:$AB$37))*_xlfn.XLOOKUP(X69,'Control panel'!$S$7:$S$37,'Control panel'!$T$7:$T$37) -> 0 | AC69: 0
W70: 2026-27 | X70: ='PTRM Data'!B37 -> Buildings - capital works | Y70: =_xlfn.XLOOKUP(X70,'Control panel'!$L$7:$L$37,'Control panel'!$P$7:$P$37) -> 1 | Z70: 0 | AA70: =_xlfn.XLOOKUP(W70,'BBM Costs'!$Q$6:$U$6,_xlfn.XLOOKUP(X70,'BBM Costs'!$P$7:$P$37,'BBM Costs'!$Q$7:$U$37))*_xlfn.XLOOKUP(X70,'Control panel'!$L$7:$L$37,'Control panel'!$M$7:$M$37) -> 0 | AB70: =_xlfn.XLOOKUP(W70,'BBM Costs'!$X$6:$AB$6,_xlfn.XLOOKUP(X70,'BBM Costs'!$W$7:$W$37,'BBM Costs'!$X$7:$AB$37))*_xlfn.XLOOKUP(X70,'Control panel'!$S$7:$S$37,'Control panel'!$T$7:$T$37) -> 0 | AC70: 0
W71: 2027-28 | X71: ='PTRM Data'!B7 -> Overhead Sub-Transmission Lines | Y71: =_xlfn.XLOOKUP(X71,'Control panel'!$L$7:$L$37,'Control panel'!$P$7:$P$37) -> 1 | Z71: 9.69788584 | AA71: =_xlfn.XLOOKUP(W71,'BBM Costs'!$Q$6:$U$6,_xlfn.XLOOKUP(X71,'BBM Costs'!$P$7:$P$37,'BBM Costs'!$Q$7:$U$37))*_xlfn.XLOOKUP(X71,'Control panel'!$L$7:$L$37,'Control panel'!$M$7:$M$37) -> 0 | AB71: =_xlfn.XLOOKUP(W71,'BBM Costs'!$X$6:$AB$6,_xlfn.XLOOKUP(X71,'BBM Costs'!$W$7:$W$37,'BBM Costs'!$X$7:$AB$37))*_xlfn.XLOOKUP(X71,'Control panel'!$S$7:$S$37,'Control panel'!$T$7:$T$37) -> 0 | AC71: 9.69788584
W72: 2027-28 | X72: ='PTRM Data'!B8 -> Underground Sub-Transmission Cables | Y72: =_xlfn.XLOOKUP(X72,'Control panel'!$L$7:$L$37,'Control panel'!$P$7:$P$37) -> 1 | Z72: 0.3748338252 | AA72: =_xlfn.XLOOKUP(W72,'BBM Costs'!$Q$6:$U$6,_xlfn.XLOOKUP(X72,'BBM Costs'!$P$7:$P$37,'BBM Costs'!$Q$7:$U$37))*_xlfn.XLOOKUP(X72,'Control panel'!$L$7:$L$37,'Control panel'!$M$7:$M$37) -> 0 | AB72: =_xlfn.XLOOKUP(W72,'BBM Costs'!$X$6:$AB$6,_xlfn.XLOOKUP(X72,'BBM Costs'!$W$7:$W$37,'BBM Costs'!$X$7:$AB$37))*_xlfn.XLOOKUP(X72,'Control panel'!$S$7:$S$37,'Control panel'!$T$7:$T$37) -> 0 | AC72: 0.3748338252
W73: 2027-28 | X73: ='PTRM Data'!B9 -> Overhead Distribution Lines | Y73: =_xlfn.XLOOKUP(X73,'Control panel'!$L$7:$L$37,'Control panel'!$P$7:$P$37) -> 0.57 | Z73: 37.052637 | AA73: =_xlfn.XLOOKUP(W73,'BBM Costs'!$Q$6:$U$6,_xlfn.XLOOKUP(X73,'BBM Costs'!$P$7:$P$37,'BBM Costs'!$Q$7:$U$37))*_xlfn.XLOOKUP(X73,'Control panel'!$L$7:$L$37,'Control panel'!$M$7:$M$37) -> 4.398891879 | AB73: =_xlfn.XLOOKUP(W73,'BBM Costs'!$X$6:$AB$6,_xlfn.XLOOKUP(X73,'BBM Costs'!$W$7:$W$37,'BBM Costs'!$X$7:$AB$37))*_xlfn.XLOOKUP(X73,'Control panel'!$S$7:$S$37,'Control panel'!$T$7:$T$37) -> 177.5012799 | AC73: 218.9528088
W74: 2027-28 | X74: ='PTRM Data'!B10 -> Underground Distribution Cables | Y74: =_xlfn.XLOOKUP(X74,'Control panel'!$L$7:$L$37,'Control panel'!$P$7:$P$37) -> 0.57 | Z74: =SUMPRODUCT(_xlfn.XLOOKUP(W74,$AZ$9:$AZ$13,$BA$9:$BS$13),_xlfn.XLOOKUP(X74,$AE$9:$AE$39,$AF$9:$AX$39)) -> 6.836784877 | AA74: =_xlfn.XLOOKUP(W74,'BBM Costs'!$Q$6:$U$6,_xlfn.XLOOKUP(X74,'BBM Costs'!$P$7:$P$37,'BBM Costs'!$Q$7:$U$37))*_xlfn.XLOOKUP(X74,'Control panel'!$L$7:$L$37,'Control panel'!$M$7:$M$37) -> -1.223718728 | AB74: =_xlfn.XLOOKUP(W74,'BBM Costs'!$X$6:$AB$6,_xlfn.XLOOKUP(X74,'BBM Costs'!$W$7:$W$37,'BBM Costs'!$X$7:$AB$37))*_xlfn.XLOOKUP(X74,'Control panel'!$S$7:$S$37,'Control panel'!$T$7:$T$37) -> 30.01025578 | AC74: =SUM(Z74:AB74) -> 35.62332193
W75: 2027-28 | X75: ='PTRM Data'!B11 -> Distribution Equipment | Y75: =_xlfn.XLOOKUP(X75,'Control panel'!$L$7:$L$37,'Control panel'!$P$7:$P$37) -> 0.57 | Z75: 0.109559446 | AA75: =_xlfn.XLOOKUP(W75,'BBM Costs'!$Q$6:$U$6,_xlfn.XLOOKUP(X75,'BBM Costs'!$P$7:$P$37,'BBM Costs'!$Q$7:$U$37))*_xlfn.XLOOKUP(X75,'Control panel'!$L$7:$L$37,'Control panel'!$M$7:$M$37) -> 0.489988767 | AB75: =_xlfn.XLOOKUP(W75,'BBM Costs'!$X$6:$AB$6,_xlfn.XLOOKUP(X75,'BBM Costs'!$W$7:$W$37,'BBM Costs'!$X$7:$AB$37))*_xlfn.XLOOKUP(X75,'Control panel'!$S$7:$S$37,'Control panel'!$T$7:$T$37) -> 1.414999826 | AC75: 2.014548039
W76: 2027-28 | X76: ='PTRM Data'!B12 -> Substation Bays | Y76: =_xlfn.XLOOKUP(X76,'Control panel'!$L$7:$L$37,'Control panel'!$P$7:$P$37) -> 1 | Z76: 10.55920077 | AA76: =_xlfn.XLOOKUP(W76,'BBM Costs'!$Q$6:$U$6,_xlfn.XLOOKUP(X76,'BBM Costs'!$P$7:$P$37,'BBM Costs'!$Q$7:$U$37))*_xlfn.XLOOKUP(X76,'Control panel'!$L$7:$L$37,'Control panel'!$M$7:$M$37) -> 0 | AB76: =_xlfn.XLOOKUP(W76,'BBM Costs'!$X$6:$AB$6,_xlfn.XLOOKUP(X76,'BBM Costs'!$W$7:$W$37,'BBM Costs'!$X$7:$AB$37))*_xlfn.XLOOKUP(X76,'Control panel'!$S$7:$S$37,'Control panel'!$T$7:$T$37) -> 0 | AC76: 10.55920077
W77: 2027-28 | X77: ='PTRM Data'!B13 -> Substation Establishment | Y77: =_xlfn.XLOOKUP(X77,'Control panel'!$L$7:$L$37,'Control panel'!$P$7:$P$37) -> 1 | Z77: 2.231683993 | AA77: =_xlfn.XLOOKUP(W77,'BBM Costs'!$Q$6:$U$6,_xlfn.XLOOKUP(X77,'BBM Costs'!$P$7:$P$37,'BBM Costs'!$Q$7:$U$37))*_xlfn.XLOOKUP(X77,'Control panel'!$L$7:$L$37,'Control panel'!$M$7:$M$37) -> 0 | AB77: =_xlfn.XLOOKUP(W77,'BBM Costs'!$X$6:$AB$6,_xlfn.XLOOKUP(X77,'BBM Costs'!$W$7:$W$37,'BBM Costs'!$X$7:$AB$37))*_xlfn.XLOOKUP(X77,'Control panel'!$S$7:$S$37,'Control panel'!$T$7:$T$37) -> 0 | AC77: 2.231683993
W78: 2027-28 | X78: ='PTRM Data'!B14 -> Distribution Substation Switchgear | Y78: =_xlfn.XLOOKUP(X78,'Control panel'!$L$7:$L$37,'Control panel'!$P$7:$P$37) -> 0.57 | Z78: 3.86022969 | AA78: =_xlfn.XLOOKUP(W78,'BBM Costs'!$Q$6:$U$6,_xlfn.XLOOKUP(X78,'BBM Costs'!$P$7:$P$37,'BBM Costs'!$Q$7:$U$37))*_xlfn.XLOOKUP(X78,'Control panel'!$L$7:$L$37,'Control panel'!$M$7:$M$37) -> 0.6214709591 | AB78: =_xlfn.XLOOKUP(W78,'BBM Costs'!$X$6:$AB$6,_xlfn.XLOOKUP(X78,'BBM Costs'!$W$7:$W$37,'BBM Costs'!$X$7:$AB$37))*_xlfn.XLOOKUP(X78,'Control panel'!$S$7:$S$37,'Control panel'!$T$7:$T$37) -> 19.72895752 | AC78: 24.21065817
W79: 2027-28 | X79: ='PTRM Data'!B15 -> Zone Transformers | Y79: =_xlfn.XLOOKUP(X79,'Control panel'!$L$7:$L$37,'Control panel'!$P$7:$P$37) -> 1 | Z79: 2.036186189 | AA79: =_xlfn.XLOOKUP(W79,'BBM Costs'!$Q$6:$U$6,_xlfn.XLOOKUP(X79,'BBM Costs'!$P$7:$P$37,'BBM Costs'!$Q$7:$U$37))*_xlfn.XLOOKUP(X79,'Control panel'!$L$7:$L$37,'Control panel'!$M$7:$M$37) -> 0 | AB79: =_xlfn.XLOOKUP(W79,'BBM Costs'!$X$6:$AB$6,_xlfn.XLOOKUP(X79,'BBM Costs'!$W$7:$W$37,'BBM Costs'!$X$7:$AB$37))*_xlfn.XLOOKUP(X79,'Control panel'!$S$7:$S$37,'Control panel'!$T$7:$T$37) -> 0 | AC79: 2.036186189
W80: 2027-28 | X80: ='PTRM Data'!B16 -> Distribution Transformers | Y80: =_xlfn.XLOOKUP(X80,'Control panel'!$L$7:$L$37,'Control panel'!$P$7:$P$37) -> 0.57 | Z80: 9.598612522 | AA80: =_xlfn.XLOOKUP(W80,'BBM Costs'!$Q$6:$U$6,_xlfn.XLOOKUP(X80,'BBM Costs'!$P$7:$P$37,'BBM Costs'!$Q$7:$U$37))*_xlfn.XLOOKUP(X80,'Control panel'!$L$7:$L$37,'Control panel'!$M$7:$M$37) -> 11.26059293 | AB80: =_xlfn.XLOOKUP(W80,'BBM Costs'!$X$6:$AB$6,_xlfn.XLOOKUP(X80,'BBM Costs'!$W$7:$W$37,'BBM Costs'!$X$7:$AB$37))*_xlfn.XLOOKUP(X80,'Control panel'!$S$7:$S$37,'Control panel'!$T$7:$T$37) -> 43.23755403 | AC80: 64.09675949
W81: 2027-28 | X81: ='PTRM Data'!B17 -> Low Voltage Services | Y81: =_xlfn.XLOOKUP(X81,'Control panel'!$L$7:$L$37,'Control panel'!$P$7:$P$37) -> 0 | Z81: 3.679333376 | AA81: =_xlfn.XLOOKUP(W81,'BBM Costs'!$Q$6:$U$6,_xlfn.XLOOKUP(X81,'BBM Costs'!$P$7:$P$37,'BBM Costs'!$Q$7:$U$37))*_xlfn.XLOOKUP(X81,'Control panel'!$L$7:$L$37,'Control panel'!$M$7:$M$37) -> 0 | AB81: =_xlfn.XLOOKUP(W81,'BBM Costs'!$X$6:$AB$6,_xlfn.XLOOKUP(X81,'BBM Costs'!$W$7:$W$37,'BBM Costs'!$X$7:$AB$37))*_xlfn.XLOOKUP(X81,'Control panel'!$S$7:$S$37,'Control panel'!$T$7:$T$37) -> 0 | AC81: 3.679333376
W82: 2027-28 | X82: ='PTRM Data'!B18 -> Metering | Y82: =_xlfn.XLOOKUP(X82,'Control panel'!$L$7:$L$37,'Control panel'!$P$7:$P$37) -> 1 | Z82: 0 | AA82: =_xlfn.XLOOKUP(W82,'BBM Costs'!$Q$6:$U$6,_xlfn.XLOOKUP(X82,'BBM Costs'!$P$7:$P$37,'BBM Costs'!$Q$7:$U$37))*_xlfn.XLOOKUP(X82,'Control panel'!$L$7:$L$37,'Control panel'!$M$7:$M$37) -> 0 | AB82: =_xlfn.XLOOKUP(W82,'BBM Costs'!$X$6:$AB$6,_xlfn.XLOOKUP(X82,'BBM Costs'!$W$7:$W$37,'BBM Costs'!$X$7:$AB$37))*_xlfn.XLOOKUP(X82,'Control panel'!$S$7:$S$37,'Control panel'!$T$7:$T$37) -> 0 | AC82: 0
W83: 2027-28 | X83: ='PTRM Data'!B19 -> Communications – Pilot Wires | Y83: =_xlfn.XLOOKUP(X83,'Control panel'!$L$7:$L$37,'Control panel'!$P$7:$P$37) -> 0 | Z83: 1.257750523 | AA83: =_xlfn.XLOOKUP(W83,'BBM Costs'!$Q$6:$U$6,_xlfn.XLOOKUP(X83,'BBM Costs'!$P$7:$P$37,'BBM Costs'!$Q$7:$U$37))*_xlfn.XLOOKUP(X83,'Control panel'!$L$7:$L$37,'Control panel'!$M$7:$M$37) -> 0 | AB83: =_xlfn.XLOOKUP(W83,'BBM Costs'!$X$6:$AB$6,_xlfn.XLOOKUP(X83,'BBM Costs'!$W$7:$W$37,'BBM Costs'!$X$7:$AB$37))*_xlfn.XLOOKUP(X83,'Control panel'!$S$7:$S$37,'Control panel'!$T$7:$T$37) -> 0 | AC83: 1.257750523
W85: 2027-28 | X85: ='PTRM Data'!B21 -> Land & Easements (System) - combined | Y85: =_xlfn.XLOOKUP(X85,'Control panel'!$L$7:$L$37,'Control panel'!$P$7:$P$37) -> 1 | Z85: 0.3364283698 | AA85: =_xlfn.XLOOKUP(W85,'BBM Costs'!$Q$6:$U$6,_xlfn.XLOOKUP(X85,'BBM Costs'!$P$7:$P$37,'BBM Costs'!$Q$7:$U$37))*_xlfn.XLOOKUP(X85,'Control panel'!$L$7:$L$37,'Control panel'!$M$7:$M$37) -> 0 | AB85: =_xlfn.XLOOKUP(W85,'BBM Costs'!$X$6:$AB$6,_xlfn.XLOOKUP(X85,'BBM Costs'!$W$7:$W$37,'BBM Costs'!$X$7:$AB$37))*_xlfn.XLOOKUP(X85,'Control panel'!$S$7:$S$37,'Control panel'!$T$7:$T$37) -> 0 | AC85: 0.3364283698
W86: 2027-28 | X86: ='PTRM Data'!B22 -> Land Improvements | Y86: =_xlfn.XLOOKUP(X86,'Control panel'!$L$7:$L$37,'Control panel'!$P$7:$P$37) -> 1 | Z86: 0 | AA86: =_xlfn.XLOOKUP(W86,'BBM Costs'!$Q$6:$U$6,_xlfn.XLOOKUP(X86,'BBM Costs'!$P$7:$P$37,'BBM Costs'!$Q$7:$U$37))*_xlfn.XLOOKUP(X86,'Control panel'!$L$7:$L$37,'Control panel'!$M$7:$M$37) -> 0 | AB86: =_xlfn.XLOOKUP(W86,'BBM Costs'!$X$6:$AB$6,_xlfn.XLOOKUP(X86,'BBM Costs'!$W$7:$W$37,'BBM Costs'!$X$7:$AB$37))*_xlfn.XLOOKUP(X86,'Control panel'!$S$7:$S$37,'Control panel'!$T$7:$T$37) -> 0 | AC86: 0
W87: 2027-28 | X87: ='PTRM Data'!B23 -> Control Centre - SCADA | Y87: =_xlfn.XLOOKUP(X87,'Control panel'!$L$7:$L$37,'Control panel'!$P$7:$P$37) -> 1 | Z87: 0.1754153871 | AA87: =_xlfn.XLOOKUP(W87,'BBM Costs'!$Q$6:$U$6,_xlfn.XLOOKUP(X87,'BBM Costs'!$P$7:$P$37,'BBM Costs'!$Q$7:$U$37))*_xlfn.XLOOKUP(X87,'Control panel'!$L$7:$L$37,'Control panel'!$M$7:$M$37) -> 0 | AB87: =_xlfn.XLOOKUP(W87,'BBM Costs'!$X$6:$AB$6,_xlfn.XLOOKUP(X87,'BBM Costs'!$W$7:$W$37,'BBM Costs'!$X$7:$AB$37))*_xlfn.XLOOKUP(X87,'Control panel'!$S$7:$S$37,'Control panel'!$T$7:$T$37) -> 0 | AC87: 0.1754153871
W88: 2027-28 | X88: ='PTRM Data'!B24 -> Other Equipment | Y88: =_xlfn.XLOOKUP(X88,'Control panel'!$L$7:$L$37,'Control panel'!$P$7:$P$37) -> 1 | Z88: 0.00931019779 | AA88: =_xlfn.XLOOKUP(W88,'BBM Costs'!$Q$6:$U$6,_xlfn.XLOOKUP(X88,'BBM Costs'!$P$7:$P$37,'BBM Costs'!$Q$7:$U$37))*_xlfn.XLOOKUP(X88,'Control panel'!$L$7:$L$37,'Control panel'!$M$7:$M$37) -> 0 | AB88: =_xlfn.XLOOKUP(W88,'BBM Costs'!$X$6:$AB$6,_xlfn.XLOOKUP(X88,'BBM Costs'!$W$7:$W$37,'BBM Costs'!$X$7:$AB$37))*_xlfn.XLOOKUP(X88,'Control panel'!$S$7:$S$37,'Control panel'!$T$7:$T$37) -> 0 | AC88: 0.00931019779
W89: 2027-28 | X89: ='PTRM Data'!B25 -> Generation Assets | Y89: =_xlfn.XLOOKUP(X89,'Control panel'!$L$7:$L$37,'Control panel'!$P$7:$P$37) -> 1 | Z89: 0.1181050396 | AA89: =_xlfn.XLOOKUP(W89,'BBM Costs'!$Q$6:$U$6,_xlfn.XLOOKUP(X89,'BBM Costs'!$P$7:$P$37,'BBM Costs'!$Q$7:$U$37))*_xlfn.XLOOKUP(X89,'Control panel'!$L$7:$L$37,'Control panel'!$M$7:$M$37) -> 0 | AB89: =_xlfn.XLOOKUP(W89,'BBM Costs'!$X$6:$AB$6,_xlfn.XLOOKUP(X89,'BBM Costs'!$W$7:$W$37,'BBM Costs'!$X$7:$AB$37))*_xlfn.XLOOKUP(X89,'Control panel'!$S$7:$S$37,'Control panel'!$T$7:$T$37) -> 0 | AC89: 0.1181050396
W90: 2027-28 | X90: ='PTRM Data'!B26 -> Motor Vehicles | Y90: =_xlfn.XLOOKUP(X90,'Control panel'!$L$7:$L$37,'Control panel'!$P$7:$P$37) -> 1 | Z90: 0 | AA90: =_xlfn.XLOOKUP(W90,'BBM Costs'!$Q$6:$U$6,_xlfn.XLOOKUP(X90,'BBM Costs'!$P$7:$P$37,'BBM Costs'!$Q$7:$U$37))*_xlfn.XLOOKUP(X90,'Control panel'!$L$7:$L$37,'Control panel'!$M$7:$M$37) -> 0 | AB90: =_xlfn.XLOOKUP(W90,'BBM Costs'!$X$6:$AB$6,_xlfn.XLOOKUP(X90,'BBM Costs'!$W$7:$W$37,'BBM Costs'!$X$7:$AB$37))*_xlfn.XLOOKUP(X90,'Control panel'!$S$7:$S$37,'Control panel'!$T$7:$T$37) -> 0 | AC90: 0
W91: 2027-28 | X91: ='PTRM Data'!B27 -> Plant & Equipment | Y91: =_xlfn.XLOOKUP(X91,'Control panel'!$L$7:$L$37,'Control panel'!$P$7:$P$37) -> 1 | Z91: 0 | AA91: =_xlfn.XLOOKUP(W91,'BBM Costs'!$Q$6:$U$6,_xlfn.XLOOKUP(X91,'BBM Costs'!$P$7:$P$37,'BBM Costs'!$Q$7:$U$37))*_xlfn.XLOOKUP(X91,'Control panel'!$L$7:$L$37,'Control panel'!$M$7:$M$37) -> 0 | AB91: =_xlfn.XLOOKUP(W91,'BBM Costs'!$X$6:$AB$6,_xlfn.XLOOKUP(X91,'BBM Costs'!$W$7:$W$37,'BBM Costs'!$X$7:$AB$37))*_xlfn.XLOOKUP(X91,'Control panel'!$S$7:$S$37,'Control panel'!$T$7:$T$37) -> 0 | AC91: 0
W92: 2027-28 | X92: ='PTRM Data'!B28 -> Buildings | Y92: =_xlfn.XLOOKUP(X92,'Control panel'!$L$7:$L$37,'Control panel'!$P$7:$P$37) -> 1 | Z92: 0 | AA92: =_xlfn.XLOOKUP(W92,'BBM Costs'!$Q$6:$U$6,_xlfn.XLOOKUP(X92,'BBM Costs'!$P$7:$P$37,'BBM Costs'!$Q$7:$U$37))*_xlfn.XLOOKUP(X92,'Control panel'!$L$7:$L$37,'Control panel'!$M$7:$M$37) -> 0 | AB92: =_xlfn.XLOOKUP(W92,'BBM Costs'!$X$6:$AB$6,_xlfn.XLOOKUP(X92,'BBM Costs'!$W$7:$W$37,'BBM Costs'!$X$7:$AB$37))*_xlfn.XLOOKUP(X92,'Control panel'!$S$7:$S$37,'Control panel'!$T$7:$T$37) -> 0 | AC92: 0
W93: 2027-28 | X93: ='PTRM Data'!B29 -> Office Equipment & Furniture | Y93: =_xlfn.XLOOKUP(X93,'Control panel'!$L$7:$L$37,'Control panel'!$P$7:$P$37) -> 1 | Z93: -0.02724867024 | AA93: =_xlfn.XLOOKUP(W93,'BBM Costs'!$Q$6:$U$6,_xlfn.XLOOKUP(X93,'BBM Costs'!$P$7:$P$37,'BBM Costs'!$Q$7:$U$37))*_xlfn.XLOOKUP(X93,'Control panel'!$L$7:$L$37,'Control panel'!$M$7:$M$37) -> 0 | AB93: =_xlfn.XLOOKUP(W93,'BBM Costs'!$X$6:$AB$6,_xlfn.XLOOKUP(X93,'BBM Costs'!$W$7:$W$37,'BBM Costs'!$X$7:$AB$37))*_xlfn.XLOOKUP(X93,'Control panel'!$S$7:$S$37,'Control panel'!$T$7:$T$37) -> 0 | AC93: -0.02724867024
W94: 2027-28 | X94: ='PTRM Data'!B30 -> Initial Leases (10 yr life) | Y94: =_xlfn.XLOOKUP(X94,'Control panel'!$L$7:$L$37,'Control panel'!$P$7:$P$37) -> 1 | Z94: 0 | AA94: =_xlfn.XLOOKUP(W94,'BBM Costs'!$Q$6:$U$6,_xlfn.XLOOKUP(X94,'BBM Costs'!$P$7:$P$37,'BBM Costs'!$Q$7:$U$37))*_xlfn.XLOOKUP(X94,'Control panel'!$L$7:$L$37,'Control panel'!$M$7:$M$37) -> 0 | AB94: =_xlfn.XLOOKUP(W94,'BBM Costs'!$X$6:$AB$6,_xlfn.XLOOKUP(X94,'BBM Costs'!$W$7:$W$37,'BBM Costs'!$X$7:$AB$37))*_xlfn.XLOOKUP(X94,'Control panel'!$S$7:$S$37,'Control panel'!$T$7:$T$37) -> 0 | AC94: 0
W95: 2027-28 | X95: ='PTRM Data'!B31 -> Lease Extensions (5yr Life) | Y95: =_xlfn.XLOOKUP(X95,'Control panel'!$L$7:$L$37,'Control panel'!$P$7:$P$37) -> 1 | Z95: 0 | AA95: =_xlfn.XLOOKUP(W95,'BBM Costs'!$Q$6:$U$6,_xlfn.XLOOKUP(X95,'BBM Costs'!$P$7:$P$37,'BBM Costs'!$Q$7:$U$37))*_xlfn.XLOOKUP(X95,'Control panel'!$L$7:$L$37,'Control panel'!$M$7:$M$37) -> 0 | AB95: =_xlfn.XLOOKUP(W95,'BBM Costs'!$X$6:$AB$6,_xlfn.XLOOKUP(X95,'BBM Costs'!$W$7:$W$37,'BBM Costs'!$X$7:$AB$37))*_xlfn.XLOOKUP(X95,'Control panel'!$S$7:$S$37,'Control panel'!$T$7:$T$37) -> 0 | AC95: 0
W96: 2027-28 | X96: ='PTRM Data'!B32 -> Land & Easements - combined | Y96: =_xlfn.XLOOKUP(X96,'Control panel'!$L$7:$L$37,'Control panel'!$P$7:$P$37) -> 1 | Z96: 0 | AA96: =_xlfn.XLOOKUP(W96,'BBM Costs'!$Q$6:$U$6,_xlfn.XLOOKUP(X96,'BBM Costs'!$P$7:$P$37,'BBM Costs'!$Q$7:$U$37))*_xlfn.XLOOKUP(X96,'Control panel'!$L$7:$L$37,'Control panel'!$M$7:$M$37) -> 0 | AB96: =_xlfn.XLOOKUP(W96,'BBM Costs'!$X$6:$AB$6,_xlfn.XLOOKUP(X96,'BBM Costs'!$W$7:$W$37,'BBM Costs'!$X$7:$AB$37))*_xlfn.XLOOKUP(X96,'Control panel'!$S$7:$S$37,'Control panel'!$T$7:$T$37) -> 0 | AC96: 0
W97: 2027-28 | X97: ='PTRM Data'!B33 -> Communications | Y97: =_xlfn.XLOOKUP(X97,'Control panel'!$L$7:$L$37,'Control panel'!$P$7:$P$37) -> 1 | Z97: 0 | AA97: =_xlfn.XLOOKUP(W97,'BBM Costs'!$Q$6:$U$6,_xlfn.XLOOKUP(X97,'BBM Costs'!$P$7:$P$37,'BBM Costs'!$Q$7:$U$37))*_xlfn.XLOOKUP(X97,'Control panel'!$L$7:$L$37,'Control panel'!$M$7:$M$37) -> 0 | AB97: =_xlfn.XLOOKUP(W97,'BBM Costs'!$X$6:$AB$6,_xlfn.XLOOKUP(X97,'BBM Costs'!$W$7:$W$37,'BBM Costs'!$X$7:$AB$37))*_xlfn.XLOOKUP(X97,'Control panel'!$S$7:$S$37,'Control panel'!$T$7:$T$37) -> 0 | AC97: 0
W98: 2027-28 | X98: ='PTRM Data'!B34 -> In-house software | Y98: =_xlfn.XLOOKUP(X98,'Control panel'!$L$7:$L$37,'Control panel'!$P$7:$P$37) -> 1 | Z98: 0 | AA98: =_xlfn.XLOOKUP(W98,'BBM Costs'!$Q$6:$U$6,_xlfn.XLOOKUP(X98,'BBM Costs'!$P$7:$P$37,'BBM Costs'!$Q$7:$U$37))*_xlfn.XLOOKUP(X98,'Control panel'!$L$7:$L$37,'Control panel'!$M$7:$M$37) -> 0 | AB98: =_xlfn.XLOOKUP(W98,'BBM Costs'!$X$6:$AB$6,_xlfn.XLOOKUP(X98,'BBM Costs'!$W$7:$W$37,'BBM Costs'!$X$7:$AB$37))*_xlfn.XLOOKUP(X98,'Control panel'!$S$7:$S$37,'Control panel'!$T$7:$T$37) -> 0 | AC98: 0
W99: 2027-28 | X99: ='PTRM Data'!B35 -> IT Systems | Y99: =_xlfn.XLOOKUP(X99,'Control panel'!$L$7:$L$37,'Control panel'!$P$7:$P$37) -> 1 | Z99: 0 | AA99: =_xlfn.XLOOKUP(W99,'BBM Costs'!$Q$6:$U$6,_xlfn.XLOOKUP(X99,'BBM Costs'!$P$7:$P$37,'BBM Costs'!$Q$7:$U$37))*_xlfn.XLOOKUP(X99,'Control panel'!$L$7:$L$37,'Control panel'!$M$7:$M$37) -> 0 | AB99: =_xlfn.XLOOKUP(W99,'BBM Costs'!$X$6:$AB$6,_xlfn.XLOOKUP(X99,'BBM Costs'!$W$7:$W$37,'BBM Costs'!$X$7:$AB$37))*_xlfn.XLOOKUP(X99,'Control panel'!$S$7:$S$37,'Control panel'!$T$7:$T$37) -> 0 | AC99: 0
W100: 2027-28 | X100: ='PTRM Data'!B36 -> ICT Legacy Assets | Y100: =_xlfn.XLOOKUP(X100,'Control panel'!$L$7:$L$37,'Control panel'!$P$7:$P$37) -> 1 | Z100: 0 | AA100: =_xlfn.XLOOKUP(W100,'BBM Costs'!$Q$6:$U$6,_xlfn.XLOOKUP(X100,'BBM Costs'!$P$7:$P$37,'BBM Costs'!$Q$7:$U$37))*_xlfn.XLOOKUP(X100,'Control panel'!$L$7:$L$37,'Control panel'!$M$7:$M$37) -> 0 | AB100: =_xlfn.XLOOKUP(W100,'BBM Costs'!$X$6:$AB$6,_xlfn.XLOOKUP(X100,'BBM Costs'!$W$7:$W$37,'BBM Costs'!$X$7:$AB$37))*_xlfn.XLOOKUP(X100,'Control panel'!$S$7:$S$37,'Control panel'!$T$7:$T$37) -> 0 | AC100: 0
W101: 2027-28 | X101: ='PTRM Data'!B37 -> Buildings - capital works | Y101: =_xlfn.XLOOKUP(X101,'Control panel'!$L$7:$L$37,'Control panel'!$P$7:$P$37) -> 1 | Z101: 0 | AA101: =_xlfn.XLOOKUP(W101,'BBM Costs'!$Q$6:$U$6,_xlfn.XLOOKUP(X101,'BBM Costs'!$P$7:$P$37,'BBM Costs'!$Q$7:$U$37))*_xlfn.XLOOKUP(X101,'Control panel'!$L$7:$L$37,'Control panel'!$M$7:$M$37) -> 0 | AB101: =_xlfn.XLOOKUP(W101,'BBM Costs'!$X$6:$AB$6,_xlfn.XLOOKUP(X101,'BBM Costs'!$W$7:$W$37,'BBM Costs'!$X$7:$AB$37))*_xlfn.XLOOKUP(X101,'Control panel'!$S$7:$S$37,'Control panel'!$T$7:$T$37) -> 0 | AC101: 0
W102: 2028-29 | X102: ='PTRM Data'!B7 -> Overhead Sub-Transmission Lines | Y102: =_xlfn.XLOOKUP(X102,'Control panel'!$L$7:$L$37,'Control panel'!$P$7:$P$37) -> 1 | Z102: 10.04438453 | AA102: =_xlfn.XLOOKUP(W102,'BBM Costs'!$Q$6:$U$6,_xlfn.XLOOKUP(X102,'BBM Costs'!$P$7:$P$37,'BBM Costs'!$Q$7:$U$37))*_xlfn.XLOOKUP(X102,'Control panel'!$L$7:$L$37,'Control panel'!$M$7:$M$37) -> 0 | AB102: =_xlfn.XLOOKUP(W102,'BBM Costs'!$X$6:$AB$6,_xlfn.XLOOKUP(X102,'BBM Costs'!$W$7:$W$37,'BBM Costs'!$X$7:$AB$37))*_xlfn.XLOOKUP(X102,'Control panel'!$S$7:$S$37,'Control panel'!$T$7:$T$37) -> 0 | AC102: 10.04438453
W103: 2028-29 | X103: ='PTRM Data'!B8 -> Underground Sub-Transmission Cables | Y103: =_xlfn.XLOOKUP(X103,'Control panel'!$L$7:$L$37,'Control panel'!$P$7:$P$37) -> 1 | Z103: 0.3882263759 | AA103: =_xlfn.XLOOKUP(W103,'BBM Costs'!$Q$6:$U$6,_xlfn.XLOOKUP(X103,'BBM Costs'!$P$7:$P$37,'BBM Costs'!$Q$7:$U$37))*_xlfn.XLOOKUP(X103,'Control panel'!$L$7:$L$37,'Control panel'!$M$7:$M$37) -> 0 | AB103: =_xlfn.XLOOKUP(W103,'BBM Costs'!$X$6:$AB$6,_xlfn.XLOOKUP(X103,'BBM Costs'!$W$7:$W$37,'BBM Costs'!$X$7:$AB$37))*_xlfn.XLOOKUP(X103,'Control panel'!$S$7:$S$37,'Control panel'!$T$7:$T$37) -> 0 | AC103: 0.3882263759
W104: 2028-29 | X104: ='PTRM Data'!B9 -> Overhead Distribution Lines | Y104: =_xlfn.XLOOKUP(X104,'Control panel'!$L$7:$L$37,'Control panel'!$P$7:$P$37) -> 0.57 | Z104: 38.37650184 | AA104: =_xlfn.XLOOKUP(W104,'BBM Costs'!$Q$6:$U$6,_xlfn.XLOOKUP(X104,'BBM Costs'!$P$7:$P$37,'BBM Costs'!$Q$7:$U$37))*_xlfn.XLOOKUP(X104,'Control panel'!$L$7:$L$37,'Control panel'!$M$7:$M$37) -> 5.291002188 | AB104: =_xlfn.XLOOKUP(W104,'BBM Costs'!$X$6:$AB$6,_xlfn.XLOOKUP(X104,'BBM Costs'!$W$7:$W$37,'BBM Costs'!$X$7:$AB$37))*_xlfn.XLOOKUP(X104,'Control panel'!$S$7:$S$37,'Control panel'!$T$7:$T$37) -> 199.2231002 | AC104: 242.8906042
W105: 2028-29 | X105: ='PTRM Data'!B10 -> Underground Distribution Cables | Y105: =_xlfn.XLOOKUP(X105,'Control panel'!$L$7:$L$37,'Control panel'!$P$7:$P$37) -> 0.57 | Z105: 7.081058425 | AA105: =_xlfn.XLOOKUP(W105,'BBM Costs'!$Q$6:$U$6,_xlfn.XLOOKUP(X105,'BBM Costs'!$P$7:$P$37,'BBM Costs'!$Q$7:$U$37))*_xlfn.XLOOKUP(X105,'Control panel'!$L$7:$L$37,'Control panel'!$M$7:$M$37) -> -0.9672952877 | AB105: =_xlfn.XLOOKUP(W105,'BBM Costs'!$X$6:$AB$6,_xlfn.XLOOKUP(X105,'BBM Costs'!$W$7:$W$37,'BBM Costs'!$X$7:$AB$37))*_xlfn.XLOOKUP(X105,'Control panel'!$S$7:$S$37,'Control panel'!$T$7:$T$37) -> 32.31427799 | AC105: 38.42804113
W106: 2028-29 | X106: ='PTRM Data'!B11 -> Distribution Equipment | Y106: =_xlfn.XLOOKUP(X106,'Control panel'!$L$7:$L$37,'Control panel'!$P$7:$P$37) -> 0.57 | Z106: 0.1134739285 | AA106: =_xlfn.XLOOKUP(W106,'BBM Costs'!$Q$6:$U$6,_xlfn.XLOOKUP(X106,'BBM Costs'!$P$7:$P$37,'BBM Costs'!$Q$7:$U$37))*_xlfn.XLOOKUP(X106,'Control panel'!$L$7:$L$37,'Control panel'!$M$7:$M$37) -> 0.5233685958 | AB106: =_xlfn.XLOOKUP(W106,'BBM Costs'!$X$6:$AB$6,_xlfn.XLOOKUP(X106,'BBM Costs'!$W$7:$W$37,'BBM Costs'!$X$7:$AB$37))*_xlfn.XLOOKUP(X106,'Control panel'!$S$7:$S$37,'Control panel'!$T$7:$T$37) -> 2.043179499 | AC106: 2.680022023
W107: 2028-29 | X107: ='PTRM Data'!B12 -> Substation Bays | Y107: =_xlfn.XLOOKUP(X107,'Control panel'!$L$7:$L$37,'Control panel'!$P$7:$P$37) -> 1 | Z107: 10.93647364 | AA107: =_xlfn.XLOOKUP(W107,'BBM Costs'!$Q$6:$U$6,_xlfn.XLOOKUP(X107,'BBM Costs'!$P$7:$P$37,'BBM Costs'!$Q$7:$U$37))*_xlfn.XLOOKUP(X107,'Control panel'!$L$7:$L$37,'Control panel'!$M$7:$M$37) -> 0 | AB107: =_xlfn.XLOOKUP(W107,'BBM Costs'!$X$6:$AB$6,_xlfn.XLOOKUP(X107,'BBM Costs'!$W$7:$W$37,'BBM Costs'!$X$7:$AB$37))*_xlfn.XLOOKUP(X107,'Control panel'!$S$7:$S$37,'Control panel'!$T$7:$T$37) -> 0 | AC107: 10.93647364
W108: 2028-29 | X108: ='PTRM Data'!B13 -> Substation Establishment | Y108: =_xlfn.XLOOKUP(X108,'Control panel'!$L$7:$L$37,'Control panel'!$P$7:$P$37) -> 1 | Z108: 2.311420504 | AA108: =_xlfn.XLOOKUP(W108,'BBM Costs'!$Q$6:$U$6,_xlfn.XLOOKUP(X108,'BBM Costs'!$P$7:$P$37,'BBM Costs'!$Q$7:$U$37))*_xlfn.XLOOKUP(X108,'Control panel'!$L$7:$L$37,'Control panel'!$M$7:$M$37) -> 0 | AB108: =_xlfn.XLOOKUP(W108,'BBM Costs'!$X$6:$AB$6,_xlfn.XLOOKUP(X108,'BBM Costs'!$W$7:$W$37,'BBM Costs'!$X$7:$AB$37))*_xlfn.XLOOKUP(X108,'Control panel'!$S$7:$S$37,'Control panel'!$T$7:$T$37) -> 0 | AC108: 2.311420504
W109: 2028-29 | X109: ='PTRM Data'!B14 -> Distribution Substation Switchgear | Y109: =_xlfn.XLOOKUP(X109,'Control panel'!$L$7:$L$37,'Control panel'!$P$7:$P$37) -> 0.57 | Z109: 3.998153001 | AA109: =_xlfn.XLOOKUP(W109,'BBM Costs'!$Q$6:$U$6,_xlfn.XLOOKUP(X109,'BBM Costs'!$P$7:$P$37,'BBM Costs'!$Q$7:$U$37))*_xlfn.XLOOKUP(X109,'Control panel'!$L$7:$L$37,'Control panel'!$M$7:$M$37) -> 0.7204888056 | AB109: =_xlfn.XLOOKUP(W109,'BBM Costs'!$X$6:$AB$6,_xlfn.XLOOKUP(X109,'BBM Costs'!$W$7:$W$37,'BBM Costs'!$X$7:$AB$37))*_xlfn.XLOOKUP(X109,'Control panel'!$S$7:$S$37,'Control panel'!$T$7:$T$37) -> 22.66446399 | AC109: 27.38310579
W110: 2028-29 | X110: ='PTRM Data'!B15 -> Zone Transformers | Y110: =_xlfn.XLOOKUP(X110,'Control panel'!$L$7:$L$37,'Control panel'!$P$7:$P$37) -> 1 | Z110: 2.108937699 | AA110: =_xlfn.XLOOKUP(W110,'BBM Costs'!$Q$6:$U$6,_xlfn.XLOOKUP(X110,'BBM Costs'!$P$7:$P$37,'BBM Costs'!$Q$7:$U$37))*_xlfn.XLOOKUP(X110,'Control panel'!$L$7:$L$37,'Control panel'!$M$7:$M$37) -> 0 | AB110: =_xlfn.XLOOKUP(W110,'BBM Costs'!$X$6:$AB$6,_xlfn.XLOOKUP(X110,'BBM Costs'!$W$7:$W$37,'BBM Costs'!$X$7:$AB$37))*_xlfn.XLOOKUP(X110,'Control panel'!$S$7:$S$37,'Control panel'!$T$7:$T$37) -> 0 | AC110: 2.108937699
W111: 2028-29 | X111: ='PTRM Data'!B16 -> Distribution Transformers | Y111: =_xlfn.XLOOKUP(X111,'Control panel'!$L$7:$L$37,'Control panel'!$P$7:$P$37) -> 0.57 | Z111: 9.941564242 | AA111: =_xlfn.XLOOKUP(W111,'BBM Costs'!$Q$6:$U$6,_xlfn.XLOOKUP(X111,'BBM Costs'!$P$7:$P$37,'BBM Costs'!$Q$7:$U$37))*_xlfn.XLOOKUP(X111,'Control panel'!$L$7:$L$37,'Control panel'!$M$7:$M$37) -> 11.93819545 | AB111: =_xlfn.XLOOKUP(W111,'BBM Costs'!$X$6:$AB$6,_xlfn.XLOOKUP(X111,'BBM Costs'!$W$7:$W$37,'BBM Costs'!$X$7:$AB$37))*_xlfn.XLOOKUP(X111,'Control panel'!$S$7:$S$37,'Control panel'!$T$7:$T$37) -> 47.12263669 | AC111: 69.00239638
W112: 2028-29 | X112: ='PTRM Data'!B17 -> Low Voltage Services | Y112: =_xlfn.XLOOKUP(X112,'Control panel'!$L$7:$L$37,'Control panel'!$P$7:$P$37) -> 0 | Z112: 3.810793387 | AA112: =_xlfn.XLOOKUP(W112,'BBM Costs'!$Q$6:$U$6,_xlfn.XLOOKUP(X112,'BBM Costs'!$P$7:$P$37,'BBM Costs'!$Q$7:$U$37))*_xlfn.XLOOKUP(X112,'Control panel'!$L$7:$L$37,'Control panel'!$M$7:$M$37) -> 0 | AB112: =_xlfn.XLOOKUP(W112,'BBM Costs'!$X$6:$AB$6,_xlfn.XLOOKUP(X112,'BBM Costs'!$W$7:$W$37,'BBM Costs'!$X$7:$AB$37))*_xlfn.XLOOKUP(X112,'Control panel'!$S$7:$S$37,'Control panel'!$T$7:$T$37) -> 0 | AC112: 3.810793387
W113: 2028-29 | X113: ='PTRM Data'!B18 -> Metering | Y113: =_xlfn.XLOOKUP(X113,'Control panel'!$L$7:$L$37,'Control panel'!$P$7:$P$37) -> 1 | Z113: 0 | AA113: =_xlfn.XLOOKUP(W113,'BBM Costs'!$Q$6:$U$6,_xlfn.XLOOKUP(X113,'BBM Costs'!$P$7:$P$37,'BBM Costs'!$Q$7:$U$37))*_xlfn.XLOOKUP(X113,'Control panel'!$L$7:$L$37,'Control panel'!$M$7:$M$37) -> 0 | AB113: =_xlfn.XLOOKUP(W113,'BBM Costs'!$X$6:$AB$6,_xlfn.XLOOKUP(X113,'BBM Costs'!$W$7:$W$37,'BBM Costs'!$X$7:$AB$37))*_xlfn.XLOOKUP(X113,'Control panel'!$S$7:$S$37,'Control panel'!$T$7:$T$37) -> 0 | AC113: 0
W114: 2028-29 | X114: ='PTRM Data'!B19 -> Communications – Pilot Wires | Y114: =_xlfn.XLOOKUP(X114,'Control panel'!$L$7:$L$37,'Control panel'!$P$7:$P$37) -> 0 | Z114: 1.30268907 | AA114: =_xlfn.XLOOKUP(W114,'BBM Costs'!$Q$6:$U$6,_xlfn.XLOOKUP(X114,'BBM Costs'!$P$7:$P$37,'BBM Costs'!$Q$7:$U$37))*_xlfn.XLOOKUP(X114,'Control panel'!$L$7:$L$37,'Control panel'!$M$7:$M$37) -> 0 | AB114: =_xlfn.XLOOKUP(W114,'BBM Costs'!$X$6:$AB$6,_xlfn.XLOOKUP(X114,'BBM Costs'!$W$7:$W$37,'BBM Costs'!$X$7:$AB$37))*_xlfn.XLOOKUP(X114,'Control panel'!$S$7:$S$37,'Control panel'!$T$7:$T$37) -> 0 | AC114: 1.30268907
W116: 2028-29 | X116: ='PTRM Data'!B21 -> Land & Easements (System) - combined | Y116: =_xlfn.XLOOKUP(X116,'Control panel'!$L$7:$L$37,'Control panel'!$P$7:$P$37) -> 1 | Z116: 0.3484487204 | AA116: =_xlfn.XLOOKUP(W116,'BBM Costs'!$Q$6:$U$6,_xlfn.XLOOKUP(X116,'BBM Costs'!$P$7:$P$37,'BBM Costs'!$Q$7:$U$37))*_xlfn.XLOOKUP(X116,'Control panel'!$L$7:$L$37,'Control panel'!$M$7:$M$37) -> 0 | AB116: =_xlfn.XLOOKUP(W116,'BBM Costs'!$X$6:$AB$6,_xlfn.XLOOKUP(X116,'BBM Costs'!$W$7:$W$37,'BBM Costs'!$X$7:$AB$37))*_xlfn.XLOOKUP(X116,'Control panel'!$S$7:$S$37,'Control panel'!$T$7:$T$37) -> 0 | AC116: 0.3484487204
W117: 2028-29 | X117: ='PTRM Data'!B22 -> Land Improvements | Y117: =_xlfn.XLOOKUP(X117,'Control panel'!$L$7:$L$37,'Control panel'!$P$7:$P$37) -> 1 | Z117: 0 | AA117: =_xlfn.XLOOKUP(W117,'BBM Costs'!$Q$6:$U$6,_xlfn.XLOOKUP(X117,'BBM Costs'!$P$7:$P$37,'BBM Costs'!$Q$7:$U$37))*_xlfn.XLOOKUP(X117,'Control panel'!$L$7:$L$37,'Control panel'!$M$7:$M$37) -> 0 | AB117: =_xlfn.XLOOKUP(W117,'BBM Costs'!$X$6:$AB$6,_xlfn.XLOOKUP(X117,'BBM Costs'!$W$7:$W$37,'BBM Costs'!$X$7:$AB$37))*_xlfn.XLOOKUP(X117,'Control panel'!$S$7:$S$37,'Control panel'!$T$7:$T$37) -> 0 | AC117: 0
W118: 2028-29 | X118: ='PTRM Data'!B23 -> Control Centre - SCADA | Y118: =_xlfn.XLOOKUP(X118,'Control panel'!$L$7:$L$37,'Control panel'!$P$7:$P$37) -> 1 | Z118: 0.1816828564 | AA118: =_xlfn.XLOOKUP(W118,'BBM Costs'!$Q$6:$U$6,_xlfn.XLOOKUP(X118,'BBM Costs'!$P$7:$P$37,'BBM Costs'!$Q$7:$U$37))*_xlfn.XLOOKUP(X118,'Control panel'!$L$7:$L$37,'Control panel'!$M$7:$M$37) -> 0 | AB118: =_xlfn.XLOOKUP(W118,'BBM Costs'!$X$6:$AB$6,_xlfn.XLOOKUP(X118,'BBM Costs'!$W$7:$W$37,'BBM Costs'!$X$7:$AB$37))*_xlfn.XLOOKUP(X118,'Control panel'!$S$7:$S$37,'Control panel'!$T$7:$T$37) -> 0 | AC118: 0.1816828564
W119: 2028-29 | X119: ='PTRM Data'!B24 -> Other Equipment | Y119: =_xlfn.XLOOKUP(X119,'Control panel'!$L$7:$L$37,'Control panel'!$P$7:$P$37) -> 1 | Z119: 0.009642844653 | AA119: =_xlfn.XLOOKUP(W119,'BBM Costs'!$Q$6:$U$6,_xlfn.XLOOKUP(X119,'BBM Costs'!$P$7:$P$37,'BBM Costs'!$Q$7:$U$37))*_xlfn.XLOOKUP(X119,'Control panel'!$L$7:$L$37,'Control panel'!$M$7:$M$37) -> 0 | AB119: =_xlfn.XLOOKUP(W119,'BBM Costs'!$X$6:$AB$6,_xlfn.XLOOKUP(X119,'BBM Costs'!$W$7:$W$37,'BBM Costs'!$X$7:$AB$37))*_xlfn.XLOOKUP(X119,'Control panel'!$S$7:$S$37,'Control panel'!$T$7:$T$37) -> 0 | AC119: 0.009642844653
W120: 2028-29 | X120: ='PTRM Data'!B25 -> Generation Assets | Y120: =_xlfn.XLOOKUP(X120,'Control panel'!$L$7:$L$37,'Control panel'!$P$7:$P$37) -> 1 | Z120: 0.1223248502 | AA120: =_xlfn.XLOOKUP(W120,'BBM Costs'!$Q$6:$U$6,_xlfn.XLOOKUP(X120,'BBM Costs'!$P$7:$P$37,'BBM Costs'!$Q$7:$U$37))*_xlfn.XLOOKUP(X120,'Control panel'!$L$7:$L$37,'Control panel'!$M$7:$M$37) -> 0 | AB120: =_xlfn.XLOOKUP(W120,'BBM Costs'!$X$6:$AB$6,_xlfn.XLOOKUP(X120,'BBM Costs'!$W$7:$W$37,'BBM Costs'!$X$7:$AB$37))*_xlfn.XLOOKUP(X120,'Control panel'!$S$7:$S$37,'Control panel'!$T$7:$T$37) -> 0 | AC120: 0.1223248502
W121: 2028-29 | X121: ='PTRM Data'!B26 -> Motor Vehicles | Y121: =_xlfn.XLOOKUP(X121,'Control panel'!$L$7:$L$37,'Control panel'!$P$7:$P$37) -> 1 | Z121: 0 | AA121: =_xlfn.XLOOKUP(W121,'BBM Costs'!$Q$6:$U$6,_xlfn.XLOOKUP(X121,'BBM Costs'!$P$7:$P$37,'BBM Costs'!$Q$7:$U$37))*_xlfn.XLOOKUP(X121,'Control panel'!$L$7:$L$37,'Control panel'!$M$7:$M$37) -> 0 | AB121: =_xlfn.XLOOKUP(W121,'BBM Costs'!$X$6:$AB$6,_xlfn.XLOOKUP(X121,'BBM Costs'!$W$7:$W$37,'BBM Costs'!$X$7:$AB$37))*_xlfn.XLOOKUP(X121,'Control panel'!$S$7:$S$37,'Control panel'!$T$7:$T$37) -> 0 | AC121: 0
W122: 2028-29 | X122: ='PTRM Data'!B27 -> Plant & Equipment | Y122: =_xlfn.XLOOKUP(X122,'Control panel'!$L$7:$L$37,'Control panel'!$P$7:$P$37) -> 1 | Z122: 0 | AA122: =_xlfn.XLOOKUP(W122,'BBM Costs'!$Q$6:$U$6,_xlfn.XLOOKUP(X122,'BBM Costs'!$P$7:$P$37,'BBM Costs'!$Q$7:$U$37))*_xlfn.XLOOKUP(X122,'Control panel'!$L$7:$L$37,'Control panel'!$M$7:$M$37) -> 0 | AB122: =_xlfn.XLOOKUP(W122,'BBM Costs'!$X$6:$AB$6,_xlfn.XLOOKUP(X122,'BBM Costs'!$W$7:$W$37,'BBM Costs'!$X$7:$AB$37))*_xlfn.XLOOKUP(X122,'Control panel'!$S$7:$S$37,'Control panel'!$T$7:$T$37) -> 0 | AC122: 0
W123: 2028-29 | X123: ='PTRM Data'!B28 -> Buildings | Y123: =_xlfn.XLOOKUP(X123,'Control panel'!$L$7:$L$37,'Control panel'!$P$7:$P$37) -> 1 | Z123: 0 | AA123: =_xlfn.XLOOKUP(W123,'BBM Costs'!$Q$6:$U$6,_xlfn.XLOOKUP(X123,'BBM Costs'!$P$7:$P$37,'BBM Costs'!$Q$7:$U$37))*_xlfn.XLOOKUP(X123,'Control panel'!$L$7:$L$37,'Control panel'!$M$7:$M$37) -> 0 | AB123: =_xlfn.XLOOKUP(W123,'BBM Costs'!$X$6:$AB$6,_xlfn.XLOOKUP(X123,'BBM Costs'!$W$7:$W$37,'BBM Costs'!$X$7:$AB$37))*_xlfn.XLOOKUP(X123,'Control panel'!$S$7:$S$37,'Control panel'!$T$7:$T$37) -> 0 | AC123: 0
W124: 2028-29 | X124: ='PTRM Data'!B29 -> Office Equipment & Furniture | Y124: =_xlfn.XLOOKUP(X124,'Control panel'!$L$7:$L$37,'Control panel'!$P$7:$P$37) -> 1 | Z124: -0.02822224619 | AA124: =_xlfn.XLOOKUP(W124,'BBM Costs'!$Q$6:$U$6,_xlfn.XLOOKUP(X124,'BBM Costs'!$P$7:$P$37,'BBM Costs'!$Q$7:$U$37))*_xlfn.XLOOKUP(X124,'Control panel'!$L$7:$L$37,'Control panel'!$M$7:$M$37) -> 0 | AB124: =_xlfn.XLOOKUP(W124,'BBM Costs'!$X$6:$AB$6,_xlfn.XLOOKUP(X124,'BBM Costs'!$W$7:$W$37,'BBM Costs'!$X$7:$AB$37))*_xlfn.XLOOKUP(X124,'Control panel'!$S$7:$S$37,'Control panel'!$T$7:$T$37) -> 0 | AC124: -0.02822224619
W125: 2028-29 | X125: ='PTRM Data'!B30 -> Initial Leases (10 yr life) | Y125: =_xlfn.XLOOKUP(X125,'Control panel'!$L$7:$L$37,'Control panel'!$P$7:$P$37) -> 1 | Z125: 0 | AA125: =_xlfn.XLOOKUP(W125,'BBM Costs'!$Q$6:$U$6,_xlfn.XLOOKUP(X125,'BBM Costs'!$P$7:$P$37,'BBM Costs'!$Q$7:$U$37))*_xlfn.XLOOKUP(X125,'Control panel'!$L$7:$L$37,'Control panel'!$M$7:$M$37) -> 0 | AB125: =_xlfn.XLOOKUP(W125,'BBM Costs'!$X$6:$AB$6,_xlfn.XLOOKUP(X125,'BBM Costs'!$W$7:$W$37,'BBM Costs'!$X$7:$AB$37))*_xlfn.XLOOKUP(X125,'Control panel'!$S$7:$S$37,'Control panel'!$T$7:$T$37) -> 0 | AC125: 0
W126: 2028-29 | X126: ='PTRM Data'!B31 -> Lease Extensions (5yr Life) | Y126: =_xlfn.XLOOKUP(X126,'Control panel'!$L$7:$L$37,'Control panel'!$P$7:$P$37) -> 1 | Z126: 0 | AA126: =_xlfn.XLOOKUP(W126,'BBM Costs'!$Q$6:$U$6,_xlfn.XLOOKUP(X126,'BBM Costs'!$P$7:$P$37,'BBM Costs'!$Q$7:$U$37))*_xlfn.XLOOKUP(X126,'Control panel'!$L$7:$L$37,'Control panel'!$M$7:$M$37) -> 0 | AB126: =_xlfn.XLOOKUP(W126,'BBM Costs'!$X$6:$AB$6,_xlfn.XLOOKUP(X126,'BBM Costs'!$W$7:$W$37,'BBM Costs'!$X$7:$AB$37))*_xlfn.XLOOKUP(X126,'Control panel'!$S$7:$S$37,'Control panel'!$T$7:$T$37) -> 0 | AC126: 0
W127: 2028-29 | X127: ='PTRM Data'!B32 -> Land & Easements - combined | Y127: =_xlfn.XLOOKUP(X127,'Control panel'!$L$7:$L$37,'Control panel'!$P$7:$P$37) -> 1 | Z127: 0 | AA127: =_xlfn.XLOOKUP(W127,'BBM Costs'!$Q$6:$U$6,_xlfn.XLOOKUP(X127,'BBM Costs'!$P$7:$P$37,'BBM Costs'!$Q$7:$U$37))*_xlfn.XLOOKUP(X127,'Control panel'!$L$7:$L$37,'Control panel'!$M$7:$M$37) -> 0 | AB127: =_xlfn.XLOOKUP(W127,'BBM Costs'!$X$6:$AB$6,_xlfn.XLOOKUP(X127,'BBM Costs'!$W$7:$W$37,'BBM Costs'!$X$7:$AB$37))*_xlfn.XLOOKUP(X127,'Control panel'!$S$7:$S$37,'Control panel'!$T$7:$T$37) -> 0 | AC127: 0
W128: 2028-29 | X128: ='PTRM Data'!B33 -> Communications | Y128: =_xlfn.XLOOKUP(X128,'Control panel'!$L$7:$L$37,'Control panel'!$P$7:$P$37) -> 1 | Z128: 0 | AA128: =_xlfn.XLOOKUP(W128,'BBM Costs'!$Q$6:$U$6,_xlfn.XLOOKUP(X128,'BBM Costs'!$P$7:$P$37,'BBM Costs'!$Q$7:$U$37))*_xlfn.XLOOKUP(X128,'Control panel'!$L$7:$L$37,'Control panel'!$M$7:$M$37) -> 0 | AB128: =_xlfn.XLOOKUP(W128,'BBM Costs'!$X$6:$AB$6,_xlfn.XLOOKUP(X128,'BBM Costs'!$W$7:$W$37,'BBM Costs'!$X$7:$AB$37))*_xlfn.XLOOKUP(X128,'Control panel'!$S$7:$S$37,'Control panel'!$T$7:$T$37) -> 0 | AC128: 0
W129: 2028-29 | X129: ='PTRM Data'!B34 -> In-house software | Y129: =_xlfn.XLOOKUP(X129,'Control panel'!$L$7:$L$37,'Control panel'!$P$7:$P$37) -> 1 | Z129: 0 | AA129: =_xlfn.XLOOKUP(W129,'BBM Costs'!$Q$6:$U$6,_xlfn.XLOOKUP(X129,'BBM Costs'!$P$7:$P$37,'BBM Costs'!$Q$7:$U$37))*_xlfn.XLOOKUP(X129,'Control panel'!$L$7:$L$37,'Control panel'!$M$7:$M$37) -> 0 | AB129: =_xlfn.XLOOKUP(W129,'BBM Costs'!$X$6:$AB$6,_xlfn.XLOOKUP(X129,'BBM Costs'!$W$7:$W$37,'BBM Costs'!$X$7:$AB$37))*_xlfn.XLOOKUP(X129,'Control panel'!$S$7:$S$37,'Control panel'!$T$7:$T$37) -> 0 | AC129: 0
W130: 2028-29 | X130: ='PTRM Data'!B35 -> IT Systems | Y130: =_xlfn.XLOOKUP(X130,'Control panel'!$L$7:$L$37,'Control panel'!$P$7:$P$37) -> 1 | Z130: 0 | AA130: =_xlfn.XLOOKUP(W130,'BBM Costs'!$Q$6:$U$6,_xlfn.XLOOKUP(X130,'BBM Costs'!$P$7:$P$37,'BBM Costs'!$Q$7:$U$37))*_xlfn.XLOOKUP(X130,'Control panel'!$L$7:$L$37,'Control panel'!$M$7:$M$37) -> 0 | AB130: =_xlfn.XLOOKUP(W130,'BBM Costs'!$X$6:$AB$6,_xlfn.XLOOKUP(X130,'BBM Costs'!$W$7:$W$37,'BBM Costs'!$X$7:$AB$37))*_xlfn.XLOOKUP(X130,'Control panel'!$S$7:$S$37,'Control panel'!$T$7:$T$37) -> 0 | AC130: 0
W131: 2028-29 | X131: ='PTRM Data'!B36 -> ICT Legacy Assets | Y131: =_xlfn.XLOOKUP(X131,'Control panel'!$L$7:$L$37,'Control panel'!$P$7:$P$37) -> 1 | Z131: 0 | AA131: =_xlfn.XLOOKUP(W131,'BBM Costs'!$Q$6:$U$6,_xlfn.XLOOKUP(X131,'BBM Costs'!$P$7:$P$37,'BBM Costs'!$Q$7:$U$37))*_xlfn.XLOOKUP(X131,'Control panel'!$L$7:$L$37,'Control panel'!$M$7:$M$37) -> 0 | AB131: =_xlfn.XLOOKUP(W131,'BBM Costs'!$X$6:$AB$6,_xlfn.XLOOKUP(X131,'BBM Costs'!$W$7:$W$37,'BBM Costs'!$X$7:$AB$37))*_xlfn.XLOOKUP(X131,'Control panel'!$S$7:$S$37,'Control panel'!$T$7:$T$37) -> 0 | AC131: 0
W132: 2028-29 | X132: ='PTRM Data'!B37 -> Buildings - capital works | Y132: =_xlfn.XLOOKUP(X132,'Control panel'!$L$7:$L$37,'Control panel'!$P$7:$P$37) -> 1 | Z132: 0 | AA132: =_xlfn.XLOOKUP(W132,'BBM Costs'!$Q$6:$U$6,_xlfn.XLOOKUP(X132,'BBM Costs'!$P$7:$P$37,'BBM Costs'!$Q$7:$U$37))*_xlfn.XLOOKUP(X132,'Control panel'!$L$7:$L$37,'Control panel'!$M$7:$M$37) -> 0 | AB132: =_xlfn.XLOOKUP(W132,'BBM Costs'!$X$6:$AB$6,_xlfn.XLOOKUP(X132,'BBM Costs'!$W$7:$W$37,'BBM Costs'!$X$7:$AB$37))*_xlfn.XLOOKUP(X132,'Control panel'!$S$7:$S$37,'Control panel'!$T$7:$T$37) -> 0 | AC132: 0
W133: 2029-30 | X133: ='PTRM Data'!B7 -> Overhead Sub-Transmission Lines | Y133: =_xlfn.XLOOKUP(X133,'Control panel'!$L$7:$L$37,'Control panel'!$P$7:$P$37) -> 1 | Z133: 10.29576827 | AA133: =_xlfn.XLOOKUP(W133,'BBM Costs'!$Q$6:$U$6,_xlfn.XLOOKUP(X133,'BBM Costs'!$P$7:$P$37,'BBM Costs'!$Q$7:$U$37))*_xlfn.XLOOKUP(X133,'Control panel'!$L$7:$L$37,'Control panel'!$M$7:$M$37) -> 0 | AB133: =_xlfn.XLOOKUP(W133,'BBM Costs'!$X$6:$AB$6,_xlfn.XLOOKUP(X133,'BBM Costs'!$W$7:$W$37,'BBM Costs'!$X$7:$AB$37))*_xlfn.XLOOKUP(X133,'Control panel'!$S$7:$S$37,'Control panel'!$T$7:$T$37) -> 0 | AC133: 10.29576827
W134: 2029-30 | X134: ='PTRM Data'!B8 -> Underground Sub-Transmission Cables | Y134: =_xlfn.XLOOKUP(X134,'Control panel'!$L$7:$L$37,'Control panel'!$P$7:$P$37) -> 1 | Z134: 0.3979426309 | AA134: =_xlfn.XLOOKUP(W134,'BBM Costs'!$Q$6:$U$6,_xlfn.XLOOKUP(X134,'BBM Costs'!$P$7:$P$37,'BBM Costs'!$Q$7:$U$37))*_xlfn.XLOOKUP(X134,'Control panel'!$L$7:$L$37,'Control panel'!$M$7:$M$37) -> 0 | AB134: =_xlfn.XLOOKUP(W134,'BBM Costs'!$X$6:$AB$6,_xlfn.XLOOKUP(X134,'BBM Costs'!$W$7:$W$37,'BBM Costs'!$X$7:$AB$37))*_xlfn.XLOOKUP(X134,'Control panel'!$S$7:$S$37,'Control panel'!$T$7:$T$37) -> 0 | AC134: 0.3979426309
W135: 2029-30 | X135: ='PTRM Data'!B9 -> Overhead Distribution Lines | Y135: =_xlfn.XLOOKUP(X135,'Control panel'!$L$7:$L$37,'Control panel'!$P$7:$P$37) -> 0.57 | Z135: 39.33696177 | AA135: =_xlfn.XLOOKUP(W135,'BBM Costs'!$Q$6:$U$6,_xlfn.XLOOKUP(X135,'BBM Costs'!$P$7:$P$37,'BBM Costs'!$Q$7:$U$37))*_xlfn.XLOOKUP(X135,'Control panel'!$L$7:$L$37,'Control panel'!$M$7:$M$37) -> 6.256279079 | AB135: =_xlfn.XLOOKUP(W135,'BBM Costs'!$X$6:$AB$6,_xlfn.XLOOKUP(X135,'BBM Costs'!$W$7:$W$37,'BBM Costs'!$X$7:$AB$37))*_xlfn.XLOOKUP(X135,'Control panel'!$S$7:$S$37,'Control panel'!$T$7:$T$37) -> 218.2495407 | AC135: 263.8427815
W136: 2029-30 | X136: ='PTRM Data'!B10 -> Underground Distribution Cables | Y136: =_xlfn.XLOOKUP(X136,'Control panel'!$L$7:$L$37,'Control panel'!$P$7:$P$37) -> 0.57 | Z136: 7.258278144 | AA136: =_xlfn.XLOOKUP(W136,'BBM Costs'!$Q$6:$U$6,_xlfn.XLOOKUP(X136,'BBM Costs'!$P$7:$P$37,'BBM Costs'!$Q$7:$U$37))*_xlfn.XLOOKUP(X136,'Control panel'!$L$7:$L$37,'Control panel'!$M$7:$M$37) -> -0.7149895736 | AB136: =_xlfn.XLOOKUP(W136,'BBM Costs'!$X$6:$AB$6,_xlfn.XLOOKUP(X136,'BBM Costs'!$W$7:$W$37,'BBM Costs'!$X$7:$AB$37))*_xlfn.XLOOKUP(X136,'Control panel'!$S$7:$S$37,'Control panel'!$T$7:$T$37) -> 34.0352093 | AC136: 40.57849787
W137: 2029-30 | X137: ='PTRM Data'!B11 -> Distribution Equipment | Y137: =_xlfn.XLOOKUP(X137,'Control panel'!$L$7:$L$37,'Control panel'!$P$7:$P$37) -> 0.57 | Z137: 0.1163138737 | AA137: =_xlfn.XLOOKUP(W137,'BBM Costs'!$Q$6:$U$6,_xlfn.XLOOKUP(X137,'BBM Costs'!$P$7:$P$37,'BBM Costs'!$Q$7:$U$37))*_xlfn.XLOOKUP(X137,'Control panel'!$L$7:$L$37,'Control panel'!$M$7:$M$37) -> 0.5638921684 | AB137: =_xlfn.XLOOKUP(W137,'BBM Costs'!$X$6:$AB$6,_xlfn.XLOOKUP(X137,'BBM Costs'!$W$7:$W$37,'BBM Costs'!$X$7:$AB$37))*_xlfn.XLOOKUP(X137,'Control panel'!$S$7:$S$37,'Control panel'!$T$7:$T$37) -> 2.673622295 | AC137: 3.353828337
W138: 2029-30 | X138: ='PTRM Data'!B12 -> Substation Bays | Y138: =_xlfn.XLOOKUP(X138,'Control panel'!$L$7:$L$37,'Control panel'!$P$7:$P$37) -> 1 | Z138: =SUMPRODUCT(_xlfn.XLOOKUP(W138,$AZ$9:$AZ$13,$BA$9:$BS$13),_xlfn.XLOOKUP(X138,$AE$9:$AE$39,$AF$9:$AX$39)) -> 11.21018396 | AA138: =_xlfn.XLOOKUP(W138,'BBM Costs'!$Q$6:$U$6,_xlfn.XLOOKUP(X138,'BBM Costs'!$P$7:$P$37,'BBM Costs'!$Q$7:$U$37))*_xlfn.XLOOKUP(X138,'Control panel'!$L$7:$L$37,'Control panel'!$M$7:$M$37) -> 0 | AB138: =_xlfn.XLOOKUP(W138,'BBM Costs'!$X$6:$AB$6,_xlfn.XLOOKUP(X138,'BBM Costs'!$W$7:$W$37,'BBM Costs'!$X$7:$AB$37))*_xlfn.XLOOKUP(X138,'Control panel'!$S$7:$S$37,'Control panel'!$T$7:$T$37) -> 0 | AC138: =SUM(Z138:AB138) -> 11.21018396
W139: 2029-30 | X139: ='PTRM Data'!B13 -> Substation Establishment | Y139: =_xlfn.XLOOKUP(X139,'Control panel'!$L$7:$L$37,'Control panel'!$P$7:$P$37) -> 1 | Z139: 2.3692691 | AA139: =_xlfn.XLOOKUP(W139,'BBM Costs'!$Q$6:$U$6,_xlfn.XLOOKUP(X139,'BBM Costs'!$P$7:$P$37,'BBM Costs'!$Q$7:$U$37))*_xlfn.XLOOKUP(X139,'Control panel'!$L$7:$L$37,'Control panel'!$M$7:$M$37) -> 0 | AB139: =_xlfn.XLOOKUP(W139,'BBM Costs'!$X$6:$AB$6,_xlfn.XLOOKUP(X139,'BBM Costs'!$W$7:$W$37,'BBM Costs'!$X$7:$AB$37))*_xlfn.XLOOKUP(X139,'Control panel'!$S$7:$S$37,'Control panel'!$T$7:$T$37) -> 0 | AC139: 2.3692691
W140: 2029-30 | X140: ='PTRM Data'!B14 -> Distribution Substation Switchgear | Y140: =_xlfn.XLOOKUP(X140,'Control panel'!$L$7:$L$37,'Control panel'!$P$7:$P$37) -> 0.57 | Z140: 4.098215944 | AA140: =_xlfn.XLOOKUP(W140,'BBM Costs'!$Q$6:$U$6,_xlfn.XLOOKUP(X140,'BBM Costs'!$P$7:$P$37,'BBM Costs'!$Q$7:$U$37))*_xlfn.XLOOKUP(X140,'Control panel'!$L$7:$L$37,'Control panel'!$M$7:$M$37) -> 0.845589431 | AB140: =_xlfn.XLOOKUP(W140,'BBM Costs'!$X$6:$AB$6,_xlfn.XLOOKUP(X140,'BBM Costs'!$W$7:$W$37,'BBM Costs'!$X$7:$AB$37))*_xlfn.XLOOKUP(X140,'Control panel'!$S$7:$S$37,'Control panel'!$T$7:$T$37) -> 25.22814075 | AC140: 30.17194613
W141: 2029-30 | X141: ='PTRM Data'!B15 -> Zone Transformers | Y141: =_xlfn.XLOOKUP(X141,'Control panel'!$L$7:$L$37,'Control panel'!$P$7:$P$37) -> 1 | Z141: 2.161718699 | AA141: =_xlfn.XLOOKUP(W141,'BBM Costs'!$Q$6:$U$6,_xlfn.XLOOKUP(X141,'BBM Costs'!$P$7:$P$37,'BBM Costs'!$Q$7:$U$37))*_xlfn.XLOOKUP(X141,'Control panel'!$L$7:$L$37,'Control panel'!$M$7:$M$37) -> 0 | AB141: =_xlfn.XLOOKUP(W141,'BBM Costs'!$X$6:$AB$6,_xlfn.XLOOKUP(X141,'BBM Costs'!$W$7:$W$37,'BBM Costs'!$X$7:$AB$37))*_xlfn.XLOOKUP(X141,'Control panel'!$S$7:$S$37,'Control panel'!$T$7:$T$37) -> 0 | AC141: 2.161718699
W142: 2029-30 | X142: ='PTRM Data'!B16 -> Distribution Transformers | Y142: =_xlfn.XLOOKUP(X142,'Control panel'!$L$7:$L$37,'Control panel'!$P$7:$P$37) -> 0.57 | Z142: 10.19037468 | AA142: =_xlfn.XLOOKUP(W142,'BBM Costs'!$Q$6:$U$6,_xlfn.XLOOKUP(X142,'BBM Costs'!$P$7:$P$37,'BBM Costs'!$Q$7:$U$37))*_xlfn.XLOOKUP(X142,'Control panel'!$L$7:$L$37,'Control panel'!$M$7:$M$37) -> 12.6104493 | AB142: =_xlfn.XLOOKUP(W142,'BBM Costs'!$X$6:$AB$6,_xlfn.XLOOKUP(X142,'BBM Costs'!$W$7:$W$37,'BBM Costs'!$X$7:$AB$37))*_xlfn.XLOOKUP(X142,'Control panel'!$S$7:$S$37,'Control panel'!$T$7:$T$37) -> 50.4303074 | AC142: 73.23113138
W143: 2029-30 | X143: ='PTRM Data'!B17 -> Low Voltage Services | Y143: =_xlfn.XLOOKUP(X143,'Control panel'!$L$7:$L$37,'Control panel'!$P$7:$P$37) -> 0 | Z143: 3.906167227 | AA143: =_xlfn.XLOOKUP(W143,'BBM Costs'!$Q$6:$U$6,_xlfn.XLOOKUP(X143,'BBM Costs'!$P$7:$P$37,'BBM Costs'!$Q$7:$U$37))*_xlfn.XLOOKUP(X143,'Control panel'!$L$7:$L$37,'Control panel'!$M$7:$M$37) -> 0 | AB143: =_xlfn.XLOOKUP(W143,'BBM Costs'!$X$6:$AB$6,_xlfn.XLOOKUP(X143,'BBM Costs'!$W$7:$W$37,'BBM Costs'!$X$7:$AB$37))*_xlfn.XLOOKUP(X143,'Control panel'!$S$7:$S$37,'Control panel'!$T$7:$T$37) -> 0 | AC143: 3.906167227
W144: 2029-30 | X144: ='PTRM Data'!B18 -> Metering | Y144: =_xlfn.XLOOKUP(X144,'Control panel'!$L$7:$L$37,'Control panel'!$P$7:$P$37) -> 1 | Z144: 0 | AA144: =_xlfn.XLOOKUP(W144,'BBM Costs'!$Q$6:$U$6,_xlfn.XLOOKUP(X144,'BBM Costs'!$P$7:$P$37,'BBM Costs'!$Q$7:$U$37))*_xlfn.XLOOKUP(X144,'Control panel'!$L$7:$L$37,'Control panel'!$M$7:$M$37) -> 0 | AB144: =_xlfn.XLOOKUP(W144,'BBM Costs'!$X$6:$AB$6,_xlfn.XLOOKUP(X144,'BBM Costs'!$W$7:$W$37,'BBM Costs'!$X$7:$AB$37))*_xlfn.XLOOKUP(X144,'Control panel'!$S$7:$S$37,'Control panel'!$T$7:$T$37) -> 0 | AC144: 0
W145: 2029-30 | X145: ='PTRM Data'!B19 -> Communications – Pilot Wires | Y145: =_xlfn.XLOOKUP(X145,'Control panel'!$L$7:$L$37,'Control panel'!$P$7:$P$37) -> 0 | Z145: 1.33529185 | AA145: =_xlfn.XLOOKUP(W145,'BBM Costs'!$Q$6:$U$6,_xlfn.XLOOKUP(X145,'BBM Costs'!$P$7:$P$37,'BBM Costs'!$Q$7:$U$37))*_xlfn.XLOOKUP(X145,'Control panel'!$L$7:$L$37,'Control panel'!$M$7:$M$37) -> 0 | AB145: =_xlfn.XLOOKUP(W145,'BBM Costs'!$X$6:$AB$6,_xlfn.XLOOKUP(X145,'BBM Costs'!$W$7:$W$37,'BBM Costs'!$X$7:$AB$37))*_xlfn.XLOOKUP(X145,'Control panel'!$S$7:$S$37,'Control panel'!$T$7:$T$37) -> 0 | AC145: 1.33529185
W147: 2029-30 | X147: ='PTRM Data'!B21 -> Land & Easements (System) - combined | Y147: =_xlfn.XLOOKUP(X147,'Control panel'!$L$7:$L$37,'Control panel'!$P$7:$P$37) -> 1 | Z147: 0.3571694484 | AA147: =_xlfn.XLOOKUP(W147,'BBM Costs'!$Q$6:$U$6,_xlfn.XLOOKUP(X147,'BBM Costs'!$P$7:$P$37,'BBM Costs'!$Q$7:$U$37))*_xlfn.XLOOKUP(X147,'Control panel'!$L$7:$L$37,'Control panel'!$M$7:$M$37) -> 0 | AB147: =_xlfn.XLOOKUP(W147,'BBM Costs'!$X$6:$AB$6,_xlfn.XLOOKUP(X147,'BBM Costs'!$W$7:$W$37,'BBM Costs'!$X$7:$AB$37))*_xlfn.XLOOKUP(X147,'Control panel'!$S$7:$S$37,'Control panel'!$T$7:$T$37) -> 0 | AC147: 0.3571694484
W148: 2029-30 | X148: ='PTRM Data'!B22 -> Land Improvements | Y148: =_xlfn.XLOOKUP(X148,'Control panel'!$L$7:$L$37,'Control panel'!$P$7:$P$37) -> 1 | Z148: 0 | AA148: =_xlfn.XLOOKUP(W148,'BBM Costs'!$Q$6:$U$6,_xlfn.XLOOKUP(X148,'BBM Costs'!$P$7:$P$37,'BBM Costs'!$Q$7:$U$37))*_xlfn.XLOOKUP(X148,'Control panel'!$L$7:$L$37,'Control panel'!$M$7:$M$37) -> 0 | AB148: =_xlfn.XLOOKUP(W148,'BBM Costs'!$X$6:$AB$6,_xlfn.XLOOKUP(X148,'BBM Costs'!$W$7:$W$37,'BBM Costs'!$X$7:$AB$37))*_xlfn.XLOOKUP(X148,'Control panel'!$S$7:$S$37,'Control panel'!$T$7:$T$37) -> 0 | AC148: 0
W149: 2029-30 | X149: ='PTRM Data'!B23 -> Control Centre - SCADA | Y149: =_xlfn.XLOOKUP(X149,'Control panel'!$L$7:$L$37,'Control panel'!$P$7:$P$37) -> 1 | Z149: 0.1862298863 | AA149: =_xlfn.XLOOKUP(W149,'BBM Costs'!$Q$6:$U$6,_xlfn.XLOOKUP(X149,'BBM Costs'!$P$7:$P$37,'BBM Costs'!$Q$7:$U$37))*_xlfn.XLOOKUP(X149,'Control panel'!$L$7:$L$37,'Control panel'!$M$7:$M$37) -> 0 | AB149: =_xlfn.XLOOKUP(W149,'BBM Costs'!$X$6:$AB$6,_xlfn.XLOOKUP(X149,'BBM Costs'!$W$7:$W$37,'BBM Costs'!$X$7:$AB$37))*_xlfn.XLOOKUP(X149,'Control panel'!$S$7:$S$37,'Control panel'!$T$7:$T$37) -> 0 | AC149: 0.1862298863
W150: 2029-30 | X150: ='PTRM Data'!B24 -> Other Equipment | Y150: =_xlfn.XLOOKUP(X150,'Control panel'!$L$7:$L$37,'Control panel'!$P$7:$P$37) -> 1 | Z150: 0.009884178945 | AA150: =_xlfn.XLOOKUP(W150,'BBM Costs'!$Q$6:$U$6,_xlfn.XLOOKUP(X150,'BBM Costs'!$P$7:$P$37,'BBM Costs'!$Q$7:$U$37))*_xlfn.XLOOKUP(X150,'Control panel'!$L$7:$L$37,'Control panel'!$M$7:$M$37) -> 0 | AB150: =_xlfn.XLOOKUP(W150,'BBM Costs'!$X$6:$AB$6,_xlfn.XLOOKUP(X150,'BBM Costs'!$W$7:$W$37,'BBM Costs'!$X$7:$AB$37))*_xlfn.XLOOKUP(X150,'Control panel'!$S$7:$S$37,'Control panel'!$T$7:$T$37) -> 0 | AC150: 0.009884178945
W151: 2029-30 | X151: ='PTRM Data'!B25 -> Generation Assets | Y151: =_xlfn.XLOOKUP(X151,'Control panel'!$L$7:$L$37,'Control panel'!$P$7:$P$37) -> 1 | Z151: 0.12538631 | AA151: =_xlfn.XLOOKUP(W151,'BBM Costs'!$Q$6:$U$6,_xlfn.XLOOKUP(X151,'BBM Costs'!$P$7:$P$37,'BBM Costs'!$Q$7:$U$37))*_xlfn.XLOOKUP(X151,'Control panel'!$L$7:$L$37,'Control panel'!$M$7:$M$37) -> 0 | AB151: =_xlfn.XLOOKUP(W151,'BBM Costs'!$X$6:$AB$6,_xlfn.XLOOKUP(X151,'BBM Costs'!$W$7:$W$37,'BBM Costs'!$X$7:$AB$37))*_xlfn.XLOOKUP(X151,'Control panel'!$S$7:$S$37,'Control panel'!$T$7:$T$37) -> 0 | AC151: 0.12538631
W152: 2029-30 | X152: ='PTRM Data'!B26 -> Motor Vehicles | Y152: =_xlfn.XLOOKUP(X152,'Control panel'!$L$7:$L$37,'Control panel'!$P$7:$P$37) -> 1 | Z152: 0 | AA152: =_xlfn.XLOOKUP(W152,'BBM Costs'!$Q$6:$U$6,_xlfn.XLOOKUP(X152,'BBM Costs'!$P$7:$P$37,'BBM Costs'!$Q$7:$U$37))*_xlfn.XLOOKUP(X152,'Control panel'!$L$7:$L$37,'Control panel'!$M$7:$M$37) -> 0 | AB152: =_xlfn.XLOOKUP(W152,'BBM Costs'!$X$6:$AB$6,_xlfn.XLOOKUP(X152,'BBM Costs'!$W$7:$W$37,'BBM Costs'!$X$7:$AB$37))*_xlfn.XLOOKUP(X152,'Control panel'!$S$7:$S$37,'Control panel'!$T$7:$T$37) -> 0 | AC152: 0
W153: 2029-30 | X153: ='PTRM Data'!B27 -> Plant & Equipment | Y153: =_xlfn.XLOOKUP(X153,'Control panel'!$L$7:$L$37,'Control panel'!$P$7:$P$37) -> 1 | Z153: 0 | AA153: =_xlfn.XLOOKUP(W153,'BBM Costs'!$Q$6:$U$6,_xlfn.XLOOKUP(X153,'BBM Costs'!$P$7:$P$37,'BBM Costs'!$Q$7:$U$37))*_xlfn.XLOOKUP(X153,'Control panel'!$L$7:$L$37,'Control panel'!$M$7:$M$37) -> 0 | AB153: =_xlfn.XLOOKUP(W153,'BBM Costs'!$X$6:$AB$6,_xlfn.XLOOKUP(X153,'BBM Costs'!$W$7:$W$37,'BBM Costs'!$X$7:$AB$37))*_xlfn.XLOOKUP(X153,'Control panel'!$S$7:$S$37,'Control panel'!$T$7:$T$37) -> 0 | AC153: 0
W154: 2029-30 | X154: ='PTRM Data'!B28 -> Buildings | Y154: =_xlfn.XLOOKUP(X154,'Control panel'!$L$7:$L$37,'Control panel'!$P$7:$P$37) -> 1 | Z154: 0 | AA154: =_xlfn.XLOOKUP(W154,'BBM Costs'!$Q$6:$U$6,_xlfn.XLOOKUP(X154,'BBM Costs'!$P$7:$P$37,'BBM Costs'!$Q$7:$U$37))*_xlfn.XLOOKUP(X154,'Control panel'!$L$7:$L$37,'Control panel'!$M$7:$M$37) -> 0 | AB154: =_xlfn.XLOOKUP(W154,'BBM Costs'!$X$6:$AB$6,_xlfn.XLOOKUP(X154,'BBM Costs'!$W$7:$W$37,'BBM Costs'!$X$7:$AB$37))*_xlfn.XLOOKUP(X154,'Control panel'!$S$7:$S$37,'Control panel'!$T$7:$T$37) -> 0 | AC154: 0
W155: 2029-30 | X155: ='PTRM Data'!B29 -> Office Equipment & Furniture | Y155: =_xlfn.XLOOKUP(X155,'Control panel'!$L$7:$L$37,'Control panel'!$P$7:$P$37) -> 1 | Z155: -0.0289285726 | AA155: =_xlfn.XLOOKUP(W155,'BBM Costs'!$Q$6:$U$6,_xlfn.XLOOKUP(X155,'BBM Costs'!$P$7:$P$37,'BBM Costs'!$Q$7:$U$37))*_xlfn.XLOOKUP(X155,'Control panel'!$L$7:$L$37,'Control panel'!$M$7:$M$37) -> 0 | AB155: =_xlfn.XLOOKUP(W155,'BBM Costs'!$X$6:$AB$6,_xlfn.XLOOKUP(X155,'BBM Costs'!$W$7:$W$37,'BBM Costs'!$X$7:$AB$37))*_xlfn.XLOOKUP(X155,'Control panel'!$S$7:$S$37,'Control panel'!$T$7:$T$37) -> 0 | AC155: -0.0289285726
W156: 2029-30 | X156: ='PTRM Data'!B30 -> Initial Leases (10 yr life) | Y156: =_xlfn.XLOOKUP(X156,'Control panel'!$L$7:$L$37,'Control panel'!$P$7:$P$37) -> 1 | Z156: 0 | AA156: =_xlfn.XLOOKUP(W156,'BBM Costs'!$Q$6:$U$6,_xlfn.XLOOKUP(X156,'BBM Costs'!$P$7:$P$37,'BBM Costs'!$Q$7:$U$37))*_xlfn.XLOOKUP(X156,'Control panel'!$L$7:$L$37,'Control panel'!$M$7:$M$37) -> 0 | AB156: =_xlfn.XLOOKUP(W156,'BBM Costs'!$X$6:$AB$6,_xlfn.XLOOKUP(X156,'BBM Costs'!$W$7:$W$37,'BBM Costs'!$X$7:$AB$37))*_xlfn.XLOOKUP(X156,'Control panel'!$S$7:$S$37,'Control panel'!$T$7:$T$37) -> 0 | AC156: 0
W157: 2029-30 | X157: ='PTRM Data'!B31 -> Lease Extensions (5yr Life) | Y157: =_xlfn.XLOOKUP(X157,'Control panel'!$L$7:$L$37,'Control panel'!$P$7:$P$37) -> 1 | Z157: 0 | AA157: =_xlfn.XLOOKUP(W157,'BBM Costs'!$Q$6:$U$6,_xlfn.XLOOKUP(X157,'BBM Costs'!$P$7:$P$37,'BBM Costs'!$Q$7:$U$37))*_xlfn.XLOOKUP(X157,'Control panel'!$L$7:$L$37,'Control panel'!$M$7:$M$37) -> 0 | AB157: =_xlfn.XLOOKUP(W157,'BBM Costs'!$X$6:$AB$6,_xlfn.XLOOKUP(X157,'BBM Costs'!$W$7:$W$37,'BBM Costs'!$X$7:$AB$37))*_xlfn.XLOOKUP(X157,'Control panel'!$S$7:$S$37,'Control panel'!$T$7:$T$37) -> 0 | AC157: 0
W158: 2029-30 | X158: ='PTRM Data'!B32 -> Land & Easements - combined | Y158: =_xlfn.XLOOKUP(X158,'Control panel'!$L$7:$L$37,'Control panel'!$P$7:$P$37) -> 1 | Z158: 0 | AA158: =_xlfn.XLOOKUP(W158,'BBM Costs'!$Q$6:$U$6,_xlfn.XLOOKUP(X158,'BBM Costs'!$P$7:$P$37,'BBM Costs'!$Q$7:$U$37))*_xlfn.XLOOKUP(X158,'Control panel'!$L$7:$L$37,'Control panel'!$M$7:$M$37) -> 0 | AB158: =_xlfn.XLOOKUP(W158,'BBM Costs'!$X$6:$AB$6,_xlfn.XLOOKUP(X158,'BBM Costs'!$W$7:$W$37,'BBM Costs'!$X$7:$AB$37))*_xlfn.XLOOKUP(X158,'Control panel'!$S$7:$S$37,'Control panel'!$T$7:$T$37) -> 0 | AC158: 0
W159: 2029-30 | X159: ='PTRM Data'!B33 -> Communications | Y159: =_xlfn.XLOOKUP(X159,'Control panel'!$L$7:$L$37,'Control panel'!$P$7:$P$37) -> 1 | Z159: 0 | AA159: =_xlfn.XLOOKUP(W159,'BBM Costs'!$Q$6:$U$6,_xlfn.XLOOKUP(X159,'BBM Costs'!$P$7:$P$37,'BBM Costs'!$Q$7:$U$37))*_xlfn.XLOOKUP(X159,'Control panel'!$L$7:$L$37,'Control panel'!$M$7:$M$37) -> 0 | AB159: =_xlfn.XLOOKUP(W159,'BBM Costs'!$X$6:$AB$6,_xlfn.XLOOKUP(X159,'BBM Costs'!$W$7:$W$37,'BBM Costs'!$X$7:$AB$37))*_xlfn.XLOOKUP(X159,'Control panel'!$S$7:$S$37,'Control panel'!$T$7:$T$37) -> 0 | AC159: 0
W160: 2029-30 | X160: ='PTRM Data'!B34 -> In-house software | Y160: =_xlfn.XLOOKUP(X160,'Control panel'!$L$7:$L$37,'Control panel'!$P$7:$P$37) -> 1 | Z160: 0 | AA160: =_xlfn.XLOOKUP(W160,'BBM Costs'!$Q$6:$U$6,_xlfn.XLOOKUP(X160,'BBM Costs'!$P$7:$P$37,'BBM Costs'!$Q$7:$U$37))*_xlfn.XLOOKUP(X160,'Control panel'!$L$7:$L$37,'Control panel'!$M$7:$M$37) -> 0 | AB160: =_xlfn.XLOOKUP(W160,'BBM Costs'!$X$6:$AB$6,_xlfn.XLOOKUP(X160,'BBM Costs'!$W$7:$W$37,'BBM Costs'!$X$7:$AB$37))*_xlfn.XLOOKUP(X160,'Control panel'!$S$7:$S$37,'Control panel'!$T$7:$T$37) -> 0 | AC160: 0
W161: 2029-30 | X161: ='PTRM Data'!B35 -> IT Systems | Y161: =_xlfn.XLOOKUP(X161,'Control panel'!$L$7:$L$37,'Control panel'!$P$7:$P$37) -> 1 | Z161: 0 | AA161: =_xlfn.XLOOKUP(W161,'BBM Costs'!$Q$6:$U$6,_xlfn.XLOOKUP(X161,'BBM Costs'!$P$7:$P$37,'BBM Costs'!$Q$7:$U$37))*_xlfn.XLOOKUP(X161,'Control panel'!$L$7:$L$37,'Control panel'!$M$7:$M$37) -> 0 | AB161: =_xlfn.XLOOKUP(W161,'BBM Costs'!$X$6:$AB$6,_xlfn.XLOOKUP(X161,'BBM Costs'!$W$7:$W$37,'BBM Costs'!$X$7:$AB$37))*_xlfn.XLOOKUP(X161,'Control panel'!$S$7:$S$37,'Control panel'!$T$7:$T$37) -> 0 | AC161: 0
W162: 2029-30 | X162: ='PTRM Data'!B36 -> ICT Legacy Assets | Y162: =_xlfn.XLOOKUP(X162,'Control panel'!$L$7:$L$37,'Control panel'!$P$7:$P$37) -> 1 | Z162: 0 | AA162: =_xlfn.XLOOKUP(W162,'BBM Costs'!$Q$6:$U$6,_xlfn.XLOOKUP(X162,'BBM Costs'!$P$7:$P$37,'BBM Costs'!$Q$7:$U$37))*_xlfn.XLOOKUP(X162,'Control panel'!$L$7:$L$37,'Control panel'!$M$7:$M$37) -> 0 | AB162: =_xlfn.XLOOKUP(W162,'BBM Costs'!$X$6:$AB$6,_xlfn.XLOOKUP(X162,'BBM Costs'!$W$7:$W$37,'BBM Costs'!$X$7:$AB$37))*_xlfn.XLOOKUP(X162,'Control panel'!$S$7:$S$37,'Control panel'!$T$7:$T$37) -> 0 | AC162: 0
W163: 2029-30 | X163: ='PTRM Data'!B37 -> Buildings - capital works | Y163: =_xlfn.XLOOKUP(X163,'Control panel'!$L$7:$L$37,'Control panel'!$P$7:$P$37) -> 1 | Z163: 0 | AA163: =_xlfn.XLOOKUP(W163,'BBM Costs'!$Q$6:$U$6,_xlfn.XLOOKUP(X163,'BBM Costs'!$P$7:$P$37,'BBM Costs'!$Q$7:$U$37))*_xlfn.XLOOKUP(X163,'Control panel'!$L$7:$L$37,'Control panel'!$M$7:$M$37) -> 0 | AB163: =_xlfn.XLOOKUP(W163,'BBM Costs'!$X$6:$AB$6,_xlfn.XLOOKUP(X163,'BBM Costs'!$W$7:$W$37,'BBM Costs'!$X$7:$AB$37))*_xlfn.XLOOKUP(X163,'Control panel'!$S$7:$S$37,'Control panel'!$T$7:$T$37) -> 0 | AC163: 0

Sheet PTRM Revenue data
B2: PTRM Revenue Data
B4: Building Block Components | I4: Forecast inflation | P4: Other PTRM Components
B6: Asset class | C6: 2025-26 | D6: 2026-27 | E6: 2027-28 | F6: 2028-29 | G6: 2029-30 | I6: Asset class | J6: 2025-26 | K6: 2026-27 | L6: 2027-28 | M6: 2028-29 | N6: 2029-30 | P6: Asset class | Q6: 2025-26 | R6: 2026-27 | S6: 2027-28 | T6: 2028-29 | U6: 2029-30
B7: Return on Capital | C7: =C17*C$24 -> 898.9477546 | D7: =D17*D$24 -> 961.5923136 | E7: 1028.866292 | F7: 1132.28134 | G7: 1225.522593 | I7: Forecast inflation | J7: ='X-factors'!G10 -> 0.02849702235 | K7: ='X-factors'!H10 -> 0.02849702235 | L7: ='X-factors'!I10 -> 0.02849702235 | M7: ='X-factors'!J10 -> 0.02849702235 | N7: ='X-factors'!K10 -> 0.02849702235 | P7: EBSS | Q7: ='PTRM Input'!G345 -> 0 | R7: ='PTRM Input'!H345 -> 0 | S7: ='PTRM Input'!I345 -> 0 | T7: ='PTRM Input'!J345 -> 0 | U7: ='PTRM Input'!K345 -> 0
B8: Return of Capital (regulatory depreciation) | C8: =C18*C$24 -> 183.4230118 | D8: 212.1454937 | E8: 245.0619464 | F8: 282.260031 | G8: 303.6323142 | I8: Inflation index | J8: =1+J7 -> 1.028497022 | K8: =1+K7 -> 1.028497022 | L8: 1.028497022 | M8: 1.028497022 | N8: 1.028497022 | P8: CESS | Q8: ='PTRM Input'!G346 -> -110.5386394 | R8: ='PTRM Input'!H346 -> -110.5386394 | S8: ='PTRM Input'!I346 -> -110.5386394 | T8: ='PTRM Input'!J346 -> -110.5386394 | U8: ='PTRM Input'!K346 -> -110.5386394
B9: Operating Expenditure | C9: =C19*C$24 -> 523.3337111 | D9: 536.6663647 | E9: 551.8602886 | F9: 579.1994568 | G9: 599.4580837 | P9: Control period carryover | Q9: ='PTRM Input'!G347 -> 0 | R9: ='PTRM Input'!H347 -> 0 | S9: ='PTRM Input'!I347 -> 0 | T9: ='PTRM Input'!J347 -> 0 | U9: ='PTRM Input'!K347 -> 0
B10: Revenue Adjustments | C10: =C20*C$24 -> -112.9406745 | D10: -117.8025046 | E10: -122.5109069 | F10: -130.4684522 | G10: -136.6681146 | P10: Shared asset decrements | Q10: ='PTRM Input'!G348 -> 0 | R10: ='PTRM Input'!H348 -> 0 | S10: ='PTRM Input'!I348 -> 0 | T10: ='PTRM Input'!J348 -> 0 | U10: ='PTRM Input'!K348 -> 0
B11: Net Tax Allowance | C11: =C21*C$24 -> 3.9503123 | D11: 7.265287776 | E11: 9.610019037 | F11: 14.58073515 | G11: 12.28392722 | P11: DMIA | Q11: ='PTRM Input'!G349 -> 1.477702078 | R11: ='PTRM Input'!H349 -> 1.502949894 | S11: ='PTRM Input'!I349 -> 1.536772576 | T11: ='PTRM Input'!J349 -> 1.571508198 | U11: ='PTRM Input'!K349 -> 1.594429504
B12: Total vaildation | C12: =SUM(C7:C11) -> 1496.714115 | D12: =SUM(D7:D11) -> 1599.866955 | E12: 1712.887639 | F12: 1877.853111 | G12: 2004.228804
B14: Unsmoothed building block components
B16: Asset class | C16: 2025-26 | D16: 2026-27 | E16: 2027-28 | F16: 2028-29 | G16: 2029-30
B17: Return on Capital | C17: ='X-factors'!G30 -> 932.1512142 | D17: ='X-factors'!H30 -> 982.9818202 | E17: ='X-factors'!I30 -> 1039.841631 | F17: ='X-factors'!J30 -> 1104.847465 | G17: ='X-factors'!K30 -> 1173.87847
B18: Return of Capital (regulatory depreciation) | C18: ='X-factors'!G31 -> 190.1979089 | D18: ='X-factors'!H31 -> 216.8644243 | E18: ='X-factors'!I31 -> 247.6761227 | F18: ='X-factors'!J31 -> 275.4211949 | G18: ='X-factors'!K31 -> 290.8370996
B19: Operating Expenditure | C19: ='X-factors'!G32 -> 542.6635216 | D19: ='X-factors'!H32 -> 548.603886 | E19: ='X-factors'!I32 -> 557.7472088 | F19: ='X-factors'!J32 -> 565.1661196 | G19: ='X-factors'!K32 -> 574.196626
B20: Revenue Adjustments | C20: ='X-factors'!G33 -> -117.1122419 | D20: ='X-factors'!H33 -> -120.4228848 | E20: ='X-factors'!I33 -> -123.817781 | F20: ='X-factors'!J33 -> -127.3073515 | G20: ='X-factors'!K33 -> -130.9088532
B21: Net Tax Allowance | C21: ='X-factors'!G34 -> 4.096220707 | D21: ='X-factors'!H34 -> 7.426895682 | E21: ='X-factors'!I34 -> 9.712533053 | F21: ='X-factors'!J34 -> 14.2274607 | G21: ='X-factors'!K34 -> 11.7662765
B22: Total unsmoothed | C22: =SUM(C17:C21) -> 1551.996624 | D22: =SUM(D17:D21) -> 1635.454141 | E22: 1731.159715 | F22: 1832.354889 | G22: 1919.769619
B23: Total smoothed | C23: ='X-factors'!G60 -> 1496.714115 | D23: ='X-factors'!H60 -> 1599.866955 | E23: ='X-factors'!I60 -> 1712.887639 | F23: ='X-factors'!J60 -> 1877.853111 | G23: ='X-factors'!K60 -> 2004.228804
B24: Percentage difference | C24: =C23/C22 -> 0.9643797496 | D24: =D23/D22 -> 0.9782401809 | E24: 0.9894451822 | F24: 1.024830464 | G24: 1.043994438

Sheet PTRM Data
B2: PTRM Data
B4: Opening RAB | E4: Capital expenditure | L4: Depreciation | S4: ORAB | Z4: ORAB Split | AG4: Indexation split | AN4: Depreciation split | AU4: Regulatory depreciation Split ($m, nominal)
B6: Asset class | C6: RAB 2025-2026 | E6: Asset class | F6: 2025-26 | G6: 2026-27 | H6: 2027-28 | I6: 2028-29 | J6: 2029-30 | L6: Asset class | M6: 2025-26 | N6: 2026-27 | O6: 2027-28 | P6: 2028-29 | Q6: 2029-30 | S6: Asset class | T6: 2025-26 | U6: 2026-27 | V6: 2027-28 | W6: 2028-29 | X6: 2029-30 | Z6: Asset class | AA6: 2025-26 | AB6: 2026-27 | AC6: 2027-28 | AD6: 2028-29 | AE6: 2029-30 | AG6: Asset class | AH6: 2025-26 | AI6: 2026-27 | AJ6: 2027-28 | AK6: 2028-29 | AL6: 2029-30 | AN6: Asset class | AO6: 2025-26 | AP6: 2026-27 | AQ6: 2027-28 | AR6: 2028-29 | AS6: 2029-30 | AU6: Asset class | AV6: 2025-26 | AW6: 2026-27 | AX6: 2027-28 | AY6: 2028-29 | AZ6: 2029-30
B7: Overhead Sub-Transmission Lines | C7: =_xlfn.XLOOKUP(B7,'PTRM Input'!$G$6:$G$58,'PTRM Input'!$J$6:$J$58) -> 1596.429734 | E7: =B7 -> Overhead Sub-Transmission Lines | F7: =_xlfn.XLOOKUP($E7,Assets!$C$11:$C$60,Assets!G$11:G$60) -> 35.22979873 | G7: =_xlfn.XLOOKUP($E7,Assets!$C$11:$C$60,Assets!H$11:H$60) -> 37.99120781 | H7: =_xlfn.XLOOKUP($E7,Assets!$C$11:$C$60,Assets!I$11:I$60) -> 44.81259588 | I7: =_xlfn.XLOOKUP($E7,Assets!$C$11:$C$60,Assets!J$11:J$60) -> 49.81704632 | J7: =_xlfn.XLOOKUP($E7,Assets!$C$11:$C$60,Assets!K$11:K$60) -> 69.89634299 | L7: =B7 -> Overhead Sub-Transmission Lines | M7: =_xlfn.XLOOKUP($L7,Assets!$C$128:$C$765,Assets!G$128:G$765) -> 56.03047106 | N7: =_xlfn.XLOOKUP($L7,Assets!$C$128:$C$765,Assets!H$128:H$765) -> 56.67101286 | O7: =_xlfn.XLOOKUP($L7,Assets!$C$128:$C$765,Assets!I$128:I$765) -> 57.36176209 | P7: =_xlfn.XLOOKUP($L7,Assets!$C$128:$C$765,Assets!J$128:J$765) -> 58.17653656 | Q7: =_xlfn.XLOOKUP($L7,Assets!$C$128:$C$765,Assets!K$128:K$765) -> 59.08230104 | S7: =B7 -> Overhead Sub-Transmission Lines | T7: =_xlfn.XLOOKUP(S7,$B$7:$B$37,C$7:C$37) -> 1596.429734 | U7: =T7+F7-M7 -> 1575.629062 | V7: =U7+G7-N7 -> 1556.949257 | W7: 1544.40009 | X7: =W7+I7-P7 -> 1536.0406 | Z7: =B7 -> Overhead Sub-Transmission Lines | AA7: =T7/T$40 -> 0.100746222 | AB7: =U7/U$40 -> 0.09718566271 | AC7: =V7/V$40 -> 0.09443774062 | AD7: =W7/W$40 -> 0.09203578164 | AE7: =X7/X$40 -> 0.08991448225 | AG7: =B7 -> Overhead Sub-Transmission Lines | AH7: =T7*'PTRM Revenue data'!J$7 -> 45.49349381 | AI7: =U7*'PTRM Revenue data'!K$7*'PTRM Revenue data'!J$8 -> 46.18027388 | AJ7: =V7*'PTRM Revenue data'!L$7*'PTRM Revenue data'!K$8 -> 45.63278556 | AK7: =W7*'PTRM Revenue data'!M$7*'PTRM Revenue data'!L$8 -> 45.26498076 | AL7: =X7*'PTRM Revenue data'!N$7*'PTRM Revenue data'!M$8 -> 45.0199716 | AN7: =B7 -> Overhead Sub-Transmission Lines | AO7: =M7*'PTRM Revenue data'!J$8 -> 57.62717265 | AP7: =N7*'PTRM Revenue data'!K$8 -> 58.28596798 | AQ7: =O7*'PTRM Revenue data'!L$8 -> 58.9964015 | AR7: =P7*'PTRM Revenue data'!M$8 -> 59.83439462 | AS7: =Q7*'PTRM Revenue data'!N$8 -> 60.76597069 | AU7: =B7 -> Overhead Sub-Transmission Lines | AV7: =AO7-AH7 -> 12.13367884 | AW7: =AP7-AI7 -> 12.1056941 | AX7: 13.36361595 | AY7: 14.56941387 | AZ7: 15.74599909
B8: Underground Sub-Transmission Cables | C8: =_xlfn.XLOOKUP(B8,'PTRM Input'!$G$6:$G$58,'PTRM Input'!$J$6:$J$58) -> 61.70374385 | E8: =B8 -> Underground Sub-Transmission Cables | F8: =_xlfn.XLOOKUP($E8,Assets!$C$11:$C$60,Assets!G$11:G$60) -> 3.626480044 | G8: =_xlfn.XLOOKUP($E8,Assets!$C$11:$C$60,Assets!H$11:H$60) -> 3.694314816 | H8: =_xlfn.XLOOKUP($E8,Assets!$C$11:$C$60,Assets!I$11:I$60) -> 3.665941166 | I8: =_xlfn.XLOOKUP($E8,Assets!$C$11:$C$60,Assets!J$11:J$60) -> 4.098164556 | J8: =_xlfn.XLOOKUP($E8,Assets!$C$11:$C$60,Assets!K$11:K$60) -> 3.876959811 | L8: =B8 -> Underground Sub-Transmission Cables | M8: =_xlfn.XLOOKUP($L8,Assets!$C$128:$C$765,Assets!G$128:G$765) -> 2.529090315 | N8: =_xlfn.XLOOKUP($L8,Assets!$C$128:$C$765,Assets!H$128:H$765) -> 2.609678761 | O8: =_xlfn.XLOOKUP($L8,Assets!$C$128:$C$765,Assets!I$128:I$765) -> 2.691774646 | P8: =_xlfn.XLOOKUP($L8,Assets!$C$128:$C$765,Assets!J$128:J$765) -> 2.773240005 | Q8: =_xlfn.XLOOKUP($L8,Assets!$C$128:$C$765,Assets!K$128:K$765) -> 2.864310328 | S8: =B8 -> Underground Sub-Transmission Cables | T8: 61.70374385 | U8: =T8+F8-M8 -> 62.80113358 | V8: 63.88576964 | W8: 64.85993616 | X8: =W8+I8-P8 -> 66.18486071 | Z8: =B8 -> Underground Sub-Transmission Cables | AA8: 0.003893950947 | AB8: 0.003873608285 | AC8: 0.003875031711 | AD8: 0.003865212751 | AE8: 0.003874231894 | AG8: =B8 -> Underground Sub-Transmission Cables | AH8: =T8*'PTRM Revenue data'!J$7 -> 1.758372968 | AI8: =U8*'PTRM Revenue data'!K$7*'PTRM Revenue data'!J$8 -> 1.84064487 | AJ8: =V8*'PTRM Revenue data'!L$7*'PTRM Revenue data'!K$8 -> 1.872434579 | AK8: =W8*'PTRM Revenue data'!M$7*'PTRM Revenue data'!L$8 -> 1.900986526 | AL8: =X8*'PTRM Revenue data'!N$7*'PTRM Revenue data'!M$8 -> 1.939818875 | AN8: =B8 -> Underground Sub-Transmission Cables | AO8: =M8*'PTRM Revenue data'!J$8 -> 2.601161859 | AP8: =N8*'PTRM Revenue data'!K$8 -> 2.684046835 | AQ8: =O8*'PTRM Revenue data'!L$8 -> 2.768482208 | AR8: =P8*'PTRM Revenue data'!M$8 -> 2.852269087 | AS8: =Q8*'PTRM Revenue data'!N$8 -> 2.945934644 | AU8: =B8 -> Underground Sub-Transmission Cables | AV8: =AO8-AH8 -> 0.8427888909 | AW8: =AP8-AI8 -> 0.8434019651 | AX8: =AQ8-AJ8 -> 0.8960476287 | AY8: =AR8-AK8 -> 0.9512825615 | AZ8: =AS8-AL8 -> 1.006115768
B9: Overhead Distribution Lines | C9: =_xlfn.XLOOKUP(B9,'PTRM Input'!$G$6:$G$58,'PTRM Input'!$J$6:$J$58) -> 6099.466668 | E9: Overhead Distribution Lines | F9: =_xlfn.XLOOKUP($E9,Assets!$C$11:$C$60,Assets!G$11:G$60) -> 404.6106062 | G9: =_xlfn.XLOOKUP($E9,Assets!$C$11:$C$60,Assets!H$11:H$60) -> 417.8909083 | H9: =_xlfn.XLOOKUP($E9,Assets!$C$11:$C$60,Assets!I$11:I$60) -> 422.2803522 | I9: =_xlfn.XLOOKUP($E9,Assets!$C$11:$C$60,Assets!J$11:J$60) -> 431.1345557 | J9: =_xlfn.XLOOKUP($E9,Assets!$C$11:$C$60,Assets!K$11:K$60) -> 437.3093299 | L9: Overhead Distribution Lines | M9: =_xlfn.XLOOKUP($L9,Assets!$C$128:$C$765,Assets!G$128:G$765) -> 180.2483025 | N9: =_xlfn.XLOOKUP($L9,Assets!$C$128:$C$765,Assets!H$128:H$765) -> 188.3405146 | O9: =_xlfn.XLOOKUP($L9,Assets!$C$128:$C$765,Assets!I$128:I$765) -> 196.6983328 | P9: =_xlfn.XLOOKUP($L9,Assets!$C$128:$C$765,Assets!J$128:J$765) -> 205.1439398 | Q9: =_xlfn.XLOOKUP($L9,Assets!$C$128:$C$765,Assets!K$128:K$765) -> 213.7666309 | S9: Overhead Distribution Lines | T9: 6099.466668 | U9: 6323.828971 | V9: 6553.379365 | W9: 6778.961385 | X9: 7004.952001 | Z9: Overhead Distribution Lines | AA9: 0.3849203066 | AB9: 0.3900572314 | AC9: 0.3974993649 | AD9: 0.4039801692 | AE9: 0.4100455628 | AG9: Overhead Distribution Lines | AH9: =T9*'PTRM Revenue data'!J$7 -> 173.816638 | AI9: =U9*'PTRM Revenue data'!K$7*'PTRM Revenue data'!J$8 -> 185.3457524 | AJ9: =V9*'PTRM Revenue data'!L$7*'PTRM Revenue data'!K$8 -> 192.0736684 | AK9: =W9*'PTRM Revenue data'!M$7*'PTRM Revenue data'!L$8 -> 198.685275 | AL9: =X9*'PTRM Revenue data'!N$7*'PTRM Revenue data'!M$8 -> 205.3088571 | AN9: Overhead Distribution Lines | AO9: =M9*'PTRM Revenue data'!J$8 -> 185.3848424 | AP9: =N9*'PTRM Revenue data'!K$8 -> 193.7076584 | AQ9: =O9*'PTRM Revenue data'!L$8 -> 202.3036495 | AR9: =P9*'PTRM Revenue data'!M$8 -> 210.9899312 | AS9: =Q9*'PTRM Revenue data'!N$8 -> 219.8583434 | AU9: Overhead Distribution Lines | AV9: 11.5682044 | AW9: 8.361906067 | AX9: 10.22998111 | AY9: 12.30465625 | AZ9: 14.54948623
B10: Underground Distribution Cables | C10: =_xlfn.XLOOKUP(B10,'PTRM Input'!$G$6:$G$58,'PTRM Input'!$J$6:$J$58) -> 1125.445983 | E10: Underground Distribution Cables | F10: =_xlfn.XLOOKUP($E10,Assets!$C$11:$C$60,Assets!G$11:G$60) -> 19.26968005 | G10: =_xlfn.XLOOKUP($E10,Assets!$C$11:$C$60,Assets!H$11:H$60) -> 19.89844826 | H10: =_xlfn.XLOOKUP($E10,Assets!$C$11:$C$60,Assets!I$11:I$60) -> 20.38061143 | I10: =_xlfn.XLOOKUP($E10,Assets!$C$11:$C$60,Assets!J$11:J$60) -> 21.98585113 | J10: =_xlfn.XLOOKUP($E10,Assets!$C$11:$C$60,Assets!K$11:K$60) -> 21.89265464 | L10: Underground Distribution Cables | M10: =_xlfn.XLOOKUP($L10,Assets!$C$128:$C$765,Assets!G$128:G$765) -> 28.15443867 | N10: =_xlfn.XLOOKUP($L10,Assets!$C$128:$C$765,Assets!H$128:H$765) -> 28.47560001 | O10: =_xlfn.XLOOKUP($L10,Assets!$C$128:$C$765,Assets!I$128:I$765) -> 28.80724081 | P10: =_xlfn.XLOOKUP($L10,Assets!$C$128:$C$765,Assets!J$128:J$765) -> 29.14691767 | Q10: =_xlfn.XLOOKUP($L10,Assets!$C$128:$C$765,Assets!K$128:K$765) -> 29.51334852 | S10: Underground Distribution Cables | T10: 1125.445983 | U10: 1116.561224 | V10: 1107.984073 | W10: 1099.557443 | X10: 1092.396377 | Z10: Underground Distribution Cables | AA10: 0.07102375281 | AB10: 0.06887010731 | AC10: 0.06720547379 | AD10: 0.06552617381 | AE10: 0.06394509013 | AG10: Underground Distribution Cables | AH10: =T10*'PTRM Revenue data'!J$7 -> 32.07185933 | AI10: =U10*'PTRM Revenue data'!K$7*'PTRM Revenue data'!J$8 -> 32.72540752 | AJ10: =V10*'PTRM Revenue data'!L$7*'PTRM Revenue data'!K$8 -> 32.4740189 | AK10: =W10*'PTRM Revenue data'!M$7*'PTRM Revenue data'!L$8 -> 32.22704196 | AL10: =X10*'PTRM Revenue data'!N$7*'PTRM Revenue data'!M$8 -> 32.01715752 | AN10: Underground Distribution Cables | AO10: =M10*'PTRM Revenue data'!J$8 -> 28.95675634 | AP10: =N10*'PTRM Revenue data'!K$8 -> 29.28706982 | AQ10: =O10*'PTRM Revenue data'!L$8 -> 29.6281614 | AR10: =P10*'PTRM Revenue data'!M$8 -> 29.97751803 | AS10: =Q10*'PTRM Revenue data'!N$8 -> 30.35439107 | AU10: Underground Distribution Cables | AV10: -3.115102993 | AW10: -3.438337707 | AX10: -2.845857506 | AY10: -2.249523925 | AZ10: -1.66276645
B11: Distribution Equipment | C11: =_xlfn.XLOOKUP(B11,'PTRM Input'!$G$6:$G$58,'PTRM Input'!$J$6:$J$58) -> 18.03526668 | E11: Distribution Equipment | F11: =_xlfn.XLOOKUP($E11,Assets!$C$11:$C$60,Assets!G$11:G$60) -> 18.50723104 | G11: =_xlfn.XLOOKUP($E11,Assets!$C$11:$C$60,Assets!H$11:H$60) -> 19.26336744 | H11: =_xlfn.XLOOKUP($E11,Assets!$C$11:$C$60,Assets!I$11:I$60) -> 19.87786675 | I11: =_xlfn.XLOOKUP($E11,Assets!$C$11:$C$60,Assets!J$11:J$60) -> 19.45414202 | J11: =_xlfn.XLOOKUP($E11,Assets!$C$11:$C$60,Assets!K$11:K$60) -> 20.22577814 | L11: Distribution Equipment | M11: =_xlfn.XLOOKUP($L11,Assets!$C$128:$C$765,Assets!G$128:G$765) -> 1.517518784 | N11: =_xlfn.XLOOKUP($L11,Assets!$C$128:$C$765,Assets!H$128:H$765) -> 2.046296814 | O11: =_xlfn.XLOOKUP($L11,Assets!$C$128:$C$765,Assets!I$128:I$765) -> 2.596678741 | P11: =_xlfn.XLOOKUP($L11,Assets!$C$128:$C$765,Assets!J$128:J$765) -> 3.164617791 | Q11: =_xlfn.XLOOKUP($L11,Assets!$C$128:$C$765,Assets!K$128:K$765) -> 3.72045042 | S11: Distribution Equipment | T11: 18.03526668 | U11: 35.02497893 | V11: 52.24204956 | W11: 69.52323757 | X11: 85.81276179 | Z11: Distribution Equipment | AA11: 0.00113815531 | AB11: 0.002160359866 | AC11: 0.003168774515 | AD11: 0.00414311392 | AE11: 0.005023181058 | AG11: Distribution Equipment | AH11: =T11*'PTRM Revenue data'!J$7 -> 0.5139513976 | AI11: =U11*'PTRM Revenue data'!K$7*'PTRM Revenue data'!J$8 -> 1.026550702 | AJ11: =V11*'PTRM Revenue data'!L$7*'PTRM Revenue data'!K$8 -> 1.531167592 | AK11: =W11*'PTRM Revenue data'!M$7*'PTRM Revenue data'!L$8 -> 2.037663705 | AL11: =X11*'PTRM Revenue data'!N$7*'PTRM Revenue data'!M$8 -> 2.515095043 | AN11: Distribution Equipment | AO11: =M11*'PTRM Revenue data'!J$8 -> 1.560763551 | AP11: =N11*'PTRM Revenue data'!K$8 -> 2.10461018 | AQ11: =O11*'PTRM Revenue data'!L$8 -> 2.670676353 | AR11: =P11*'PTRM Revenue data'!M$8 -> 3.254799975 | AS11: =Q11*'PTRM Revenue data'!N$8 -> 3.826472179 | AU11: Distribution Equipment | AV11: 1.046812153 | AW11: 1.078059478 | AX11: 1.139508761 | AY11: 1.217136269 | AZ11: 1.311377136
B12: Substation Bays | C12: =_xlfn.XLOOKUP(B12,'PTRM Input'!$G$6:$G$58,'PTRM Input'!$J$6:$J$58) -> 1738.21618 | E12: Substation Bays | F12: =_xlfn.XLOOKUP($E12,Assets!$C$11:$C$60,Assets!G$11:G$60) -> 79.16736093 | G12: =_xlfn.XLOOKUP($E12,Assets!$C$11:$C$60,Assets!H$11:H$60) -> 83.08169964 | H12: =_xlfn.XLOOKUP($E12,Assets!$C$11:$C$60,Assets!I$11:I$60) -> 89.85038412 | I12: =_xlfn.XLOOKUP($E12,Assets!$C$11:$C$60,Assets!J$11:J$60) -> 91.1698206 | J12: =_xlfn.XLOOKUP($E12,Assets!$C$11:$C$60,Assets!K$11:K$60) -> 84.10640548 | L12: Substation Bays | M12: =_xlfn.XLOOKUP($L12,Assets!$C$128:$C$765,Assets!G$128:G$765) -> 63.47410006 | N12: =_xlfn.XLOOKUP($L12,Assets!$C$128:$C$765,Assets!H$128:H$765) -> 65.23337474 | O12: =_xlfn.XLOOKUP($L12,Assets!$C$128:$C$765,Assets!I$128:I$765) -> 67.07963473 | P12: =_xlfn.XLOOKUP($L12,Assets!$C$128:$C$765,Assets!J$128:J$765) -> 69.07630994 | Q12: =_xlfn.XLOOKUP($L12,Assets!$C$128:$C$765,Assets!K$128:K$765) -> 71.10230595 | S12: Substation Bays | T12: 1738.21618 | U12: 1753.909441 | V12: 1771.757766 | W12: 1794.528515 | X12: 1816.622026 | Z12: Substation Bays | AA12: 0.1096939686 | AB12: 0.1081820941 | AC12: 0.1074670864 | AD12: 0.1069417411 | AE12: 0.1063387445 | AG12: Substation Bays | AH12: =T12*'PTRM Revenue data'!J$7 -> 49.53398533 | AI12: =U12*'PTRM Revenue data'!K$7*'PTRM Revenue data'!J$8 -> 51.40551182 | AJ12: =V12*'PTRM Revenue data'!L$7*'PTRM Revenue data'!K$8 -> 51.9286302 | AK12: =W12*'PTRM Revenue data'!M$7*'PTRM Revenue data'!L$8 -> 52.59602043 | AL12: =X12*'PTRM Revenue data'!N$7*'PTRM Revenue data'!M$8 -> 53.2435614 | AN12: Substation Bays | AO12: =M12*'PTRM Revenue data'!J$8 -> 65.2829229 | AP12: =N12*'PTRM Revenue data'!K$8 -> 67.09233168 | AQ12: =O12*'PTRM Revenue data'!L$8 -> 68.99120458 | AR12: =P12*'PTRM Revenue data'!M$8 -> 71.04477909 | AS12: =Q12*'PTRM Revenue data'!N$8 -> 73.12850995 | AU12: Substation Bays | AV12: 15.74893757 | AW12: 15.68681986 | AX12: 17.06257438 | AY12: 18.44875865 | AZ12: 19.88494855
B13: Substation Establishment | C13: =_xlfn.XLOOKUP(B13,'PTRM Input'!$G$6:$G$58,'PTRM Input'!$J$6:$J$58) -> 367.371481 | E13: Substation Establishment | F13: =_xlfn.XLOOKUP($E13,Assets!$C$11:$C$60,Assets!G$11:G$60) -> 11.53361164 | G13: =_xlfn.XLOOKUP($E13,Assets!$C$11:$C$60,Assets!H$11:H$60) -> 12.40143402 | H13: =_xlfn.XLOOKUP($E13,Assets!$C$11:$C$60,Assets!I$11:I$60) -> 11.32496687 | I13: =_xlfn.XLOOKUP($E13,Assets!$C$11:$C$60,Assets!J$11:J$60) -> 14.13052847 | J13: =_xlfn.XLOOKUP($E13,Assets!$C$11:$C$60,Assets!K$11:K$60) -> 11.3837891 | L13: Substation Establishment | M13: =_xlfn.XLOOKUP($L13,Assets!$C$128:$C$765,Assets!G$128:G$765) -> 13.99545994 | N13: =_xlfn.XLOOKUP($L13,Assets!$C$128:$C$765,Assets!H$128:H$765) -> 14.1876868 | O13: =_xlfn.XLOOKUP($L13,Assets!$C$128:$C$765,Assets!I$128:I$765) -> 14.39437736 | P13: =_xlfn.XLOOKUP($L13,Assets!$C$128:$C$765,Assets!J$128:J$765) -> 14.58312681 | Q13: =_xlfn.XLOOKUP($L13,Assets!$C$128:$C$765,Assets!K$128:K$765) -> 14.81863562 | S13: Substation Establishment | T13: 367.371481 | U13: 364.9096327 | V13: 363.12338 | W13: 360.0539695 | X13: 359.6013711 | Z13: Substation Establishment | AA13: 0.02318378816 | AB13: 0.02250782583 | AC13: 0.02202547798 | AD13: 0.02145677711 | AE13: 0.02104981541 | AG13: Substation Establishment | AH13: =T13*'PTRM Revenue data'!J$7 -> 10.46899331 | AI13: =U13*'PTRM Revenue data'!K$7*'PTRM Revenue data'!J$8 -> 10.69517388 | AJ13: =V13*'PTRM Revenue data'!L$7*'PTRM Revenue data'!K$8 -> 10.64282041 | AK13: =W13*'PTRM Revenue data'!M$7*'PTRM Revenue data'!L$8 -> 10.55285874 | AL13: =X13*'PTRM Revenue data'!N$7*'PTRM Revenue data'!M$8 -> 10.53959349 | AN13: Substation Establishment | AO13: =M13*'PTRM Revenue data'!J$8 -> 14.39428887 | AP13: =N13*'PTRM Revenue data'!K$8 -> 14.59199363 | AQ13: =O13*'PTRM Revenue data'!L$8 -> 14.80457426 | AR13: =P13*'PTRM Revenue data'!M$8 -> 14.9987025 | AS13: =Q13*'PTRM Revenue data'!N$8 -> 15.24092261 | AU13: Substation Establishment | AV13: 3.925295565 | AW13: 3.896819747 | AX13: 4.161753846 | AY13: 4.445843758 | AZ13: 4.701329117
B14: Distribution Substation Switchgear | C14: =_xlfn.XLOOKUP(B14,'PTRM Input'!$G$6:$G$58,'PTRM Input'!$J$6:$J$58) -> 635.4565891 | E14: Distribution Substation Switchgear | F14: =_xlfn.XLOOKUP($E14,Assets!$C$11:$C$60,Assets!G$11:G$60) -> 63.92613813 | G14: =_xlfn.XLOOKUP($E14,Assets!$C$11:$C$60,Assets!H$11:H$60) -> 68.85777285 | H14: =_xlfn.XLOOKUP($E14,Assets!$C$11:$C$60,Assets!I$11:I$60) -> 64.96906145 | I14: =_xlfn.XLOOKUP($E14,Assets!$C$11:$C$60,Assets!J$11:J$60) -> 62.12686985 | J14: =_xlfn.XLOOKUP($E14,Assets!$C$11:$C$60,Assets!K$11:K$60) -> 65.54538209 | L14: Distribution Substation Switchgear | M14: =_xlfn.XLOOKUP($L14,Assets!$C$128:$C$765,Assets!G$128:G$765) -> 19.21161917 | N14: =_xlfn.XLOOKUP($L14,Assets!$C$128:$C$765,Assets!H$128:H$765) -> 20.63220002 | O14: =_xlfn.XLOOKUP($L14,Assets!$C$128:$C$765,Assets!I$128:I$765) -> 22.16237275 | P14: =_xlfn.XLOOKUP($L14,Assets!$C$128:$C$765,Assets!J$128:J$765) -> 23.60612967 | Q14: =_xlfn.XLOOKUP($L14,Assets!$C$128:$C$765,Assets!K$128:K$765) -> 24.98672678 | S14: Distribution Substation Switchgear | T14: 635.4565891 | U14: 680.1711081 | V14: 728.3966809 | W14: 771.2033696 | X14: 809.7241098 | Z14: Distribution Substation Switchgear | AA14: 0.04010189062 | AB14: 0.04195332614 | AC14: 0.04418136078 | AD14: 0.04595849571 | AE14: 0.04739843732 | AG14: Distribution Substation Switchgear | AH14: =T14*'PTRM Revenue data'!J$7 -> 18.10862062 | AI14: =U14*'PTRM Revenue data'!K$7*'PTRM Revenue data'!J$8 -> 19.93520482 | AJ14: =V14*'PTRM Revenue data'!L$7*'PTRM Revenue data'!K$8 -> 21.34865308 | AK14: =W14*'PTRM Revenue data'!M$7*'PTRM Revenue data'!L$8 -> 22.60327871 | AL14: =X14*'PTRM Revenue data'!N$7*'PTRM Revenue data'!M$8 -> 23.73228704 | AN14: Distribution Substation Switchgear | AO14: =M14*'PTRM Revenue data'!J$8 -> 19.75909311 | AP14: =N14*'PTRM Revenue data'!K$8 -> 21.22015628 | AQ14: =O14*'PTRM Revenue data'!L$8 -> 22.79393438 | AR14: =P14*'PTRM Revenue data'!M$8 -> 24.27883407 | AS14: =Q14*'PTRM Revenue data'!N$8 -> 25.69877409 | AU14: Distribution Substation Switchgear | AV14: 1.650472488 | AW14: 1.284951467 | AX14: 1.4452813 | AY14: 1.675555362 | AZ14: 1.966487049
B15: Zone Transformers | C15: =_xlfn.XLOOKUP(B15,'PTRM Input'!$G$6:$G$58,'PTRM Input'!$J$6:$J$58) -> 335.1893628 | E15: Zone Transformers | F15: =_xlfn.XLOOKUP($E15,Assets!$C$11:$C$60,Assets!G$11:G$60) -> 18.61205292 | G15: =_xlfn.XLOOKUP($E15,Assets!$C$11:$C$60,Assets!H$11:H$60) -> 22.39289812 | H15: =_xlfn.XLOOKUP($E15,Assets!$C$11:$C$60,Assets!I$11:I$60) -> 33.91014487 | I15: =_xlfn.XLOOKUP($E15,Assets!$C$11:$C$60,Assets!J$11:J$60) -> 33.28699014 | J15: =_xlfn.XLOOKUP($E15,Assets!$C$11:$C$60,Assets!K$11:K$60) -> 39.89610995 | L15: Zone Transformers | M15: =_xlfn.XLOOKUP($L15,Assets!$C$128:$C$765,Assets!G$128:G$765) -> 15.12730688 | N15: =_xlfn.XLOOKUP($L15,Assets!$C$128:$C$765,Assets!H$128:H$765) -> 15.49954794 | O15: =_xlfn.XLOOKUP($L15,Assets!$C$128:$C$765,Assets!I$128:I$765) -> 15.9474059 | P15: =_xlfn.XLOOKUP($L15,Assets!$C$128:$C$765,Assets!J$128:J$765) -> 16.6256088 | Q15: =_xlfn.XLOOKUP($L15,Assets!$C$128:$C$765,Assets!K$128:K$765) -> 17.2913486 | S15: Zone Transformers | T15: 335.1893628 | U15: 338.6741088 | V15: 345.567459 | W15: 363.530198 | X15: 380.1915793 | Z15: Zone Transformers | AA15: 0.02115286456 | AB15: 0.02088960436 | AC15: 0.02096061251 | AD15: 0.02166393678 | AE15: 0.0222550947 | AG15: Zone Transformers | AH15: =T15*'PTRM Revenue data'!J$7 -> 9.551898764 | AI15: =U15*'PTRM Revenue data'!K$7*'PTRM Revenue data'!J$8 -> 9.926234216 | AJ15: =V15*'PTRM Revenue data'!L$7*'PTRM Revenue data'!K$8 -> 10.12827212 | AK15: =W15*'PTRM Revenue data'!M$7*'PTRM Revenue data'!L$8 -> 10.65474388 | AL15: =X15*'PTRM Revenue data'!N$7*'PTRM Revenue data'!M$8 -> 11.14307402 | AN15: Zone Transformers | AO15: =M15*'PTRM Revenue data'!J$8 -> 15.55839008 | AP15: =N15*'PTRM Revenue data'!K$8 -> 15.9412389 | AQ15: =O15*'PTRM Revenue data'!L$8 -> 16.40185948 | AR15: =P15*'PTRM Revenue data'!M$8 -> 17.09938914 | AS15: =Q15*'PTRM Revenue data'!N$8 -> 17.78410055 | AU15: Zone Transformers | AV15: 6.00649132 | AW15: 6.015004688 | AX15: 6.273587361 | AY15: 6.444645261 | AZ15: 6.64102653
B16: Distribution Transformers | C16: =_xlfn.XLOOKUP(B16,'PTRM Input'!$G$6:$G$58,'PTRM Input'!$J$6:$J$58) -> 1580.087731 | E16: Distribution Transformers | F16: =_xlfn.XLOOKUP($E16,Assets!$C$11:$C$60,Assets!G$11:G$60) -> 72.66740268 | G16: =_xlfn.XLOOKUP($E16,Assets!$C$11:$C$60,Assets!H$11:H$60) -> 80.30470865 | H16: =_xlfn.XLOOKUP($E16,Assets!$C$11:$C$60,Assets!I$11:I$60) -> 78.05564891 | I16: =_xlfn.XLOOKUP($E16,Assets!$C$11:$C$60,Assets!J$11:J$60) -> 87.86061206 | J16: =_xlfn.XLOOKUP($E16,Assets!$C$11:$C$60,Assets!K$11:K$60) -> 89.39839836 | L16: Distribution Transformers | M16: =_xlfn.XLOOKUP($L16,Assets!$C$128:$C$765,Assets!G$128:G$765) -> 67.55334728 | N16: =_xlfn.XLOOKUP($L16,Assets!$C$128:$C$765,Assets!H$128:H$765) -> 69.16817845 | O16: =_xlfn.XLOOKUP($L16,Assets!$C$128:$C$765,Assets!I$128:I$765) -> 70.95272754 | P16: =_xlfn.XLOOKUP($L16,Assets!$C$128:$C$765,Assets!J$128:J$765) -> 72.68729751 | Q16: =_xlfn.XLOOKUP($L16,Assets!$C$128:$C$765,Assets!K$128:K$765) -> 74.63975556 | S16: Distribution Transformers | T16: 1580.087731 | U16: 1585.201787 | V16: 1596.338317 | W16: 1603.441238 | X16: 1618.614553 | Z16: Distribution Transformers | AA16: 0.09971492381 | AB16: 0.09777611364 | AC16: 0.09682690895 | AD16: 0.09555423404 | AE16: 0.09474807467 | AG16: Distribution Transformers | AH16: =T16*'PTRM Revenue data'!J$7 -> 45.0277954 | AI16: =U16*'PTRM Revenue data'!K$7*'PTRM Revenue data'!J$8 -> 46.46084186 | AJ16: =V16*'PTRM Revenue data'!L$7*'PTRM Revenue data'!K$8 -> 46.78724357 | AK16: =W16*'PTRM Revenue data'!M$7*'PTRM Revenue data'!L$8 -> 46.99542382 | AL16: =X16*'PTRM Revenue data'!N$7*'PTRM Revenue data'!M$8 -> 47.44014006 | AN16: Distribution Transformers | AO16: =M16*'PTRM Revenue data'!J$8 -> 69.47841653 | AP16: =N16*'PTRM Revenue data'!K$8 -> 71.13926558 | AQ16: =O16*'PTRM Revenue data'!L$8 -> 72.974669 | AR16: =P16*'PTRM Revenue data'!M$8 -> 74.75866905 | AS16: =Q16*'PTRM Revenue data'!N$8 -> 76.76676634 | AU16: Distribution Transformers | AV16: 24.45062113 | AW16: 24.67842372 | AX16: 26.18742543 | AY16: 27.76324523 | AZ16: 29.32662629
B17: Low Voltage Services | C17: =_xlfn.XLOOKUP(B17,'PTRM Input'!$G$6:$G$58,'PTRM Input'!$J$6:$J$58) -> 446.3512833 | E17: Low Voltage Services | F17: =_xlfn.XLOOKUP($E17,Assets!$C$11:$C$60,Assets!G$11:G$60) -> 36.21052088 | G17: =_xlfn.XLOOKUP($E17,Assets!$C$11:$C$60,Assets!H$11:H$60) -> 42.71347608 | H17: =_xlfn.XLOOKUP($E17,Assets!$C$11:$C$60,Assets!I$11:I$60) -> 39.39102435 | I17: =_xlfn.XLOOKUP($E17,Assets!$C$11:$C$60,Assets!J$11:J$60) -> 42.12130159 | J17: =_xlfn.XLOOKUP($E17,Assets!$C$11:$C$60,Assets!K$11:K$60) -> 36.64630977 | L17: Low Voltage Services | M17: =_xlfn.XLOOKUP($L17,Assets!$C$128:$C$765,Assets!G$128:G$765) -> 15.27386134 | N17: =_xlfn.XLOOKUP($L17,Assets!$C$128:$C$765,Assets!H$128:H$765) -> 16.30844765 | O17: =_xlfn.XLOOKUP($L17,Assets!$C$128:$C$765,Assets!I$128:I$765) -> 17.52883268 | P17: =_xlfn.XLOOKUP($L17,Assets!$C$128:$C$765,Assets!J$128:J$765) -> 18.65429052 | Q17: =_xlfn.XLOOKUP($L17,Assets!$C$128:$C$765,Assets!K$128:K$765) -> 19.85775628 | S17: Low Voltage Services | T17: 446.3512833 | U17: 467.2879428 | V17: 493.6929713 | W17: 515.5551629 | X17: 539.022174 | Z17: Low Voltage Services | AA17: 0.02816798291 | AB17: 0.02882257602 | AC17: 0.02994525902 | AD17: 0.03072359468 | AE17: 0.03155248611 | AG17: Low Voltage Services | AH17: =T17*'PTRM Revenue data'!J$7 -> 12.7196825 | AI17: =U17*'PTRM Revenue data'!K$7*'PTRM Revenue data'!J$8 -> 13.69579028 | AJ17: =V17*'PTRM Revenue data'!L$7*'PTRM Revenue data'!K$8 -> 14.46969797 | AK17: =W17*'PTRM Revenue data'!M$7*'PTRM Revenue data'!L$8 -> 15.11045918 | AL17: =X17*'PTRM Revenue data'!N$7*'PTRM Revenue data'!M$8 -> 15.79825622 | AN17: Low Voltage Services | AO17: =M17*'PTRM Revenue data'!J$8 -> 15.70912091 | AP17: =N17*'PTRM Revenue data'!K$8 -> 16.77318985 | AQ17: =O17*'PTRM Revenue data'!L$8 -> 18.02835222 | AR17: =P17*'PTRM Revenue data'!M$8 -> 19.18588226 | AS17: =Q17*'PTRM Revenue data'!N$8 -> 20.42364321 | AU17: Low Voltage Services | AV17: 2.989438412 | AW17: 3.077399572 | AX17: 3.558654254 | AY17: 4.075423071 | AZ17: 4.625386985
B18: Metering | C18: =_xlfn.XLOOKUP(B18,'PTRM Input'!$G$6:$G$58,'PTRM Input'!$J$6:$J$58) -> 66.88588867 | E18: Metering | F18: =_xlfn.XLOOKUP($E18,Assets!$C$11:$C$60,Assets!G$11:G$60) -> 9.102619881 | G18: =_xlfn.XLOOKUP($E18,Assets!$C$11:$C$60,Assets!H$11:H$60) -> 9.92078741 | H18: =_xlfn.XLOOKUP($E18,Assets!$C$11:$C$60,Assets!I$11:I$60) -> 11.29102487 | I18: =_xlfn.XLOOKUP($E18,Assets!$C$11:$C$60,Assets!J$11:J$60) -> 12.28443285 | J18: =_xlfn.XLOOKUP($E18,Assets!$C$11:$C$60,Assets!K$11:K$60) -> 13.42564178 | L18: Metering | M18: =_xlfn.XLOOKUP($L18,Assets!$C$128:$C$765,Assets!G$128:G$765) -> 4.718050621 | N18: =_xlfn.XLOOKUP($L18,Assets!$C$128:$C$765,Assets!H$128:H$765) -> 5.082155416 | O18: =_xlfn.XLOOKUP($L18,Assets!$C$128:$C$765,Assets!I$128:I$765) -> 5.478986912 | P18: =_xlfn.XLOOKUP($L18,Assets!$C$128:$C$765,Assets!J$128:J$765) -> 5.930627907 | Q18: =_xlfn.XLOOKUP($L18,Assets!$C$128:$C$765,Assets!K$128:K$765) -> 6.422005221 | S18: Metering | T18: 66.88588867 | U18: 71.27045793 | V18: 76.10908992 | W18: 81.92112788 | X18: 88.27493283 | Z18: Metering | AA18: 0.004220981633 | AB18: 0.004396000845 | AC18: 0.004616444924 | AD18: 0.004881944183 | AE18: 0.005167308 | AG18: Metering | AH18: =T18*'PTRM Revenue data'!J$7 -> 1.906048664 | AI18: =U18*'PTRM Revenue data'!K$7*'PTRM Revenue data'!J$8 -> 2.088873166 | AJ18: =V18*'PTRM Revenue data'!L$7*'PTRM Revenue data'!K$8 -> 2.230689128 | AK18: =W18*'PTRM Revenue data'!M$7*'PTRM Revenue data'!L$8 -> 2.401034745 | AL18: =X18*'PTRM Revenue data'!N$7*'PTRM Revenue data'!M$8 -> 2.587259066 | AN18: Metering | AO18: =M18*'PTRM Revenue data'!J$8 -> 4.852501015 | AP18: =N18*'PTRM Revenue data'!K$8 -> 5.226981712 | AQ18: =O18*'PTRM Revenue data'!L$8 -> 5.635121725 | AR18: =P18*'PTRM Revenue data'!M$8 -> 6.099633143 | AS18: =Q18*'PTRM Revenue data'!N$8 -> 6.605013248 | AU18: Metering | AV18: 2.94645235 | AW18: 3.138108546 | AX18: 3.404432597 | AY18: 3.698598398 | AZ18: 4.017754181
B19: Communications – Pilot Wires | C19: =_xlfn.XLOOKUP(B19,'PTRM Input'!$G$6:$G$58,'PTRM Input'!$J$6:$J$58) -> 207.0461918 | E19: Communications – Pilot Wires | F19: =_xlfn.XLOOKUP($E19,Assets!$C$11:$C$60,Assets!G$11:G$60) -> 3.891592039 | G19: =_xlfn.XLOOKUP($E19,Assets!$C$11:$C$60,Assets!H$11:H$60) -> 4.085559173 | H19: =_xlfn.XLOOKUP($E19,Assets!$C$11:$C$60,Assets!I$11:I$60) -> 4.008529572 | I19: =_xlfn.XLOOKUP($E19,Assets!$C$11:$C$60,Assets!J$11:J$60) -> 4.150316499 | J19: =_xlfn.XLOOKUP($E19,Assets!$C$11:$C$60,Assets!K$11:K$60) -> 4.371008502 | L19: Communications – Pilot Wires | M19: =_xlfn.XLOOKUP($L19,Assets!$C$128:$C$765,Assets!G$128:G$765) -> 8.686406992 | N19: =_xlfn.XLOOKUP($L19,Assets!$C$128:$C$765,Assets!H$128:H$765) -> 8.797595336 | O19: =_xlfn.XLOOKUP($L19,Assets!$C$128:$C$765,Assets!I$128:I$765) -> 8.914325598 | P19: =_xlfn.XLOOKUP($L19,Assets!$C$128:$C$765,Assets!J$128:J$765) -> 9.028855015 | Q19: =_xlfn.XLOOKUP($L19,Assets!$C$128:$C$765,Assets!K$128:K$765) -> 9.147435486 | S19: Communications – Pilot Wires | T19: 207.0461918 | U19: 202.2513769 | V19: 197.5393407 | W19: 192.6335447 | X19: 187.7550062 | Z19: Communications – Pilot Wires | AA19: 0.01306610692 | AB19: 0.0124749756 | AC19: 0.01198187349 | AD19: 0.01147965412 | AE19: 0.01099052601 | AG19: Communications – Pilot Wires | AH19: =T19*'PTRM Revenue data'!J$7 -> 5.900199957 | AI19: =U19*'PTRM Revenue data'!K$7*'PTRM Revenue data'!J$8 -> 5.927806363 | AJ19: =V19*'PTRM Revenue data'!L$7*'PTRM Revenue data'!K$8 -> 5.789700812 | AK19: =W19*'PTRM Revenue data'!M$7*'PTRM Revenue data'!L$8 -> 5.645916333 | AL19: =X19*'PTRM Revenue data'!N$7*'PTRM Revenue data'!M$8 -> 5.502930746 | AN19: Communications – Pilot Wires | AO19: =M19*'PTRM Revenue data'!J$8 -> 8.933943727 | AP19: =N19*'PTRM Revenue data'!K$8 -> 9.048300607 | AQ19: =O19*'PTRM Revenue data'!L$8 -> 9.168357334 | AR19: =P19*'PTRM Revenue data'!M$8 -> 9.286150498 | AS19: =Q19*'PTRM Revenue data'!N$8 -> 9.40811016 | AU19: Communications – Pilot Wires | AV19: 3.03374377 | AW19: 3.120494244 | AX19: 3.378656523 | AY19: 3.640234165 | AZ19: 3.905179413
B21: Land & Easements (System) - combined | C21: =_xlfn.XLOOKUP(B21,'PTRM Input'!$G$6:$G$58,'PTRM Input'!$J$6:$J$58) -> 119.5758007 | E21: Land & Easements (System) - combined | F21: =_xlfn.XLOOKUP($E21,Assets!$C$11:$C$60,Assets!G$11:G$60) -> 4.345676349 | G21: =_xlfn.XLOOKUP($E21,Assets!$C$11:$C$60,Assets!H$11:H$60) -> 2.169064134 | H21: =_xlfn.XLOOKUP($E21,Assets!$C$11:$C$60,Assets!I$11:I$60) -> 2.972311328 | I21: =_xlfn.XLOOKUP($E21,Assets!$C$11:$C$60,Assets!J$11:J$60) -> 0.6797298325 | J21: =_xlfn.XLOOKUP($E21,Assets!$C$11:$C$60,Assets!K$11:K$60) -> 0.7171539399 | L21: Land & Easements (System) - combined | M21: =_xlfn.XLOOKUP($L21,Assets!$C$128:$C$765,Assets!G$128:G$765) -> 0 | N21: =_xlfn.XLOOKUP($L21,Assets!$C$128:$C$765,Assets!H$128:H$765) -> 0 | O21: =_xlfn.XLOOKUP($L21,Assets!$C$128:$C$765,Assets!I$128:I$765) -> 0 | P21: =_xlfn.XLOOKUP($L21,Assets!$C$128:$C$765,Assets!J$128:J$765) -> 0 | Q21: =_xlfn.XLOOKUP($L21,Assets!$C$128:$C$765,Assets!K$128:K$765) -> 0 | S21: Land & Easements (System) - combined | T21: 119.5758007 | U21: 123.921477 | V21: 126.0905411 | W21: 129.0628525 | X21: 129.7425823 | Z21: Land & Easements (System) - combined | AA21: 0.007546094825 | AB21: 0.007643544513 | AC21: 0.007648101419 | AD21: 0.007691271571 | AE21: 0.007594680188 | AG21: Land & Easements (System) - combined | AH21: =T21*'PTRM Revenue data'!J$7 -> 3.407554264 | AI21: =U21*'PTRM Revenue data'!K$7*'PTRM Revenue data'!J$8 -> 3.632027288 | AJ21: =V21*'PTRM Revenue data'!L$7*'PTRM Revenue data'!K$8 -> 3.695600612 | AK21: =W21*'PTRM Revenue data'!M$7*'PTRM Revenue data'!L$8 -> 3.782716389 | AL21: =X21*'PTRM Revenue data'!N$7*'PTRM Revenue data'!M$8 -> 3.802638661 | AN21: Land & Easements (System) - combined | AO21: =M21*'PTRM Revenue data'!J$8 -> 0 | AP21: =N21*'PTRM Revenue data'!K$8 -> 0 | AQ21: =O21*'PTRM Revenue data'!L$8 -> 0 | AR21: =P21*'PTRM Revenue data'!M$8 -> 0 | AS21: =Q21*'PTRM Revenue data'!N$8 -> 0 | AU21: Land & Easements (System) - combined | AV21: -3.407554264 | AW21: -3.632027288 | AX21: -3.695600612 | AY21: -3.782716389 | AZ21: -3.802638661
B22: Land Improvements | C22: =_xlfn.XLOOKUP(B22,'PTRM Input'!$G$6:$G$58,'PTRM Input'!$J$6:$J$58) -> 140.5931998 | E22: Land Improvements | F22: =_xlfn.XLOOKUP($E22,Assets!$C$11:$C$60,Assets!G$11:G$60) -> 0.1336348931 | G22: =_xlfn.XLOOKUP($E22,Assets!$C$11:$C$60,Assets!H$11:H$60) -> 0.1393255786 | H22: =_xlfn.XLOOKUP($E22,Assets!$C$11:$C$60,Assets!I$11:I$60) -> 0.143533941 | I22: =_xlfn.XLOOKUP($E22,Assets!$C$11:$C$60,Assets!J$11:J$60) -> 0.1484606408 | J22: =_xlfn.XLOOKUP($E22,Assets!$C$11:$C$60,Assets!K$11:K$60) -> 0.1518846582 | L22: Land Improvements | M22: =_xlfn.XLOOKUP($L22,Assets!$C$128:$C$765,Assets!G$128:G$765) -> 4.856479633 | N22: =_xlfn.XLOOKUP($L22,Assets!$C$128:$C$765,Assets!H$128:H$765) -> 4.859820505 | O22: =_xlfn.XLOOKUP($L22,Assets!$C$128:$C$765,Assets!I$128:I$765) -> 4.863303645 | P22: =_xlfn.XLOOKUP($L22,Assets!$C$128:$C$765,Assets!J$128:J$765) -> 4.866891993 | Q22: =_xlfn.XLOOKUP($L22,Assets!$C$128:$C$765,Assets!K$128:K$765) -> 4.870603509 | S22: Land Improvements | T22: 140.5931998 | U22: 135.8703551 | V22: 131.1498601 | W22: 126.4300904 | X22: 121.7116591 | Z22: Land Improvements | AA22: 0.008872444187 | AB22: 0.00838055785 | AC22: 0.007954977609 | AD22: 0.007534376791 | AE22: 0.007124577833 | AG22: Land Improvements | AH22: =T22*'PTRM Revenue data'!J$7 -> 4.006487558 | AI22: =U22*'PTRM Revenue data'!K$7*'PTRM Revenue data'!J$8 -> 3.982238182 | AJ22: =V22*'PTRM Revenue data'!L$7*'PTRM Revenue data'!K$8 -> 3.843884712 | AK22: =W22*'PTRM Revenue data'!M$7*'PTRM Revenue data'!L$8 -> 3.705552497 | AL22: =X22*'PTRM Revenue data'!N$7*'PTRM Revenue data'!M$8 -> 3.567259508 | AN22: Land Improvements | AO22: =M22*'PTRM Revenue data'!J$8 -> 4.994874841 | AP22: =N22*'PTRM Revenue data'!K$8 -> 4.998310919 | AQ22: =O22*'PTRM Revenue data'!L$8 -> 5.001893317 | AR22: =P22*'PTRM Revenue data'!M$8 -> 5.005583923 | AS22: =Q22*'PTRM Revenue data'!N$8 -> 5.009401206 | AU22: Land Improvements | AV22: 0.9883872838 | AW22: 1.016072737 | AX22: 1.158008606 | AY22: 1.300031426 | AZ22: 1.442141698
B23: Control Centre - SCADA | C23: =_xlfn.XLOOKUP(B23,'PTRM Input'!$G$6:$G$58,'PTRM Input'!$J$6:$J$58) -> 35.58950558 | E23: Control Centre - SCADA | F23: =_xlfn.XLOOKUP($E23,Assets!$C$11:$C$60,Assets!G$11:G$60) -> 38.24768988 | G23: =_xlfn.XLOOKUP($E23,Assets!$C$11:$C$60,Assets!H$11:H$60) -> 38.93164782 | H23: =_xlfn.XLOOKUP($E23,Assets!$C$11:$C$60,Assets!I$11:I$60) -> 40.83433722 | I23: =_xlfn.XLOOKUP($E23,Assets!$C$11:$C$60,Assets!J$11:J$60) -> 48.62443998 | J23: =_xlfn.XLOOKUP($E23,Assets!$C$11:$C$60,Assets!K$11:K$60) -> 42.51960155 | L23: Control Centre - SCADA | M23: =_xlfn.XLOOKUP($L23,Assets!$C$128:$C$765,Assets!G$128:G$765) -> 8.475497156 | N23: =_xlfn.XLOOKUP($L23,Assets!$C$128:$C$765,Assets!H$128:H$765) -> 13.76194114 | O23: =_xlfn.XLOOKUP($L23,Assets!$C$128:$C$765,Assets!I$128:I$765) -> 16.50371106 | P23: =_xlfn.XLOOKUP($L23,Assets!$C$128:$C$765,Assets!J$128:J$765) -> 21.76605903 | Q23: =_xlfn.XLOOKUP($L23,Assets!$C$128:$C$765,Assets!K$128:K$765) -> 27.93327666 | S23: Control Centre - SCADA | T23: 35.58950558 | U23: 65.3616983 | V23: 90.53140498 | W23: 114.8620311 | X23: 141.7204121 | Z23: Control Centre - SCADA | AA23: 0.002245954302 | AB23: 0.004031545317 | AC23: 0.005491239554 | AD23: 0.006844998834 | AE23: 0.008295820746 | AG23: Control Centre - SCADA | AH23: =T23*'PTRM Revenue data'!J$7 -> 1.014194936 | AI23: =U23*'PTRM Revenue data'!K$7*'PTRM Revenue data'!J$8 -> 1.915692724 | AJ23: =V23*'PTRM Revenue data'!L$7*'PTRM Revenue data'!K$8 -> 2.65339424 | AK23: =W23*'PTRM Revenue data'!M$7*'PTRM Revenue data'!L$8 -> 3.36650306 | AL23: =X23*'PTRM Revenue data'!N$7*'PTRM Revenue data'!M$8 -> 4.153698104 | AN23: Control Centre - SCADA | AO23: =M23*'PTRM Revenue data'!J$8 -> 8.717023588 | AP23: =N23*'PTRM Revenue data'!K$8 -> 14.15411548 | AQ23: =O23*'PTRM Revenue data'!L$8 -> 16.97401769 | AR23: =P23*'PTRM Revenue data'!M$8 -> 22.3863269 | AS23: =Q23*'PTRM Revenue data'!N$8 -> 28.72929187 | AU23: Control Centre - SCADA | AV23: 7.702828652 | AW23: 12.23842276 | AX23: 14.32062345 | AY23: 19.01982384 | AZ23: 24.57559376
B24: Other Equipment | C24: =_xlfn.XLOOKUP(B24,'PTRM Input'!$G$6:$G$58,'PTRM Input'!$J$6:$J$58) -> 1.311803293 | E24: Other Equipment | F24: =_xlfn.XLOOKUP($E24,Assets!$C$11:$C$60,Assets!G$11:G$60) -> 0.06198475983 | G24: =_xlfn.XLOOKUP($E24,Assets!$C$11:$C$60,Assets!H$11:H$60) -> 0.06299494595 | H24: =_xlfn.XLOOKUP($E24,Assets!$C$11:$C$60,Assets!I$11:I$60) -> 0.06372050376 | I24: =_xlfn.XLOOKUP($E24,Assets!$C$11:$C$60,Assets!J$11:J$60) -> 0.06470280986 | J24: =_xlfn.XLOOKUP($E24,Assets!$C$11:$C$60,Assets!K$11:K$60) -> 0.0655490846 | L24: Other Equipment | M24: =_xlfn.XLOOKUP($L24,Assets!$C$128:$C$765,Assets!G$128:G$765) -> 0.09562702823 | N24: =_xlfn.XLOOKUP($L24,Assets!$C$128:$C$765,Assets!H$128:H$765) -> 0.09717664722 | O24: =_xlfn.XLOOKUP($L24,Assets!$C$128:$C$765,Assets!I$128:I$765) -> 0.09875152087 | P24: =_xlfn.XLOOKUP($L24,Assets!$C$128:$C$765,Assets!J$128:J$765) -> 0.1003445335 | Q24: =_xlfn.XLOOKUP($L24,Assets!$C$128:$C$765,Assets!K$128:K$765) -> 0.1019621037 | S24: Other Equipment | T24: 1.311803293 | U24: 1.278161025 | V24: 1.243979323 | W24: 1.208948306 | X24: 1.173306583 | Z24: Other Equipment | AA24: 8.278424219e-05 | AB24: 7.883767142e-05 | AC24: 7.545435163e-05 | AD24: 7.20451281e-05 | AE24: 6.86812926e-05 | AG24: Other Equipment | AH24: =T24*'PTRM Revenue data'!J$7 -> 0.03738248777 | AI24: =U24*'PTRM Revenue data'!K$7*'PTRM Revenue data'!J$8 -> 0.03746175266 | AJ24: =V24*'PTRM Revenue data'!L$7*'PTRM Revenue data'!K$8 -> 0.03645991767 | AK24: =W24*'PTRM Revenue data'!M$7*'PTRM Revenue data'!L$8 -> 0.03543318999 | AL24: =X24*'PTRM Revenue data'!N$7*'PTRM Revenue data'!M$8 -> 0.03438856306 | AN24: Other Equipment | AO24: =M24*'PTRM Revenue data'!J$8 -> 0.09835211379 | AP24: =N24*'PTRM Revenue data'!K$8 -> 0.09994589231 | AQ24: =O24*'PTRM Revenue data'!L$8 -> 0.1015656452 | AR24: =P24*'PTRM Revenue data'!M$8 -> 0.1032040539 | AS24: =Q24*'PTRM Revenue data'!N$8 -> 0.1048677201 | AU24: Other Equipment | AV24: 0.06096962602 | AW24: 0.06248413965 | AX24: 0.0651057275 | AY24: 0.06777086389 | AZ24: 0.07047915701
B25: Generation Assets | C25: =_xlfn.XLOOKUP(B25,'PTRM Input'!$G$6:$G$58,'PTRM Input'!$J$6:$J$58) -> 14.32768674 | E25: Generation Assets | F25: =_xlfn.XLOOKUP($E25,Assets!$C$11:$C$60,Assets!G$11:G$60) -> 3.918526115 | G25: =_xlfn.XLOOKUP($E25,Assets!$C$11:$C$60,Assets!H$11:H$60) -> 4.972555441 | H25: =_xlfn.XLOOKUP($E25,Assets!$C$11:$C$60,Assets!I$11:I$60) -> 2.544392614 | I25: =_xlfn.XLOOKUP($E25,Assets!$C$11:$C$60,Assets!J$11:J$60) -> 0.5845094626 | J25: =_xlfn.XLOOKUP($E25,Assets!$C$11:$C$60,Assets!K$11:K$60) -> 0.5972807713 | L25: Generation Assets | M25: =_xlfn.XLOOKUP($L25,Assets!$C$128:$C$765,Assets!G$128:G$765) -> 0.7172169571 | N25: =_xlfn.XLOOKUP($L25,Assets!$C$128:$C$765,Assets!H$128:H$765) -> 0.8478344943 | O25: =_xlfn.XLOOKUP($L25,Assets!$C$128:$C$765,Assets!I$128:I$765) -> 1.013586342 | P25: =_xlfn.XLOOKUP($L25,Assets!$C$128:$C$765,Assets!J$128:J$765) -> 1.098399429 | Q25: =_xlfn.XLOOKUP($L25,Assets!$C$128:$C$765,Assets!K$128:K$765) -> 1.117883078 | S25: Generation Assets | T25: 14.32768674 | U25: 17.5289959 | V25: 21.65371684 | W25: 23.18452311 | X25: 22.67063315 | Z25: Generation Assets | AA25: 0.0009041802952 | AB25: 0.001081198059 | AC25: 0.001313419873 | AD25: 0.001381640496 | AE25: 0.001327060132 | AG25: Generation Assets | AH25: =T25*'PTRM Revenue data'!J$7 -> 0.4082964092 | AI25: =U25*'PTRM Revenue data'!K$7*'PTRM Revenue data'!J$8 -> 0.5137591398 | AJ25: =V25*'PTRM Revenue data'!L$7*'PTRM Revenue data'!K$8 -> 0.6346510094 | AK25: =W25*'PTRM Revenue data'!M$7*'PTRM Revenue data'!L$8 -> 0.6795175675 | AL25: =X25*'PTRM Revenue data'!N$7*'PTRM Revenue data'!M$8 -> 0.6644559137 | AN25: Generation Assets | AO25: =M25*'PTRM Revenue data'!J$8 -> 0.7376555048 | AP25: =N25*'PTRM Revenue data'!K$8 -> 0.8719952528 | AQ25: =O25*'PTRM Revenue data'!L$8 -> 1.042470535 | AR25: =P25*'PTRM Revenue data'!M$8 -> 1.129700543 | AS25: =Q25*'PTRM Revenue data'!N$8 -> 1.149739417 | AU25: Generation Assets | AV25: 0.3293590955 | AW25: 0.358236113 | AX25: 0.4078195256 | AY25: 0.450182975 | AZ25: 0.4852835035
B26: Motor Vehicles | C26: =_xlfn.XLOOKUP(B26,'PTRM Input'!$G$6:$G$58,'PTRM Input'!$J$6:$J$58) -> 169.8943439 | E26: Motor Vehicles | F26: =_xlfn.XLOOKUP($E26,Assets!$C$11:$C$60,Assets!G$11:G$60) -> 43.73874191 | G26: =_xlfn.XLOOKUP($E26,Assets!$C$11:$C$60,Assets!H$11:H$60) -> 47.07748474 | H26: =_xlfn.XLOOKUP($E26,Assets!$C$11:$C$60,Assets!I$11:I$60) -> 36.12465013 | I26: =_xlfn.XLOOKUP($E26,Assets!$C$11:$C$60,Assets!J$11:J$60) -> 30.5757432 | J26: =_xlfn.XLOOKUP($E26,Assets!$C$11:$C$60,Assets!K$11:K$60) -> 44.05573277 | L26: Motor Vehicles | M26: =_xlfn.XLOOKUP($L26,Assets!$C$128:$C$765,Assets!G$128:G$765) -> 26.74758573 | N26: =_xlfn.XLOOKUP($L26,Assets!$C$128:$C$765,Assets!H$128:H$765) -> 28.74698659 | O26: =_xlfn.XLOOKUP($L26,Assets!$C$128:$C$765,Assets!I$128:I$765) -> 31.56547697 | P26: =_xlfn.XLOOKUP($L26,Assets!$C$128:$C$765,Assets!J$128:J$765) -> 33.91569209 | Q26: =_xlfn.XLOOKUP($L26,Assets!$C$128:$C$765,Assets!K$128:K$765) -> 34.49766026 | S26: Motor Vehicles | T26: 169.8943439 | U26: 186.8855001 | V26: 205.2159982 | W26: 209.7751714 | X26: 206.4352225 | Z26: Motor Vehicles | AA26: 0.01072155756 | AB26: 0.01152719991 | AC26: 0.012447506 | AD26: 0.01250117893 | AE26: 0.012084001 | AG26: Motor Vehicles | AH26: =T26*'PTRM Revenue data'!J$7 -> 4.841482915 | AI26: =U26*'PTRM Revenue data'!K$7*'PTRM Revenue data'!J$8 -> 5.477446303 | AJ26: =V26*'PTRM Revenue data'!L$7*'PTRM Revenue data'!K$8 -> 6.014696754 | AK26: =W26*'PTRM Revenue data'!M$7*'PTRM Revenue data'!L$8 -> 6.148322028 | AL26: =X26*'PTRM Revenue data'!N$7*'PTRM Revenue data'!M$8 -> 6.050431124 | AN26: Motor Vehicles | AO26: =M26*'PTRM Revenue data'!J$8 -> 27.50981228 | AP26: =N26*'PTRM Revenue data'!K$8 -> 29.56619011 | AQ26: =O26*'PTRM Revenue data'!L$8 -> 32.46499907 | AR26: =P26*'PTRM Revenue data'!M$8 -> 34.88218833 | AS26: =Q26*'PTRM Revenue data'!N$8 -> 35.48074085 | AU26: Motor Vehicles | AV26: 22.66832936 | AW26: 24.08874381 | AX26: 26.45030231 | AY26: 28.7338663 | AZ26: 29.43030973
B27: Plant & Equipment | C27: =_xlfn.XLOOKUP(B27,'PTRM Input'!$G$6:$G$58,'PTRM Input'!$J$6:$J$58) -> 43.51251218 | E27: Plant & Equipment | F27: =_xlfn.XLOOKUP($E27,Assets!$C$11:$C$60,Assets!G$11:G$60) -> 6.777128351 | G27: =_xlfn.XLOOKUP($E27,Assets!$C$11:$C$60,Assets!H$11:H$60) -> 6.372981396 | H27: =_xlfn.XLOOKUP($E27,Assets!$C$11:$C$60,Assets!I$11:I$60) -> 6.518717206 | I27: =_xlfn.XLOOKUP($E27,Assets!$C$11:$C$60,Assets!J$11:J$60) -> 6.266194602 | J27: =_xlfn.XLOOKUP($E27,Assets!$C$11:$C$60,Assets!K$11:K$60) -> 6.114923888 | L27: Plant & Equipment | M27: =_xlfn.XLOOKUP($L27,Assets!$C$128:$C$765,Assets!G$128:G$765) -> 9.312641875 | N27: =_xlfn.XLOOKUP($L27,Assets!$C$128:$C$765,Assets!H$128:H$765) -> 8.300903534 | O27: =_xlfn.XLOOKUP($L27,Assets!$C$128:$C$765,Assets!I$128:I$765) -> 7.353020471 | P27: =_xlfn.XLOOKUP($L27,Assets!$C$128:$C$765,Assets!J$128:J$765) -> 7.375119749 | Q27: =_xlfn.XLOOKUP($L27,Assets!$C$128:$C$765,Assets!K$128:K$765) -> 7.216941534 | S27: Plant & Equipment | T27: 43.51251218 | U27: 40.97699866 | V27: 39.04907652 | W27: 38.21477325 | X27: 37.10584811 | Z27: Plant & Equipment | AA27: 0.002745953121 | AB27: 0.0025274837 | AC27: 0.002368546402 | AD27: 0.00227734157 | AE27: 0.002172047484 | AG27: Plant & Equipment | AH27: =T27*'PTRM Revenue data'!J$7 -> 1.239977032 | AI27: =U27*'PTRM Revenue data'!K$7*'PTRM Revenue data'!J$8 -> 1.200999059 | AJ27: =V27*'PTRM Revenue data'!L$7*'PTRM Revenue data'!K$8 -> 1.144493392 | AK27: =W27*'PTRM Revenue data'!M$7*'PTRM Revenue data'!L$8 -> 1.120040711 | AL27: =X27*'PTRM Revenue data'!N$7*'PTRM Revenue data'!M$8 -> 1.087539111 | AN27: Plant & Equipment | AO27: =M27*'PTRM Revenue data'!J$8 -> 9.578024439 | AP27: =N27*'PTRM Revenue data'!K$8 -> 8.537454568 | AQ27: =O27*'PTRM Revenue data'!L$8 -> 7.56255966 | AR27: =P27*'PTRM Revenue data'!M$8 -> 7.585288702 | AS27: =Q27*'PTRM Revenue data'!N$8 -> 7.422602879 | AU27: Plant & Equipment | AV27: 8.338047407 | AW27: 7.336455508 | AX27: 6.418066268 | AY27: 6.46524799 | AZ27: 6.335063768
B28: Buildings | C28: =_xlfn.XLOOKUP(B28,'PTRM Input'!$G$6:$G$58,'PTRM Input'!$J$6:$J$58) -> 357.7101662 | E28: Buildings | F28: =_xlfn.XLOOKUP($E28,Assets!$C$11:$C$60,Assets!G$11:G$60) -> 0 | G28: =_xlfn.XLOOKUP($E28,Assets!$C$11:$C$60,Assets!H$11:H$60) -> 0 | H28: =_xlfn.XLOOKUP($E28,Assets!$C$11:$C$60,Assets!I$11:I$60) -> 0 | I28: =_xlfn.XLOOKUP($E28,Assets!$C$11:$C$60,Assets!J$11:J$60) -> 0 | J28: =_xlfn.XLOOKUP($E28,Assets!$C$11:$C$60,Assets!K$11:K$60) -> 0 | L28: Buildings | M28: =_xlfn.XLOOKUP($L28,Assets!$C$128:$C$765,Assets!G$128:G$765) -> 12.54976724 | N28: =_xlfn.XLOOKUP($L28,Assets!$C$128:$C$765,Assets!H$128:H$765) -> 12.54976724 | O28: =_xlfn.XLOOKUP($L28,Assets!$C$128:$C$765,Assets!I$128:I$765) -> 12.54976724 | P28: =_xlfn.XLOOKUP($L28,Assets!$C$128:$C$765,Assets!J$128:J$765) -> 12.54976724 | Q28: =_xlfn.XLOOKUP($L28,Assets!$C$128:$C$765,Assets!K$128:K$765) -> 12.54976724 | S28: Buildings | T28: 357.7101662 | U28: 345.1603989 | V28: 332.6106317 | W28: 320.0608644 | X28: 307.5110972 | Z28: Buildings | AA28: 0.02257408956 | AB28: 0.02128968228 | AC28: 0.02017470796 | AD28: 0.01907345902 | AE28: 0.01800063168 | AG28: Buildings | AH28: =T28*'PTRM Revenue data'!J$7 -> 10.1936746 | AI28: =U28*'PTRM Revenue data'!K$7*'PTRM Revenue data'!J$8 -> 10.11634156 | AJ28: =V28*'PTRM Revenue data'!L$7*'PTRM Revenue data'!K$8 -> 9.748519141 | AK28: =W28*'PTRM Revenue data'!M$7*'PTRM Revenue data'!L$8 -> 9.380696725 | AL28: =X28*'PTRM Revenue data'!N$7*'PTRM Revenue data'!M$8 -> 9.012874309 | AN28: Buildings | AO28: =M28*'PTRM Revenue data'!J$8 -> 12.90739824 | AP28: =N28*'PTRM Revenue data'!K$8 -> 12.90739824 | AQ28: =O28*'PTRM Revenue data'!L$8 -> 12.90739824 | AR28: =P28*'PTRM Revenue data'!M$8 -> 12.90739824 | AS28: =Q28*'PTRM Revenue data'!N$8 -> 12.90739824 | AU28: Buildings | AV28: 2.713723642 | AW28: 2.791056685 | AX28: 3.158879101 | AY28: 3.526701517 | AZ28: 3.894523934
B29: Office Equipment & Furniture | C29: =_xlfn.XLOOKUP(B29,'PTRM Input'!$G$6:$G$58,'PTRM Input'!$J$6:$J$58) -> -12.9773381 | E29: Office Equipment & Furniture | F29: =_xlfn.XLOOKUP($E29,Assets!$C$11:$C$60,Assets!G$11:G$60) -> 1.892872739 | G29: =_xlfn.XLOOKUP($E29,Assets!$C$11:$C$60,Assets!H$11:H$60) -> 1.066933393 | H29: =_xlfn.XLOOKUP($E29,Assets!$C$11:$C$60,Assets!I$11:I$60) -> 1.847531664 | I29: =_xlfn.XLOOKUP($E29,Assets!$C$11:$C$60,Assets!J$11:J$60) -> 2.085304563 | J29: =_xlfn.XLOOKUP($E29,Assets!$C$11:$C$60,Assets!K$11:K$60) -> 2.117539373 | L29: Office Equipment & Furniture | M29: =_xlfn.XLOOKUP($L29,Assets!$C$128:$C$765,Assets!G$128:G$765) -> -6.488669049 | N29: =_xlfn.XLOOKUP($L29,Assets!$C$128:$C$765,Assets!H$128:H$765) -> -6.218258658 | O29: =_xlfn.XLOOKUP($L29,Assets!$C$128:$C$765,Assets!I$128:I$765) -> 0.4228294474 | P29: =_xlfn.XLOOKUP($L29,Assets!$C$128:$C$765,Assets!J$128:J$765) -> 0.6867625423 | Q29: =_xlfn.XLOOKUP($L29,Assets!$C$128:$C$765,Assets!K$128:K$765) -> 0.9846631941 | S29: Office Equipment & Furniture | T29: -12.9773381 | U29: -4.59579631 | V29: 2.68939574 | W29: 4.114097957 | X29: 5.512639978 | Z29: Office Equipment & Furniture | AA29: -0.0008189635639 | AB29: -0.0002834712313 | AC29: 0.0001631269974 | AD29: 0.0002451723641 | AE29: 0.0003226907996 | AG29: Office Equipment & Furniture | AH29: =T29*'PTRM Revenue data'!J$7 -> -0.3698154939 | AI29: =U29*'PTRM Revenue data'!K$7*'PTRM Revenue data'!J$8 -> -0.1346986658 | AJ29: =V29*'PTRM Revenue data'!L$7*'PTRM Revenue data'!K$8 -> 0.07882377578 | AK29: =W29*'PTRM Revenue data'!M$7*'PTRM Revenue data'!L$8 -> 0.1205805193 | AL29: =X29*'PTRM Revenue data'!N$7*'PTRM Revenue data'!M$8 -> 0.1615705309 | AN29: =B29 -> Office Equipment & Furniture | AO29: =M29*'PTRM Revenue data'!J$8 -> -6.673576796 | AP29: =N29*'PTRM Revenue data'!K$8 -> -6.395460514 | AQ29: =O29*'PTRM Revenue data'!L$8 -> 0.4348788276 | AR29: =P29*'PTRM Revenue data'!M$8 -> 0.7063332298 | AS29: =Q29*'PTRM Revenue data'!N$8 -> 1.012723163 | AU29: =B29 -> Office Equipment & Furniture | AV29: =AO29-AH29 -> -6.303761302 | AW29: =AP29-AI29 -> -6.260761848 | AX29: =AQ29-AJ29 -> 0.3560550518 | AY29: =AR29-AK29 -> 0.5857527105 | AZ29: =AS29-AL29 -> 0.8511526323
B30: Initial Leases (10 yr life) | C30: =_xlfn.XLOOKUP(B30,'PTRM Input'!$G$6:$G$58,'PTRM Input'!$J$6:$J$58) -> 53.66513886 | E30: Initial Leases (10 yr life) | F30: =_xlfn.XLOOKUP($E30,Assets!$C$11:$C$60,Assets!G$11:G$60) -> 0 | G30: =_xlfn.XLOOKUP($E30,Assets!$C$11:$C$60,Assets!H$11:H$60) -> 0 | H30: =_xlfn.XLOOKUP($E30,Assets!$C$11:$C$60,Assets!I$11:I$60) -> 0 | I30: =_xlfn.XLOOKUP($E30,Assets!$C$11:$C$60,Assets!J$11:J$60) -> 0 | J30: =_xlfn.XLOOKUP($E30,Assets!$C$11:$C$60,Assets!K$11:K$60) -> 0 | L30: Initial Leases (10 yr life) | M30: =_xlfn.XLOOKUP($L30,Assets!$C$128:$C$765,Assets!G$128:G$765) -> 12.38474033 | N30: =_xlfn.XLOOKUP($L30,Assets!$C$128:$C$765,Assets!H$128:H$765) -> 12.38474033 | O30: =_xlfn.XLOOKUP($L30,Assets!$C$128:$C$765,Assets!I$128:I$765) -> 12.38474033 | P30: =_xlfn.XLOOKUP($L30,Assets!$C$128:$C$765,Assets!J$128:J$765) -> 12.38474033 | Q30: =_xlfn.XLOOKUP($L30,Assets!$C$128:$C$765,Assets!K$128:K$765) -> 4.126177544 | S30: Initial Leases (10 yr life) | T30: 53.66513886 | U30: 41.28039853 | V30: 28.8956582 | W30: 16.51091787 | X30: 4.126177544 | Z30: Initial Leases (10 yr life) | AA30: 0.003386657036 | AB30: 0.00254619757 | AC30: 0.001752684401 | AD30: 0.0009839388392 | AE30: 0.0002415321037 | AG30: Initial Leases (10 yr life) | AH30: =T30*'PTRM Revenue data'!J$7 -> 1.529296662 | AI30: =U30*'PTRM Revenue data'!K$7*'PTRM Revenue data'!J$8 -> 1.209891437 | AJ30: =V30*'PTRM Revenue data'!L$7*'PTRM Revenue data'!K$8 -> 0.846905812 | AK30: =W30*'PTRM Revenue data'!M$7*'PTRM Revenue data'!L$8 -> 0.4839201866 | AL30: =X30*'PTRM Revenue data'!N$7*'PTRM Revenue data'!M$8 -> 0.1209345611 | AN30: Initial Leases (10 yr life) | AO30: =M30*'PTRM Revenue data'!J$8 -> 12.73766855 | AP30: =N30*'PTRM Revenue data'!K$8 -> 12.73766855 | AQ30: =O30*'PTRM Revenue data'!L$8 -> 12.73766855 | AR30: =P30*'PTRM Revenue data'!M$8 -> 12.73766855 | AS30: =Q30*'PTRM Revenue data'!N$8 -> 4.243761317 | AU30: Initial Leases (10 yr life) | AV30: 11.20837189 | AW30: 11.52777711 | AX30: 11.89076274 | AY30: 12.25374837 | AZ30: 4.122826756
B31: Lease Extensions (5yr Life) | C31: =_xlfn.XLOOKUP(B31,'PTRM Input'!$G$6:$G$58,'PTRM Input'!$J$6:$J$58) -> 0 | E31: Lease Extensions (5yr Life) | F31: =_xlfn.XLOOKUP($E31,Assets!$C$11:$C$60,Assets!G$11:G$60) -> 0 | G31: =_xlfn.XLOOKUP($E31,Assets!$C$11:$C$60,Assets!H$11:H$60) -> 0 | H31: =_xlfn.XLOOKUP($E31,Assets!$C$11:$C$60,Assets!I$11:I$60) -> 0 | I31: =_xlfn.XLOOKUP($E31,Assets!$C$11:$C$60,Assets!J$11:J$60) -> 14.9057271 | J31: =_xlfn.XLOOKUP($E31,Assets!$C$11:$C$60,Assets!K$11:K$60) -> 2.573612319 | L31: Lease Extensions (5yr Life) | M31: =_xlfn.XLOOKUP($L31,Assets!$C$128:$C$765,Assets!G$128:G$765) -> 0 | N31: =_xlfn.XLOOKUP($L31,Assets!$C$128:$C$765,Assets!H$128:H$765) -> 0 | O31: =_xlfn.XLOOKUP($L31,Assets!$C$128:$C$765,Assets!I$128:I$765) -> 0 | P31: =_xlfn.XLOOKUP($L31,Assets!$C$128:$C$765,Assets!J$128:J$765) -> 0 | Q31: =_xlfn.XLOOKUP($L31,Assets!$C$128:$C$765,Assets!K$128:K$765) -> 2.981145419 | S31: Lease Extensions (5yr Life) | T31: =_xlfn.XLOOKUP(S31,$B$7:$B$37,C$7:C$37) -> 0 | U31: 0 | V31: 0 | W31: 0 | X31: 14.9057271 | Z31: Lease Extensions (5yr Life) | AA31: =T31/T$40 -> 0 | AB31: 0 | AC31: 0 | AD31: 0 | AE31: 0.0008725294985 | AG31: Lease Extensions (5yr Life) | AH31: =T31*'PTRM Revenue data'!J$7 -> 0 | AI31: =U31*'PTRM Revenue data'!K$7*'PTRM Revenue data'!J$8 -> 0 | AJ31: =V31*'PTRM Revenue data'!L$7*'PTRM Revenue data'!K$8 -> 0 | AK31: =W31*'PTRM Revenue data'!M$7*'PTRM Revenue data'!L$8 -> 0 | AL31: =X31*'PTRM Revenue data'!N$7*'PTRM Revenue data'!M$8 -> 0.4368734853 | AN31: Lease Extensions (5yr Life) | AO31: =M31*'PTRM Revenue data'!J$8 -> 0 | AP31: =N31*'PTRM Revenue data'!K$8 -> 0 | AQ31: =O31*'PTRM Revenue data'!L$8 -> 0 | AR31: =P31*'PTRM Revenue data'!M$8 -> 0 | AS31: =Q31*'PTRM Revenue data'!N$8 -> 3.066099187 | AU31: Lease Extensions (5yr Life) | AV31: 0 | AW31: 0 | AX31: 0 | AY31: 0 | AZ31: 2.629225702
B32: Land & Easements - combined | C32: =_xlfn.XLOOKUP(B32,'PTRM Input'!$G$6:$G$58,'PTRM Input'!$J$6:$J$58) -> 35.33122501 | E32: Land & Easements - combined | F32: =_xlfn.XLOOKUP($E32,Assets!$C$11:$C$60,Assets!G$11:G$60) -> 0 | G32: =_xlfn.XLOOKUP($E32,Assets!$C$11:$C$60,Assets!H$11:H$60) -> 0 | H32: =_xlfn.XLOOKUP($E32,Assets!$C$11:$C$60,Assets!I$11:I$60) -> 0 | I32: =_xlfn.XLOOKUP($E32,Assets!$C$11:$C$60,Assets!J$11:J$60) -> 0 | J32: =_xlfn.XLOOKUP($E32,Assets!$C$11:$C$60,Assets!K$11:K$60) -> 0 | L32: Land & Easements - combined | M32: =_xlfn.XLOOKUP($L32,Assets!$C$128:$C$765,Assets!G$128:G$765) -> 0 | N32: =_xlfn.XLOOKUP($L32,Assets!$C$128:$C$765,Assets!H$128:H$765) -> 0 | O32: =_xlfn.XLOOKUP($L32,Assets!$C$128:$C$765,Assets!I$128:I$765) -> 0 | P32: =_xlfn.XLOOKUP($L32,Assets!$C$128:$C$765,Assets!J$128:J$765) -> 0 | Q32: =_xlfn.XLOOKUP($L32,Assets!$C$128:$C$765,Assets!K$128:K$765) -> 0 | S32: Land & Easements - combined | T32: 35.33122501 | U32: 35.33122501 | V32: 35.33122501 | W32: 35.33122501 | X32: 35.33122501 | Z32: Land & Easements - combined | AA32: 0.002229654936 | AB32: 0.002179249292 | AC32: 0.00214303777 | AD32: 0.002105501632 | AE32: 0.002068167211 | AG32: Land & Easements - combined | AH32: =T32*'PTRM Revenue data'!J$7 -> 1.006834709 | AI32: =U32*'PTRM Revenue data'!K$7*'PTRM Revenue data'!J$8 -> 1.0355265 | AJ32: =V32*'PTRM Revenue data'!L$7*'PTRM Revenue data'!K$8 -> 1.0355265 | AK32: =W32*'PTRM Revenue data'!M$7*'PTRM Revenue data'!L$8 -> 1.0355265 | AL32: =X32*'PTRM Revenue data'!N$7*'PTRM Revenue data'!M$8 -> 1.0355265 | AN32: Land & Easements - combined | AO32: =M32*'PTRM Revenue data'!J$8 -> 0 | AP32: =N32*'PTRM Revenue data'!K$8 -> 0 | AQ32: =O32*'PTRM Revenue data'!L$8 -> 0 | AR32: =P32*'PTRM Revenue data'!M$8 -> 0 | AS32: =Q32*'PTRM Revenue data'!N$8 -> 0 | AU32: Land & Easements - combined | AV32: -1.006834709 | AW32: -1.0355265 | AX32: -1.0355265 | AY32: -1.0355265 | AZ32: -1.0355265
B33: Communications | C33: =_xlfn.XLOOKUP(B33,'PTRM Input'!$G$6:$G$58,'PTRM Input'!$J$6:$J$58) -> 168.2277819 | E33: Communications | F33: =_xlfn.XLOOKUP($E33,Assets!$C$11:$C$60,Assets!G$11:G$60) -> 0 | G33: =_xlfn.XLOOKUP($E33,Assets!$C$11:$C$60,Assets!H$11:H$60) -> 0 | H33: =_xlfn.XLOOKUP($E33,Assets!$C$11:$C$60,Assets!I$11:I$60) -> 0 | I33: =_xlfn.XLOOKUP($E33,Assets!$C$11:$C$60,Assets!J$11:J$60) -> 0 | J33: =_xlfn.XLOOKUP($E33,Assets!$C$11:$C$60,Assets!K$11:K$60) -> 0 | L33: Communications | M33: =_xlfn.XLOOKUP($L33,Assets!$C$128:$C$765,Assets!G$128:G$765) -> 8.533297507 | N33: =_xlfn.XLOOKUP($L33,Assets!$C$128:$C$765,Assets!H$128:H$765) -> 8.533297507 | O33: =_xlfn.XLOOKUP($L33,Assets!$C$128:$C$765,Assets!I$128:I$765) -> 8.533297507 | P33: =_xlfn.XLOOKUP($L33,Assets!$C$128:$C$765,Assets!J$128:J$765) -> 8.533297507 | Q33: =_xlfn.XLOOKUP($L33,Assets!$C$128:$C$765,Assets!K$128:K$765) -> 8.533297507 | S33: Communications | T33: 168.2277819 | U33: 159.6944844 | V33: 151.1611869 | W33: 142.6278894 | X33: 134.0945919 | Z33: Communications | AA33: 0.01061638549 | AB33: 0.009850043185 | AC33: 0.009168777274 | AD33: 0.008499655865 | AE33: 0.007849431716 | AG33: Communications | AH33: =T33*'PTRM Revenue data'!J$7 -> 4.793990862 | AI33: =U33*'PTRM Revenue data'!K$7*'PTRM Revenue data'!J$8 -> 4.680502034 | AJ33: =V33*'PTRM Revenue data'!L$7*'PTRM Revenue data'!K$8 -> 4.430398742 | AK33: =W33*'PTRM Revenue data'!M$7*'PTRM Revenue data'!L$8 -> 4.180295449 | AL33: =X33*'PTRM Revenue data'!N$7*'PTRM Revenue data'!M$8 -> 3.930192157 | AN33: Communications | AO33: =M33*'PTRM Revenue data'!J$8 -> 8.776471077 | AP33: =N33*'PTRM Revenue data'!K$8 -> 8.776471077 | AQ33: =O33*'PTRM Revenue data'!L$8 -> 8.776471077 | AR33: =P33*'PTRM Revenue data'!M$8 -> 8.776471077 | AS33: =Q33*'PTRM Revenue data'!N$8 -> 8.776471077 | AU33: Communications | AV33: 3.982480215 | AW33: 4.095969043 | AX33: 4.346072335 | AY33: 4.596175627 | AZ33: 4.84627892
B34: In-house software | C34: =_xlfn.XLOOKUP(B34,'PTRM Input'!$G$6:$G$58,'PTRM Input'!$J$6:$J$58) -> 153.3206249 | E34: In-house software | F34: =_xlfn.XLOOKUP($E34,Assets!$C$11:$C$60,Assets!G$11:G$60) -> 65.69512397 | G34: =_xlfn.XLOOKUP($E34,Assets!$C$11:$C$60,Assets!H$11:H$60) -> 51.49645688 | H34: =_xlfn.XLOOKUP($E34,Assets!$C$11:$C$60,Assets!I$11:I$60) -> 41.02991704 | I34: =_xlfn.XLOOKUP($E34,Assets!$C$11:$C$60,Assets!J$11:J$60) -> 32.41831569 | J34: =_xlfn.XLOOKUP($E34,Assets!$C$11:$C$60,Assets!K$11:K$60) -> 40.22750093 | L34: In-house software | M34: =_xlfn.XLOOKUP($L34,Assets!$C$128:$C$765,Assets!G$128:G$765) -> 45.69464067 | N34: =_xlfn.XLOOKUP($L34,Assets!$C$128:$C$765,Assets!H$128:H$765) -> 104.2090039 | O34: =_xlfn.XLOOKUP($L34,Assets!$C$128:$C$765,Assets!I$128:I$765) -> 82.96000707 | P34: =_xlfn.XLOOKUP($L34,Assets!$C$128:$C$765,Assets!J$128:J$765) -> 65.62291947 | Q34: =_xlfn.XLOOKUP($L34,Assets!$C$128:$C$765,Assets!K$128:K$765) -> 45.47386738 | S34: In-house software | T34: 153.3206249 | U34: 173.3211082 | V34: 120.6085612 | W34: 78.67847116 | X34: 45.47386738 | Z34: In-house software | AA34: 0.009675636439 | AB34: 0.0106905408 | AC34: 0.007315588462 | AD34: 0.004688703812 | AE34: 0.002661882271 | AG34: In-house software | AH34: =T34*'PTRM Revenue data'!J$7 -> 4.369181275 | AI34: =U34*'PTRM Revenue data'!K$7*'PTRM Revenue data'!J$8 -> 5.079886149 | AJ34: =V34*'PTRM Revenue data'!L$7*'PTRM Revenue data'!K$8 -> 3.534928699 | AK34: =W34*'PTRM Revenue data'!M$7*'PTRM Revenue data'!L$8 -> 2.305995386 | AL34: =X34*'PTRM Revenue data'!N$7*'PTRM Revenue data'!M$8 -> 1.332798246 | AN34: In-house software | AO34: =M34*'PTRM Revenue data'!J$8 -> 46.99680187 | AP34: =N34*'PTRM Revenue data'!K$8 -> 107.1786502 | AQ34: =O34*'PTRM Revenue data'!L$8 -> 85.32412025 | AR34: =P34*'PTRM Revenue data'!M$8 -> 67.49297727 | AS34: =Q34*'PTRM Revenue data'!N$8 -> 46.76973719 | AU34: In-house software | AV34: 42.62762059 | AW34: 102.0987641 | AX34: 81.78919155 | AY34: 65.18698189 | AZ34: 45.43693895
B35: IT Systems | C35: =_xlfn.XLOOKUP(B35,'PTRM Input'!$G$6:$G$58,'PTRM Input'!$J$6:$J$58) -> 8.388625604 | E35: IT Systems | F35: =_xlfn.XLOOKUP($E35,Assets!$C$11:$C$60,Assets!G$11:G$60) -> 2.575379421 | G35: =_xlfn.XLOOKUP($E35,Assets!$C$11:$C$60,Assets!H$11:H$60) -> 2.121695268 | H35: =_xlfn.XLOOKUP($E35,Assets!$C$11:$C$60,Assets!I$11:I$60) -> 2.022122336 | I35: =_xlfn.XLOOKUP($E35,Assets!$C$11:$C$60,Assets!J$11:J$60) -> 1.705525353 | J35: =_xlfn.XLOOKUP($E35,Assets!$C$11:$C$60,Assets!K$11:K$60) -> 2.079334444 | L35: IT Systems | M35: =_xlfn.XLOOKUP($L35,Assets!$C$128:$C$765,Assets!G$128:G$765) -> 3.372234184 | N35: =_xlfn.XLOOKUP($L35,Assets!$C$128:$C$765,Assets!H$128:H$765) -> 3.222064126 | O35: =_xlfn.XLOOKUP($L35,Assets!$C$128:$C$765,Assets!I$128:I$765) -> 2.621287091 | P35: =_xlfn.XLOOKUP($L35,Assets!$C$128:$C$765,Assets!J$128:J$765) -> 1.97137043 | Q35: =_xlfn.XLOOKUP($L35,Assets!$C$128:$C$765,Assets!K$128:K$765) -> 1.684944475 | S35: IT Systems | T35: 8.388625604 | U35: 7.591770841 | V35: 6.491401983 | W35: 5.892237228 | X35: 5.62639215 | Z35: IT Systems | AA35: 0.0005293827339 | AB35: 0.0004682645797 | AC35: 0.0003937400876 | AD35: 0.0003511374172 | AE35: 0.0003293494567 | AG35: IT Systems | AH35: =T35*'PTRM Revenue data'!J$7 -> 0.2390508513 | AI35: =U35*'PTRM Revenue data'!K$7*'PTRM Revenue data'!J$8 -> 0.2225079908 | AJ35: =V35*'PTRM Revenue data'!L$7*'PTRM Revenue data'!K$8 -> 0.190257167 | AK35: =W35*'PTRM Revenue data'!M$7*'PTRM Revenue data'!L$8 -> 0.1726961857 | AL35: =X35*'PTRM Revenue data'!N$7*'PTRM Revenue data'!M$8 -> 0.164904505 | AN35: IT Systems | AO35: =M35*'PTRM Revenue data'!J$8 -> 3.468332817 | AP35: =N35*'PTRM Revenue data'!K$8 -> 3.313883359 | AQ35: =O35*'PTRM Revenue data'!L$8 -> 2.695985968 | AR35: =P35*'PTRM Revenue data'!M$8 -> 2.027548618 | AS35: =Q35*'PTRM Revenue data'!N$8 -> 1.732960376 | AU35: IT Systems | AV35: 3.229281966 | AW35: 3.091375368 | AX35: 2.505728801 | AY35: 1.854852432 | AZ35: 1.568055871
B36: ICT Legacy Assets | C36: =_xlfn.XLOOKUP(B36,'PTRM Input'!$G$6:$G$58,'PTRM Input'!$J$6:$J$58) -> 79.99465009 | E36: ICT Legacy Assets | F36: =_xlfn.XLOOKUP($E36,Assets!$C$11:$C$60,Assets!G$11:G$60) -> 0 | G36: =_xlfn.XLOOKUP($E36,Assets!$C$11:$C$60,Assets!H$11:H$60) -> 0 | H36: =_xlfn.XLOOKUP($E36,Assets!$C$11:$C$60,Assets!I$11:I$60) -> 0 | I36: =_xlfn.XLOOKUP($E36,Assets!$C$11:$C$60,Assets!J$11:J$60) -> 0 | J36: =_xlfn.XLOOKUP($E36,Assets!$C$11:$C$60,Assets!K$11:K$60) -> 0 | L36: ICT Legacy Assets | M36: =_xlfn.XLOOKUP($L36,Assets!$C$128:$C$765,Assets!G$128:G$765) -> 0 | N36: =_xlfn.XLOOKUP($L36,Assets!$C$128:$C$765,Assets!H$128:H$765) -> 0 | O36: =_xlfn.XLOOKUP($L36,Assets!$C$128:$C$765,Assets!I$128:I$765) -> 0 | P36: =_xlfn.XLOOKUP($L36,Assets!$C$128:$C$765,Assets!J$128:J$765) -> 0 | Q36: =_xlfn.XLOOKUP($L36,Assets!$C$128:$C$765,Assets!K$128:K$765) -> 0 | S36: ICT Legacy Assets | T36: 79.99465009 | U36: 79.99465009 | V36: 79.99465009 | W36: 79.99465009 | X36: 79.99465009 | Z36: ICT Legacy Assets | AA36: 0.005048238956 | AB36: 0.004934113791 | AC36: 0.004852126031 | AD36: 0.00476713916 | AE36: 0.004682609005 | AG36: ICT Legacy Assets | AH36: =T36*'PTRM Revenue data'!J$7 -> 2.279609332 | AI36: =U36*'PTRM Revenue data'!K$7*'PTRM Revenue data'!J$8 -> 2.34457141 | AJ36: =V36*'PTRM Revenue data'!L$7*'PTRM Revenue data'!K$8 -> 2.34457141 | AK36: =W36*'PTRM Revenue data'!M$7*'PTRM Revenue data'!L$8 -> 2.34457141 | AL36: =X36*'PTRM Revenue data'!N$7*'PTRM Revenue data'!M$8 -> 2.34457141 | AN36: ICT Legacy Assets | AO36: =M36*'PTRM Revenue data'!J$8 -> 0 | AP36: =N36*'PTRM Revenue data'!K$8 -> 0 | AQ36: =O36*'PTRM Revenue data'!L$8 -> 0 | AR36: =P36*'PTRM Revenue data'!M$8 -> 0 | AS36: =Q36*'PTRM Revenue data'!N$8 -> 0 | AU36: ICT Legacy Assets | AV36: -2.279609332 | AW36: -2.34457141 | AX36: -2.34457141 | AY36: -2.34457141 | AZ36: -2.34457141
B37: Buildings - capital works | C37: =_xlfn.XLOOKUP(B37,'PTRM Input'!$G$6:$G$58,'PTRM Input'!$J$6:$J$58) -> 199.8988005 | E37: Buildings - capital works | F37: =_xlfn.XLOOKUP($E37,Assets!$C$11:$C$60,Assets!G$11:G$60) -> 30.74286414 | G37: =_xlfn.XLOOKUP($E37,Assets!$C$11:$C$60,Assets!H$11:H$60) -> 17.32846993 | H37: =_xlfn.XLOOKUP($E37,Assets!$C$11:$C$60,Assets!I$11:I$60) -> 30.00646255 | I37: =_xlfn.XLOOKUP($E37,Assets!$C$11:$C$60,Assets!J$11:J$60) -> 25.9126791 | J37: =_xlfn.XLOOKUP($E37,Assets!$C$11:$C$60,Assets!K$11:K$60) -> 34.39176017 | L37: Buildings - capital works | M37: =_xlfn.XLOOKUP($L37,Assets!$C$128:$C$765,Assets!G$128:G$765) -> 5.197383163 | N37: =_xlfn.XLOOKUP($L37,Assets!$C$128:$C$765,Assets!H$128:H$765) -> 35.9402473 | O37: =_xlfn.XLOOKUP($L37,Assets!$C$128:$C$765,Assets!I$128:I$765) -> 22.52585309 | P37: =_xlfn.XLOOKUP($L37,Assets!$C$128:$C$765,Assets!J$128:J$765) -> 35.20384571 | Q37: =_xlfn.XLOOKUP($L37,Assets!$C$128:$C$765,Assets!K$128:K$765) -> 31.11006226 | S37: Buildings - capital works | T37: 199.8988005 | U37: 225.4442815 | V37: 206.8325041 | W37: 214.3131136 | X37: 205.021947 | Z37: Buildings - capital works | AA37: 0.01261505502 | AB37: 0.01390552665 | AC37: 0.01254555619 | AD37: 0.01277160954 | AE37: 0.01200127276 | AG37: Buildings - capital works | AH37: =T37*'PTRM Revenue data'!J$7 -> 5.696520587 | AI37: =U37*'PTRM Revenue data'!K$7*'PTRM Revenue data'!J$8 -> 6.607569585 | AJ37: =V37*'PTRM Revenue data'!L$7*'PTRM Revenue data'!K$8 -> 6.062075092 | AK37: =W37*'PTRM Revenue data'!M$7*'PTRM Revenue data'!L$8 -> 6.281325042 | AL37: =X37*'PTRM Revenue data'!N$7*'PTRM Revenue data'!M$8 -> 6.009009286 | AN37: Buildings - capital works | AO37: =M37*'PTRM Revenue data'!J$8 -> 5.345493108 | AP37: =N37*'PTRM Revenue data'!K$8 -> 36.96443733 | AQ37: =O37*'PTRM Revenue data'!L$8 -> 23.16777283 | AR37: =P37*'PTRM Revenue data'!M$8 -> 36.20705049 | AS37: =Q37*'PTRM Revenue data'!N$8 -> 31.9966064 | AU37: Buildings - capital works | AV37: -0.3510274791 | AW37: 30.35686775 | AX37: 17.10569774 | AY37: 29.92572545 | AZ37: 25.98759712
B40: Total | C40: =SUM(C7:C37) -> 15846.05063 | S40: Total | T40: =SUM(T7:T37) -> 15846.05063 | U40: =SUM(U7:U37) -> 16212.56693 | V40: =SUM(V7:V37) -> 16486.51531 | W40: =SUM(W7:W37) -> 16780.43107 | X40: =SUM(X7:X37) -> 17083.35033 | Z40: Total | AA40: =SUM(AA7:AA37) -> 1 | AB40: =SUM(AB7:AB37) -> 1 | AC40: 1 | AD40: 1 | AE40: 1

Sheet BBM Costs
B2: BBM Costs
B4: Building block costs by year (000s) | I4: Operational costs | P4: Return of capex (Regulatory depreciation split) | W4: Return on capex | AD4: Replacement cost (ORAB)
C6: 2025-26 | D6: 2026-27 | E6: 2027-28 | F6: 2028-29 | G6: 2029-30 | I6: Category | J6: 2025-26 | K6: 2026-27 | L6: 2027-28 | M6: 2028-29 | N6: 2029-30 | P6: Category | Q6: 2025-26 | R6: 2026-27 | S6: 2027-28 | T6: 2028-29 | U6: 2029-30 | W6: Category | X6: 2025-26 | Y6: 2026-27 | Z6: 2027-28 | AA6: 2028-29 | AB6: 2029-30 | AD6: Category | AE6: 2025-26
B7: Return on Capital | C7: =_xlfn.XLOOKUP($B7,'PTRM Revenue data'!$B$7:$B$11,'PTRM Revenue data'!C$7:C$11) -> 898.9477546 | D7: =_xlfn.XLOOKUP($B7,'PTRM Revenue data'!$B$7:$B$11,'PTRM Revenue data'!D$7:D$11) -> 961.5923136 | E7: =_xlfn.XLOOKUP($B7,'PTRM Revenue data'!$B$7:$B$11,'PTRM Revenue data'!E$7:E$11) -> 1028.866292 | F7: =_xlfn.XLOOKUP($B7,'PTRM Revenue data'!$B$7:$B$11,'PTRM Revenue data'!F$7:F$11) -> 1132.28134 | G7: =_xlfn.XLOOKUP($B7,'PTRM Revenue data'!$B$7:$B$11,'PTRM Revenue data'!G$7:G$11) -> 1225.522593 | I7: ='Opex costs'!B7 -> Preventative Maintenance | J7: =_xlfn.XLOOKUP($I7,'Opex costs'!$B$7:$B$20,'Opex costs'!C$7:C$20) -> 91.21903578 | K7: =_xlfn.XLOOKUP($I7,'Opex costs'!$B$7:$B$20,'Opex costs'!D$7:D$20) -> 92.69318012 | L7: =_xlfn.XLOOKUP($I7,'Opex costs'!$B$7:$B$20,'Opex costs'!E$7:E$20) -> 94.51747309 | M7: =_xlfn.XLOOKUP($I7,'Opex costs'!$B$7:$B$20,'Opex costs'!F$7:F$20) -> 97.89451637 | N7: =_xlfn.XLOOKUP($I7,'Opex costs'!$B$7:$B$20,'Opex costs'!G$7:G$20) -> 100.344551 | P7: ='PTRM Data'!B7 -> Overhead Sub-Transmission Lines | Q7: =_xlfn.XLOOKUP($P7,'PTRM Data'!$AU$7:$AU$37,'PTRM Data'!AV$7:AV$37) -> 12.13367884 | R7: =_xlfn.XLOOKUP($P7,'PTRM Data'!$AU$7:$AU$37,'PTRM Data'!AW$7:AW$37) -> 12.1056941 | S7: =_xlfn.XLOOKUP($P7,'PTRM Data'!$AU$7:$AU$37,'PTRM Data'!AX$7:AX$37) -> 13.36361595 | T7: =_xlfn.XLOOKUP($P7,'PTRM Data'!$AU$7:$AU$37,'PTRM Data'!AY$7:AY$37) -> 14.56941387 | U7: =_xlfn.XLOOKUP($P7,'PTRM Data'!$AU$7:$AU$37,'PTRM Data'!AZ$7:AZ$37) -> 15.74599909 | W7: ='PTRM Data'!B7 -> Overhead Sub-Transmission Lines | X7: =_xlfn.XLOOKUP($W7,'PTRM Data'!$Z$7:$Z$37,'PTRM Data'!AA$7:AA$37)*('BBM Costs'!C$7+'BBM Costs'!C$11) -> 90.96356905 | Y7: =_xlfn.XLOOKUP($W7,'PTRM Data'!$Z$7:$Z$37,'PTRM Data'!AB$7:AB$37)*('BBM Costs'!D$7+'BBM Costs'!D$11) -> 94.15906807 | Z7: =_xlfn.XLOOKUP($W7,'PTRM Data'!$Z$7:$Z$37,'PTRM Data'!AC$7:AC$37)*('BBM Costs'!E$7+'BBM Costs'!E$11) -> 98.07135652 | AA7: =_xlfn.XLOOKUP($W7,'PTRM Data'!$Z$7:$Z$37,'PTRM Data'!AD$7:AD$37)*('BBM Costs'!F$7+'BBM Costs'!F$11) -> 105.5523476 | AB7: =_xlfn.XLOOKUP($W7,'PTRM Data'!$Z$7:$Z$37,'PTRM Data'!AE$7:AE$37)*('BBM Costs'!G$7+'BBM Costs'!G$11) -> 111.2967324 | AD7: ='PTRM Data'!B7 -> Overhead Sub-Transmission Lines | AE7: =_xlfn.XLOOKUP(AD7,'PTRM Data'!$B$7:$B$37,'PTRM Data'!$C$7:$C$37) -> 1596.429734
B8: Return of Capital (regulatory depreciation) | C8: =_xlfn.XLOOKUP($B8,'PTRM Revenue data'!$B$7:$B$11,'PTRM Revenue data'!C$7:C$11) -> 183.4230118 | D8: =_xlfn.XLOOKUP($B8,'PTRM Revenue data'!$B$7:$B$11,'PTRM Revenue data'!D$7:D$11) -> 212.1454937 | E8: =_xlfn.XLOOKUP($B8,'PTRM Revenue data'!$B$7:$B$11,'PTRM Revenue data'!E$7:E$11) -> 245.0619464 | F8: =_xlfn.XLOOKUP($B8,'PTRM Revenue data'!$B$7:$B$11,'PTRM Revenue data'!F$7:F$11) -> 282.260031 | G8: =_xlfn.XLOOKUP($B8,'PTRM Revenue data'!$B$7:$B$11,'PTRM Revenue data'!G$7:G$11) -> 303.6323142 | I8: ='Opex costs'!B8 -> Corrective Maintenance | J8: =_xlfn.XLOOKUP($I8,'Opex costs'!$B$7:$B$20,'Opex costs'!C$7:C$20) -> 49.28408909 | K8: =_xlfn.XLOOKUP($I8,'Opex costs'!$B$7:$B$20,'Opex costs'!D$7:D$20) -> 50.08054413 | L8: =_xlfn.XLOOKUP($I8,'Opex costs'!$B$7:$B$20,'Opex costs'!E$7:E$20) -> 51.06617851 | M8: =_xlfn.XLOOKUP($I8,'Opex costs'!$B$7:$B$20,'Opex costs'!F$7:F$20) -> 52.89073739 | N8: =_xlfn.XLOOKUP($I8,'Opex costs'!$B$7:$B$20,'Opex costs'!G$7:G$20) -> 54.21444934 | P8: ='PTRM Data'!B8 -> Underground Sub-Transmission Cables | Q8: =_xlfn.XLOOKUP($P8,'PTRM Data'!$AU$7:$AU$37,'PTRM Data'!AV$7:AV$37) -> 0.8427888909 | R8: =_xlfn.XLOOKUP($P8,'PTRM Data'!$AU$7:$AU$37,'PTRM Data'!AW$7:AW$37) -> 0.8434019651 | S8: =_xlfn.XLOOKUP($P8,'PTRM Data'!$AU$7:$AU$37,'PTRM Data'!AX$7:AX$37) -> 0.8960476287 | T8: =_xlfn.XLOOKUP($P8,'PTRM Data'!$AU$7:$AU$37,'PTRM Data'!AY$7:AY$37) -> 0.9512825615 | U8: =_xlfn.XLOOKUP($P8,'PTRM Data'!$AU$7:$AU$37,'PTRM Data'!AZ$7:AZ$37) -> 1.006115768 | W8: ='PTRM Data'!B8 -> Underground Sub-Transmission Cables | X8: =_xlfn.XLOOKUP($W8,'PTRM Data'!$Z$7:$Z$37,'PTRM Data'!AA$7:AA$37)*('BBM Costs'!C$7+'BBM Costs'!C$11) -> 3.515840782 | Y8: =_xlfn.XLOOKUP($W8,'PTRM Data'!$Z$7:$Z$37,'PTRM Data'!AB$7:AB$37)*('BBM Costs'!D$7+'BBM Costs'!D$11) -> 3.752974831 | Z8: =_xlfn.XLOOKUP($W8,'PTRM Data'!$Z$7:$Z$37,'PTRM Data'!AC$7:AC$37)*('BBM Costs'!E$7+'BBM Costs'!E$11) -> 4.024128638 | AA8: =_xlfn.XLOOKUP($W8,'PTRM Data'!$Z$7:$Z$37,'PTRM Data'!AD$7:AD$37)*('BBM Costs'!F$7+'BBM Costs'!F$11) -> 4.432865918 | AB8: =_xlfn.XLOOKUP($W8,'PTRM Data'!$Z$7:$Z$37,'PTRM Data'!AE$7:AE$37)*('BBM Costs'!G$7+'BBM Costs'!G$11) -> 4.795549501 | AD8: ='PTRM Data'!B8 -> Underground Sub-Transmission Cables | AE8: =_xlfn.XLOOKUP(AD8,'PTRM Data'!$B$7:$B$37,'PTRM Data'!$C$7:$C$37) -> 61.70374385
B9: Operating Expenditure | C9: =_xlfn.XLOOKUP($B9,'PTRM Revenue data'!$B$7:$B$11,'PTRM Revenue data'!C$7:C$11) -> 523.3337111 | D9: =_xlfn.XLOOKUP($B9,'PTRM Revenue data'!$B$7:$B$11,'PTRM Revenue data'!D$7:D$11) -> 536.6663647 | E9: =_xlfn.XLOOKUP($B9,'PTRM Revenue data'!$B$7:$B$11,'PTRM Revenue data'!E$7:E$11) -> 551.8602886 | F9: =_xlfn.XLOOKUP($B9,'PTRM Revenue data'!$B$7:$B$11,'PTRM Revenue data'!F$7:F$11) -> 579.1994568 | G9: =_xlfn.XLOOKUP($B9,'PTRM Revenue data'!$B$7:$B$11,'PTRM Revenue data'!G$7:G$11) -> 599.4580837 | I9: ='Opex costs'!B9 -> Forced Maintenance | J9: =_xlfn.XLOOKUP($I9,'Opex costs'!$B$7:$B$20,'Opex costs'!C$7:C$20) -> 95.42887277 | K9: =_xlfn.XLOOKUP($I9,'Opex costs'!$B$7:$B$20,'Opex costs'!D$7:D$20) -> 96.97105014 | L9: =_xlfn.XLOOKUP($I9,'Opex costs'!$B$7:$B$20,'Opex costs'!E$7:E$20) -> 98.8795358 | M9: =_xlfn.XLOOKUP($I9,'Opex costs'!$B$7:$B$20,'Opex costs'!F$7:F$20) -> 102.4124325 | N9: =_xlfn.XLOOKUP($I9,'Opex costs'!$B$7:$B$20,'Opex costs'!G$7:G$20) -> 104.9755384 | P9: ='PTRM Data'!B9 -> Overhead Distribution Lines | Q9: =_xlfn.XLOOKUP($P9,'PTRM Data'!$AU$7:$AU$37,'PTRM Data'!AV$7:AV$37) -> 11.5682044 | R9: =_xlfn.XLOOKUP($P9,'PTRM Data'!$AU$7:$AU$37,'PTRM Data'!AW$7:AW$37) -> 8.361906067 | S9: =_xlfn.XLOOKUP($P9,'PTRM Data'!$AU$7:$AU$37,'PTRM Data'!AX$7:AX$37) -> 10.22998111 | T9: =_xlfn.XLOOKUP($P9,'PTRM Data'!$AU$7:$AU$37,'PTRM Data'!AY$7:AY$37) -> 12.30465625 | U9: =_xlfn.XLOOKUP($P9,'PTRM Data'!$AU$7:$AU$37,'PTRM Data'!AZ$7:AZ$37) -> 14.54948623 | W9: ='PTRM Data'!B9 -> Overhead Distribution Lines | X9: =_xlfn.XLOOKUP($W9,'PTRM Data'!$Z$7:$Z$37,'PTRM Data'!AA$7:AA$37)*('BBM Costs'!C$7+'BBM Costs'!C$11) -> 347.5438008 | Y9: =_xlfn.XLOOKUP($W9,'PTRM Data'!$Z$7:$Z$37,'PTRM Data'!AB$7:AB$37)*('BBM Costs'!D$7+'BBM Costs'!D$11) -> 377.9099136 | Z9: =_xlfn.XLOOKUP($W9,'PTRM Data'!$Z$7:$Z$37,'PTRM Data'!AC$7:AC$37)*('BBM Costs'!E$7+'BBM Costs'!E$11) -> 412.7936742 | AA9: =_xlfn.XLOOKUP($W9,'PTRM Data'!$Z$7:$Z$37,'PTRM Data'!AD$7:AD$37)*('BBM Costs'!F$7+'BBM Costs'!F$11) -> 463.3095353 | AB9: =_xlfn.XLOOKUP($W9,'PTRM Data'!$Z$7:$Z$37,'PTRM Data'!AE$7:AE$37)*('BBM Costs'!G$7+'BBM Costs'!G$11) -> 507.5570714 | AD9: ='PTRM Data'!B9 -> Overhead Distribution Lines | AE9: =_xlfn.XLOOKUP(AD9,'PTRM Data'!$B$7:$B$37,'PTRM Data'!$C$7:$C$37) -> 6099.466668
